Workbook

Sheet __snloffice (hidden)
A1: 允䅁䅁䅷䅁䍁䅁䅁䅁䩁䅁䅁杄䅁䑁䅉䅍硁䑁䅧兕硁䅁䅁兂䅁䅁䄴䅁祁䑁䅁免㑁䙁䅅杍䅁䅁䅣䅁佁䅁䅁杍睁䑁䅅䅏剂䑁䅍䅁䥁䅁䅁杄䅁䑁䅉䅍硁䑁䅧兕ぁ䅁䅁䅁䅁䑁䅙䅁䉂䡁䅙睚杁䕁䅣兙穂䍁䅁睑ㅂ䡁䅍䅤療䝁䄰党祂䡁䅍䅉潁䝁䅅睙あ䡁䅕兙獂䍁䅫䅁䕁䅁䅁䅊䅁䕁䅫杢穂䡁䅑兡あ䡁䅕䅤灂䝁䄸杢杁䕁䄴兙瑂䝁䅕䅉䅁䅁䅯䅁佃䅁䅁睔睂䡁䅑兡療䝁䄴督㙁䕁䅍兤祂䡁䅉児卂䝁䅕䅣療䡁䅉䅤求䝁䅑䅉橂䡁䅕杣祂䝁䅕杢橂䡁䅫䅌乂䝁䅅睚㥁䕁䄰兓穂䡁䅑兙畂䝁䅑兙祂䝁䅑䅌䑂䝁䄸杢㉂䕁䄰党あ䝁䅧睢歂䑁䄰兔䩂䡁䅉党橂䝁䄸兢瑂䝁䅕杢歂䝁䅕䅚䅁䅁䅉䅁潁䅁䅁睔祂䝁䅫睚灂䝁䄴兙獂䝁䅷入杁䙁䅉党睂䝁䄸杣あ䝁䅕䅚䅁䅁䅅䅁卂䅁䅁杕求䡁䅁睢祂䡁䅑党歂䍁䅁杔求䡁䅑䅉偂䡁䅁党祂䝁䅅䅤灂䝁䄴睚杁䕁䅫杢橂䝁䄸兢求䍁䅁䅋卂䝁䅕䅣療䡁䅉䅤求䝁䅑克䅁䅁䅍䅁煁䅁䅁睕佂䕁䅷䅉䩂䝁䄴督あ䝁䅫䅤ㅂ䡁䅑兡療䝁䄴䅉䱂䝁䅕入杁䅁䅁睃䅁䑁䅉䅁啂䝁䄸䅤桂䝁䅷䅉卂䝁䅕杤求䝁䄴兤求䍁䅁䅋卂䝁䅕䅣療䡁䅉䅤求䝁䅑克䅁䅁䅙䅁䅁䅁䅁

Sheet 1.1 Recommended Cap Structure
A1: =Input!G28 -> Atmos Energy Corporation
A2: Recommended Capital Structure and Cost Rates
A3: for Ratemaking Purposes
B6: Type Of Capital | D6: Ratios (1) | F6: Cost Rate | H6: Weighted Cost Rate
B8: Long-Term Debt | D8: =Input!F13 -> 0.4277 | F8: =Input!F16 -> 0.04 | G8: (1) | H8: =ROUND(F8*D8,4) -> 0.0171
B9: Short-Term Debt | D9: =Input!F15 -> 0.0018 | F9: =Input!F17 -> 0.2517 | G9: (1) | H9: =ROUND(F9*D9,4) -> 0.0005
B10: Common Equity | D10: =Input!F14 -> 0.5705 | F10: ='1.2 Summary of CE Models'!E25 -> 0.1035 | G10: (2) | H10: =ROUND(F10*D10,4) -> 0.059
B12: Total | D12: =SUM(D8:D10) -> 1 | H12: =SUM(H8:H10) -> 0.0766
A15: Notes:
A17: (1) | B17: Company-provided.
A18: (2) | B18: From page 2 of this Schedule.

Sheet 1.2 Summary of CE Models
A1: =Input!G28 -> Atmos Energy Corporation
A2: Brief Summary of Common Equity Cost Rate
A5: Line No. | C5: Principal Methods | E5: =Input!I31 -> Proxy Group of Seven Natural Gas Distribution Companies
A7: 1. | C7: Discounted Cash Flow Model (DCF) (1) | E7: =AVERAGE('2.1 DCF Summary'!Y21)/100 -> 0.0944
A9: 2. | C9: Risk Premium Model (RPM) (2) | E9: =IFERROR('3.1 RP Summary'!D10,"NA")/100 -> 0.1096
A11: 3. | C11: Capital Asset Pricing Model (CAPM) (3) | E11: =IFERROR('4.1 CAPM'!V21,"NA")/100 -> 0.1175
A13: 4. | C13: Market Models Applied to Comparable Risk, Non-Price Regulated Companies (4) | E13: =IFERROR('6.1 CEM Summary'!E19,"NA")/100 -> 0.1242
A15: 5. | C15: Range of Common Equity Model Results | E15: 9.44% - 12.42%
A17: 6. | C17: Size Risk Adjustment (5) | E17: 0.002
A19: 7. | C19: Credit Risk Adjustment (6) | E19: =-'Market Data'!I4/100 -> -0.001
A21: 8. | C21: Flotation Cost Adjustment (7) | E21: ='8.1 Equity Contributions'!M26/100 -> 0.0004365543898
A23: 9. | C23: Indicated Range of Common Equity Cost Rates after Adjustment | E23: 9.58% - 12.66%
A25: 10. | C25: Recommended Common Equity Cost Rate | E25: 0.1035
A27: Notes: | B27: (1) | C27: From page 1 of Schedule DWD-2.
B28: (2) | C28: From page 1 of Schedule DWD-3.
B29: (3) | C29: From page 1 of Schedule DWD-4.
B30: (4) | C30: From page 1 of Schedule DWD-6.
B31: (5) | C31: Adjustment to reflect the Company's greater business risk due to its smaller size relative to the Utility Proxy Group as detailed in Mr. D'Ascendis' direct testimony.
B32: (6) | C32: Company-specific risk adjustment to reflect Atmos Energy's lower risk due to a higher long-term issuer rating relative to the proxy group as detailed in Mr. D'Ascendis' direct testimony.
B33: (7) | C33: From page 1 of Schedule DWD-8.

Sheet 2.1 DCF Summary
B1: =Input!G28 -> Atmos Energy Corporation
B2: Indicated Common Equity Cost Rate Using the Discounted Cash Flow Model for the
B3: =Input!I31 -> Proxy Group of Seven Natural Gas Distribution Companies
D5: [1] | G5: [2] | J5: [3] | M5: [4] | P5: [5] | S5: [6] | V5: [7] | Y5: [8]
B7: =B3 -> Proxy Group of Seven Natural Gas Distribution Companies | D7: Average Dividend Yield (1) | G7: Value Line Projected Five Year Growth in EPS (2) | J7: Zack's Five Year Projected Growth Rate in EPS | M7: Bloomberg's Five Year Projected Growth Rate in EPS | P7: Yahoo! Finance Projected Five Year Growth in EPS | S7: Average Projected Five Year Growth in EPS (3) | V7: Adjusted Dividend Yield (4) | Y7: Indicated Common Equity Cost Rate (5)
A9: =Input!A2 -> ATO | B9: ='Proxy Data Lookup'!B3 -> Atmos Energy Corporation | D9: =HLOOKUP(A9,'Proxy Prices'!$B$4:$H$71,68,FALSE)*100 -> 2.54 | E9: % | G9: =IFERROR(('Proxy Data Lookup'!F3*100),"NA") -> 7 | H9: % | J9: =IFERROR(('Proxy Data Lookup'!C3*100),"NA") -> 7.3 | K9: % | M9: =IFERROR(('Proxy Data Lookup'!E3*100),"NA") -> 7.098 | N9: % | P9: =IFERROR(('Proxy Data Lookup'!D3*100),"NA") -> 7.17 | Q9: % | S9: =IFERROR(ROUND(AVERAGE(G9,J9,M9,P9),2),"NA") -> 7.14 | T9: % | V9: =IFERROR(D9*(1+(0.5*(S9/100))),"NA") -> 2.630678 | W9: % | Y9: =IFERROR(V9 + S9,"NA") -> 9.770678 | Z9: %
A10: =Input!A3 -> NJR | B10: ='Proxy Data Lookup'!B4 -> New Jersey Resources Corporation | D10: =HLOOKUP(A10,'Proxy Prices'!$B$4:$H$71,68,FALSE)*100 -> 3.19 | G10: =IFERROR(('Proxy Data Lookup'!F4*100),"NA") -> 2 | J10: =IFERROR(('Proxy Data Lookup'!C4*100),"NA") -> 7.1 | M10: =IFERROR(('Proxy Data Lookup'!E4*100),"NA") -> 7.325 | P10: =IFERROR(('Proxy Data Lookup'!D4*100),"NA") -> 6 | S10: =IFERROR(ROUND(AVERAGE(G10,J10,M10,P10),2),"NA") -> 5.61 | V10: =IFERROR(D10*(1+(0.5*(S10/100))),"NA") -> 3.2794795 | Y10: =IFERROR(V10 + S10,"NA") -> 8.8894795
A11: =Input!A4 -> NWN | B11: ='Proxy Data Lookup'!B5 -> Northwest Natural Holding Company | D11: =HLOOKUP(A11,'Proxy Prices'!$B$4:$H$71,68,FALSE)*100 -> 3.57 | G11: =IFERROR(('Proxy Data Lookup'!F5*100),"NA") -> 5.5 | J11: =IFERROR(('Proxy Data Lookup'!C5*100),"NA") -> 3.9 | M11: =IFERROR(('Proxy Data Lookup'!E5*100),"NA") -> 4.42 | P11: =IFERROR(('Proxy Data Lookup'!D5*100),"NA") -> 3.8 | S11: 4.41 | V11: 3.6487185 | Y11: 8.0587185
A12: =Input!A5 -> OGS | B12: ='Proxy Data Lookup'!B6 -> ONE Gas, Inc. | D12: =HLOOKUP(A12,'Proxy Prices'!$B$4:$H$71,68,FALSE)*100 -> 3.02 | G12: =IFERROR(('Proxy Data Lookup'!F6*100),"NA") -> 6.5 | J12: =IFERROR(('Proxy Data Lookup'!C6*100),"NA") -> 5 | M12: =IFERROR(('Proxy Data Lookup'!E6*100),"NA") -> 5.667 | P12: =IFERROR(('Proxy Data Lookup'!D6*100),"NA") -> 5 | S12: 5.54 | V12: 3.103654 | Y12: 8.643654
A13: =Input!A6 -> SJI | B13: ='Proxy Data Lookup'!B7 -> South Jersey Industries, Inc. | D13: =HLOOKUP(A13,'Proxy Prices'!$B$4:$H$71,68,FALSE)*100 -> 4.84 | G13: =IFERROR(('Proxy Data Lookup'!F7*100),"NA") -> 11.5 | J13: =IFERROR(('Proxy Data Lookup'!C7*100),"NA") -> 5.4 | M13: =IFERROR(('Proxy Data Lookup'!E7*100),"NA") -> 4.93 | P13: =IFERROR(('Proxy Data Lookup'!D7*100),"NA") -> 4.8 | S13: 6.66 | V13: 5.001172 | Y13: 11.661172
A14: =Input!A7 -> SWX | B14: ='Proxy Data Lookup'!B8 -> Southwest Gas Holdings, Inc. | D14: =HLOOKUP(A14,'Proxy Prices'!$B$4:$H$71,68,FALSE)*100 -> 3.45 | G14: =IFERROR(('Proxy Data Lookup'!F8*100),"NA") -> 9 | J14: =IFERROR(('Proxy Data Lookup'!C8*100),"NA") -> 5.5 | M14: =IFERROR(('Proxy Data Lookup'!E8*100),"NA") -> 4.5 | P14: =IFERROR(('Proxy Data Lookup'!D8*100),"NA") -> 4 | S14: 5.75 | V14: 3.5491875 | Y14: 9.2991875
A15: =Input!A8 -> SR | B15: ='Proxy Data Lookup'!B9 -> Spire Inc. | D15: =HLOOKUP(A15,'Proxy Prices'!$B$4:$H$71,68,FALSE)*100 -> 3.49 | G15: =IFERROR(('Proxy Data Lookup'!F9*100),"NA") -> 10 | J15: =IFERROR(('Proxy Data Lookup'!C9*100),"NA") -> 5.5 | M15: =IFERROR(('Proxy Data Lookup'!E9*100),"NA") -> 5.33 | P15: =IFERROR(('Proxy Data Lookup'!D9*100),"NA") -> 7.31 | S15: 7.04 | V15: 3.612848 | Y15: 10.652848
V17: Average | Y17: =ROUND(AVERAGE(Y9:Y15),2) -> 9.57 | Z17: %
V19: Median | Y19: =ROUND(MEDIAN(Y9:Y15),2) -> 9.3 | Z19: %
V21: Average of Mean and Median | Y21: =ROUND(AVERAGE(Y17:Y19),2) -> 9.44 | Z21: %
E24: NA= Not Available
E25: NMF= Not Meaningful Figure
D27: Notes:
E28: (1) | F28: =CONCATENATE("Indicated dividend at ",TEXT(Input!E2,"mm/dd/yyyy")," divided by the average closing price of the last 60 trading days ending ",TEXT(Input!E2,"mm/dd/yyyy")," for each company.") -> Indicated dividend at 05/28/2021 divided by the average closing price of the last 60 trading days ending 05/28/2021 for each company.
E29: (2) | F29: From pages 2 through 8 of this Schedule.
E30: (3) | F30: Average of columns 2 through 5 excluding negative growth rates.
E31: (4) | F31: =CONCATENATE("This reflects a growth rate component equal to one-half the conclusion of growth rate (from column 6) x column 1 to reflect the periodic payment of dividends (Gordon Model) as opposed to the continuous payment. Thus, for ",B9,", ",TEXT(D9,"#0.00"),"% x (1+( 1/2 x ",TEXT(S9,"#0.00"),"%) ) = ",TEXT(V9,"#0.00"),"%.") -> This reflects a growth rate component equal to one-half the conclusion of growth rate (from column 6) x column 1 to reflect the periodic payment of dividends (Gordon Model) as opposed to the continuous payment. Thus, for Atmos Energy Corporation, 2.54% x (1+( 1/2 x 7.14%) ) = 2.63%.
E32: (5) | F32: Column 6 + column 7.
B34: Source of Information: | E34: Value Line Investment Survey
E35: =CONCATENATE("www.zacks.com Downloaded on ",TEXT(Input!E2,"mm/dd/yyyy")) -> www.zacks.com Downloaded on 05/28/2021
E36: =CONCATENATE("www.yahoo.com Downloaded on ",TEXT(Input!E2,"mm/dd/yyyy")) -> www.yahoo.com Downloaded on 05/28/2021
E37: Bloomberg Professional Services

Sheet 3.1 RP Summary
A1: =Input!G28 -> Atmos Energy Corporation
A2: Summary of Risk Premium Models for the
A3: =Input!I31 -> Proxy Group of Seven Natural Gas Distribution Companies
D5: =A3 -> Proxy Group of Seven Natural Gas Distribution Companies
A6: Predictive Risk Premium Model (PRPM) (1) | D6: =IFERROR('3.2 Ind. PRPM Results'!P22*100,"NA") -> 11.43 | E6: %
A8: Risk Premium Using an Adjusted Total Market Approach (2) | D8: =IFERROR('3.3 Risk Premium Summary'!G28,"NA") -> 10.49 | E8: %
C10: Average | D10: =IFERROR(ROUND(AVERAGE(D6:D8),2),"NA") -> 10.96 | E10: %
A12: Notes:
A13: (1) | B13: From page 2 of this Schedule.
A14: (2) | B14: From page 3 of this Schedule.

Sheet 3.2 Ind. PRPM Results
B1: =Input!G28 -> Atmos Energy Corporation
B2: Indicated ROE
B3: Derived by the Predictive Risk Premium Model (1)
D6: [1] | F6: [2] | H6: [3] | J6: [4] | L6: [5] | N6: [6] | P6: [7]
B8: =Input!I31 -> Proxy Group of Seven Natural Gas Distribution Companies | D8: LT Average Predicted Variance | F8: Spot Predicted Variance | H8: Recommended Variance (2) | J8: GARCH Coefficient | L8: Predicted Risk Premium (3) | N8: Risk-Free Rate (4) | P8: Indicated ROE (5)
A10: =Input!A2 -> ATO | B10: ='Proxy Data Lookup'!B3 -> Atmos Energy Corporation | D10: ='PRPM WP 1'!$B$1151 -> 0.003343098081 | F10: ='PRPM WP 1'!$B$1153 -> 0.004788100347 | H10: =AVERAGE(D10:F10) -> 0.004065599214 | J10: ='PRPM WP 1'!$B$1155 -> 2.256528 | L10: =ROUND((1+(H10*J10))^12-1,4) -> 0.1158 | N10: ='MRP WP1'!F$37/100 -> 0.0288 | P10: =N10+L10 -> 0.1446
A11: =Input!A3 -> NJR | B11: ='Proxy Data Lookup'!B4 -> New Jersey Resources Corporation | D11: ='PRPM WP 1'!$C$1151 -> 0.003828734779 | F11: ='PRPM WP 1'!$C$1153 -> 0.003414929919 | H11: =AVERAGE(D11:F11) -> 0.003621832349 | J11: ='PRPM WP 1'!$C$1155 -> 2.081402 | L11: =ROUND((1+(H11*J11))^12-1,4) -> 0.0943 | N11: ='MRP WP1'!F$37/100 -> 0.0288 | P11: =N11+L11 -> 0.1231
A12: =Input!A4 -> NWN | B12: ='Proxy Data Lookup'!B5 -> Northwest Natural Holding Company | D12: ='PRPM WP 1'!$D$1151 -> 0.003243388313 | F12: ='PRPM WP 1'!$D$1153 -> 0.003769875417 | H12: 0.003506631865 | J12: ='PRPM WP 1'!$D$1155 -> 1.541259 | L12: 0.0668 | N12: ='MRP WP1'!F$37/100 -> 0.0288 | P12: 0.0956
A13: =Input!A5 -> OGS | B13: ='Proxy Data Lookup'!B6 -> ONE Gas, Inc. | D13: ='PRPM WP 1'!$E$1151 -> 0.002995828424 | F13: ='PRPM WP 1'!$E$1153 -> 0.004328637573 | H13: 0.003662232998 | J13: ='PRPM WP 1'!$E$1155 -> 4.063317 | L13: 0.1939 | N13: ='MRP WP1'!F$37/100 -> 0.0288 | P13: NMF
A14: =Input!A6 -> SJI | B14: ='Proxy Data Lookup'!B7 -> South Jersey Industries, Inc. | D14: ='PRPM WP 1'!$F$1151 -> 0.00386704406 | F14: ='PRPM WP 1'!$F$1153 -> 0.006851109059 | H14: 0.00535907656 | J14: ='PRPM WP 1'!$F$1155 -> 1.634639 | L14: 0.1103 | N14: ='MRP WP1'!F$37/100 -> 0.0288 | P14: =N14+L14 -> 0.1391
A15: =Input!A7 -> SWX | B15: ='Proxy Data Lookup'!B8 -> Southwest Gas Holdings, Inc. | D15: ='PRPM WP 1'!$G$1151 -> 0.004342621755 | F15: ='PRPM WP 1'!$G$1153 -> 0.003768567088 | H15: 0.004055594422 | J15: ='PRPM WP 1'!$G$1155 -> 1.362844 | L15: 0.0684 | N15: ='MRP WP1'!F$37/100 -> 0.0288 | P15: 0.0972
A16: =Input!A8 -> SR | B16: ='Proxy Data Lookup'!B9 -> Spire Inc. | D16: ='PRPM WP 1'!$H$1151 -> 0.007118212242 | F16: ='PRPM WP 1'!$H$1153 -> 0.005161245489 | H16: 0.006139728865 | J16: ='PRPM WP 1'!$H$1155 -> 0.944453 | L16: 0.0718 | N16: ='MRP WP1'!F$37/100 -> 0.0288 | P16: 0.1006
N18: Average | P18: =ROUND(AVERAGE($P9:$P16),4) -> 0.1167
N20: Median | P20: =ROUND(MEDIAN($P9:$P16),4) -> 0.1119
N22: Average of Mean and Median | P22: =ROUND(AVERAGE(P18:P20),4) -> 0.1143
B26: Notes:
B27: (1) | D27: The Predictive Risk Premium Model uses historical data to generate a predicted variance and a GARCH coefficient. The historical data used are the equity risk premiums for the first available trading month as reported by Bloomberg Professional Service.
B28: (2) | D28: Given current market conditions, I recommend using average of the the long-term average predicted variance and the spot variance.
B29: (3) | D29: (1+(Column [3] * Column [4])^12) - 1.
B30: (4) | D30: From note 2 on page 2 of Schedule DWD-4.
B31: (5) | D31: Column [5] + Column [6].

Sheet 3.3 Risk Premium Summary
A1: =Input!G28 -> Atmos Energy Corporation
A2: Indicated Common Equity Cost Rate
A3: Through Use of a Risk Premium Model
A4: Using an Adjusted Total Market Approach
A6: Line No. | G6: =Input!I31 -> Proxy Group of Seven Natural Gas Distribution Companies
A9: 1. | C9: Prospective Yield on Aaa Rated
C10: Corporate Bonds (1) | G10: ='MRP WP1'!$M$37 -> 3.56 | H10: %
A12: 2. | C12: Adjustment to Reflect Yield Spread
C13: Between Aaa Rated Corporate
C14: Bonds and A2 Rated Public
C15: Utility Bonds | G15: ='3.4 Moody''s Bond Yields'!L21 -> 0.39 | H15: (2)
A17: 3. | C17: Adjusted Prospective Yield on A2 Rated
C18: Public Utility Bonds | G18: =SUM(G10:G15) -> 3.95 | H18: %
A20: 4. | C20: Adjustment to Reflect Bond
C21: Rating Difference of Proxy Group | G21: =ROUND((1/6)*'3.4 Moody''s Bond Yields'!L24,2) -> 0.04 | H21: (3)
A23: 5. | C23: Adjusted Prospective Bond Yield | G23: =SUM(G18:G21) -> 3.99 | H23: %
A25: 6. | C25: Equity Risk Premium (4) | G25: ='3.7 ERP Determination'!E25 -> 6.5
A27: 7. | C27: Risk Premium Derived Common
C28: Equity Cost Rate | G28: =SUM(G23:G25) -> 10.49 | H28: %
A31: Notes: | B31: (1) | C31: Consensus forecast of Moody's Aaa Rated Corporate bonds from Blue Chip Financial Forecasts (see pages 10 and 11 of this Schedule).
B32: (2) | C32: =CONCATENATE("The average yield spread of A2 rated public utility bonds over Aaa rated corporate bonds of ",TEXT('3.4 Moody''s Bond Yields'!L21,"#0.00"),"% from page 4 of this Schedule.") -> The average yield spread of A2 rated public utility bonds over Aaa rated corporate bonds of 0.39% from page 4 of this Schedule.
B33: (3) | C33: =CONCATENATE("Adjustment to reflect the A2/A3 Moody's LT issuer rating of the Utility Proxy Group as shown on page 5 of this Schedule. The ",G21,"% upward adjustment is derived by taking 1/6 of the spread between A2 and Baa2 Public Utility Bonds (1/6 * ",'3.4 Moody''s Bond Yields'!L24,"% = ",TEXT('3.3 Risk Premium Summary'!G21,"#0.00"),"%) as derived from page 4 of this Schedule.") -> Adjustment to reflect the A2/A3 Moody's LT issuer rating of the Utility Proxy Group as shown on page 5 of this Schedule. The 0.04% upward adjustment is derived by taking 1/6 of the spread between A2 and Baa2 Public Utility Bonds (1/6 * 0.26% = 0.04%) as derived from page 4 of this Schedule.
B34: (4) | C34: From page 7 of this Schedule.

Sheet 3.4 Moody's Bond Yields
A1: =Input!G28 -> Atmos Energy Corporation
A2: Interest Rates and Bond Spreads for
A3: Moody's Corporate and Public Utility Bonds
A6: Selected Bond Yields - Moody's
C8: [1] | F8: [2] | I8: [3] | L8: [4]
C10: Aaa Rated Corporate Bond | F10: Aa2 Rated Public Utility Bond | I10: A2 Rated Public Utility Bond | L10: Baa2 Rated Public Utility Bond
A12: ='Market Data'!B1 -> 2021-05-28 | C12: ='Market Data'!B5 -> 2.96 | D12: % | F12: ='Market Data'!B2 -> 3.17 | G12: % | I12: ='Market Data'!B3 -> 3.33 | J12: % | L12: ='Market Data'!B4 -> 3.58 | M12: %
A13: ='Market Data'!C1 -> 2021-04-30 | C13: ='Market Data'!C5 -> 2.9 | F13: ='Market Data'!C2 -> 3.13 | I13: ='Market Data'!C3 -> 3.3 | L13: ='Market Data'!C4 -> 3.57
A14: ='Market Data'!D1 -> 2021-03-31 | C14: ='Market Data'!D5 -> 3.04 | F14: ='Market Data'!D2 -> 3.27 | I14: ='Market Data'!D3 -> 3.44 | L14: ='Market Data'!D4 -> 3.72
A16: Average | C16: =ROUND(AVERAGE(C12:C14),2) -> 2.97 | D16: % | F16: =ROUND(AVERAGE(F12:F14),2) -> 3.19 | G16: % | I16: =ROUND(AVERAGE(I12:I14),2) -> 3.36 | J16: % | L16: =ROUND(AVERAGE(L12:L14),2) -> 3.62 | M16: %
A18: Selected Bond Spreads
A20: A2 Rated Public Utility Bonds Over Aaa Rated Corporate Bonds:
L21: =I16-C16 -> 0.39 | M21: % (1)
A23: Baa2 Rated Public Utility Bonds Over A2 Rated Public Utility Bonds:
L24: =ROUND(L16-I16,2) -> 0.26 | M24: % (2)
A26: A2 Rated Public Utility Bonds Over Aa2 Rated Public Utility Bonds:
L27: =ROUND(I16-F16,2) -> 0.17 | M27: % (3)
A28: Notes:
A29: (1) | B29: Column [3] - Column [1].
A30: (2) | B30: Column [4] - Column [3].
A31: (3) | B31: Column [3] - Column [2].
A33: Source of Information:
A34: Bloomberg Professional Service

Sheet 3.5 Bond Ratings
B1: =Input!G28 -> Atmos Energy Corporation
B2: Comparison of Long-Term Issuer Ratings for
B3: ='3.3 Risk Premium Summary'!G6 -> Proxy Group of Seven Natural Gas Distribution Companies
E6: Moody's | I6: Standard & Poor's
E7: Long-Term Issuer Rating | I7: Long-Term Issuer Rating
E8: =TEXT(Input!E2,"mmmm yyyy") -> May 2021 | I8: =E8 -> May 2021
B11: =B3 -> Proxy Group of Seven Natural Gas Distribution Companies | E11: Long-Term Issuer Rating (1) | G11: Numerical Weighting (2) | I11: =E11 -> Long-Term Issuer Rating (1) | K11: Numerical Weighting (2)
A13: =Input!A2 -> ATO | B13: ='Proxy Data Lookup'!B3 -> Atmos Energy Corporation | E13: ='Proxy Data Lookup'!P3 -> A1 | G13: =IFERROR(INDEX('3.6 MOODY_S&P numbericl'!D$6:D$26,MATCH('3.5 Bond Ratings'!E13,'3.6 MOODY_S&P numbericl'!B$6:B$26,0)), " - -") -> 5 | I13: ='Proxy Data Lookup'!O3 -> A- | K13: =IFERROR(INDEX('3.6 MOODY_S&P numbericl'!H$6:H$26,MATCH('3.5 Bond Ratings'!I13,'3.6 MOODY_S&P numbericl'!F$6:F$26,0)), " - -") -> 7
A14: =Input!A3 -> NJR | B14: ='Proxy Data Lookup'!B4 -> New Jersey Resources Corporation | E14: ='Proxy Data Lookup'!P4 -> A1 | G14: =IFERROR(INDEX('3.6 MOODY_S&P numbericl'!D$6:D$26,MATCH('3.5 Bond Ratings'!E14,'3.6 MOODY_S&P numbericl'!B$6:B$26,0)), " - -") -> 5 | I14: ='Proxy Data Lookup'!O4 -> NR | K14: =IFERROR(INDEX('3.6 MOODY_S&P numbericl'!H$6:H$26,MATCH('3.5 Bond Ratings'!I14,'3.6 MOODY_S&P numbericl'!F$6:F$26,0)), " - -") -> - -
A15: =Input!A4 -> NWN | B15: ='Proxy Data Lookup'!B5 -> Northwest Natural Holding Company | E15: ='Proxy Data Lookup'!P5 -> Baa1 | G15: =IFERROR(INDEX('3.6 MOODY_S&P numbericl'!D$6:D$26,MATCH('3.5 Bond Ratings'!E15,'3.6 MOODY_S&P numbericl'!B$6:B$26,0)), " - -") -> 8 | I15: ='Proxy Data Lookup'!O5 -> A+ | K15: =IFERROR(INDEX('3.6 MOODY_S&P numbericl'!H$6:H$26,MATCH('3.5 Bond Ratings'!I15,'3.6 MOODY_S&P numbericl'!F$6:F$26,0)), " - -") -> 5
A16: =Input!A5 -> OGS | B16: ='Proxy Data Lookup'!B6 -> ONE Gas, Inc. | E16: ='Proxy Data Lookup'!P6 -> A3 | G16: =IFERROR(INDEX('3.6 MOODY_S&P numbericl'!D$6:D$26,MATCH('3.5 Bond Ratings'!E16,'3.6 MOODY_S&P numbericl'!B$6:B$26,0)), " - -") -> 7 | I16: ='Proxy Data Lookup'!O6 -> BBB+ | K16: =IFERROR(INDEX('3.6 MOODY_S&P numbericl'!H$6:H$26,MATCH('3.5 Bond Ratings'!I16,'3.6 MOODY_S&P numbericl'!F$6:F$26,0)), " - -") -> 8
A17: =Input!A6 -> SJI | B17: ='Proxy Data Lookup'!B7 -> South Jersey Industries, Inc. | E17: ='Proxy Data Lookup'!P7 -> A3 | G17: =IFERROR(INDEX('3.6 MOODY_S&P numbericl'!D$6:D$26,MATCH('3.5 Bond Ratings'!E17,'3.6 MOODY_S&P numbericl'!B$6:B$26,0)), " - -") -> 7 | I17: ='Proxy Data Lookup'!O7 -> BBB | K17: =IFERROR(INDEX('3.6 MOODY_S&P numbericl'!H$6:H$26,MATCH('3.5 Bond Ratings'!I17,'3.6 MOODY_S&P numbericl'!F$6:F$26,0)), " - -") -> 9
A18: =Input!A7 -> SWX | B18: ='Proxy Data Lookup'!B8 -> Southwest Gas Holdings, Inc. | E18: ='Proxy Data Lookup'!P8 -> Baa1 | G18: =IFERROR(INDEX('3.6 MOODY_S&P numbericl'!D$6:D$26,MATCH('3.5 Bond Ratings'!E18,'3.6 MOODY_S&P numbericl'!B$6:B$26,0)), " - -") -> 8 | I18: ='Proxy Data Lookup'!O8 -> A- | K18: =IFERROR(INDEX('3.6 MOODY_S&P numbericl'!H$6:H$26,MATCH('3.5 Bond Ratings'!I18,'3.6 MOODY_S&P numbericl'!F$6:F$26,0)), " - -") -> 7
A19: =Input!A8 -> SR | B19: ='Proxy Data Lookup'!B9 -> Spire Inc. | E19: ='Proxy Data Lookup'!P9 -> A1/A2 | G19: 5.5 | I19: ='Proxy Data Lookup'!O9 -> A- | K19: =IFERROR(INDEX('3.6 MOODY_S&P numbericl'!H$6:H$26,MATCH('3.5 Bond Ratings'!I19,'3.6 MOODY_S&P numbericl'!F$6:F$26,0)), " - -") -> 7
C21: Average | E21: A2/A3 | G21: =ROUND(AVERAGE(G12:G19),1) -> 6.5 | I21: A- | K21: =ROUND(AVERAGE(K12:K19),1) -> 7.2
B24: Notes:
B26: (1) | C26: Ratings are that of the average of each company's utility operating subsidiaries.
B27: (2) | C27: From page 6 of this Schedule.
C29: Source Information: | E29: Moody's Investors Service
E30: Standard & Poor's Global Utilities Rating Service

Sheet 3.6 MOODY_S&P numbericl
B1: Numerical Assignment for
B2: Moody's and Standard & Poor's Bond Ratings
B4: Moody's Bond Rating | D4: Numerical Bond Weighting | F4: Standard & Poor's Bond Rating | H4: =D4 -> Numerical Bond Weighting
B6: Aaa | D6: 1 | F6: AAA | H6: =IF(D6="","",D6) -> 1
H7: =IF(D7="","",D7) -> 
B8: Aa1 | D8: 2 | F8: AA+ | H8: 2
B9: Aa2 | D9: 3 | F9: AA | H9: 3
B10: Aa3 | D10: 4 | F10: AA- | H10: 4
B12: A1 | D12: 5 | F12: A+ | H12: 5
B13: A2 | D13: 6 | F13: A | H13: 6
B14: A3 | D14: 7 | F14: A- | H14: 7
B16: Baa1 | D16: 8 | F16: BBB+ | H16: 8
B17: Baa2 | D17: 9 | F17: BBB | H17: 9
B18: Baa3 | D18: 10 | F18: BBB- | H18: 10
B20: Ba1 | D20: 11 | F20: BB+ | H20: 11
B21: Ba2 | D21: 12 | F21: BB | H21: 12
B22: Ba3 | D22: 13 | F22: BB- | H22: 13
B24: B1 | D24: 14 | F24: B+ | H24: 14
B25: B2 | D25: 15 | F25: B | H25: 15
B26: B3 | D26: 16 | F26: B- | H26: 16

Sheet 3.7 ERP Determination
A1: =Input!G28 -> Atmos Energy Corporation
A2: Judgment of Equity Risk Premium for
A3: =E6 -> Proxy Group of Seven Natural Gas Distribution Companies
A6: Line No. | E6: ='3.5 Bond Ratings'!B3 -> Proxy Group of Seven Natural Gas Distribution Companies
A9: 1. | C9: Calculated equity risk
C10: premium based on the
C11: total market using
C12: the beta approach (1) | E12: ='3.8-3.9 Beta Adjusted ERP'!F27 -> 8.03 | F12: %
A14: 2. | C14: Mean equity risk premium
C15: based on a study
C16: using the holding period
C17: returns of public utilities
C18: with A rated bonds (2) | E18: ='3.12 S&P RPM Study Returns'!E19 -> 5.84
A20: 3. | C20: Predicted Equity Risk Premium
C21: Based on Regression Analysis
C22: of 800 Fully-Litigated Natural
C23: Gas Utility Rate Cases | E23: ='3.13 Past Rate Cases Gas'!AF25 -> 5.64490405
A25: 4. | C25: Average equity risk premium | E25: =ROUND(AVERAGE(E12:E23),2) -> 6.5 | F25: %
A28: Notes: | B28: (1) | C28: From page 8 of this Schedule.
B29: (2) | C29: From page 12 of this Schedule.
B30: (3) | C30: From page 13 of this Schedule.

Sheet 3.8-3.9 Beta Adjusted ERP
A1: =Input!G28 -> Atmos Energy Corporation
A2: Derivation of Equity Risk Premium Based on the Total Market Approach
A3: Using the Beta for the
A4: ='3.7 ERP Determination'!E6 -> Proxy Group of Seven Natural Gas Distribution Companies
A7: Line No. | C7: ='6.5 CEM Beta Adjusted RP'!C7 -> Equity Risk Premium Measure | F7: =A4 -> Proxy Group of Seven Natural Gas Distribution Companies
B9: Ibbotson-Based Equity Risk Premiums:
A11: 1. | C11: Ibbotson Equity Risk Premium (1) | F11: =('Market Data'!B11-'Market Data'!B12)*100 -> 5.92 | G11: %
A13: 2. | C13: Regression on Ibbotson Risk Premium Data (2) | F13: ='MRP ERP WP'!$AK$42*100 -> 8.692961584
A15: 3. | C15: Ibbotson Equity Risk Premium based on PRPM (3) | F15: ='PRPM WP 1'!K1161*100 -> 9.020182923
A17: 4. | C17: Equity Risk Premium Based on Value Line Summary and Index (4) | F17: ='MRP WP1'!$M$22*100-'MRP WP1'!$M$37 -> 4.6
A19: 5. | C19: Equity Risk Premium Based on Value Line S&P 500 Companies (5) | F19: =('MRP WP3'!H504*100)-'MRP WP1'!M37 -> 10.76198133
A21: 6. | C21: Equity Risk Premium Based on Bloomberg S&P 500 Companies (6) | F21: ='MRP WP2'!Q504*100-'MRP WP1'!M37 -> 12.77579407
A23: 7. | C23: Conclusion of Equity Risk Premium | F23: =ROUND(AVERAGE(F11:F21),2) -> 8.63 | G23: %
A25: 8. | C25: Adjusted Beta (7) | F25: ='4.1 CAPM'!H21 -> 0.93
A27: 9. | C27: Forecasted Equity Risk Premium | F27: =ROUND(F23*F25,2) -> 8.03 | G27: %
A29: Notes provided on page 9 of this Schedule.
B31: Notes:
B32: (1) | C32: =CONCATENATE("Based on the arithmetic mean historical monthly returns on large company common stocks from Duff & Phelps ",YEAR(Input!E2)," SBBI® Yearbook minus the arithmetic mean monthly yield of Moody's average Aaa and Aa corporate bonds from 1928-2020.") -> Based on the arithmetic mean historical monthly returns on large company common stocks from Duff & Phelps 2021 SBBI® Yearbook minus the arithmetic mean monthly yield of Moody's average Aaa and Aa corporate bonds from 1928-2020.
B34: (2) | C34: This equity risk premium is based on a regression of the monthly equity risk premiums of large company common stocks relative to Moody's average Aaa and Aa rated corporate bond yields from 1928-2020 referenced in Note 1 above.
B35: (3) | C35: The Predictive Risk Premium Model (PRPM) is discussed in the accompanying direct testimony. The Ibbotson equity risk premium based on the PRPM is derived by applying the PRPM to the monthly risk premiums between Ibbotson large company common stock monthly returns and average Aaa and Aa corporate monthly bond yields, from January 1928 through March 2021.
B36: (4) | C36: =CONCATENATE("The equity risk premium based on the Value Line Summary and Index is derived by subtracting the average consensus forecast of Aaa corporate bonds of ",TEXT('MRP WP1'!M37,"#0.00"),"% (from page 3 of this Schedule) from the projected 3-5 year total annual market return of ",TEXT('MRP WP1'!M22*100,"#0.00"),"% (described fully in note 1 on page 2 of Schedule DWD-4).") -> The equity risk premium based on the Value Line Summary and Index is derived by subtracting the average consensus forecast of Aaa corporate bonds of 3.56% (from page 3 of this Schedule) from the projected 3-5 year total annual market return of 8.16% (described fully in note 1 on page 2 of Schedule DWD-4).
B37: (5) | C37: Using data from Value Line for the S&P 500, an expected total return of 14.32% was derived based upon expected dividend yields and long-term earnings growth estimates as a proxy for capital appreciation. Subtracting the average consensus forecast of Aaa corporate bonds of 3.56% results in an expected equity risk premium of 10.76%.
B38: (6) | C38: Using data from the Bloomberg Professional Service for the S&P 500, an expected total return of 16.34% was derived based upon expected dividend yields and long-term earnings growth estimates as a proxy for capital appreciation. Subtracting the average consensus forecast of Aaa corporate bonds of 3.56% results in an expected equity risk premium of 12.78%.
B39: (7) | C39: Average of mean and median beta from Schedule DWD-4.
B41: Sources of Information:
C42: Stocks, Bonds, Bills, and Inflation - 2021 SBBI Yearbook, John Wiley & Sons, Inc.
C43: Industrial Manual and Mergent Bond Record Monthly Update.
C44: Value Line Summary and Index
C45: =CONCATENATE("Blue Chip Financial Forecasts, ",Input!I25) -> Blue Chip Financial Forecasts, June 1, 2021
C46: Bloomberg Professional Service

Sheet 3.12 S&P RPM Study Returns
A1: =Input!G28 -> Atmos Energy Corporation
A2: Derivation of Mean Equity Risk Premium Based Studies
A3: Using Holding Period Returns and
A4: Projected Market Appreciation of the S&P Utility Index
A5: Line No. | E5: Implied Equity Risk Premium
B7: Equity Risk Premium based on S&P Utility Index Holding Period Returns (1):
A9: 1. | C9: Historical Equity Risk Premium | E9: =('Market Data'!B13-'Market Data'!B14)*100 -> 4.16 | F9: %
A11: 2. | C11: Regression of Historical Equity Risk Premium (2) | E11: ='MRP ERP WP'!AU42*100 -> 6.374061759
A13: 3. | C13: Forecasted Equity Risk Premium Based on PRPM (3) | E13: =ROUND('PRPM WP 1'!J1161*100,2) -> 5.41
A15: 4. | C15: Forecasted Equity Risk Premium based on Projected Total Return on the S&P Utilities Index (Value Line Data) (4) | E15: =ROUND(('ERP WP 2'!H32*100)-'3.3 Risk Premium Summary'!G18,2) -> 7.45
A17: 5. | C17: Forecasted Equity Risk Premium based on Projected Total Return on the S&P Utilities Index (Bloomberg Data) (5) | E17: =ROUND('ERP WP1'!O31*100-'3.3 Risk Premium Summary'!G18,2) -> 5.82
A19: 6. | C19: Average Equity Risk Premium (6) | E19: =ROUND(AVERAGE(E9:E17),2) -> 5.84 | F19: %
A22: Notes: | B22: (1) | C22: Based on S&P Public Utility Index monthly total returns and Moody's Public Utility Bond average monthly yields from 1928-2020. Holding period returns are calculated based upon income received (dividends and interest) plus the relative change in the market value of a security over a one-year holding period.
B23: (2) | C23: This equity risk premium is based on a regression of the monthly equity risk premiums of the S&P Utility Index relative to Moody's A2 rated public utility bond yields from 1928 - 2020 referenced in note 1 above.
B24: (3) | C24: =CONCATENATE("The Predictive Risk Premium Model (PRPM) is applied to the risk premium of the monthly total returns of the S&P Utility Index and the monthly yields on Moody's A2 rated public utility bonds from January 1928 - ",Input!G25,".") -> The Predictive Risk Premium Model (PRPM) is applied to the risk premium of the monthly total returns of the S&P Utility Index and the monthly yields on Moody's A2 rated public utility bonds from January 1928 - May 2021.
B25: (4) | C25: Using data from Value Line for the S&P Utilities Index, an expected return of 11.40% was derived based on expected dividend yields and long-term growth estimates as a proxy for market appreciation. Subtracting the expected A2 rated public utility bond yield of 3.95%, calculated on line 3 of page 3 of this Schedule results in an equity risk premium of 7.45%. (11.40% - 3.95% = 7.45%)
B26: (5) | C26: Using data from Bloomberg Professional Service for the S&P Utilities Index, an expected return of 9.77% was derived based on expected dividend yields and long-term growth estimates as a proxy for market appreciation. Subtracting the expected A2 rated public utility bond yield of 3.95%, calculated on line 3 of page 3 of this Schedule results in an equity risk premium of 5.82%. (9.77% - 3.95% = 5.82%)
B27: (6) | C27: Average of lines 1 through 5.

Sheet 3.13 Past Rate Cases Gas
A1: Rate Case History | O1: SUMMARY OUTPUT | Z1: =Input!G28 -> Atmos Energy Corporation
Z2: Prediction of Equity Risk Premiums Relative to
A3: Past Rate Cases | O3: Regression Statistics | Z3: Moody's A2 Rated Utility Bond Yields
F4: Increase Authorized | O4: Multiple R | P4: 0.9332709811
A5: State | B5: Company | C5: Case Identification | D5: Service | E5: Case Type | F5: Date | G5: Decision Type | H5: Return on Equity (%) | I5: Common Equity /Total Cap (%) | J5: A Rated Utility Bond (%) | K5: Equity Risk Premium (%) | O5: R Square | P5: 0.8709947242
A6: Illinois | B6: Northern Illinois Gas Co. | C6: D-79-0133 | D6: Natural Gas | E6: Distribution | F6: 1/3/1980 | G6: Fully Litigated | H6: 12.55 | I6: 51.81 | J6: =11.89 -> 11.89 | K6: =H6-J6 -> 0.66 | O6: Adjusted R Square | P6: 0.8708330634
A7: Pennsylvania | B7: PECO Energy Co. | C7: C-R-79030781 | D7: Natural Gas | E7: Distribution | F7: 1/4/1980 | G7: Fully Litigated | H7: 13.75 | I7: 35.1 | J7: 11.89 | K7: 1.86 | O7: Standard Error | P7: 0.7669310575
A8: Maryland | B8: Washington Gas Light Co. | C8: C-7394 0-64174 | D8: Natural Gas | E8: Distribution | F8: 1/14/1980 | G8: Fully Litigated | H8: 13.2 | I8: 36.6 | J8: 11.89 | K8: 1.31 | O8: Observations | P8: 800
A9: Georgia | B9: Atlanta Gas Light Co. | C9: D-3167-U | D9: Natural Gas | E9: Distribution | F9: 1/18/1980 | G9: Fully Litigated | H9: 14 | I9: 35.09 | J9: 12.15 | K9: 1.85
A10: Massachusetts | B10: NSTAR Gas Co. | C10: DPU-20132-G | D10: Natural Gas | E10: Distribution | F10: 1/31/1980 | G10: Fully Litigated | H10: 12.61 | I10: 52 | J10: 12.15 | K10: 0.46 | O10: ANOVA
A11: Oklahoma | B11: Oklahoma Natural Gas Co | C11: Ca-26652 | D11: Natural Gas | E11: Distribution | F11: 2/8/1980 | G11: Fully Litigated | H11: 14.5 | I11: 49.31 | J11: 12.15 | K11: 2.35 | P11: df | Q11: SS | R11: MS | S11: F | T11: Significance F
A12: Wisconsin | B12: Madison Gas and Electric Co. | C12: D-3270-UR-9-G | D12: Natural Gas | E12: Distribution | F12: 2/14/1980 | G12: Fully Litigated | H12: 13 | I12: 40 | J12: 12.15 | K12: 0.85 | O12: Regression | P12: 1 | Q12: 3169.009891 | R12: 3169.009891 | S12: 5387.793527 | T12: 0
A13: Wisconsin | B13: Wisconsin Gas LLC | C13: D-6650-GR-6 | D13: Natural Gas | E13: Distribution | F13: 2/15/1980 | G13: Fully Litigated | H13: 13 | I13: 41.2 | J13: 12.21 | K13: 0.79 | O13: Residual | P13: 798 | Q13: 469.3702311 | R13: 0.588183247
A14: New York | B14: Niagara Mohawk Power Corp. | C14: C-27540 | D14: Natural Gas | E14: Distribution | F14: 2/29/1980 | G14: Fully Litigated | H14: 14 | I14: 38.5 | J14: 12.21 | K14: 1.79 | O14: Total | P14: 799 | Q14: 3638.380122
A15: Kansas | B15: Kansas Gas Service Co. | C15: D-119,314-U | D15: Natural Gas | E15: Distribution | F15: 3/5/1980 | G15: Fully Litigated | H15: 14 | I15: 33.65 | J15: 12.21 | K15: 1.79
A16: New York | B16: Consolidated Edison Co. of NY | C16: C-27544 | D16: Natural Gas | E16: Distribution | F16: 3/7/1980 | G16: Fully Litigated | H16: 13.5 | I16: 44.69 | J16: 12.21 | K16: 1.29 | P16: Coefficients | Q16: Standard Error | R16: t Stat | S16: P-value | T16: Lower 95% | U16: Upper 95% | V16: Lower 95.0% | W16: Upper 95.0%
A17: New York | B17: National Fuel Gas Dist Corp. | C17: C-27503 | D17: Natural Gas | E17: Distribution | F17: 3/14/1980 | G17: Fully Litigated | H17: 14 | I17: 42.1 | J17: 12.21 | K17: 1.79 | O17: Intercept | P17: 7.564000576 | Q17: 0.0705494247 | R17: 107.2156238 | S17: 0 | T17: 7.425516204 | U17: 7.702484948 | V17: 7.425516204 | W17: 7.702484948
A18: New York | B18: Orange & Rockland Utlts Inc. | C18: C-27554 | D18: Natural Gas | E18: Distribution | F18: 3/27/1980 | G18: Fully Litigated | H18: 12.69 | I18: 39.25 | J18: 13.23 | K18: -0.54 | O18: X Variable 1 | P18: -0.4858472216 | Q18: 0.006619028505 | R18: -73.40159077 | S18: 0 | T18: -0.4988399853 | U18: -0.4728544579 | V18: -0.4988399853 | W18: -0.4728544579
A19: Iowa | B19: MidAmerican Energy Co. | C19: D-RPU-78-11 | D19: Natural Gas | E19: Distribution | F19: 4/29/1980 | G19: Fully Litigated | H19: 12.5 | I19: 36.5 | J19: 14.59 | K19: -2.09
A20: Ohio | B20: Dayton Power and Light Co. | C20: C-79-372-GA-AIR | D20: Natural Gas | E20: Distribution | F20: 5/7/1980 | G20: Fully Litigated | H20: 14.27 | I20: 34.24 | J20: 14.59 | K20: -0.32
A21: New Jersey | B21: Public Service Electric Gas | C21: D-794-310-G | D21: Natural Gas | E21: Distribution | F21: 5/8/1980 | G21: Fully Litigated | H21: 13.75 | I21: 35.91 | J21: 14.59 | K21: -0.84
A22: Utah | B22: Questar Gas Co. | C22: C-80-057-01 | D22: Natural Gas | E22: Distribution | F22: 5/19/1980 | G22: Fully Litigated | H22: 15.5 | I22: 44.87 | J22: 14.59 | K22: 0.91
A23: Colorado | B23: Public Service Co. of CO | C23: D-1420-De-C80-1039 (Gas) | D23: Natural Gas | E23: Distribution | F23: 5/27/1980 | G23: Fully Litigated | H23: 14.6 | I23: 35.8 | J23: 14.29 | K23: 0.31
A24: Arizona | B24: Arizona Public Service Co. | C24: D-U-1345 De-51009-G | D24: Natural Gas | E24: Distribution | F24: 5/29/1980 | G24: Fully Litigated | H24: 16 | I24: 37.21 | J24: 14.29 | K24: 1.71 | Z24: Constant | AB24: Slope | AD24: Prospective A2 Rated Utility Bond (1) | AF24: Prospective Equity Risk Premium
A25: Maryland | B25: Baltimore Gas and Electric Co. | C25: C-7397 0-64331-G | D25: Natural Gas | E25: Distribution | F25: 6/10/1980 | G25: Fully Litigated | H25: 13.78 | I25: 38.5 | J25: 14.29 | K25: -0.51 | Z25: =P17 -> 7.564000576 | AA25: % | AB25: =P18 -> -0.4858472216 | AD25: ='3.3 Risk Premium Summary'!G18 -> 3.95 | AE25: % | AF25: =AB25*AD25+Z25 -> 5.64490405 | AG25: %
A26: Connecticut | B26: CT Natural Gas Corp. | C26: D-79-12-02 | D26: Natural Gas | E26: Distribution | F26: 6/25/1980 | G26: Fully Litigated | H26: 14.25 | I26: 41.76 | J26: 12.74 | K26: 1.51
A27: Ohio | B27: East Ohio Gas Company | C27: C-79-535-GA-AIR | D27: Natural Gas | E27: Distribution | F27: 7/9/1980 | G27: Fully Litigated | H27: 14.51 | I27: 53.69 | J27: 12.74 | K27: 1.77
A28: West Virginia | B28: Mountaineer Gas Company | C28: C-79-088-G-42T | D28: Natural Gas | E28: Distribution | F28: 7/17/1980 | G28: Fully Litigated | H28: 12.9 | I28: 42 | J28: 12.4 | K28: 0.5 | Z28: Notes:
A29: New York | B29: Rochester Gas & Electric Corp. | C29: C-27608 | D29: Natural Gas | E29: Distribution | F29: 7/18/1980 | G29: Fully Litigated | H29: 13.8 | I29: 39.9 | J29: 12.4 | K29: 1.4 | Z29: (1) | AA29: From line 3 of page 3 of this Schedule.
A30: New York | B30: NY State Electric & Gas Corp. | C30: C-27610 | D30: Natural Gas | E30: Distribution | F30: 7/22/1980 | G30: Fully Litigated | H30: 14.1 | I30: 39.9 | J30: 12.4 | K30: 1.7
A31: Kansas | B31: Kansas Gas Service Co. | C31: D-120,950-U | D31: Natural Gas | E31: Distribution | F31: 7/23/1980 | G31: Fully Litigated | H31: 14.19 | I31: 32.51 | J31: 12.4 | K31: 1.79 | Z31: Source of Information:
A32: Iowa | B32: MidAmerican Energy Co. | C32: D-RPU-78-25 | D32: Natural Gas | E32: Distribution | F32: 8/1/1980 | G32: Fully Litigated | H32: 12.5 | I32: 36.44 | J32: 12.4 | K32: 0.1 | AB32: Regulatory Research Associates
A33: Idaho | B33: Avista Corp. | C33: C-U-1008-145 | D33: Natural Gas | E33: Distribution | F33: 8/11/1980 | G33: Fully Litigated | H33: 14.85 | I33: 36.62 | J33: 12.4 | K33: 2.45 | AB33: Bloomberg Professional Services
A34: Pennsylvania | B34: National Fuel Gas Dist Corp. | C34: C-R-79090956 | D34: Natural Gas | E34: Distribution | F34: 8/28/1980 | G34: Fully Litigated | H34: 14 | I34: 44.5 | J34: 12.15 | K34: 1.85
A35: New York | B35: Brooklyn Union Gas Co. | C35: C-27631 | D35: Natural Gas | E35: Distribution | F35: 9/4/1980 | G35: Fully Litigated | H35: 14 | I35: 41.14 | J35: 12.15 | K35: 1.85
A36: Kentucky | B36: Louisville Gas & Electric Co. | C36: C-7799 (gas) | D36: Natural Gas | E36: Distribution | F36: 9/24/1980 | G36: Fully Litigated | H36: 15 | I36: 36.43 | J36: 12.66 | K36: 2.34
A37: Connecticut | B37: Connecticut Light & Power Co. | C37: D-80-04-03-G | D37: Natural Gas | E37: Distribution | F37: 10/9/1980 | G37: Fully Litigated | H37: 14.5 | I37: 35.12 | J37: 12.66 | K37: 1.84
A38: Connecticut | B38: Connecticut Light & Power Co. | C38: D-80-04-04-G | D38: Natural Gas | E38: Distribution | F38: 10/9/1980 | G38: Fully Litigated | H38: 14.5 | I38: 37.1 | J38: 12.66 | K38: 1.84
A39: Nevada | B39: Southwest Gas Holdings Inc. | C39: D-2868 (Southern) | D39: Natural Gas | E39: Distribution | F39: 10/27/1980 | G39: Fully Litigated | H39: 15.2 | I39: 34.68 | J39: 13.29 | K39: 1.91
A40: Nevada | B40: Southwest Gas Holdings Inc. | C40: D-2867 (Northern) | D40: Natural Gas | E40: Distribution | F40: 10/27/1980 | G40: Fully Litigated | H40: 15.2 | I40: 34.68 | J40: 13.29 | K40: 1.91
A41: Louisiana | B41: Atmos Energy Corp. | C41: D-U-14665 (LGS) | D41: Natural Gas | E41: Distribution | F41: 10/28/1980 | G41: Fully Litigated | H41: 12 | I41: 50.96 | J41: 13.29 | K41: -1.29
A42: West Virginia | B42: Hope Gas Inc | C42: C-80-003-G-42T | D42: Natural Gas | E42: Distribution | F42: 10/28/1980 | G42: Fully Litigated | H42: 13 | I42: 52 | J42: 13.29 | K42: -0.29
A43: Idaho | B43: Intermountain Gas Co. | C43: C-U-1034-88 | D43: Natural Gas | E43: Distribution | F43: 10/31/1980 | G43: Fully Litigated | H43: 14.5 | I43: 31.7 | J43: 13.29 | K43: 1.21
A44: Nevada | B44: Sierra Pacific Power Co. | C44: D-2857 | D44: Natural Gas | E44: Distribution | F44: 11/4/1980 | G44: Fully Litigated | H44: 15 | I44: 37.35 | J44: 13.29 | K44: 1.71
A45: Connecticut | B45: Southern Connecticut Gas Co. | C45: D-80-04-17 | D45: Natural Gas | E45: Distribution | F45: 11/6/1980 | G45: Fully Litigated | H45: 14.35 | I45: 42.2 | J45: 13.29 | K45: 1.06
A46: District of Columbia | B46: Washington Gas Light Co. | C46: C-722 0-7209 | D46: Natural Gas | E46: Distribution | F46: 11/10/1980 | G46: Fully Litigated | H46: 13.25 | I46: 40.1 | J46: 13.29 | K46: -0.04
A47: Louisiana | B47: Entergy Gulf States LA LLC | C47: D-U-14444 | D47: Natural Gas | E47: Distribution | F47: 11/17/1980 | G47: Fully Litigated | H47: 15.5 | I47: 38.66 | J47: 13.54 | K47: 1.96
A48: Washington | B48: Puget Sound Energy Inc. | C48: Ca-U-80-25 | D48: Natural Gas | E48: Distribution | F48: 11/19/1980 | G48: Fully Litigated | H48: 13.5 | I48: 34.27 | J48: 13.54 | K48: -0.04
A49: California | B49: Southern California Gas Co. | C49: AP-59316 De-92497 | D49: Natural Gas | E49: Distribution | F49: 12/5/1980 | G49: Fully Litigated | H49: 14.6 | I49: 39.65 | J49: 13.54 | K49: 1.06
A50: Indiana | B50: Indiana Gas Co. | C50: Ca-36117 | D50: Natural Gas | E50: Distribution | F50: 12/8/1980 | G50: Fully Litigated | H50: 16.4 | I50: 49.1 | J50: 13.54 | K50: 2.86
A51: Colorado | B51: Public Service Co. of CO | C51: D-1425-De-C80-2346 (Gas) | D51: Natural Gas | E51: Distribution | F51: 12/12/1980 | G51: Fully Litigated | H51: 15.45 | I51: 34.62 | J51: 13.54 | K51: 1.91
A52: Illinois | B52: Peoples Gas Light & Coke Co. | C52: D-80-0090 | D52: Natural Gas | E52: Distribution | F52: 12/17/1980 | G52: Fully Litigated | H52: 14.2 | I52: 40.02 | J52: 14.01 | K52: 0.19
A53: Illinois | B53: North Shore Gas Co. | C53: D-80-0089 | D53: Natural Gas | E53: Distribution | F53: 12/17/1980 | G53: Fully Litigated | H53: 14.4 | I53: 39.5 | J53: 14.01 | K53: 0.39
A54: Wisconsin | B54: Wisconsin Gas LLC | C54: D-6650-GR-13 | D54: Natural Gas | E54: Distribution | F54: 12/18/1980 | G54: Fully Litigated | H54: 14 | I54: 42.2 | J54: 14.01 | K54: -0.01
A55: Montana | B55: NorthWestern Corp. | C55: D-80.4.2.4714A (gas) | D55: Natural Gas | E55: Distribution | F55: 12/22/1980 | G55: Fully Litigated | H55: 13.45 | I55: 39.46 | J55: 14.01 | K55: -0.56
A56: New York | B56: National Fuel Gas Dist Corp. | C56: C-27776 | D56: Natural Gas | E56: Distribution | F56: 12/26/1980 | G56: Fully Litigated | H56: 14 | I56: 42.6 | J56: 14.01 | K56: -0.01
A57: California | B57: San Diego Gas & Electric Co. | C57: AP-59788 De-92557-G | D57: Natural Gas | E57: Distribution | F57: 12/30/1980 | G57: Fully Litigated | H57: 14.5 | I57: 36.25 | J57: 14.01 | K57: 0.49
A58: Illinois | B58: Ameren Illinois | C58: D-80-0157 (CILCO-G) | D58: Natural Gas | E58: Distribution | F58: 1/7/1981 | G58: Fully Litigated | H58: 14.3 | I58: 35.56 | J58: 14.01 | K58: 0.29
A59: North Carolina | B59: Public Service Co. of NC | C59: D-G-5, SUB 157 | D59: Natural Gas | E59: Distribution | F59: 1/12/1981 | G59: Fully Litigated | H59: 14.95 | I59: 37.59 | J59: 14.01 | K59: 0.94
A60: Washington | B60: Avista Corp. | C60: Ca-U-80-14 | D60: Natural Gas | E60: Distribution | F60: 1/26/1981 | G60: Fully Litigated | H60: 15.25 | I60: 36.02 | J60: 14.66 | K60: 0.59
A61: Michigan | B61: DTE Gas Co. | C61: C-U-6372 | D61: Natural Gas | E61: Distribution | F61: 1/30/1981 | G61: Fully Litigated | H61: 13.25 | I61: 34.4 | J61: 14.66 | K61: -1.41
A62: Oklahoma | B62: Oklahoma Natural Gas Co | C62: Ca-26981 | D62: Natural Gas | E62: Distribution | F62: 2/11/1981 | G62: Fully Litigated | H62: 14.5 | I62: 48.94 | J62: 14.66 | K62: -0.16
A63: Oklahoma | B63: CenterPoint Energy Resources | C63: Ca-26975 | D63: Natural Gas | E63: Distribution | F63: 2/20/1981 | G63: Fully Litigated | H63: 14.5 | I63: 55.03 | J63: 14.27 | K63: 0.23
A64: New York | B64: Niagara Mohawk Power Corp. | C64: C-27743 | D64: Natural Gas | E64: Distribution | F64: 3/12/1981 | G64: Fully Litigated | H64: 15.65 | I64: 39.5 | J64: 14.27 | K64: 1.38
A65: Illinois | B65: Ameren Illinois | C65: D-80-0318 (CIPS-G) | D65: Natural Gas | E65: Distribution | F65: 3/25/1981 | G65: Fully Litigated | H65: 15.3 | I65: 37.6 | J65: 14.68 | K65: 0.62
A66: Louisiana | B66: Entergy New Orleans Inc. | C66: C-R-81-73 (gas) | D66: Natural Gas | E66: Distribution | F66: 4/9/1981 | G66: Fully Litigated | H66: 15 | I66: 30.16 | J66: 14.68 | K66: 0.32
A67: Montana | B67: MDU Resources Group Inc. | C67: D-80.7.52 | D67: Natural Gas | E67: Distribution | F67: 4/29/1981 | G67: Fully Litigated | H67: 13.5 | I67: 46.11 | J67: 15.13 | K67: -1.63
A68: Washington | B68: Cascade Natural Gas Corp. | C68: Ca-U-80-101 | D68: Natural Gas | E68: Distribution | F68: 4/29/1981 | G68: Fully Litigated | H68: 14.25 | I68: 37.17 | J68: 15.13 | K68: -0.88
A69: Iowa | B69: Interstate Power & Light Co. | C69: D-RPU-80-42 | D69: Natural Gas | E69: Distribution | F69: 4/30/1981 | G69: Fully Litigated | H69: 13.6 | I69: 34.56 | J69: 15.13 | K69: -1.53
A70: Arizona | B70: Southwest Gas Holdings Inc. | C70: D-U-1551 De-52099 | D70: Natural Gas | E70: Distribution | F70: 4/30/1981 | G70: Fully Litigated | H70: 15 | I70: NA | J70: 15.13 | K70: =H70-J70 -> -0.13
A71: Wisconsin | B71: Wisconsin Public Service Corp. | C71: D-6690-UR-17-G | D71: Natural Gas | E71: Distribution | F71: 5/21/1981 | G71: Fully Litigated | H71: 14 | I71: 38.2 | J71: 15.25 | K71: -1.25
A72: Illinois | B72: MidAmerican Energy Co. | C72: D-80-0511 (gas) | D72: Natural Gas | E72: Distribution | F72: 6/3/1981 | G72: Fully Litigated | H72: 14.67 | I72: 35.8 | J72: 15.25 | K72: -0.58
A73: Utah | B73: Questar Gas Co. | C73: C-81-057-01 | D73: Natural Gas | E73: Distribution | F73: 6/22/1981 | G73: Fully Litigated | H73: 16 | I73: 35.52 | J73: 16.12 | K73: -0.12
A74: Wisconsin | B74: Wisconsin Power and Light Co | C74: D-6680-UR-11-G | D74: Natural Gas | E74: Distribution | F74: 6/25/1981 | G74: Fully Litigated | H74: 14.75 | I74: 39.4 | J74: 16.12 | K74: -1.37
A75: Alabama | B75: Alabama Gas Corp. | C75: D-18046 | D75: Natural Gas | E75: Distribution | F75: 7/2/1981 | G75: Fully Litigated | H75: 14 | I75: 37.19 | J75: 16.12 | K75: -2.12
A76: New York | B76: Rochester Gas & Electric Corp. | C76: C-27833 | D76: Natural Gas | E76: Distribution | F76: 7/10/1981 | G76: Fully Litigated | H76: 16 | I76: 40.15 | J76: 16.12 | K76: -0.12
A77: New York | B77: Central Hudson Gas & Electric | C77: C-27827 | D77: Natural Gas | E77: Distribution | F77: 7/14/1981 | G77: Fully Litigated | H77: 16.9 | I77: 38.04 | J77: 16.12 | K77: 0.78
A78: Arkansas | B78: Black Hills Energy Arkansas | C78: D-U-3144 | D78: Natural Gas | E78: Distribution | F78: 7/21/1981 | G78: Fully Litigated | H78: 15.78 | I78: 54 | J78: 15.79 | K78: -0.01
A79: Minnesota | B79: Northern States Power Co. - MN | C79: D-E-002-GR-80-556 | D79: Natural Gas | E79: Distribution | F79: 7/27/1981 | G79: Fully Litigated | H79: 13.77 | I79: 41.46 | J79: 15.79 | K79: -2.02
A80: New Mexico | B80: Public Service Co. of NM | C80: C-1568 | D80: Natural Gas | E80: Distribution | F80: 7/27/1981 | G80: Fully Litigated | H80: 15.5 | I80: 47.5 | J80: 15.79 | K80: -0.29
A81: Iowa | B81: MidAmerican Energy Co. | C81: D-RPU-78-30 | D81: Natural Gas | E81: Distribution | F81: 7/31/1981 | G81: Fully Litigated | H81: 13.5 | I81: 39.4 | J81: 15.79 | K81: -2.29
A82: Iowa | B82: MidAmerican Energy Co. | C82: D-RPU-80-36 (gas) | D82: Natural Gas | E82: Distribution | F82: 7/31/1981 | G82: Fully Litigated | H82: 14.2 | I82: 40.01 | J82: 15.79 | K82: -1.59
A83: Ohio | B83: Columbia Gas of Ohio Inc | C83: C-80-777-GA-AIR | D83: Natural Gas | E83: Distribution | F83: 8/12/1981 | G83: Fully Litigated | H83: 13.72 | I83: 48.32 | J83: 15.79 | K83: -2.07
A84: Ohio | B84: Columbia Gas of Ohio Inc | C84: C-80-715-GA-AIR | D84: Natural Gas | E84: Distribution | F84: 8/12/1981 | G84: Fully Litigated | H84: 13.72 | I84: 48.32 | J84: 15.79 | K84: -2.07
A85: Ohio | B85: East Ohio Gas Company | C85: C-80-769-GA-AIR | D85: Natural Gas | E85: Distribution | F85: 8/12/1981 | G85: Fully Litigated | H85: 14.41 | I85: 57.6 | J85: 15.79 | K85: -1.38
A86: Connecticut | B86: Southern Connecticut Gas Co. | C86: D-81-04-09 | D86: Natural Gas | E86: Distribution | F86: 8/25/1981 | G86: Fully Litigated | H86: 15.45 | I86: 39.9 | J86: 16.07 | K86: -0.62
A87: Minnesota | B87: CenterPoint Energy Resources | C87: D-G-008-GR-80-630 | D87: Natural Gas | E87: Distribution | F87: 8/27/1981 | G87: Fully Litigated | H87: 14.43 | I87: 52.87 | J87: 16.07 | K87: -1.64
A88: Nevada | B88: Sierra Pacific Power Co. | C88: D-81-106 | D88: Natural Gas | E88: Distribution | F88: 8/28/1981 | G88: Fully Litigated | H88: 15 | I88: 35.1 | J88: 16.07 | K88: -1.07
A89: Washington | B89: Puget Sound Energy Inc. | C89: Ca-U-80-111 | D89: Natural Gas | E89: Distribution | F89: 9/24/1981 | G89: Fully Litigated | H89: 16.25 | I89: 35 | J89: 16.45 | K89: -0.2
A90: Wisconsin | B90: Wisconsin Natural Gas Co | C90: D-6670-GR-7 | D90: Natural Gas | E90: Distribution | F90: 9/29/1981 | G90: Fully Litigated | H90: 14.5 | I90: 38 | J90: 16.45 | K90: -1.95
A91: Ohio | B91: Dayton Power and Light Co. | C91: C-80-1087-GA-AIR | D91: Natural Gas | E91: Distribution | F91: 9/30/1981 | G91: Fully Litigated | H91: 15.94 | I91: 36.74 | J91: 16.45 | K91: -0.51
A92: Missouri | B92: Missouri Gas Energy | C92: C-GR-81-155 | D92: Natural Gas | E92: Distribution | F92: 10/2/1981 | G92: Fully Litigated | H92: 14.8 | I92: 38.58 | J92: 16.45 | K92: -1.65
A93: South Carolina | B93: Piedmont Natural Gas Co. | C93: D-81-252-G | D93: Natural Gas | E93: Distribution | F93: 10/12/1981 | G93: Fully Litigated | H93: 16.25 | I93: 50.14 | J93: 16.45 | K93: -0.2
A94: Idaho | B94: Avista Corp. | C94: C-U-1008-155 | D94: Natural Gas | E94: Distribution | F94: 10/20/1981 | G94: Fully Litigated | H94: 15.25 | I94: 40 | J94: 17.03 | K94: -1.78
A95: New York | B95: Brooklyn Union Gas Co. | C95: C-27885 | D95: Natural Gas | E95: Distribution | F95: 10/20/1981 | G95: Fully Litigated | H95: 16.5 | I95: 39.22 | J95: 17.03 | K95: -0.53
A96: New York | B96: NY State Electric & Gas Corp. | C96: C-27884 | D96: Natural Gas | E96: Distribution | F96: 10/20/1981 | G96: Fully Litigated | H96: 17 | I96: 39.66 | J96: 17.03 | K96: -0.03
A97: Louisiana | B97: CenterPoint Energy Resources | C97: D-U-15097 (ARKLA) | D97: Natural Gas | E97: Distribution | F97: 10/26/1981 | G97: Fully Litigated | H97: 13.5 | I97: 55.33 | J97: 17.03 | K97: -3.53
A98: Arizona | B98: Arizona Public Service Co. | C98: D-U-1345 De-52558-G | D98: Natural Gas | E98: Distribution | F98: 10/29/1981 | G98: Fully Litigated | H98: 16.5 | I98: 40.35 | J98: 17.03 | K98: -0.53
A99: Kansas | B99: Kansas Gas Service Co. | C99: D-126,922-U | D99: Natural Gas | E99: Distribution | F99: 11/4/1981 | G99: Fully Litigated | H99: 15.33 | I99: 32.63 | J99: 17.03 | K99: -1.7
A100: Iowa | B100: MidAmerican Energy Co. | C100: D-RPU-80-19 | D100: Natural Gas | E100: Distribution | F100: 11/6/1981 | G100: Fully Litigated | H100: 15.17 | I100: 37.1 | J100: 17.03 | K100: -1.86
A101: Washington | B101: Avista Corp. | C101: Ca-U-81-16 | D101: Natural Gas | E101: Distribution | F101: 11/25/1981 | G101: Fully Litigated | H101: 15.25 | I101: 38 | J101: 17.26 | K101: -2.01
A102: Connecticut | B102: Connecticut Light & Power Co. | C102: D-81-06-02-G | D102: Natural Gas | E102: Distribution | F102: 11/25/1981 | G102: Fully Litigated | H102: 16.1 | I102: 33.52 | J102: 17.26 | K102: -1.16
A103: Connecticut | B103: Connecticut Light & Power Co. | C103: D-81-06-04-G | D103: Natural Gas | E103: Distribution | F103: 11/25/1981 | G103: Fully Litigated | H103: 16.1 | I103: 36.74 | J103: 17.26 | K103: -1.16
A104: Arizona | B104: Southwest Gas Holdings Inc. | C104: D-U-1551 De-52631 | D104: Natural Gas | E104: Distribution | F104: 11/30/1981 | G104: Fully Litigated | H104: 16.75 | I104: 35.6 | J104: 17.26 | K104: -0.51
A105: Colorado | B105: Public Service Co. of CO | C105: D-1525-De-C81-1999 (Gas) | D105: Natural Gas | E105: Distribution | F105: 12/1/1981 | G105: Fully Litigated | H105: 15.7 | I105: 39.09 | J105: 17.26 | K105: -1.56
A106: New York | B106: Orange & Rockland Utlts Inc. | C106: C-27910 | D106: Natural Gas | E106: Distribution | F106: 12/1/1981 | G106: Fully Litigated | H106: 16 | I106: 43.11 | J106: 17.26 | K106: -1.26
A107: Delaware | B107: Delmarva Power & Light Co. | C107: D-81-13 | D107: Natural Gas | E107: Distribution | F107: 12/15/1981 | G107: Fully Litigated | H107: 15.81 | I107: 36.06 | J107: 16.42 | K107: -0.61
A108: New York | B108: National Fuel Gas Dist Corp. | C108: C-27934 | D108: Natural Gas | E108: Distribution | F108: 12/22/1981 | G108: Fully Litigated | H108: 15.7 | I108: 43 | J108: 16.42 | K108: -0.72
A109: Georgia | B109: Atlanta Gas Light Co. | C109: D-3288-U | D109: Natural Gas | E109: Distribution | F109: 12/22/1981 | G109: Fully Litigated | H109: 16 | I109: 38.37 | J109: 16.42 | K109: -0.42
A110: California | B110: Pacific Gas and Electric Co. | C110: AP-60153 De-93887-G | D110: Natural Gas | E110: Distribution | F110: 12/30/1981 | G110: Fully Litigated | H110: 16 | I110: 41 | J110: 16.42 | K110: -0.42
A111: California | B111: San Diego Gas & Electric Co. | C111: AP-59788 De-93892-G | D111: Natural Gas | E111: Distribution | F111: 12/30/1981 | G111: Fully Litigated | H111: 16.25 | I111: 37.25 | J111: 16.42 | K111: -0.17
A112: Kentucky | B112: Louisville Gas & Electric Co. | C112: C-8284 (gas) | D112: Natural Gas | E112: Distribution | F112: 1/4/1982 | G112: Fully Litigated | H112: 15.5 | I112: 38.6 | J112: 16.42 | K112: -0.92
A113: Kansas | B113: Kansas Gas Service Co. | C113: D-128,361-U | D113: Natural Gas | E113: Distribution | F113: 1/25/1982 | G113: Fully Litigated | H113: 16.25 | I113: 33.8 | J113: 16.16 | K113: 0.09
A114: Ohio | B114: Duke Energy Ohio Inc. | C114: C-81-67-GA-AIR | D114: Natural Gas | E114: Distribution | F114: 1/27/1982 | G114: Fully Litigated | H114: 16.84 | I114: 34.5 | J114: 16.16 | K114: 0.68
A115: Massachusetts | B115: Bay State Gas Company | C115: DPU-777 | D115: Natural Gas | E115: Distribution | F115: 1/31/1982 | G115: Fully Litigated | H115: 14 | I115: 38.29 | J115: 16.16 | K115: -2.16
A116: North Carolina | B116: Piedmont Natural Gas Co. | C116: D-G-9, SUB 212 | D116: Natural Gas | E116: Distribution | F116: 2/2/1982 | G116: Fully Litigated | H116: 16.24 | I116: 50.81 | J116: 16.16 | K116: 0.08
A117: Maryland | B117: Baltimore Gas and Electric Co. | C117: C-7574 0-65648-G | D117: Natural Gas | E117: Distribution | F117: 2/8/1982 | G117: Fully Litigated | H117: 15.5 | I117: 38.61 | J117: 16.16 | K117: -0.66
A118: District of Columbia | B118: Washington Gas Light Co. | C118: C-768 0-7469 | D118: Natural Gas | E118: Distribution | F118: 2/9/1982 | G118: Fully Litigated | H118: 14.95 | I118: 44 | J118: 16.16 | K118: -1.21
A119: Idaho | B119: Intermountain Gas Co. | C119: C-U-1034-95 | D119: Natural Gas | E119: Distribution | F119: 2/9/1982 | G119: Fully Litigated | H119: 15.75 | I119: 33.34 | J119: 16.16 | K119: -0.41
A120: New Jersey | B120: Public Service Electric Gas | C120: D-812-76-G | D120: Natural Gas | E120: Distribution | F120: 2/11/1982 | G120: Fully Litigated | H120: 16 | I120: NA | J120: 16.16 | K120: -0.16
A121: Maryland | B121: Washington Gas Light Co. | C121: C-7585 0-65676 | D121: Natural Gas | E121: Distribution | F121: 3/1/1982 | G121: Fully Litigated | H121: 15.96 | I121: 38.4 | J121: 16.8 | K121: -0.84
A122: Iowa | B122: MidAmerican Energy Co. | C122: D-RPU-80-65 | D122: Natural Gas | E122: Distribution | F122: 3/3/1982 | G122: Fully Litigated | H122: 15 | I122: 36.75 | J122: 16.8 | K122: -1.8
A123: New York | B123: Niagara Mohawk Power Corp. | C123: C-27986 | D123: Natural Gas | E123: Distribution | F123: 3/8/1982 | G123: Fully Litigated | H123: 17.1 | I123: 41.48 | J123: 16.8 | K123: 0.3
A124: Pennsylvania | B124: National Fuel Gas Dist Corp. | C124: C-R-811600 | D124: Natural Gas | E124: Distribution | F124: 3/26/1982 | G124: Fully Litigated | H124: 16 | I124: 48 | J124: 16.92 | K124: -0.92
A125: Oklahoma | B125: Oklahoma Natural Gas Co | C125: Ca-27347 | D125: Natural Gas | E125: Distribution | F125: 3/31/1982 | G125: Fully Litigated | H125: 16.25 | I125: 48.67 | J125: 16.92 | K125: -0.67
A126: Wisconsin | B126: Wisconsin Gas LLC | C126: D-6650-GR-15 | D126: Natural Gas | E126: Distribution | F126: 4/6/1982 | G126: Fully Litigated | H126: 15 | I126: 41.11 | J126: 16.92 | K126: -1.92
A127: Washington | B127: Cascade Natural Gas Corp. | C127: Ca-U-81-64 | D127: Natural Gas | E127: Distribution | F127: 4/9/1982 | G127: Fully Litigated | H127: 16.5 | I127: 38.98 | J127: 16.92 | K127: -0.42
A128: North Dakota | B128: MDU Resources Group Inc. | C128: C-10, 280 | D128: Natural Gas | E128: Distribution | F128: 4/12/1982 | G128: Fully Litigated | H128: 15.1 | I128: 38.48 | J128: 16.92 | K128: -1.82
A129: Nevada | B129: Southwest Gas Holdings Inc. | C129: D-81-614 (Southern) | D129: Natural Gas | E129: Distribution | F129: 4/12/1982 | G129: Fully Litigated | H129: 16.7 | I129: 31.84 | J129: 16.92 | K129: -0.22
A130: Montana | B130: MDU Resources Group Inc. | C130: D-81.7.62 | D130: Natural Gas | E130: Distribution | F130: 4/18/1982 | G130: Fully Litigated | H130: 14.7 | I130: 38.79 | J130: 16.49 | K130: -1.79
A131: Wisconsin | B131: Wisconsin Public Service Corp. | C131: D-6690-UR-18-G | D131: Natural Gas | E131: Distribution | F131: 4/27/1982 | G131: Fully Litigated | H131: 15 | I131: 39.09 | J131: 16.49 | K131: -1.49
A132: Montana | B132: NorthWestern Corp. | C132: D-81.6.57 | D132: Natural Gas | E132: Distribution | F132: 5/10/1982 | G132: Fully Litigated | H132: 14.57 | I132: 38.09 | J132: 16.49 | K132: -1.92
A133: North Carolina | B133: Public Service Co. of NC | C133: D-G-5, SUB 168 | D133: Natural Gas | E133: Distribution | F133: 5/14/1982 | G133: Fully Litigated | H133: 15.8 | I133: 44.26 | J133: 16.49 | K133: -0.69
A134: Louisiana | B134: Atmos Energy Corp. | C134: D-U-15276 (LGS) | D134: Natural Gas | E134: Distribution | F134: 5/20/1982 | G134: Fully Litigated | H134: 15.82 | I134: 47.15 | J134: 16.4 | K134: =H134-J134 -> -0.58
A135: Connecticut | B135: CT Natural Gas Corp. | C135: D-81-12-12 | D135: Natural Gas | E135: Distribution | F135: 5/25/1982 | G135: Fully Litigated | H135: 16.25 | I135: 39.63 | J135: 16.4 | K135: -0.15
A136: West Virginia | B136: Mountaineer Gas Company | C136: C-81-340-G-42T | D136: Natural Gas | E136: Distribution | F136: 6/2/1982 | G136: Fully Litigated | H136: 14.5 | I136: NA | J136: 16.4 | K136: -1.9
A137: New York | B137: Consolidated Edison Co. of NY | C137: C-28036 | D137: Natural Gas | E137: Distribution | F137: 6/7/1982 | G137: Fully Litigated | H137: 16 | I137: 48.03 | J137: 16.4 | K137: -0.4
A138: Rhode Island | B138: Narragansett Electric Co. | C138: D-1612 | D138: Natural Gas | E138: Distribution | F138: 6/23/1982 | G138: Fully Litigated | H138: 15.5 | I138: 42.2 | J138: 16.08 | K138: -0.58
A139: Pennsylvania | B139: PECO Energy Co. | C139: C-R-811719 | D139: Natural Gas | E139: Distribution | F139: 6/25/1982 | G139: Fully Litigated | H139: 16.5 | I139: 37.4 | J139: 16.08 | K139: 0.42
A140: Illinois | B140: Northern Illinois Gas Co. | C140: D-81-0609 | D140: Natural Gas | E140: Distribution | F140: 7/1/1982 | G140: Fully Litigated | H140: 15.55 | I140: 55.59 | J140: 16.08 | K140: -0.53
A141: Illinois | B141: Ameren Illinois | C141: D-81-0600 (CILCO-G) | D141: Natural Gas | E141: Distribution | F141: 7/1/1982 | G141: Fully Litigated | H141: 16 | I141: 41.29 | J141: 16.08 | K141: -0.08
A142: Iowa | B142: Interstate Power & Light Co. | C142: D-RPU-81-44 | D142: Natural Gas | E142: Distribution | F142: 7/2/1982 | G142: Fully Litigated | H142: 15.1 | I142: 36.08 | J142: 16.08 | K142: -0.98
A143: New York | B143: Rochester Gas & Electric Corp. | C143: C-28055 | D143: Natural Gas | E143: Distribution | F143: 7/13/1982 | G143: Fully Litigated | H143: 16.8 | I143: 41.7 | J143: 16.08 | K143: 0.72
A144: Wisconsin | B144: Madison Gas and Electric Co. | C144: D-3270-UR-10-G | D144: Natural Gas | E144: Distribution | F144: 7/22/1982 | G144: Fully Litigated | H144: 14.5 | I144: 41.2 | J144: 16.34 | K144: -1.84
A145: Michigan | B145: DTE Gas Co. | C145: C-U-6839 | D145: Natural Gas | E145: Distribution | F145: 7/30/1982 | G145: Fully Litigated | H145: 14.82 | I145: 30.27 | J145: 16.34 | K145: -1.52
A146: Ohio | B146: East Ohio Gas Company | C146: C-81-970-GA-AIR | D146: Natural Gas | E146: Distribution | F146: 8/4/1982 | G146: Fully Litigated | H146: 15.58 | I146: 59.46 | J146: 16.34 | K146: -0.76
A147: Washington | B147: Cascade Natural Gas Corp. | C147: Ca-U-82-20,33 | D147: Natural Gas | E147: Distribution | F147: 8/6/1982 | G147: Fully Litigated | H147: 16.5 | I147: 38.98 | J147: 16.34 | K147: 0.16
A148: Indiana | B148: Northern IN Public Svc Co. | C148: Ca-36690 | D148: Natural Gas | E148: Distribution | F148: 8/11/1982 | G148: Fully Litigated | H148: 17.11 | I148: 32.74 | J148: 16.34 | K148: 0.77
A149: Illinois | B149: MidAmerican Energy Co. | C149: D-81-0747 (gas) | D149: Natural Gas | E149: Distribution | F149: 8/25/1982 | G149: Fully Litigated | H149: 16 | I149: 37.08 | J149: 16.46 | K149: -0.46
A150: New Mexico | B150: Public Service Co. of NM | C150: C-1710 | D150: Natural Gas | E150: Distribution | F150: 8/30/1982 | G150: Fully Litigated | H150: 16.25 | I150: 44 | J150: 16.46 | K150: -0.21
A151: Hawaii | B151: Gas Company LLC | C151: D-4286 | D151: Natural Gas | E151: Distribution | F151: 9/3/1982 | G151: Fully Litigated | H151: 15.5 | I151: 37.9 | J151: 16.46 | K151: -0.96
A152: Ohio | B152: Columbia Gas of Ohio Inc | C152: C-81-1024-GA-AIR | D152: Natural Gas | E152: Distribution | F152: 9/9/1982 | G152: Fully Litigated | H152: 16.04 | I152: 49.07 | J152: 16.46 | K152: -0.42
A153: Ohio | B153: Columbia Gas of Ohio Inc | C153: C-81-1025-GA-AIR | D153: Natural Gas | E153: Distribution | F153: 9/15/1982 | G153: Fully Litigated | H153: 16.04 | I153: 49.07 | J153: 15.92 | K153: 0.12
A154: Idaho | B154: Avista Corp. | C154: C-U-1008-171 | D154: Natural Gas | E154: Distribution | F154: 9/17/1982 | G154: Fully Litigated | H154: 15.25 | I154: 40 | J154: 15.92 | K154: -0.67
A155: South Carolina | B155: South Carolina Electric & Gas | C155: D-82-239-G O-82-676 | D155: Natural Gas | E155: Distribution | F155: 9/29/1982 | G155: Fully Litigated | H155: 14.5 | I155: 38.25 | J155: 15.92 | K155: -1.42
A156: Minnesota | B156: Northern States Power Co. - MN | C156: D-E-002-GR-81-508 | D156: Natural Gas | E156: Distribution | F156: 9/30/1982 | G156: Fully Litigated | H156: 14.74 | I156: 41.75 | J156: 15.92 | K156: -1.18
A157: Massachusetts | B157: Boston Gas Co. | C157: DPU-1100 | D157: Natural Gas | E157: Distribution | F157: 9/30/1982 | G157: Fully Litigated | H157: 15.5 | I157: 52 | J157: 15.92 | K157: -0.42
A158: Arizona | B158: Southwest Gas Holdings Inc. | C158: D-U-1551 De-53237 | D158: Natural Gas | E158: Distribution | F158: 9/30/1982 | G158: Fully Litigated | H158: 16.5 | I158: 33.14 | J158: 15.92 | K158: 0.58
A159: Georgia | B159: Atlanta Gas Light Co. | C159: D-3333-U | D159: Natural Gas | E159: Distribution | F159: 9/30/1982 | G159: Fully Litigated | H159: 16.7 | I159: 33.8 | J159: 15.92 | K159: 0.78
A160: New Jersey | B160: South Jersey Gas Co. | C160: D-818-754 | D160: Natural Gas | E160: Distribution | F160: 10/8/1982 | G160: Fully Litigated | H160: 15 | I160: 38 | J160: 15.92 | K160: -0.92
A161: New York | B161: Central Hudson Gas & Electric | C161: C-28106 | D161: Natural Gas | E161: Distribution | F161: 10/15/1982 | G161: Fully Litigated | H161: 15.9 | I161: 40.46 | J161: 15.45 | K161: 0.45
A162: New York | B162: Brooklyn Union Gas Co. | C162: C-28107 | D162: Natural Gas | E162: Distribution | F162: 10/19/1982 | G162: Fully Litigated | H162: 15.9 | I162: 40.3 | J162: 15.45 | K162: 0.45
A163: Indiana | B163: Indiana Gas Co. | C163: Ca-36817 | D163: Natural Gas | E163: Distribution | F163: 10/27/1982 | G163: Fully Litigated | H163: 17 | I163: 36.6 | J163: 15.45 | K163: 1.55
A164: Wisconsin | B164: Wisconsin Natural Gas Co | C164: D-6670-GR-9 | D164: Natural Gas | E164: Distribution | F164: 10/28/1982 | G164: Fully Litigated | H164: 14.75 | I164: 44.73 | J164: 15.45 | K164: -0.7
A165: Connecticut | B165: Southern Connecticut Gas Co. | C165: D-82-06-12 | D165: Natural Gas | E165: Distribution | F165: 11/2/1982 | G165: Fully Litigated | H165: 16.25 | I165: 36.64 | J165: 15.45 | K165: 0.8
A166: Idaho | B166: Intermountain Gas Co. | C166: C-U-1034-99 | D166: Natural Gas | E166: Distribution | F166: 11/4/1982 | G166: Fully Litigated | H166: 15.75 | I166: 41.09 | J166: 15.45 | K166: 0.3
A167: California | B167: Southwest Gas Holdings Inc. | C167: AP-82-0705 De-8211061 | D167: Natural Gas | E167: Distribution | F167: 11/17/1982 | G167: Fully Litigated | H167: 16 | I167: 40.5 | J167: 14.98 | K167: 1.02
A168: Illinois | B168: Ameren Illinois | C168: D-82-0039 (CIPS-G) | D168: Natural Gas | E168: Distribution | F168: 11/23/1982 | G168: Fully Litigated | H168: 15.5 | I168: 40.68 | J168: 14.98 | K168: 0.52
A169: Virginia | B169: Washington Gas Light Co. | C169: C-PUE-820029 | D169: Natural Gas | E169: Distribution | F169: 11/24/1982 | G169: Fully Litigated | H169: 14.5 | I169: 36.82 | J169: 14.98 | K169: -0.48
A170: Maryland | B170: Washington Gas Light Co. | C170: C-7639 0-66016 | D170: Natural Gas | E170: Distribution | F170: 11/24/1982 | G170: Fully Litigated | H170: 16.02 | I170: 39.5 | J170: 14.98 | K170: 1.04
A171: Mississippi | B171: Atmos Energy Corp. | C171: C-U-4242 | D171: Natural Gas | E171: Distribution | F171: 11/30/1982 | G171: Fully Litigated | H171: 12.98 | I171: NA | J171: 14.98 | K171: -2
A172: Massachusetts | B172: Bay State Gas Company | C172: DPU-1122 | D172: Natural Gas | E172: Distribution | F172: 11/30/1982 | G172: Fully Litigated | H172: 15.5 | I172: 33.2 | J172: 14.98 | K172: 0.52
A173: Massachusetts | B173: NSTAR Gas Co. | C173: DPU-1120 | D173: Natural Gas | E173: Distribution | F173: 11/30/1982 | G173: Fully Litigated | H173: 15.5 | I173: 51.72 | J173: 14.98 | K173: 0.52
A174: North Carolina | B174: Piedmont Natural Gas Co. | C174: D-G-9, SUB 219 | D174: Natural Gas | E174: Distribution | F174: 11/30/1982 | G174: Fully Litigated | H174: 15.65 | I174: 53.17 | J174: 14.98 | K174: 0.67
A175: Nevada | B175: Southwest Gas Holdings Inc. | C175: D-82-399 (Northern) | D175: Natural Gas | E175: Distribution | F175: 11/30/1982 | G175: Fully Litigated | H175: 16 | I175: NA | J175: 14.98 | K175: 1.02
A176: Massachusetts | B176: Colonial Gas Co. | C176: DPU-1125 | D176: Natural Gas | E176: Distribution | F176: 11/30/1982 | G176: Fully Litigated | H176: 16.1 | I176: 32.92 | J176: 14.98 | K176: 1.12
A177: Kansas | B177: Kansas Gas Service Co. | C177: D-132,996-U | D177: Natural Gas | E177: Distribution | F177: 12/3/1982 | G177: Fully Litigated | H177: 15.33 | I177: 32.78 | J177: 14.98 | K177: 0.35
A178: California | B178: Southern California Gas Co. | C178: AP-61081 De-82-12054 | D178: Natural Gas | E178: Distribution | F178: 12/8/1982 | G178: Fully Litigated | H178: 15.75 | I178: 42 | J178: 14.98 | K178: 0.77
A179: Tennessee | B179: Chattanooga Gas Company | C179: D-U-82-7175 | D179: Natural Gas | E179: Distribution | F179: 12/13/1982 | G179: Fully Litigated | H179: 16 | I179: 49.72 | J179: 14.98 | K179: 1.02
A180: Connecticut | B180: Connecticut Light & Power Co. | C180: D-82-07-01-G | D180: Natural Gas | E180: Distribution | F180: 12/14/1982 | G180: Fully Litigated | H180: 16.4 | I180: 37.37 | J180: 14.98 | K180: 1.42
A181: Pennsylvania | B181: UGI Utilities Inc. | C181: C-R-821899 | D181: Natural Gas | E181: Distribution | F181: 12/17/1982 | G181: Fully Litigated | H181: 16.25 | I181: 43.7 | J181: 14.46 | K181: 1.79
A182: Virginia | B182: Virginia Natural Gas Inc. | C182: C-PUE-820047 | D182: Natural Gas | E182: Distribution | F182: 12/20/1982 | G182: Fully Litigated | H182: 15 | I182: 35.6 | J182: 14.46 | K182: 0.54
A183: New York | B183: National Fuel Gas Dist Corp. | C183: C-28158 | D183: Natural Gas | E183: Distribution | F183: 12/21/1982 | G183: Fully Litigated | H183: 15.7 | I183: 46 | J183: 14.46 | K183: 1.24
A184: Illinois | B184: North Shore Gas Co. | C184: D-82-0189 | D184: Natural Gas | E184: Distribution | F184: 12/28/1982 | G184: Fully Litigated | H184: 15.25 | I184: 42.41 | J184: 14.46 | K184: 0.79
A185: Illinois | B185: Peoples Gas Light & Coke Co. | C185: D-82-0082 | D185: Natural Gas | E185: Distribution | F185: 12/28/1982 | G185: Fully Litigated | H185: 15.25 | I185: 42.75 | J185: 14.46 | K185: 0.79
A186: Washington | B186: Avista Corp. | C186: Ca-U-82-11 | D186: Natural Gas | E186: Distribution | F186: 12/29/1982 | G186: Fully Litigated | H186: 16.25 | I186: 38 | J186: 14.46 | K186: 1.79
A187: Washington | B187: Puget Sound Energy Inc. | C187: Ca-U-82-22, 37 | D187: Natural Gas | E187: Distribution | F187: 12/29/1982 | G187: Fully Litigated | H187: 16.25 | I187: 35 | J187: 14.46 | K187: 1.79
A188: New York | B188: NY State Electric & Gas Corp. | C188: C-28169 | D188: Natural Gas | E188: Distribution | F188: 1/11/1983 | G188: Fully Litigated | H188: 15.9 | I188: 40.69 | J188: 14.46 | K188: 1.44
A189: Illinois | B189: Ameren Illinois | C189: D-82-0152 (IP-G) | D189: Natural Gas | E189: Distribution | F189: 1/12/1983 | G189: Fully Litigated | H189: 15.5 | I189: 42.82 | J189: 14.46 | K189: 1.04
A190: Wisconsin | B190: Wisconsin Gas LLC | C190: D-6650-GR-17 | D190: Natural Gas | E190: Distribution | F190: 1/18/1983 | G190: Fully Litigated | H190: 15 | I190: 43.07 | J190: 14.43 | K190: 0.57
A191: New York | B191: Long Island Lighting Co | C191: C-28177 | D191: Natural Gas | E191: Distribution | F191: 1/24/1983 | G191: Fully Litigated | H191: 15.5 | I191: 44.59 | J191: 14.43 | K191: 1.07
A192: Nevada | B192: Southwest Gas Holdings Inc. | C192: D-82-399 (Southern) | D192: Natural Gas | E192: Distribution | F192: 1/24/1983 | G192: Fully Litigated | H192: 16 | I192: 34.23 | J192: 14.43 | K192: 1.57
A193: Minnesota | B193: Minnesota Energy Resources | C193: D-G-011-GR-82-65 | D193: Natural Gas | E193: Distribution | F193: 1/28/1983 | G193: Fully Litigated | H193: 14.9 | I193: 49.9 | J193: 14.43 | K193: 0.47
A194: Iowa | B194: MidAmerican Energy Co. | C194: D-RPU-82-40 | D194: Natural Gas | E194: Distribution | F194: 2/10/1983 | G194: Fully Litigated | H194: 15 | I194: 40.29 | J194: 14.43 | K194: 0.57
A195: District of Columbia | B195: Washington Gas Light Co. | C195: C-787 0-7749 | D195: Natural Gas | E195: Distribution | F195: 2/25/1983 | G195: Fully Litigated | H195: 15.7 | I195: 41.9 | J195: 14.24 | K195: 1.46
A196: Kentucky | B196: Louisville Gas & Electric Co. | C196: C-8616 (gas) | D196: Natural Gas | E196: Distribution | F196: 3/2/1983 | G196: Fully Litigated | H196: 15.25 | I196: 39.46 | J196: 14.24 | K196: 1.01
A197: Tennessee | B197: Piedmont Natural Gas Co. | C197: D-U-82-7190 | D197: Natural Gas | E197: Distribution | F197: 3/16/1983 | G197: Fully Litigated | H197: 16 | I197: 57.44 | J197: 14.28 | K197: 1.72
A198: Minnesota | B198: CenterPoint Energy Resources | C198: D-G-008-GR-82-249 | D198: Natural Gas | E198: Distribution | F198: 3/21/1983 | G198: Fully Litigated | H198: 14.96 | I198: 55.07 | J198: 14.28 | K198: =H198-J198 -> 0.68
A199: New York | B199: Niagara Mohawk Power Corp. | C199: C-28227 | D199: Natural Gas | E199: Distribution | F199: 3/23/1983 | G199: Fully Litigated | H199: 15.4 | I199: 41.97 | J199: 14.28 | K199: 1.12
A200: Wisconsin | B200: Wisconsin Public Service Corp. | C200: D-6690-UR-19-G | D200: Natural Gas | E200: Distribution | F200: 3/24/1983 | G200: Fully Litigated | H200: 15 | I200: 42.5 | J200: 14.28 | K200: 0.72
... 607 more rows

Sheet 4.1 CAPM
B1: =Input!G28 -> Atmos Energy Corporation
B2: Indicated Common Equity Cost Rate Through Use
B3: of the Traditional Capital Asset Pricing Model (CAPM) and Empirical Capital Asset Pricing Model (ECAPM)
D5: [1] | F5: [2] | H5: [3] | J5: [4] | M5: [5] | P5: [6] | S5: [7] | V5: [8]
B7: ='3.8-3.9 Beta Adjusted ERP'!F7 -> Proxy Group of Seven Natural Gas Distribution Companies | D7: Value Line Adjusted Beta | F7: Bloomberg Adjusted Beta | H7: Average Beta | J7: Market Risk Premium (1) | M7: Risk-Free Rate (2) | P7: Traditional CAPM Cost Rate | S7: ECAPM Cost Rate | V7: Indicated Common Equity Cost Rate (3)
A9: =IFERROR(Input!A2, "NA") -> ATO | B9: ='Proxy Data Lookup'!B3 -> Atmos Energy Corporation | D9: ='MRP WP1'!C71 -> 0.8 | F9: ='Proxy Data Lookup'!H3 -> 0.9149298668 | H9: =IFERROR(ROUND(AVERAGE(D9:F9),2),"NA") -> 0.86 | J9: ='MRP WP1'!$H$64 -> 9.459985663 | K9: % | M9: ='MRP WP1'!$F$37 -> 2.88 | N9: % | P9: =IFERROR((H9*J9) + M9,"NA") -> 11.01558767 | Q9: % | S9: =IFERROR((0.75*(H9*J9))+(0.25*J9)+M9,"NA") -> 11.34668717 | T9: % | V9: =IFERROR(ROUND(AVERAGE(P9:S9),2),"NA") -> 11.18 | W9: %
A10: =IFERROR(Input!A3, "NA") -> NJR | B10: ='Proxy Data Lookup'!B4 -> New Jersey Resources Corporation | D10: ='MRP WP1'!C72 -> 1 | F10: ='Proxy Data Lookup'!H4 -> 0.9666429162 | H10: =IFERROR(ROUND(AVERAGE(D10:F10),2),"NA") -> 0.98 | J10: ='MRP WP1'!$H$64 -> 9.459985663 | M10: ='MRP WP1'!$F$37 -> 2.88 | P10: =IFERROR((H10*J10) + M10,"NA") -> 12.15078595 | S10: =IFERROR((0.75*(H10*J10))+(0.25*J10)+M10,"NA") -> 12.19808588 | V10: =IFERROR(ROUND(AVERAGE(P10:S10),2),"NA") -> 12.17
A11: =IFERROR(Input!A4, "NA") -> NWN | B11: ='Proxy Data Lookup'!B5 -> Northwest Natural Holding Company | D11: ='MRP WP1'!C73 -> 0.85 | F11: ='Proxy Data Lookup'!H5 -> 0.8463638425 | H11: 0.85 | J11: ='MRP WP1'!$H$64 -> 9.459985663 | M11: ='MRP WP1'!$F$37 -> 2.88 | P11: 10.92098781 | S11: 11.27573728 | V11: 11.1
A12: =IFERROR(Input!A5, "NA") -> OGS | B12: ='Proxy Data Lookup'!B6 -> ONE Gas, Inc. | D12: ='MRP WP1'!C74 -> 0.8 | F12: ='Proxy Data Lookup'!H6 -> 1.000374436 | H12: 0.9 | J12: ='MRP WP1'!$H$64 -> 9.459985663 | M12: ='MRP WP1'!$F$37 -> 2.88 | P12: 11.3939871 | S12: 11.63048674 | V12: 11.51
A13: =IFERROR(Input!A6, "NA") -> SJI | B13: ='Proxy Data Lookup'!B7 -> South Jersey Industries, Inc. | D13: ='MRP WP1'!C75 -> 1.05 | F13: ='Proxy Data Lookup'!H7 -> 0.9836127758 | H13: 1.02 | J13: ='MRP WP1'!$H$64 -> 9.459985663 | M13: ='MRP WP1'!$F$37 -> 2.88 | P13: 12.52918538 | S13: 12.48188545 | V13: 12.51
A14: =IFERROR(Input!A7, "NA") -> SWX | B14: ='Proxy Data Lookup'!B8 -> Southwest Gas Holdings, Inc. | D14: ='MRP WP1'!C76 -> 0.95 | F14: ='Proxy Data Lookup'!H8 -> 1.088230252 | H14: 1.02 | J14: ='MRP WP1'!$H$64 -> 9.459985663 | M14: ='MRP WP1'!$F$37 -> 2.88 | P14: 12.52918538 | S14: 12.48188545 | V14: 12.51
A15: =IFERROR(Input!A8, "NA") -> SR | B15: ='Proxy Data Lookup'!B9 -> Spire Inc. | D15: ='MRP WP1'!C77 -> 0.85 | F15: ='Proxy Data Lookup'!H9 -> 0.9955041409 | H15: 0.92 | J15: ='MRP WP1'!$H$64 -> 9.459985663 | M15: ='MRP WP1'!$F$37 -> 2.88 | P15: 11.58318681 | S15: 11.77238652 | V15: 11.68
B17: Mean | H17: =IFERROR(ROUND(AVERAGE(H9:H15),2),"NA") -> 0.94 | P17: =IFERROR(ROUND(AVERAGE(P9:P15),2),"NA") -> 11.73 | Q17: % | S17: =IFERROR(ROUND(AVERAGE(S9:S15),2),"NA") -> 11.88 | T17: % | V17: =IFERROR(ROUND(AVERAGE(V9:V15),2),"NA") -> 11.81 | W17: %
B19: Median | H19: =IFERROR(ROUND(MEDIAN(H9:H15),2),"NA") -> 0.92 | P19: =IFERROR(ROUND(MEDIAN(P9:P15),2),"NA") -> 11.58 | Q19: % | S19: =IFERROR(ROUND(MEDIAN(S9:S15),2),"NA") -> 11.77 | T19: % | V19: =IFERROR(ROUND(MEDIAN(V9:V15),2),"NA") -> 11.68 | W19: %
B21: Average of Mean and Median | H21: =IFERROR(ROUND(AVERAGE(H17:H19),2),"NA") -> 0.93 | P21: =IFERROR(ROUND(AVERAGE(P17:P19),2),"NA") -> 11.66 | Q21: % | S21: =IFERROR(ROUND(AVERAGE(S17:S19),2),"NA") -> 11.83 | T21: % | V21: =IFERROR(ROUND(AVERAGE(V17:V19),2),"NA") -> 11.75 | W21: %
B24: Notes on page 2 of this Schedule.

Sheet 4.2 CAPM Notes
A1: =Input!G28 -> Atmos Energy Corporation
A2: Notes to Accompany the Application of the CAPM and ECAPM
A4: Notes:
A5: (1) | B5: The market risk premium (MRP) is derived by using six different measures from three sources: Ibbotson, Value Line, and Bloomberg as illustrated below:
B7: Historical Data MRP Estimates:
B9: =CONCATENATE("Measure 1: Ibbotson Arithmetic Mean MRP ",MID(Input!E20,FIND("(",Input!E20),11)) -> Measure 1: Ibbotson Arithmetic Mean MRP (1926-2020)
B11: =CONCATENATE("Arithmetic Mean Monthly Returns for Large Stocks ",MID(Input!E20,FIND("1",Input!E20),9),":") -> Arithmetic Mean Monthly Returns for Large Stocks 1926-2020: | N11: ='MRP WP1'!H49 -> 12.2 | O11: %
B12: Arithmetic Mean Income Returns on Long-Term Government Bonds: | N12: ='MRP WP1'!H51 -> 5.05
B13: MRP based on Ibbotson Historical Data: | N13: =N11-N12 -> 7.15 | O13: %
B15: Measure 2: Application of a Regression Analysis to Ibbotson Historical Data
B16: (1926-2020) | N16: ='MRP ERP WP'!AA42*100 -> 9.391468339 | O16: %
B18: Measure 3: Application of the PRPM to Ibbotson Historical Data:
B19: =CONCATENATE("(January 1926 - ",Input!G25,")") -> (January 1926 - May 2021) | N19: ='MRP WP1'!H46 -> 10.04067024 | O19: %
B21: Value Line MRP Estimates:
B23: =CONCATENATE("Measure 4: Value Line Projected MRP (Thirteen weeks ending ",TEXT('MRP WP1'!B7,"mmmm dd, yyyy)")) -> Measure 4: Value Line Projected MRP (Thirteen weeks ending May 28, 2021)
B25: Total projected return on the market 3-5 years hence*: | N25: ='MRP WP1'!M22*100 -> 8.16 | O25: %
B26: Projected Risk-Free Rate (see note 2): | N26: ='MRP WP1'!F37 -> 2.88
B27: MRP based on Value Line Summary & Index: | N27: =N25-N26 -> 5.28 | O27: %
C28: *Forcasted 3-5 year capital appreciation plus expected dividend yield
B30: Measure 5: Value Line Projected Return on the Market based on the S&P 500
B32: Total return on the Market based on the S&P 500: | N32: ='MRP WP3'!H504*100 -> 14.32198133 | O32: %
B33: Projected Risk-Free Rate (see note 2): | N33: =N54 -> 2.88
B34: MRP based on Value Line data | N34: =IFERROR(N32-N33,"NA") -> 11.44198133 | O34: %
B36: Measure 6: Bloomberg Projected MRP
B38: Total return on the Market based on the S&P 500: | N38: ='MRP WP2'!Q504*100 -> 16.33579407 | O38: %
B39: Projected Risk-Free Rate (see note 2): | N39: ='MRP WP1'!F37 -> 2.88
L40: MRP based on Bloomberg data | N40: =IFERROR(N38-N39,"NA") -> 13.45579407 | O40: %
L42: Average of Value Line, Ibbotson, and Bloomberg MRP: | N42: =AVERAGE(N13,N16,N19,N27,N34,N40) -> 9.459985663 | O42: %
A44: (2) | B44: For reasons explained in the direct testimony, the appropriate risk-free rate for cost of capital purposes is the average forecast of 30 year Treasury Bonds per the consensus of nearly 50 economists reported in Blue Chip Financial Forecasts. (See pages 10 and 11 of Schedule DWD-3.) The projection of the risk-free rate is illustrated below:
J46: ='MRP WP1'!B28 -> Second Quarter 2021 | N46: ='MRP WP1'!F28 -> 2.4 | O46: %
J47: ='MRP WP1'!B29 -> Third Quarter 2021 | N47: ='MRP WP1'!F29 -> 2.5
J48: ='MRP WP1'!B30 -> Fourth Quarter 2021 | N48: ='MRP WP1'!F30 -> 2.6
J49: ='MRP WP1'!B31 -> First Quarter 2022 | N49: ='MRP WP1'!F31 -> 2.6
J50: ='MRP WP1'!B32 -> Second Quarter 2022 | N50: ='MRP WP1'!F32 -> 2.7
J51: ='MRP WP1'!B33 -> Third Quarter 2022 | N51: ='MRP WP1'!F33 -> 2.8
J52: ='MRP WP1'!B34 -> 2023-2027 | N52: ='MRP WP1'!F34 -> 3.5
J53: ='MRP WP1'!B35 -> 2028-2032 | N53: ='MRP WP1'!F35 -> 3.9
N54: =ROUND(AVERAGE(N46:N53),2) -> 2.88 | O54: %
A55: (3) | B55: Average of Column 6 and Column 7.
A57: Sources of Information:
B58: Value Line Summary and Index
B59: ='3.8-3.9 Beta Adjusted ERP'!C45 -> Blue Chip Financial Forecasts, June 1, 2021
B60: ='3.8-3.9 Beta Adjusted ERP'!C42 -> Stocks, Bonds, Bills, and Inflation - 2021 SBBI Yearbook, John Wiley & Sons, Inc.
B61: Bloomberg Professional Services

Sheet 5.2 Comp Earnings Criteria
C1: =Input!G28 -> Atmos Energy Corporation
C2: Basis of Selection of Comparable Risk
C3: Domestic Non-Price Regulated Companies
A4: TICKER
E5: [1] | G5: [2] | I5: [3] | K5: [4]
A6: SYMBOL
C7: ='4.1 CAPM'!B7 -> Proxy Group of Seven Natural Gas Distribution Companies | E7: Value Line Adjusted Beta | G7: Unadjusted Beta | I7: Residual Standard Error of the Regression | K7: Standard Deviation of Beta
A9: =Input!A2 -> ATO | C9: ='Proxy Data Lookup'!B3 -> Atmos Energy Corporation | E9: ='Proxy Data Lookup'!G3 -> 0.8 | G9: ='Proxy Data Lookup'!I3 -> 0.66 | I9: ='Proxy Data Lookup'!L3 -> 2.7453 | K9: ='Proxy Data Lookup'!N3 -> 0.0685
A10: =Input!A3 -> NJR | C10: ='Proxy Data Lookup'!B4 -> New Jersey Resources Corporation | E10: ='Proxy Data Lookup'!G4 -> 0.95 | G10: ='Proxy Data Lookup'!I4 -> 0.92 | I10: ='Proxy Data Lookup'!L4 -> 3.0205 | K10: ='Proxy Data Lookup'!N4 -> 0.0754
A11: =Input!A4 -> NWN | C11: ='Proxy Data Lookup'!B5 -> Northwest Natural Holding Company | E11: ='Proxy Data Lookup'!G5 -> 0.8 | G11: ='Proxy Data Lookup'!I5 -> 0.69 | I11: ='Proxy Data Lookup'!L5 -> 3.1454 | K11: ='Proxy Data Lookup'!N5 -> 0.0785
A12: =Input!A5 -> OGS | C12: ='Proxy Data Lookup'!B6 -> ONE Gas, Inc. | E12: ='Proxy Data Lookup'!G6 -> 0.8 | G12: ='Proxy Data Lookup'!I6 -> 0.67 | I12: ='Proxy Data Lookup'!L6 -> 2.7077 | K12: ='Proxy Data Lookup'!N6 -> 0.0676
A13: =Input!A6 -> SJI | C13: ='Proxy Data Lookup'!B7 -> South Jersey Industries, Inc. | E13: ='Proxy Data Lookup'!G7 -> 1.05 | G13: ='Proxy Data Lookup'!I7 -> 1 | I13: ='Proxy Data Lookup'!L7 -> 3.4767 | K13: ='Proxy Data Lookup'!N7 -> 0.0868
A14: =Input!A7 -> SWX | C14: ='Proxy Data Lookup'!B8 -> Southwest Gas Holdings, Inc. | E14: ='Proxy Data Lookup'!G8 -> 0.95 | G14: ='Proxy Data Lookup'!I8 -> 0.88 | I14: ='Proxy Data Lookup'!L8 -> 3.0244 | K14: ='Proxy Data Lookup'!N8 -> 0.0755
A15: =Input!A8 -> SR | C15: ='Proxy Data Lookup'!B9 -> Spire Inc. | E15: ='Proxy Data Lookup'!G9 -> 0.85 | G15: ='Proxy Data Lookup'!I9 -> 0.71 | I15: ='Proxy Data Lookup'!L9 -> 2.8287 | K15: ='Proxy Data Lookup'!N9 -> 0.0706
C17: Average | E17: =AVERAGE(E9:E15) -> 0.8857142857 | G17: =AVERAGE(G9:G15) -> 0.79 | I17: =AVERAGE(I9:I15) -> 2.992671429 | K17: =AVERAGE(K9:K15) -> 0.0747
C20: Beta Range (+/- 2 std. Devs. of Beta) | E20: =G17-E21 -> 0.64 | G20: =G17+E21 -> 0.94
C21: 2 std. Devs. of Beta | E21: =ROUND((K17*2),2) -> 0.15
C23: Residual Std. Err. Range (+/- 2 std.
C24: Devs. of the Residual Std. Err.) | E24: =I17-E28 -> 2.729671429 | G24: =I17+E28 -> 3.255671429
C26: Std. dev. of the Res. Std. Err. | E26: =ROUND((I17/22.7596),4) -> 0.1315
C28: 2 std. devs. of the Res. Std. Err. | E28: =ROUND((2*E26),4) -> 0.263
C32: Source of Information: | E32: Valueline Proprietary Database, March 2021

Sheet 5.3 Proxy Group Equivalent
C1: =Input!G28 -> Atmos Energy Corporation
C2: Proxy Group of Non-Price Regulated Companies
C3: Comparable in Total Risk to the
C4: ='5.2 Comp Earnings Criteria'!C7 -> Proxy Group of Seven Natural Gas Distribution Companies
E6: [1] | G6: [2] | I6: [3] | K6: [4]
A8: Ticker | C8: =Input!I32 -> Proxy Group of Forty-Eight Non-Price Regulated Companies | E8: VL Adjusted Beta | G8: Unadjusted Beta | I8: Residual Standard Error of the Regression | K8: Standard Deviation of Beta
A10: =Input!C2 -> AAPL | C10: =VLOOKUP($A10,'CEM Data Lookup'!$A:$Q,2,FALSE) -> Apple Inc. | E10: =VLOOKUP($A10,'CEM Data Lookup'!$A:$Q,7,FALSE) -> 0.9 | G10: =VLOOKUP($A10,'CEM Data Lookup'!$A:$Q,9,FALSE) -> 0.81 | I10: =VLOOKUP($A10,'CEM Data Lookup'!$A:$Q,14,FALSE) -> 3.1746 | K10: =VLOOKUP($A10,'CEM Data Lookup'!$A:$Q,16,FALSE) -> 0.0792
A11: =Input!C3 -> ABT | C11: =VLOOKUP($A11,'CEM Data Lookup'!$A:$Q,2,FALSE) -> Abbott Labs. | E11: =VLOOKUP($A11,'CEM Data Lookup'!$A:$Q,7,FALSE) -> 0.95 | G11: =VLOOKUP($A11,'CEM Data Lookup'!$A:$Q,9,FALSE) -> 0.88 | I11: =VLOOKUP($A11,'CEM Data Lookup'!$A:$Q,14,FALSE) -> 2.7401 | K11: =VLOOKUP($A11,'CEM Data Lookup'!$A:$Q,16,FALSE) -> 0.0684
A12: =Input!C4 -> AIZ | C12: =VLOOKUP($A12,'CEM Data Lookup'!$A:$Q,2,FALSE) -> Assurant Inc. | E12: =VLOOKUP($A12,'CEM Data Lookup'!$A:$Q,7,FALSE) -> 0.9 | G12: =VLOOKUP($A12,'CEM Data Lookup'!$A:$Q,9,FALSE) -> 0.84 | I12: =VLOOKUP($A12,'CEM Data Lookup'!$A:$Q,14,FALSE) -> 2.9537 | K12: =VLOOKUP($A12,'CEM Data Lookup'!$A:$Q,16,FALSE) -> 0.0737
A13: =Input!C5 -> ANSS | C13: =VLOOKUP($A13,'CEM Data Lookup'!$A:$Q,2,FALSE) -> ANSYS, Inc. | E13: =VLOOKUP($A13,'CEM Data Lookup'!$A:$Q,7,FALSE) -> 0.85 | G13: =VLOOKUP($A13,'CEM Data Lookup'!$A:$Q,9,FALSE) -> 0.74 | I13: =VLOOKUP($A13,'CEM Data Lookup'!$A:$Q,14,FALSE) -> 2.8841 | K13: =VLOOKUP($A13,'CEM Data Lookup'!$A:$Q,16,FALSE) -> 0.072
A14: =Input!C6 -> BAH | C14: =VLOOKUP($A14,'CEM Data Lookup'!$A:$Q,2,FALSE) -> Booz Allen Hamilton | E14: =VLOOKUP($A14,'CEM Data Lookup'!$A:$Q,7,FALSE) -> 0.9 | G14: =VLOOKUP($A14,'CEM Data Lookup'!$A:$Q,9,FALSE) -> 0.82 | I14: =VLOOKUP($A14,'CEM Data Lookup'!$A:$Q,14,FALSE) -> 3.0468 | K14: =VLOOKUP($A14,'CEM Data Lookup'!$A:$Q,16,FALSE) -> 0.076
A15: =Input!C7 -> BDX | C15: =VLOOKUP($A15,'CEM Data Lookup'!$A:$Q,2,FALSE) -> Becton, Dickinson | E15: =VLOOKUP($A15,'CEM Data Lookup'!$A:$Q,7,FALSE) -> 0.8 | G15: =VLOOKUP($A15,'CEM Data Lookup'!$A:$Q,9,FALSE) -> 0.66 | I15: =VLOOKUP($A15,'CEM Data Lookup'!$A:$Q,14,FALSE) -> 2.8952 | K15: =VLOOKUP($A15,'CEM Data Lookup'!$A:$Q,16,FALSE) -> 0.0722
A16: =Input!C8 -> BFB | C16: =VLOOKUP($A16,'CEM Data Lookup'!$A:$Q,2,FALSE) -> Brown-Forman 'B' | E16: =VLOOKUP($A16,'CEM Data Lookup'!$A:$Q,7,FALSE) -> 0.9 | G16: =VLOOKUP($A16,'CEM Data Lookup'!$A:$Q,9,FALSE) -> 0.77 | I16: =VLOOKUP($A16,'CEM Data Lookup'!$A:$Q,14,FALSE) -> 2.7453 | K16: =VLOOKUP($A16,'CEM Data Lookup'!$A:$Q,16,FALSE) -> 0.0685
A17: =Input!C9 -> BR | C17: =VLOOKUP($A17,'CEM Data Lookup'!$A:$Q,2,FALSE) -> Broadridge Fin'l | E17: =VLOOKUP($A17,'CEM Data Lookup'!$A:$Q,7,FALSE) -> 0.85 | G17: =VLOOKUP($A17,'CEM Data Lookup'!$A:$Q,9,FALSE) -> 0.7 | I17: =VLOOKUP($A17,'CEM Data Lookup'!$A:$Q,14,FALSE) -> 2.7332 | K17: =VLOOKUP($A17,'CEM Data Lookup'!$A:$Q,16,FALSE) -> 0.0682
A18: =Input!C10 -> BRC | C18: =VLOOKUP($A18,'CEM Data Lookup'!$A:$Q,2,FALSE) -> Brady Corp. | E18: =VLOOKUP($A18,'CEM Data Lookup'!$A:$Q,7,FALSE) -> 1 | G18: =VLOOKUP($A18,'CEM Data Lookup'!$A:$Q,9,FALSE) -> 0.93 | I18: =VLOOKUP($A18,'CEM Data Lookup'!$A:$Q,14,FALSE) -> 3.0007 | K18: =VLOOKUP($A18,'CEM Data Lookup'!$A:$Q,16,FALSE) -> 0.0749
A19: =Input!C11 -> CACI | C19: =VLOOKUP($A19,'CEM Data Lookup'!$A:$Q,2,FALSE) -> CACI Int'l | E19: =VLOOKUP($A19,'CEM Data Lookup'!$A:$Q,7,FALSE) -> 0.95 | G19: =VLOOKUP($A19,'CEM Data Lookup'!$A:$Q,9,FALSE) -> 0.86 | I19: =VLOOKUP($A19,'CEM Data Lookup'!$A:$Q,14,FALSE) -> 3.1684 | K19: =VLOOKUP($A19,'CEM Data Lookup'!$A:$Q,16,FALSE) -> 0.0791
A20: =Input!C12 -> CASY | C20: =VLOOKUP($A20,'CEM Data Lookup'!$A:$Q,2,FALSE) -> Casey's Gen'l Stores | E20: =VLOOKUP($A20,'CEM Data Lookup'!$A:$Q,7,FALSE) -> 0.9 | G20: =VLOOKUP($A20,'CEM Data Lookup'!$A:$Q,9,FALSE) -> 0.78 | I20: =VLOOKUP($A20,'CEM Data Lookup'!$A:$Q,14,FALSE) -> 3.2522 | K20: =VLOOKUP($A20,'CEM Data Lookup'!$A:$Q,16,FALSE) -> 0.0812
A21: =Input!C13 -> CDNS | C21: =VLOOKUP($A21,'CEM Data Lookup'!$A:$Q,2,FALSE) -> Cadence Design Sys. | E21: =VLOOKUP($A21,'CEM Data Lookup'!$A:$Q,7,FALSE) -> 0.9 | G21: =VLOOKUP($A21,'CEM Data Lookup'!$A:$Q,9,FALSE) -> 0.79 | I21: =VLOOKUP($A21,'CEM Data Lookup'!$A:$Q,14,FALSE) -> 3.0338 | K21: =VLOOKUP($A21,'CEM Data Lookup'!$A:$Q,16,FALSE) -> 0.0757
A22: =Input!C14 -> CERN | C22: =VLOOKUP($A22,'CEM Data Lookup'!$A:$Q,2,FALSE) -> Cerner Corp. | E22: =VLOOKUP($A22,'CEM Data Lookup'!$A:$Q,7,FALSE) -> 0.9 | G22: =VLOOKUP($A22,'CEM Data Lookup'!$A:$Q,9,FALSE) -> 0.84 | I22: =VLOOKUP($A22,'CEM Data Lookup'!$A:$Q,14,FALSE) -> 2.7309 | K22: =VLOOKUP($A22,'CEM Data Lookup'!$A:$Q,16,FALSE) -> 0.0681
A23: =Input!C15 -> CSWI | C23: =VLOOKUP($A23,'CEM Data Lookup'!$A:$Q,2,FALSE) -> CSW Industrials | E23: =VLOOKUP($A23,'CEM Data Lookup'!$A:$Q,7,FALSE) -> 0.9 | G23: =VLOOKUP($A23,'CEM Data Lookup'!$A:$Q,9,FALSE) -> 0.81 | I23: =VLOOKUP($A23,'CEM Data Lookup'!$A:$Q,14,FALSE) -> 2.8884 | K23: =VLOOKUP($A23,'CEM Data Lookup'!$A:$Q,16,FALSE) -> 0.0721
A24: =Input!C16 -> DGX | C24: =VLOOKUP($A24,'CEM Data Lookup'!$A:$Q,2,FALSE) -> Quest Diagnostics | E24: =VLOOKUP($A24,'CEM Data Lookup'!$A:$Q,7,FALSE) -> 0.85 | G24: =VLOOKUP($A24,'CEM Data Lookup'!$A:$Q,9,FALSE) -> 0.75 | I24: =VLOOKUP($A24,'CEM Data Lookup'!$A:$Q,14,FALSE) -> 2.7411 | K24: =VLOOKUP($A24,'CEM Data Lookup'!$A:$Q,16,FALSE) -> 0.0684
A25: =Input!C17 -> EL | C25: =VLOOKUP($A25,'CEM Data Lookup'!$A:$Q,2,FALSE) -> Lauder (Estee) | E25: =VLOOKUP($A25,'CEM Data Lookup'!$A:$Q,7,FALSE) -> 0.95 | G25: =VLOOKUP($A25,'CEM Data Lookup'!$A:$Q,9,FALSE) -> 0.85 | I25: =VLOOKUP($A25,'CEM Data Lookup'!$A:$Q,14,FALSE) -> 2.8216 | K25: =VLOOKUP($A25,'CEM Data Lookup'!$A:$Q,16,FALSE) -> 0.0704
A26: =Input!C18 -> EXPO | C26: =VLOOKUP($A26,'CEM Data Lookup'!$A:$Q,2,FALSE) -> Exponent, Inc. | E26: =VLOOKUP($A26,'CEM Data Lookup'!$A:$Q,7,FALSE) -> 0.9 | G26: =VLOOKUP($A26,'CEM Data Lookup'!$A:$Q,9,FALSE) -> 0.79 | I26: =VLOOKUP($A26,'CEM Data Lookup'!$A:$Q,14,FALSE) -> 2.9131 | K26: =VLOOKUP($A26,'CEM Data Lookup'!$A:$Q,16,FALSE) -> 0.0727
A27: =Input!C19 -> FAST | C27: =VLOOKUP($A27,'CEM Data Lookup'!$A:$Q,2,FALSE) -> Fastenal Co. | E27: =VLOOKUP($A27,'CEM Data Lookup'!$A:$Q,7,FALSE) -> 0.9 | G27: =VLOOKUP($A27,'CEM Data Lookup'!$A:$Q,9,FALSE) -> 0.85 | I27: =VLOOKUP($A27,'CEM Data Lookup'!$A:$Q,14,FALSE) -> 3.2203 | K27: =VLOOKUP($A27,'CEM Data Lookup'!$A:$Q,16,FALSE) -> 0.0804
A28: =Input!C20 -> GNTX | C28: =VLOOKUP($A28,'CEM Data Lookup'!$A:$Q,2,FALSE) -> Gentex Corp. | E28: =VLOOKUP($A28,'CEM Data Lookup'!$A:$Q,7,FALSE) -> 0.95 | G28: =VLOOKUP($A28,'CEM Data Lookup'!$A:$Q,9,FALSE) -> 0.91 | I28: =VLOOKUP($A28,'CEM Data Lookup'!$A:$Q,14,FALSE) -> 2.7546 | K28: =VLOOKUP($A28,'CEM Data Lookup'!$A:$Q,16,FALSE) -> 0.0687
A29: =Input!C21 -> IFF | C29: =VLOOKUP($A29,'CEM Data Lookup'!$A:$Q,2,FALSE) -> Int'l Flavors & Frag | E29: =VLOOKUP($A29,'CEM Data Lookup'!$A:$Q,7,FALSE) -> 0.95 | G29: =VLOOKUP($A29,'CEM Data Lookup'!$A:$Q,9,FALSE) -> 0.87 | I29: =VLOOKUP($A29,'CEM Data Lookup'!$A:$Q,14,FALSE) -> 3.2238 | K29: =VLOOKUP($A29,'CEM Data Lookup'!$A:$Q,16,FALSE) -> 0.0804
A30: =Input!C22 -> INGR | C30: =VLOOKUP($A30,'CEM Data Lookup'!$A:$Q,2,FALSE) -> Ingredion Inc. | E30: =VLOOKUP($A30,'CEM Data Lookup'!$A:$Q,7,FALSE) -> 0.9 | G30: =VLOOKUP($A30,'CEM Data Lookup'!$A:$Q,9,FALSE) -> 0.78 | I30: =VLOOKUP($A30,'CEM Data Lookup'!$A:$Q,14,FALSE) -> 2.8793 | K30: =VLOOKUP($A30,'CEM Data Lookup'!$A:$Q,16,FALSE) -> 0.0718
A31: =Input!C23 -> IRM | C31: =VLOOKUP($A31,'CEM Data Lookup'!$A:$Q,2,FALSE) -> Iron Mountain | E31: =VLOOKUP($A31,'CEM Data Lookup'!$A:$Q,7,FALSE) -> 0.9 | G31: =VLOOKUP($A31,'CEM Data Lookup'!$A:$Q,9,FALSE) -> 0.82 | I31: =VLOOKUP($A31,'CEM Data Lookup'!$A:$Q,14,FALSE) -> 3.0897 | K31: =VLOOKUP($A31,'CEM Data Lookup'!$A:$Q,16,FALSE) -> 0.0771
A32: =Input!C24 -> JBHT | C32: =VLOOKUP($A32,'CEM Data Lookup'!$A:$Q,2,FALSE) -> Hunt (J.B.) | E32: =VLOOKUP($A32,'CEM Data Lookup'!$A:$Q,7,FALSE) -> 0.95 | G32: =VLOOKUP($A32,'CEM Data Lookup'!$A:$Q,9,FALSE) -> 0.86 | I32: =VLOOKUP($A32,'CEM Data Lookup'!$A:$Q,14,FALSE) -> 2.8344 | K32: =VLOOKUP($A32,'CEM Data Lookup'!$A:$Q,16,FALSE) -> 0.0707
A33: =Input!C25 -> JJSF | C33: =VLOOKUP($A33,'CEM Data Lookup'!$A:$Q,2,FALSE) -> J&J Snack Foods | E33: =VLOOKUP($A33,'CEM Data Lookup'!$A:$Q,7,FALSE) -> 0.9 | G33: =VLOOKUP($A33,'CEM Data Lookup'!$A:$Q,9,FALSE) -> 0.84 | I33: =VLOOKUP($A33,'CEM Data Lookup'!$A:$Q,14,FALSE) -> 2.9208 | K33: =VLOOKUP($A33,'CEM Data Lookup'!$A:$Q,16,FALSE) -> 0.0729
A34: =Input!C26 -> JKHY | C34: =VLOOKUP($A34,'CEM Data Lookup'!$A:$Q,2,FALSE) -> Henry (Jack) & Assoc | E34: =VLOOKUP($A34,'CEM Data Lookup'!$A:$Q,7,FALSE) -> 0.85 | G34: =VLOOKUP($A34,'CEM Data Lookup'!$A:$Q,9,FALSE) -> 0.71 | I34: =VLOOKUP($A34,'CEM Data Lookup'!$A:$Q,14,FALSE) -> 2.7734 | K34: =VLOOKUP($A34,'CEM Data Lookup'!$A:$Q,16,FALSE) -> 0.0692
A35: =Input!C27 -> MANT | C35: =VLOOKUP($A35,'CEM Data Lookup'!$A:$Q,2,FALSE) -> ManTech Int'l 'A' | E35: =VLOOKUP($A35,'CEM Data Lookup'!$A:$Q,7,FALSE) -> 0.85 | G35: =VLOOKUP($A35,'CEM Data Lookup'!$A:$Q,9,FALSE) -> 0.77 | I35: =VLOOKUP($A35,'CEM Data Lookup'!$A:$Q,14,FALSE) -> 3.0653 | K35: =VLOOKUP($A35,'CEM Data Lookup'!$A:$Q,16,FALSE) -> 0.0765
A36: =Input!C28 -> MKC | C36: =VLOOKUP($A36,'CEM Data Lookup'!$A:$Q,2,FALSE) -> McCormick & Co. | E36: =VLOOKUP($A36,'CEM Data Lookup'!$A:$Q,7,FALSE) -> 0.8 | G36: =VLOOKUP($A36,'CEM Data Lookup'!$A:$Q,9,FALSE) -> 0.66 | I36: =VLOOKUP($A36,'CEM Data Lookup'!$A:$Q,14,FALSE) -> 2.7887 | K36: =VLOOKUP($A36,'CEM Data Lookup'!$A:$Q,16,FALSE) -> 0.0696
A37: =Input!C29 -> MO | C37: =VLOOKUP($A37,'CEM Data Lookup'!$A:$Q,2,FALSE) -> Altria Group | E37: =VLOOKUP($A37,'CEM Data Lookup'!$A:$Q,7,FALSE) -> 0.9 | G37: =VLOOKUP($A37,'CEM Data Lookup'!$A:$Q,9,FALSE) -> 0.83 | I37: =VLOOKUP($A37,'CEM Data Lookup'!$A:$Q,14,FALSE) -> 2.9215 | K37: =VLOOKUP($A37,'CEM Data Lookup'!$A:$Q,16,FALSE) -> 0.0729
A38: =Input!C30 -> MSA | C38: =VLOOKUP($A38,'CEM Data Lookup'!$A:$Q,2,FALSE) -> MSA Safety | E38: =VLOOKUP($A38,'CEM Data Lookup'!$A:$Q,7,FALSE) -> 1 | G38: =VLOOKUP($A38,'CEM Data Lookup'!$A:$Q,9,FALSE) -> 0.94 | I38: =VLOOKUP($A38,'CEM Data Lookup'!$A:$Q,14,FALSE) -> 3.0076 | K38: =VLOOKUP($A38,'CEM Data Lookup'!$A:$Q,16,FALSE) -> 0.075
A39: =Input!C31 -> MSCI | C39: =VLOOKUP($A39,'CEM Data Lookup'!$A:$Q,2,FALSE) -> MSCI Inc. | E39: =VLOOKUP($A39,'CEM Data Lookup'!$A:$Q,7,FALSE) -> 0.95 | G39: =VLOOKUP($A39,'CEM Data Lookup'!$A:$Q,9,FALSE) -> 0.87 | I39: =VLOOKUP($A39,'CEM Data Lookup'!$A:$Q,14,FALSE) -> 2.9662 | K39: =VLOOKUP($A39,'CEM Data Lookup'!$A:$Q,16,FALSE) -> 0.074
A40: =Input!C32 -> MSI | C40: =VLOOKUP($A40,'CEM Data Lookup'!$A:$Q,2,FALSE) -> Motorola Solutions | E40: =VLOOKUP($A40,'CEM Data Lookup'!$A:$Q,7,FALSE) -> 0.9 | G40: =VLOOKUP($A40,'CEM Data Lookup'!$A:$Q,9,FALSE) -> 0.8 | I40: =VLOOKUP($A40,'CEM Data Lookup'!$A:$Q,14,FALSE) -> 2.7926 | K40: =VLOOKUP($A40,'CEM Data Lookup'!$A:$Q,16,FALSE) -> 0.0697
A41: =Input!C33 -> MTN | C41: =VLOOKUP($A41,'CEM Data Lookup'!$A:$Q,2,FALSE) -> Vail Resorts | E41: =VLOOKUP($A41,'CEM Data Lookup'!$A:$Q,7,FALSE) -> 0.95 | G41: =VLOOKUP($A41,'CEM Data Lookup'!$A:$Q,9,FALSE) -> 0.88 | I41: =VLOOKUP($A41,'CEM Data Lookup'!$A:$Q,14,FALSE) -> 3.1939 | K41: =VLOOKUP($A41,'CEM Data Lookup'!$A:$Q,16,FALSE) -> 0.0797
A42: =Input!C34 -> MXIM | C42: =VLOOKUP($A42,'CEM Data Lookup'!$A:$Q,2,FALSE) -> Maxim Integrated | E42: =VLOOKUP($A42,'CEM Data Lookup'!$A:$Q,7,FALSE) -> 0.95 | G42: =VLOOKUP($A42,'CEM Data Lookup'!$A:$Q,9,FALSE) -> 0.87 | I42: =VLOOKUP($A42,'CEM Data Lookup'!$A:$Q,14,FALSE) -> 2.9404 | K42: =VLOOKUP($A42,'CEM Data Lookup'!$A:$Q,16,FALSE) -> 0.0734
A43: =Input!C35 -> NOC | C43: =VLOOKUP($A43,'CEM Data Lookup'!$A:$Q,2,FALSE) -> Northrop Grumman | E43: =VLOOKUP($A43,'CEM Data Lookup'!$A:$Q,7,FALSE) -> 0.85 | G43: =VLOOKUP($A43,'CEM Data Lookup'!$A:$Q,9,FALSE) -> 0.71 | I43: =VLOOKUP($A43,'CEM Data Lookup'!$A:$Q,14,FALSE) -> 2.9032 | K43: =VLOOKUP($A43,'CEM Data Lookup'!$A:$Q,16,FALSE) -> 0.0724
A44: =Input!C36 -> ODFL | C44: =VLOOKUP($A44,'CEM Data Lookup'!$A:$Q,2,FALSE) -> Old Dominion Freight | E44: =VLOOKUP($A44,'CEM Data Lookup'!$A:$Q,7,FALSE) -> 0.9 | G44: =VLOOKUP($A44,'CEM Data Lookup'!$A:$Q,9,FALSE) -> 0.83 | I44: =VLOOKUP($A44,'CEM Data Lookup'!$A:$Q,14,FALSE) -> 3.0708 | K44: =VLOOKUP($A44,'CEM Data Lookup'!$A:$Q,16,FALSE) -> 0.0766
A45: =Input!C37 -> PKI | C45: =VLOOKUP($A45,'CEM Data Lookup'!$A:$Q,2,FALSE) -> PerkinElmer Inc. | E45: =VLOOKUP($A45,'CEM Data Lookup'!$A:$Q,7,FALSE) -> 0.95 | G45: =VLOOKUP($A45,'CEM Data Lookup'!$A:$Q,9,FALSE) -> 0.86 | I45: =VLOOKUP($A45,'CEM Data Lookup'!$A:$Q,14,FALSE) -> 2.8896 | K45: =VLOOKUP($A45,'CEM Data Lookup'!$A:$Q,16,FALSE) -> 0.0721
A46: =Input!C38 -> PM | C46: =VLOOKUP($A46,'CEM Data Lookup'!$A:$Q,2,FALSE) -> Philip Morris Int'l | E46: =VLOOKUP($A46,'CEM Data Lookup'!$A:$Q,7,FALSE) -> 0.95 | G46: =VLOOKUP($A46,'CEM Data Lookup'!$A:$Q,9,FALSE) -> 0.88 | I46: =VLOOKUP($A46,'CEM Data Lookup'!$A:$Q,14,FALSE) -> 3.2481 | K46: =VLOOKUP($A46,'CEM Data Lookup'!$A:$Q,16,FALSE) -> 0.0811
A47: =Input!C39 -> POOL | C47: =VLOOKUP($A47,'CEM Data Lookup'!$A:$Q,2,FALSE) -> Pool Corp. | E47: =VLOOKUP($A47,'CEM Data Lookup'!$A:$Q,7,FALSE) -> 0.85 | G47: =VLOOKUP($A47,'CEM Data Lookup'!$A:$Q,9,FALSE) -> 0.75 | I47: =VLOOKUP($A47,'CEM Data Lookup'!$A:$Q,14,FALSE) -> 3.2001 | K47: =VLOOKUP($A47,'CEM Data Lookup'!$A:$Q,16,FALSE) -> 0.0799
A48: =Input!C40 -> POST | C48: =VLOOKUP($A48,'CEM Data Lookup'!$A:$Q,2,FALSE) -> Post Holdings | E48: =VLOOKUP($A48,'CEM Data Lookup'!$A:$Q,7,FALSE) -> 0.95 | G48: =VLOOKUP($A48,'CEM Data Lookup'!$A:$Q,9,FALSE) -> 0.86 | I48: =VLOOKUP($A48,'CEM Data Lookup'!$A:$Q,14,FALSE) -> 3.0105 | K48: =VLOOKUP($A48,'CEM Data Lookup'!$A:$Q,16,FALSE) -> 0.0751
A49: =Input!C41 -> RLI | C49: =VLOOKUP($A49,'CEM Data Lookup'!$A:$Q,2,FALSE) -> RLI Corp. | E49: =VLOOKUP($A49,'CEM Data Lookup'!$A:$Q,7,FALSE) -> 0.8 | G49: =VLOOKUP($A49,'CEM Data Lookup'!$A:$Q,9,FALSE) -> 0.64 | I49: =VLOOKUP($A49,'CEM Data Lookup'!$A:$Q,14,FALSE) -> 2.9883 | K49: =VLOOKUP($A49,'CEM Data Lookup'!$A:$Q,16,FALSE) -> 0.0746
A50: =Input!C42 -> ROL | C50: =VLOOKUP($A50,'CEM Data Lookup'!$A:$Q,2,FALSE) -> Rollins, Inc. | E50: =VLOOKUP($A50,'CEM Data Lookup'!$A:$Q,7,FALSE) -> 0.85 | G50: =VLOOKUP($A50,'CEM Data Lookup'!$A:$Q,9,FALSE) -> 0.73 | I50: =VLOOKUP($A50,'CEM Data Lookup'!$A:$Q,14,FALSE) -> 2.9697 | K50: =VLOOKUP($A50,'CEM Data Lookup'!$A:$Q,16,FALSE) -> 0.0741
A51: =Input!C43 -> SIGI | C51: =VLOOKUP($A51,'CEM Data Lookup'!$A:$Q,2,FALSE) -> Selective Ins. Group | E51: =VLOOKUP($A51,'CEM Data Lookup'!$A:$Q,7,FALSE) -> 0.85 | G51: =VLOOKUP($A51,'CEM Data Lookup'!$A:$Q,9,FALSE) -> 0.77 | I51: =VLOOKUP($A51,'CEM Data Lookup'!$A:$Q,14,FALSE) -> 3.0004 | K51: =VLOOKUP($A51,'CEM Data Lookup'!$A:$Q,16,FALSE) -> 0.0749
A52: =Input!C44 -> SIRI | C52: =VLOOKUP($A52,'CEM Data Lookup'!$A:$Q,2,FALSE) -> Sirius XM Holdings | E52: =VLOOKUP($A52,'CEM Data Lookup'!$A:$Q,7,FALSE) -> 0.95 | G52: =VLOOKUP($A52,'CEM Data Lookup'!$A:$Q,9,FALSE) -> 0.91 | I52: =VLOOKUP($A52,'CEM Data Lookup'!$A:$Q,14,FALSE) -> 2.7995 | K52: =VLOOKUP($A52,'CEM Data Lookup'!$A:$Q,16,FALSE) -> 0.0699
A53: =Input!C45 -> TECH | C53: =VLOOKUP($A53,'CEM Data Lookup'!$A:$Q,2,FALSE) -> Bio-Techne Corp. | E53: =VLOOKUP($A53,'CEM Data Lookup'!$A:$Q,7,FALSE) -> 0.8 | G53: =VLOOKUP($A53,'CEM Data Lookup'!$A:$Q,9,FALSE) -> 0.67 | I53: =VLOOKUP($A53,'CEM Data Lookup'!$A:$Q,14,FALSE) -> 3.2475 | K53: =VLOOKUP($A53,'CEM Data Lookup'!$A:$Q,16,FALSE) -> 0.081
A54: =Input!C46 -> TTEK | C54: =VLOOKUP($A54,'CEM Data Lookup'!$A:$Q,2,FALSE) -> Tetra Tech | E54: =VLOOKUP($A54,'CEM Data Lookup'!$A:$Q,7,FALSE) -> 0.9 | G54: =VLOOKUP($A54,'CEM Data Lookup'!$A:$Q,9,FALSE) -> 0.84 | I54: =VLOOKUP($A54,'CEM Data Lookup'!$A:$Q,14,FALSE) -> 3.0245 | K54: =VLOOKUP($A54,'CEM Data Lookup'!$A:$Q,16,FALSE) -> 0.0755
A55: =Input!C47 -> WAT | C55: =VLOOKUP($A55,'CEM Data Lookup'!$A:$Q,2,FALSE) -> Waters Corp. | E55: =VLOOKUP($A55,'CEM Data Lookup'!$A:$Q,7,FALSE) -> 0.95 | G55: =VLOOKUP($A55,'CEM Data Lookup'!$A:$Q,9,FALSE) -> 0.86 | I55: =VLOOKUP($A55,'CEM Data Lookup'!$A:$Q,14,FALSE) -> 2.7531 | K55: =VLOOKUP($A55,'CEM Data Lookup'!$A:$Q,16,FALSE) -> 0.0687
A56: =Input!C48 -> WST | C56: =VLOOKUP($A56,'CEM Data Lookup'!$A:$Q,2,FALSE) -> West Pharmac. Svcs. | E56: =VLOOKUP($A56,'CEM Data Lookup'!$A:$Q,7,FALSE) -> 0.85 | G56: =VLOOKUP($A56,'CEM Data Lookup'!$A:$Q,9,FALSE) -> 0.7 | I56: =VLOOKUP($A56,'CEM Data Lookup'!$A:$Q,14,FALSE) -> 3.1887 | K56: =VLOOKUP($A56,'CEM Data Lookup'!$A:$Q,16,FALSE) -> 0.0796
A57: =Input!C49 -> WU | C57: =VLOOKUP($A57,'CEM Data Lookup'!$A:$Q,2,FALSE) -> Western Union | E57: =VLOOKUP($A57,'CEM Data Lookup'!$A:$Q,7,FALSE) -> 0.8 | G57: =VLOOKUP($A57,'CEM Data Lookup'!$A:$Q,9,FALSE) -> 0.67 | I57: =VLOOKUP($A57,'CEM Data Lookup'!$A:$Q,14,FALSE) -> 2.7346 | K57: =VLOOKUP($A57,'CEM Data Lookup'!$A:$Q,16,FALSE) -> 0.0682
A59: =COUNTA(A9:A58) -> 48 | C59: Average | E59: =ROUND(AVERAGE(E10:E57),2) -> 0.9 | G59: =ROUND(AVERAGE(G10:G57),2) -> 0.8 | I59: =ROUND(AVERAGE(I10:I57),4) -> 2.9609 | K59: =ROUND(AVERAGE(K10:K57),4) -> 0.0739
C61: =C4 -> Proxy Group of Seven Natural Gas Distribution Companies | E61: ='5.2 Comp Earnings Criteria'!E17 -> 0.8857142857 | G61: ='5.2 Comp Earnings Criteria'!G17 -> 0.79 | I61: ='5.2 Comp Earnings Criteria'!I17 -> 2.992671429 | K61: ='5.2 Comp Earnings Criteria'!K17 -> 0.0747
C65: ='5.2 Comp Earnings Criteria'!C32 -> Source of Information: | E65: ='5.2 Comp Earnings Criteria'!E32 -> Valueline Proprietary Database, March 2021

Sheet 6.1 CEM Summary
A1: =Input!G28 -> Atmos Energy Corporation
A2: Summary of Cost of Equity Models Applied to
A3: ='5.3 Proxy Group Equivalent'!C8 -> Proxy Group of Forty-Eight Non-Price Regulated Companies
A4: Comparable in Total Risk to the
A5: ='5.3 Proxy Group Equivalent'!C4 -> Proxy Group of Seven Natural Gas Distribution Companies
B7: Principal Methods | E7: =A3 -> Proxy Group of Forty-Eight Non-Price Regulated Companies
B9: Discounted Cash Flow Model (DCF) (1) | E9: ='6.2 CEM DCF'!Y62 -> 12.83 | F9: %
B11: Risk Premium Model (RPM) (2) | E11: ='6.3 CEM RPM Summary'!G15 -> 12.49
B13: Capital Asset Pricing Model (CAPM) (3) | E13: ='6.6 CEM CAPM Backup'!V62 -> 11.69
E15: =ROUND(AVERAGE(E9:E13),2) -> 12.34 | F15: %
E17: =ROUND(MEDIAN(E9:E13),2) -> 12.49 | F17: %
E19: =ROUND(AVERAGE(E15:E17),2) -> 12.42 | F19: %
A21: Notes:
A22: (1) | B22: From page 2 of this Schedule.
A23: (2) | B23: From page 3 of this Schedule.
A24: (3) | B24: From page 6 of this Schedule.

Sheet 6.2 CEM DCF
B1: =Input!G28 -> Atmos Energy Corporation
B2: DCF Results for the Proxy Group of Non-Price-Regulated Companies Comparable in Total Risk to the
B3: ='6.1 CEM Summary'!A5 -> Proxy Group of Seven Natural Gas Distribution Companies
D5: [1] | G5: [2] | J5: [3] | M5: [4] | P5: [5] | S5: [6] | V5: [7] | Y5: [8]
B7: ='6.1 CEM Summary'!A3 -> Proxy Group of Forty-Eight Non-Price Regulated Companies | D7: Average Dividend Yield | G7: Value Line Projected Five Year Growth in EPS | J7: Zack's Five Year Projected Growth Rate in EPS | M7: Bloomberg's Five Year Projected Growth Rate in EPS | P7: Yahoo! Finance Projected Five Year Growth in EPS | S7: Average Projected Five Year Growth Rate in EPS | V7: Adjusted Dividend Yield | Y7: Indicated Common Equity Cost Rate (1)
A9: =Input!C2 -> AAPL | B9: =VLOOKUP($A9,'CEM Data Lookup'!$A$4:$Q$51,2,FALSE) -> Apple Inc. | D9: =HLOOKUP(A9,'CEM PricesDivs'!$B$2:$AW$70,68,FALSE) -> 0.69 | E9: % | G9: ='CEM Data Lookup'!F4*100 -> 14.5 | H9: % | J9: =IFERROR('CEM Data Lookup'!C4*100, "NA") -> 12.5 | K9: % | M9: =IFERROR('CEM Data Lookup'!E4*100,"NA") -> 12.1 | N9: % | P9: ='CEM Data Lookup'!D4*100 -> 17.93 | Q9: % | S9: =IFERROR(ROUND(AVERAGE(G9,J9,M9,P9),2),"NA") -> 14.26 | T9: % | V9: =IFERROR(ROUND((D9*(1+(0.5*(S9/100)))),2),"NA") -> 0.74 | W9: % | Y9: =IFERROR(IF(OR(VALUE(V9)=0,VALUE(S9)=0),"NA",V9+S9),"NA") -> 15 | Z9: %
A10: =Input!C3 -> ABT | B10: =VLOOKUP($A10,'CEM Data Lookup'!$A$4:$Q$51,2,FALSE) -> Abbott Labs. | D10: =HLOOKUP(A10,'CEM PricesDivs'!$B$2:$AW$70,68,FALSE) -> 1.51 | G10: ='CEM Data Lookup'!F5*100 -> 11.5 | J10: =IFERROR('CEM Data Lookup'!C5*100, "NA") -> 13.8 | M10: =IFERROR('CEM Data Lookup'!E5*100,"NA") -> 13.63 | P10: ='CEM Data Lookup'!D5*100 -> 16.49 | S10: =IFERROR(ROUND(AVERAGE(G10,J10,M10,P10),2),"NA") -> 13.86 | V10: =IFERROR(ROUND((D10*(1+(0.5*(S10/100)))),2),"NA") -> 1.61 | Y10: =IFERROR(IF(OR(VALUE(V10)=0,VALUE(S10)=0),"NA",V10+S10),"NA") -> 15.47
A11: =Input!C4 -> AIZ | B11: =VLOOKUP($A11,'CEM Data Lookup'!$A$4:$Q$51,2,FALSE) -> Assurant Inc. | D11: =HLOOKUP(A11,'CEM PricesDivs'!$B$2:$AW$70,68,FALSE) -> 1.76 | G11: ='CEM Data Lookup'!F6*100 -> 11.5 | J11: =IFERROR('CEM Data Lookup'!C6*100, "NA") -> 17.5 | M11: =IFERROR('CEM Data Lookup'!E6*100,"NA") -> 17.5 | P11: ='CEM Data Lookup'!D6*100 -> 17.5 | S11: 16 | V11: 1.9 | Y11: 17.9
A12: =Input!C5 -> ANSS | B12: =VLOOKUP($A12,'CEM Data Lookup'!$A$4:$Q$51,2,FALSE) -> ANSYS, Inc. | D12: =HLOOKUP(A12,'CEM PricesDivs'!$B$2:$AW$70,68,FALSE) -> 0 | G12: ='CEM Data Lookup'!F7*100 -> 8 | J12: =IFERROR('CEM Data Lookup'!C7*100, "NA") -> 12.3 | M12: =IFERROR('CEM Data Lookup'!E7*100,"NA") -> 12.577 | P12: ='CEM Data Lookup'!D7*100 -> 10.74 | S12: 10.9 | V12: =IFERROR(ROUND((D12*(1+(0.5*(S12/100)))),2),"NA") -> 0 | Y12: NA
A13: =Input!C6 -> BAH | B13: =VLOOKUP($A13,'CEM Data Lookup'!$A$4:$Q$51,2,FALSE) -> Booz Allen Hamilton | D13: =HLOOKUP(A13,'CEM PricesDivs'!$B$2:$AW$70,68,FALSE) -> 1.8 | G13: ='CEM Data Lookup'!F8*100 -> 10.5 | J13: =IFERROR('CEM Data Lookup'!C8*100, "NA") -> 10.6 | M13: =IFERROR('CEM Data Lookup'!E8*100,"NA") -> 13 | P13: ='CEM Data Lookup'!D8*100 -> 9.67 | S13: 10.94 | V13: 1.9 | Y13: 12.84
A14: =Input!C7 -> BDX | B14: =VLOOKUP($A14,'CEM Data Lookup'!$A$4:$Q$51,2,FALSE) -> Becton, Dickinson | D14: =HLOOKUP(A14,'CEM PricesDivs'!$B$2:$AW$70,68,FALSE) -> 1.35 | G14: ='CEM Data Lookup'!F9*100 -> 7.5 | J14: =IFERROR('CEM Data Lookup'!C9*100, "NA") -> 8.9 | M14: =IFERROR('CEM Data Lookup'!E9*100,"NA") -> 8.295 | P14: ='CEM Data Lookup'!D9*100 -> 11.85 | S14: 9.14 | V14: 1.41 | Y14: 10.55
A15: =Input!C8 -> BFB | B15: =VLOOKUP($A15,'CEM Data Lookup'!$A$4:$Q$51,2,FALSE) -> Brown-Forman 'B' | D15: =HLOOKUP(A15,'CEM PricesDivs'!$B$2:$AW$70,68,FALSE) -> 0.97 | G15: ='CEM Data Lookup'!F10*100 -> 11 | J15: =IFERROR('CEM Data Lookup'!C10*100, "NA") -> NA | M15: =IFERROR('CEM Data Lookup'!E10*100,"NA") -> 5.39 | P15: ='CEM Data Lookup'!D10*100 -> 7.4 | S15: 7.93 | V15: 1.01 | Y15: 8.94
A16: =Input!C9 -> BR | B16: =VLOOKUP($A16,'CEM Data Lookup'!$A$4:$Q$51,2,FALSE) -> Broadridge Fin'l | D16: =HLOOKUP(A16,'CEM PricesDivs'!$B$2:$AW$70,68,FALSE) -> 1.48 | G16: ='CEM Data Lookup'!F11*100 -> 8.5 | J16: =IFERROR('CEM Data Lookup'!C11*100, "NA") -> NA | M16: =IFERROR('CEM Data Lookup'!E11*100,"NA") -> 12.3 | P16: ='CEM Data Lookup'!D11*100 -> 11.6 | S16: 10.8 | V16: 1.56 | Y16: 12.36
A17: =Input!C10 -> BRC | B17: =VLOOKUP($A17,'CEM Data Lookup'!$A$4:$Q$51,2,FALSE) -> Brady Corp. | D17: =HLOOKUP(A17,'CEM PricesDivs'!$B$2:$AW$70,68,FALSE) -> 1.59 | G17: ='CEM Data Lookup'!F12*100 -> 7.5 | J17: =IFERROR('CEM Data Lookup'!C12*100, "NA") -> 7 | M17: =IFERROR('CEM Data Lookup'!E12*100,"NA") -> 9 | P17: ='CEM Data Lookup'!D12*100 -> 7 | S17: 7.63 | V17: 1.65 | Y17: 9.28
A18: =Input!C11 -> CACI | B18: =VLOOKUP($A18,'CEM Data Lookup'!$A$4:$Q$51,2,FALSE) -> CACI Int'l | D18: =HLOOKUP(A18,'CEM PricesDivs'!$B$2:$AW$70,68,FALSE) -> 0 | G18: ='CEM Data Lookup'!F13*100 -> 13.5 | J18: =IFERROR('CEM Data Lookup'!C13*100, "NA") -> 13.1 | M18: =IFERROR('CEM Data Lookup'!E13*100,"NA") -> 12.055 | P18: ='CEM Data Lookup'!D13*100 -> 13.68 | S18: 13.08 | V18: 0 | Y18: NA
A19: =Input!C12 -> CASY | B19: =VLOOKUP($A19,'CEM Data Lookup'!$A$4:$Q$51,2,FALSE) -> Casey's Gen'l Stores | D19: =HLOOKUP(A19,'CEM PricesDivs'!$B$2:$AW$70,68,FALSE) -> 0.63 | G19: ='CEM Data Lookup'!F14*100 -> 8 | J19: =IFERROR('CEM Data Lookup'!C14*100, "NA") -> NA | M19: =IFERROR('CEM Data Lookup'!E14*100,"NA") -> 15.805 | P19: ='CEM Data Lookup'!D14*100 -> 7.85 | S19: 10.55 | V19: 0.66 | Y19: 11.21
A20: =Input!C13 -> CDNS | B20: =VLOOKUP($A20,'CEM Data Lookup'!$A$4:$Q$51,2,FALSE) -> Cadence Design Sys. | D20: =HLOOKUP(A20,'CEM PricesDivs'!$B$2:$AW$70,68,FALSE) -> 0 | G20: ='CEM Data Lookup'!F15*100 -> 9.5 | J20: =IFERROR('CEM Data Lookup'!C15*100, "NA") -> 14.4 | M20: =IFERROR('CEM Data Lookup'!E15*100,"NA") -> 11.603 | P20: ='CEM Data Lookup'!D15*100 -> 14.4 | S20: 12.48 | V20: 0 | Y20: NA
A21: =Input!C14 -> CERN | B21: =VLOOKUP($A21,'CEM Data Lookup'!$A$4:$Q$51,2,FALSE) -> Cerner Corp. | D21: =HLOOKUP(A21,'CEM PricesDivs'!$B$2:$AW$70,68,FALSE) -> 1.18 | G21: ='CEM Data Lookup'!F16*100 -> 8 | J21: =IFERROR('CEM Data Lookup'!C16*100, "NA") -> 12.3 | M21: =IFERROR('CEM Data Lookup'!E16*100,"NA") -> 10.46 | P21: ='CEM Data Lookup'!D16*100 -> 11.63 | S21: 10.6 | V21: 1.24 | Y21: 11.84
A22: =Input!C15 -> CSWI | B22: =VLOOKUP($A22,'CEM Data Lookup'!$A$4:$Q$51,2,FALSE) -> CSW Industrials | D22: =HLOOKUP(A22,'CEM PricesDivs'!$B$2:$AW$70,68,FALSE) -> 0.45 | G22: ='CEM Data Lookup'!F17*100 -> 8.5 | J22: =IFERROR('CEM Data Lookup'!C17*100, "NA") -> NA | M22: =IFERROR('CEM Data Lookup'!E17*100,"NA") -> 12 | P22: ='CEM Data Lookup'!D17*100 -> 12 | S22: 10.83 | V22: 0.47 | Y22: 11.3
A23: =Input!C16 -> DGX | B23: =VLOOKUP($A23,'CEM Data Lookup'!$A$4:$Q$51,2,FALSE) -> Quest Diagnostics | D23: =HLOOKUP(A23,'CEM PricesDivs'!$B$2:$AW$70,68,FALSE) -> 1.91 | G23: ='CEM Data Lookup'!F18*100 -> 10 | J23: =IFERROR('CEM Data Lookup'!C18*100, "NA") -> 26.5 | M23: =IFERROR('CEM Data Lookup'!E18*100,"NA") -> -5.4 | P23: ='CEM Data Lookup'!D18*100 -> 3.26 | S23: =IFERROR(ROUND(AVERAGE(G23,J23,P23),2),"NA") -> 13.25 | V23: 2.04 | Y23: 15.29
A24: =Input!C17 -> EL | B24: =VLOOKUP($A24,'CEM Data Lookup'!$A$4:$Q$51,2,FALSE) -> Lauder (Estee) | D24: =HLOOKUP(A24,'CEM PricesDivs'!$B$2:$AW$70,68,FALSE) -> 0.71 | G24: ='CEM Data Lookup'!F19*100 -> 11 | J24: =IFERROR('CEM Data Lookup'!C19*100, "NA") -> 10.7 | M24: =IFERROR('CEM Data Lookup'!E19*100,"NA") -> 18.2 | P24: ='CEM Data Lookup'!D19*100 -> 27.18 | S24: =IFERROR(ROUND(AVERAGE(G24,J24,M24,P24),2),"NA") -> 16.77 | V24: 0.77 | Y24: 17.54
A25: =Input!C18 -> EXPO | B25: =VLOOKUP($A25,'CEM Data Lookup'!$A$4:$Q$51,2,FALSE) -> Exponent, Inc. | D25: =HLOOKUP(A25,'CEM PricesDivs'!$B$2:$AW$70,68,FALSE) -> 0.83 | G25: ='CEM Data Lookup'!F20*100 -> 12.5 | J25: =IFERROR('CEM Data Lookup'!C20*100, "NA") -> NA | M25: =IFERROR('CEM Data Lookup'!E20*100,"NA") -> 13.3 | P25: ='CEM Data Lookup'!D20*100 -> 15 | S25: 13.6 | V25: 0.89 | Y25: 14.49
A26: =Input!C19 -> FAST | B26: =VLOOKUP($A26,'CEM Data Lookup'!$A$4:$Q$51,2,FALSE) -> Fastenal Co. | D26: =HLOOKUP(A26,'CEM PricesDivs'!$B$2:$AW$70,68,FALSE) -> 2.21 | G26: ='CEM Data Lookup'!F21*100 -> 8 | J26: =IFERROR('CEM Data Lookup'!C21*100, "NA") -> 9 | M26: =IFERROR('CEM Data Lookup'!E21*100,"NA") -> 8.7 | P26: ='CEM Data Lookup'!D21*100 -> 7.95 | S26: 8.41 | V26: 2.3 | Y26: 10.71
A27: =Input!C20 -> GNTX | B27: =VLOOKUP($A27,'CEM Data Lookup'!$A$4:$Q$51,2,FALSE) -> Gentex Corp. | D27: =HLOOKUP(A27,'CEM PricesDivs'!$B$2:$AW$70,68,FALSE) -> 1.35 | G27: ='CEM Data Lookup'!F22*100 -> 10.5 | J27: =IFERROR('CEM Data Lookup'!C22*100, "NA") -> 10.1 | M27: =IFERROR('CEM Data Lookup'!E22*100,"NA") -> 13.145 | P27: ='CEM Data Lookup'!D22*100 -> 15.8 | S27: 12.39 | V27: 1.43 | Y27: 13.82
A28: =Input!C21 -> IFF | B28: =VLOOKUP($A28,'CEM Data Lookup'!$A$4:$Q$51,2,FALSE) -> Int'l Flavors & Frag | D28: =HLOOKUP(A28,'CEM PricesDivs'!$B$2:$AW$70,68,FALSE) -> 2.2 | G28: ='CEM Data Lookup'!F23*100 -> 7.5 | J28: =IFERROR('CEM Data Lookup'!C23*100, "NA") -> 9.8 | M28: =IFERROR('CEM Data Lookup'!E23*100,"NA") -> 21.48 | P28: ='CEM Data Lookup'!D23*100 -> 7.72 | S28: 11.63 | V28: 2.33 | Y28: 13.96
A29: =Input!C22 -> INGR | B29: =VLOOKUP($A29,'CEM Data Lookup'!$A$4:$Q$51,2,FALSE) -> Ingredion Inc. | D29: =HLOOKUP(A29,'CEM PricesDivs'!$B$2:$AW$70,68,FALSE) -> 2.76 | G29: ='CEM Data Lookup'!F24*100 -> 7.5 | J29: =IFERROR('CEM Data Lookup'!C24*100, "NA") -> NA | M29: =IFERROR('CEM Data Lookup'!E24*100,"NA") -> 11 | P29: ='CEM Data Lookup'!D24*100 -> 1.9 | S29: 6.8 | V29: 2.85 | Y29: 9.65
A30: =Input!C23 -> IRM | B30: =VLOOKUP($A30,'CEM Data Lookup'!$A$4:$Q$51,2,FALSE) -> Iron Mountain | D30: =HLOOKUP(A30,'CEM PricesDivs'!$B$2:$AW$70,68,FALSE) -> 6.32 | G30: ='CEM Data Lookup'!F25*100 -> 11.5 | J30: =IFERROR('CEM Data Lookup'!C25*100, "NA") -> 1.7 | M30: =IFERROR('CEM Data Lookup'!E25*100,"NA") -> 0.66 | P30: ='CEM Data Lookup'!D25*100 -> 1.7 | S30: 3.89 | V30: 6.44 | Y30: 10.33
A31: =Input!C24 -> JBHT | B31: =VLOOKUP($A31,'CEM Data Lookup'!$A$4:$Q$51,2,FALSE) -> Hunt (J.B.) | D31: =HLOOKUP(A31,'CEM PricesDivs'!$B$2:$AW$70,68,FALSE) -> 0.71 | G31: ='CEM Data Lookup'!F26*100 -> 8 | J31: =IFERROR('CEM Data Lookup'!C26*100, "NA") -> 15 | M31: =IFERROR('CEM Data Lookup'!E26*100,"NA") -> 15 | P31: ='CEM Data Lookup'!D26*100 -> 21.53 | S31: 14.88 | V31: 0.76 | Y31: 15.64
A32: =Input!C25 -> JJSF | B32: =VLOOKUP($A32,'CEM Data Lookup'!$A$4:$Q$51,2,FALSE) -> J&J Snack Foods | D32: =HLOOKUP(A32,'CEM PricesDivs'!$B$2:$AW$70,68,FALSE) -> 1.55 | G32: ='CEM Data Lookup'!F27*100 -> 10 | J32: =IFERROR('CEM Data Lookup'!C27*100, "NA") -> NA | M32: =IFERROR('CEM Data Lookup'!E27*100,"NA") -> NA | P32: ='CEM Data Lookup'!D27*100 -> 6 | S32: 8 | V32: 1.61 | Y32: 9.61
A33: =Input!C26 -> JKHY | B33: =VLOOKUP($A33,'CEM Data Lookup'!$A$4:$Q$51,2,FALSE) -> Henry (Jack) & Assoc | D33: =HLOOKUP(A33,'CEM PricesDivs'!$B$2:$AW$70,68,FALSE) -> 1.18 | G33: ='CEM Data Lookup'!F28*100 -> 9 | J33: =IFERROR('CEM Data Lookup'!C28*100, "NA") -> 10.9 | M33: =IFERROR('CEM Data Lookup'!E28*100,"NA") -> 12.467 | P33: ='CEM Data Lookup'!D28*100 -> 10.64 | S33: 10.75 | V33: 1.24 | Y33: 11.99
A34: =Input!C27 -> MANT | B34: =VLOOKUP($A34,'CEM Data Lookup'!$A$4:$Q$51,2,FALSE) -> ManTech Int'l 'A' | D34: =HLOOKUP(A34,'CEM PricesDivs'!$B$2:$AW$70,68,FALSE) -> 1.79 | G34: ='CEM Data Lookup'!F29*100 -> 9 | J34: =IFERROR('CEM Data Lookup'!C29*100, "NA") -> 5.1 | M34: =IFERROR('CEM Data Lookup'!E29*100,"NA") -> 5.53 | P34: ='CEM Data Lookup'!D29*100 -> 3.87 | S34: 5.88 | V34: 1.84 | Y34: 7.72
A35: =Input!C28 -> MKC | B35: =VLOOKUP($A35,'CEM Data Lookup'!$A$4:$Q$51,2,FALSE) -> McCormick & Co. | D35: =HLOOKUP(A35,'CEM PricesDivs'!$B$2:$AW$70,68,FALSE) -> 1.53 | G35: ='CEM Data Lookup'!F30*100 -> 5.5 | J35: =IFERROR('CEM Data Lookup'!C30*100, "NA") -> 6.7 | M35: =IFERROR('CEM Data Lookup'!E30*100,"NA") -> 5.87 | P35: ='CEM Data Lookup'!D30*100 -> 6 | S35: 6.02 | V35: 1.58 | Y35: 7.6
A36: =Input!C29 -> MO | B36: =VLOOKUP($A36,'CEM Data Lookup'!$A$4:$Q$51,2,FALSE) -> Altria Group | D36: =HLOOKUP(A36,'CEM PricesDivs'!$B$2:$AW$70,68,FALSE) -> 6.94 | G36: ='CEM Data Lookup'!F31*100 -> 6 | J36: =IFERROR('CEM Data Lookup'!C31*100, "NA") -> 4 | M36: =IFERROR('CEM Data Lookup'!E31*100,"NA") -> 4.35 | P36: ='CEM Data Lookup'!D31*100 -> 4.35 | S36: 4.68 | V36: 7.1 | Y36: 11.78
A37: =Input!C30 -> MSA | B37: =VLOOKUP($A37,'CEM Data Lookup'!$A$4:$Q$51,2,FALSE) -> MSA Safety | D37: =HLOOKUP(A37,'CEM PricesDivs'!$B$2:$AW$70,68,FALSE) -> 1.1 | G37: ='CEM Data Lookup'!F32*100 -> 6.5 | J37: =IFERROR('CEM Data Lookup'!C32*100, "NA") -> NA | M37: =IFERROR('CEM Data Lookup'!E32*100,"NA") -> 9 | P37: ='CEM Data Lookup'!D32*100 -> 18 | S37: 11.17 | V37: 1.16 | Y37: 12.33
A38: =Input!C31 -> MSCI | B38: =VLOOKUP($A38,'CEM Data Lookup'!$A$4:$Q$51,2,FALSE) -> MSCI Inc. | D38: =HLOOKUP(A38,'CEM PricesDivs'!$B$2:$AW$70,68,FALSE) -> 0.69 | G38: ='CEM Data Lookup'!F33*100 -> 16 | J38: =IFERROR('CEM Data Lookup'!C33*100, "NA") -> NA | M38: =IFERROR('CEM Data Lookup'!E33*100,"NA") -> 15 | P38: ='CEM Data Lookup'!D33*100 -> 15.31 | S38: 15.44 | V38: 0.74 | Y38: 16.18
A39: =Input!C32 -> MSI | B39: =VLOOKUP($A39,'CEM Data Lookup'!$A$4:$Q$51,2,FALSE) -> Motorola Solutions | D39: =HLOOKUP(A39,'CEM PricesDivs'!$B$2:$AW$70,68,FALSE) -> 1.49 | G39: ='CEM Data Lookup'!F34*100 -> 7 | J39: =IFERROR('CEM Data Lookup'!C34*100, "NA") -> 9 | M39: =IFERROR('CEM Data Lookup'!E34*100,"NA") -> 12.2 | P39: ='CEM Data Lookup'!D34*100 -> 7.37 | S39: 8.89 | V39: 1.56 | Y39: 10.45
A40: =Input!C33 -> MTN | B40: =VLOOKUP($A40,'CEM Data Lookup'!$A$4:$Q$51,2,FALSE) -> Vail Resorts | D40: =HLOOKUP(A40,'CEM PricesDivs'!$B$2:$AW$70,68,FALSE) -> 0 | G40: ='CEM Data Lookup'!F35*100 -> 9.5 | J40: =IFERROR('CEM Data Lookup'!C35*100, "NA") -> NA | M40: =IFERROR('CEM Data Lookup'!E35*100,"NA") -> 87.08 | P40: ='CEM Data Lookup'!D35*100 -> 72.95 | S40: 56.51 | V40: 0 | Y40: NA
A41: =Input!C34 -> MXIM | B41: =VLOOKUP($A41,'CEM Data Lookup'!$A$4:$Q$51,2,FALSE) -> Maxim Integrated | D41: =HLOOKUP(A41,'CEM PricesDivs'!$B$2:$AW$70,68,FALSE) -> 0 | G41: ='CEM Data Lookup'!F36*100 -> 8 | J41: =IFERROR('CEM Data Lookup'!C36*100, "NA") -> 10 | M41: =IFERROR('CEM Data Lookup'!E36*100,"NA") -> 11.95 | P41: ='CEM Data Lookup'!D36*100 -> 21.91 | S41: 12.97 | V41: 0 | Y41: NA
A42: =Input!C35 -> NOC | B42: =VLOOKUP($A42,'CEM Data Lookup'!$A$4:$Q$51,2,FALSE) -> Northrop Grumman | D42: =HLOOKUP(A42,'CEM PricesDivs'!$B$2:$AW$70,68,FALSE) -> 1.84 | G42: ='CEM Data Lookup'!F37*100 -> 7 | J42: =IFERROR('CEM Data Lookup'!C37*100, "NA") -> NA | M42: =IFERROR('CEM Data Lookup'!E37*100,"NA") -> 5.673 | P42: ='CEM Data Lookup'!D37*100 -> 5.77 | S42: 6.15 | V42: 1.9 | Y42: 8.05
A43: =Input!C36 -> ODFL | B43: =VLOOKUP($A43,'CEM Data Lookup'!$A$4:$Q$51,2,FALSE) -> Old Dominion Freight | D43: =HLOOKUP(A43,'CEM PricesDivs'!$B$2:$AW$70,68,FALSE) -> 0.32 | G43: ='CEM Data Lookup'!F38*100 -> 9 | J43: =IFERROR('CEM Data Lookup'!C38*100, "NA") -> 17.2 | M43: =IFERROR('CEM Data Lookup'!E38*100,"NA") -> 18.98 | P43: ='CEM Data Lookup'!D38*100 -> 18.93 | S43: 16.03 | V43: 0.35 | Y43: 16.38
A44: =Input!C37 -> PKI | B44: =VLOOKUP($A44,'CEM Data Lookup'!$A$4:$Q$51,2,FALSE) -> PerkinElmer Inc. | D44: =HLOOKUP(A44,'CEM PricesDivs'!$B$2:$AW$70,68,FALSE) -> 0.21 | G44: ='CEM Data Lookup'!F39*100 -> 11 | J44: =IFERROR('CEM Data Lookup'!C39*100, "NA") -> 37.9 | M44: =IFERROR('CEM Data Lookup'!E39*100,"NA") -> 5.658 | P44: ='CEM Data Lookup'!D39*100 -> 37.9 | S44: 23.11 | V44: 0.23 | Y44: 23.34
A45: =Input!C38 -> PM | B45: =VLOOKUP($A45,'CEM Data Lookup'!$A$4:$Q$51,2,FALSE) -> Philip Morris Int'l | D45: =HLOOKUP(A45,'CEM PricesDivs'!$B$2:$AW$70,68,FALSE) -> 5.19 | G45: ='CEM Data Lookup'!F40*100 -> 6.5 | J45: =IFERROR('CEM Data Lookup'!C40*100, "NA") -> 8.7 | M45: =IFERROR('CEM Data Lookup'!E40*100,"NA") -> 10.745 | P45: ='CEM Data Lookup'!D40*100 -> 12.75 | S45: 9.67 | V45: 5.44 | Y45: 15.11
A46: =Input!C39 -> POOL | B46: =VLOOKUP($A46,'CEM Data Lookup'!$A$4:$Q$51,2,FALSE) -> Pool Corp. | D46: =HLOOKUP(A46,'CEM PricesDivs'!$B$2:$AW$70,68,FALSE) -> 0.83 | G46: ='CEM Data Lookup'!F41*100 -> 15 | J46: =IFERROR('CEM Data Lookup'!C41*100, "NA") -> NA | M46: =IFERROR('CEM Data Lookup'!E41*100,"NA") -> NA | P46: ='CEM Data Lookup'!D41*100 -> 17 | S46: 16 | V46: 0.9 | Y46: 16.9
A47: =Input!C40 -> POST | B47: =VLOOKUP($A47,'CEM Data Lookup'!$A$4:$Q$51,2,FALSE) -> Post Holdings | D47: =HLOOKUP(A47,'CEM PricesDivs'!$B$2:$AW$70,68,FALSE) -> 0 | G47: ='CEM Data Lookup'!F42*100 -> 11 | J47: =IFERROR('CEM Data Lookup'!C42*100, "NA") -> NA | M47: =IFERROR('CEM Data Lookup'!E42*100,"NA") -> 20.3 | P47: ='CEM Data Lookup'!D42*100 -> 31.2 | S47: 20.83 | V47: 0 | Y47: NA
A48: =Input!C41 -> RLI | B48: =VLOOKUP($A48,'CEM Data Lookup'!$A$4:$Q$51,2,FALSE) -> RLI Corp. | D48: =HLOOKUP(A48,'CEM PricesDivs'!$B$2:$AW$70,68,FALSE) -> 0.89 | G48: ='CEM Data Lookup'!F43*100 -> 12.5 | J48: =IFERROR('CEM Data Lookup'!C43*100, "NA") -> NA | M48: =IFERROR('CEM Data Lookup'!E43*100,"NA") -> NA | P48: ='CEM Data Lookup'!D43*100 -> 9.8 | S48: 11.15 | V48: 0.94 | Y48: 12.09
A49: =Input!C42 -> ROL | B49: =VLOOKUP($A49,'CEM Data Lookup'!$A$4:$Q$51,2,FALSE) -> Rollins, Inc. | D49: =HLOOKUP(A49,'CEM PricesDivs'!$B$2:$AW$70,68,FALSE) -> 0.91 | G49: ='CEM Data Lookup'!F44*100 -> 11.5 | J49: =IFERROR('CEM Data Lookup'!C44*100, "NA") -> NA | M49: =IFERROR('CEM Data Lookup'!E44*100,"NA") -> NA | P49: ='CEM Data Lookup'!D44*100 -> 8.2 | S49: 9.85 | V49: 0.95 | Y49: 10.8
A50: =Input!C43 -> SIGI | B50: =VLOOKUP($A50,'CEM Data Lookup'!$A$4:$Q$51,2,FALSE) -> Selective Ins. Group | D50: =HLOOKUP(A50,'CEM PricesDivs'!$B$2:$AW$70,68,FALSE) -> 1.33 | G50: ='CEM Data Lookup'!F45*100 -> 8.5 | J50: =IFERROR('CEM Data Lookup'!C45*100, "NA") -> 9.5 | M50: =IFERROR('CEM Data Lookup'!E45*100,"NA") -> 9.51 | P50: ='CEM Data Lookup'!D45*100 -> 5.1 | S50: 8.15 | V50: 1.38 | Y50: 9.53
A51: =Input!C44 -> SIRI | B51: =VLOOKUP($A51,'CEM Data Lookup'!$A$4:$Q$51,2,FALSE) -> Sirius XM Holdings | D51: =HLOOKUP(A51,'CEM PricesDivs'!$B$2:$AW$70,68,FALSE) -> 0.96 | G51: ='CEM Data Lookup'!F46*100 -> 35.5 | J51: =IFERROR('CEM Data Lookup'!C46*100, "NA") -> 12.7 | M51: =IFERROR('CEM Data Lookup'!E46*100,"NA") -> 40.32 | P51: ='CEM Data Lookup'!D46*100 -> 10.1 | S51: 24.66 | V51: 1.08 | Y51: 25.74
A52: =Input!C45 -> TECH | B52: =VLOOKUP($A52,'CEM Data Lookup'!$A$4:$Q$51,2,FALSE) -> Bio-Techne Corp. | D52: =HLOOKUP(A52,'CEM PricesDivs'!$B$2:$AW$70,68,FALSE) -> 0.32 | G52: ='CEM Data Lookup'!F47*100 -> 12.5 | J52: =IFERROR('CEM Data Lookup'!C47*100, "NA") -> 14 | M52: =IFERROR('CEM Data Lookup'!E47*100,"NA") -> 19.025 | P52: ='CEM Data Lookup'!D47*100 -> 15 | S52: 15.13 | V52: 0.34 | Y52: 15.47
A53: =Input!C46 -> TTEK | B53: =VLOOKUP($A53,'CEM Data Lookup'!$A$4:$Q$51,2,FALSE) -> Tetra Tech | D53: =HLOOKUP(A53,'CEM PricesDivs'!$B$2:$AW$70,68,FALSE) -> 0.62 | G53: ='CEM Data Lookup'!F48*100 -> 13.5 | J53: =IFERROR('CEM Data Lookup'!C48*100, "NA") -> 15 | M53: =IFERROR('CEM Data Lookup'!E48*100,"NA") -> 13.85 | P53: ='CEM Data Lookup'!D48*100 -> 15 | S53: 14.34 | V53: 0.66 | Y53: 15
A54: =Input!C47 -> WAT | B54: =VLOOKUP($A54,'CEM Data Lookup'!$A$4:$Q$51,2,FALSE) -> Waters Corp. | D54: =HLOOKUP(A54,'CEM PricesDivs'!$B$2:$AW$70,68,FALSE) -> 0 | G54: ='CEM Data Lookup'!F49*100 -> 6 | J54: =IFERROR('CEM Data Lookup'!C49*100, "NA") -> 7.1 | M54: =IFERROR('CEM Data Lookup'!E49*100,"NA") -> 8.187 | P54: ='CEM Data Lookup'!D49*100 -> 7.77 | S54: 7.26 | V54: 0 | Y54: NA
A55: =Input!C48 -> WST | B55: =VLOOKUP($A55,'CEM Data Lookup'!$A$4:$Q$51,2,FALSE) -> West Pharmac. Svcs. | D55: =HLOOKUP(A55,'CEM PricesDivs'!$B$2:$AW$70,68,FALSE) -> 0.22 | G55: ='CEM Data Lookup'!F50*100 -> 17 | J55: =IFERROR('CEM Data Lookup'!C50*100, "NA") -> 25.8 | M55: =IFERROR('CEM Data Lookup'!E50*100,"NA") -> 18.545 | P55: ='CEM Data Lookup'!D50*100 -> 25.8 | S55: 21.79 | V55: 0.24 | Y55: 22.03
A56: =Input!C49 -> WU | B56: =VLOOKUP($A56,'CEM Data Lookup'!$A$4:$Q$51,2,FALSE) -> Western Union | D56: =HLOOKUP(A56,'CEM PricesDivs'!$B$2:$AW$70,68,FALSE) -> 3.74 | G56: ='CEM Data Lookup'!F51*100 -> 6 | J56: =IFERROR('CEM Data Lookup'!C51*100, "NA") -> NA | M56: =IFERROR('CEM Data Lookup'!E51*100,"NA") -> 4.567 | P56: ='CEM Data Lookup'!D51*100 -> 9.19 | S56: 6.59 | V56: 3.86 | Y56: 10.45
V58: Mean | Y58: =ROUND(AVERAGE(Y9:Y56),2) -> 13.33 | Z58: %
V60: Median | Y60: =ROUND(MEDIAN(Y9:Y56),2) -> 12.33 | Z60: %
V62: Average of Mean and Median | Y62: =ROUND(AVERAGE(Y58:Y60),2) -> 12.83 | Z62: %
C64: NA= Not Available
C66: (1) | D66: The application of the DCF model to the domestic, non-price regluated comparable risk companies is identical to the application of the DCF to the Utility Proxy Group. The dividend yield is derived by using the 60 day average price and the spot indicated dividend as of May 28, 2021. The dividend yield is then adjusted by 1/2 the average projected growth rate in EPS, which is calculated by averaging the 5 year projected growth in EPS provided by Value Line, www.zacks.com, Bloomberg Professional Services, and www.yahoo.com (excluding any negative growth rates) and then adding that growth rate to the adjusted dividend yield.
B68: Source of Information: | C68: Value Line Investment Survey
C69: =CONCATENATE("www.zacks.com Downloaded on ",TEXT(Input!E2,"mm/dd/yyyy")) -> www.zacks.com Downloaded on 05/28/2021
C70: =CONCATENATE("www.yahoo.com Downloaded on ",TEXT(Input!E2,"mm/dd/yyyy")) -> www.yahoo.com Downloaded on 05/28/2021
C71: Bloomberg Professional Services

Sheet 6.3 CEM RPM Summary
A1: =Input!G28 -> Atmos Energy Corporation
A2: Indicated Common Equity Cost Rate
A3: Through Use of a Risk Premium Model
A4: Using an Adjusted Total Market Approach
A6: Line No. | G6: ='6.2 CEM DCF'!B7 -> Proxy Group of Forty-Eight Non-Price Regulated Companies
A9: 1. | C9: Prospective Yield on Baa2 Rated
C10: Corporate Bonds (1) | G10: =$G$29 -> 4.46 | H10: %
A12: 2. | C12: Equity Risk Premium (2) | G12: ='6.5 CEM Beta Adjusted RP'!F28 -> 8.03
A14: 3. | C14: Risk Premium Derived Common
C15: Equity Cost Rate | G15: =SUM(G10:G12) -> 12.49 | H15: %
A18: Notes: | B18: (1) | C18: =CONCATENATE("Average forecast of Baa2 corporate bonds based upon the consensus of nearly 50 economists reported in Blue Chip Financial Forecasts dated ",TEXT(Input!I25,"[$-409]mmmm d, yyyy;@")," (see pages 10 and 11 of Schedule DWD-3). The estimates are detailed below.") -> Average forecast of Baa2 corporate bonds based upon the consensus of nearly 50 economists reported in Blue Chip Financial Forecasts dated June 1, 2021 (see pages 10 and 11 of Schedule DWD-3). The estimates are detailed below.
D20: ='MRP WP1'!B28 -> Second Quarter 2021 | G20: ='MRP WP1'!O28 -> 3.8 | H20: %
D21: ='MRP WP1'!B29 -> Third Quarter 2021 | G21: ='MRP WP1'!O29 -> 4
D22: ='MRP WP1'!B30 -> Fourth Quarter 2021 | G22: ='MRP WP1'!O30 -> 4.1
D23: ='MRP WP1'!B31 -> First Quarter 2022 | G23: ='MRP WP1'!O31 -> 4.2
D24: ='MRP WP1'!B32 -> Second Quarter 2022 | G24: ='MRP WP1'!O32 -> 4.2
D25: ='MRP WP1'!B33 -> Third Quarter 2022 | G25: ='MRP WP1'!O33 -> 4.3
D26: ='MRP WP1'!B34 -> 2023-2027 | G26: ='MRP WP1'!O34 -> 5.3
D27: ='MRP WP1'!B35 -> 2028-2032 | G27: ='MRP WP1'!O35 -> 5.8
D29: Average | G29: =ROUND(AVERAGE(G20:G27),2) -> 4.46 | H29: %
B31: (2) | C31: From page 5 of this Schedule.

Sheet 6.4 CEM RPM Bond Ratings
B1: =Input!G28 -> Atmos Energy Corporation
B2: Comparison of Long-Term Issuer Ratings for the
B3: =CONCATENATE('6.3 CEM RPM Summary'!G6," of Comparable risk to the") -> Proxy Group of Forty-Eight Non-Price Regulated Companies of Comparable risk to the
B4: ='6.2 CEM DCF'!B3 -> Proxy Group of Seven Natural Gas Distribution Companies
D7: Moody's | H7: Standard & Poor's
D8: Long-Term Issuer Rating | H8: =D8 -> Long-Term Issuer Rating
D9: =TEXT(Input!E2, "mmmm yyyy") -> May 2021 | H9: =D9 -> May 2021
B11: ='6.3 CEM RPM Summary'!G6 -> Proxy Group of Forty-Eight Non-Price Regulated Companies | D11: Long-Term Issuer Rating | F11: Numerical Weighting (1) | H11: =D11 -> Long-Term Issuer Rating | J11: Numerical Weighting (1)
A13: =Input!C2 -> AAPL | B13: =VLOOKUP($A13,'CEM Data Lookup'!$A:$Q,2,FALSE) -> Apple Inc. | D13: ='CEM Data Lookup'!K4 -> Aa1 | F13: =IFERROR(VLOOKUP('6.4 CEM RPM Bond Ratings'!D13,'3.6 MOODY_S&P numbericl'!B:D,3,FALSE),"--") -> 2 | H13: ='CEM Data Lookup'!L4 -> AA+ | J13: =IFERROR(VLOOKUP(H13,'3.6 MOODY_S&P numbericl'!F:H,3,FALSE),"--") -> 2
A14: =Input!C3 -> ABT | B14: =VLOOKUP($A14,'CEM Data Lookup'!$A:$Q,2,FALSE) -> Abbott Labs. | D14: ='CEM Data Lookup'!K5 -> A2 | F14: =IFERROR(VLOOKUP('6.4 CEM RPM Bond Ratings'!D14,'3.6 MOODY_S&P numbericl'!B:D,3,FALSE),"--") -> 6 | H14: ='CEM Data Lookup'!L5 -> A+ | J14: =IFERROR(VLOOKUP(H14,'3.6 MOODY_S&P numbericl'!F:H,3,FALSE),"--") -> 5
A15: =Input!C4 -> AIZ | B15: =VLOOKUP($A15,'CEM Data Lookup'!$A:$Q,2,FALSE) -> Assurant Inc. | D15: ='CEM Data Lookup'!K6 -> Baa3 | F15: =IFERROR(VLOOKUP('6.4 CEM RPM Bond Ratings'!D15,'3.6 MOODY_S&P numbericl'!B:D,3,FALSE),"--") -> 10 | H15: ='CEM Data Lookup'!L6 -> BBB | J15: =IFERROR(VLOOKUP(H15,'3.6 MOODY_S&P numbericl'!F:H,3,FALSE),"--") -> 9
A16: =Input!C5 -> ANSS | B16: =VLOOKUP($A16,'CEM Data Lookup'!$A:$Q,2,FALSE) -> ANSYS, Inc. | D16: ='CEM Data Lookup'!K7 -> NA | F16: =IFERROR(VLOOKUP('6.4 CEM RPM Bond Ratings'!D16,'3.6 MOODY_S&P numbericl'!B:D,3,FALSE),"--") -> -- | H16: ='CEM Data Lookup'!L7 -> NA | J16: =IFERROR(VLOOKUP(H16,'3.6 MOODY_S&P numbericl'!F:H,3,FALSE),"--") -> --
A17: =Input!C6 -> BAH | B17: =VLOOKUP($A17,'CEM Data Lookup'!$A:$Q,2,FALSE) -> Booz Allen Hamilton | D17: ='CEM Data Lookup'!K8 -> NA | F17: =IFERROR(VLOOKUP('6.4 CEM RPM Bond Ratings'!D17,'3.6 MOODY_S&P numbericl'!B:D,3,FALSE),"--") -> -- | H17: ='CEM Data Lookup'!L8 -> NA | J17: =IFERROR(VLOOKUP(H17,'3.6 MOODY_S&P numbericl'!F:H,3,FALSE),"--") -> --
A18: =Input!C7 -> BDX | B18: =VLOOKUP($A18,'CEM Data Lookup'!$A:$Q,2,FALSE) -> Becton, Dickinson | D18: ='CEM Data Lookup'!K9 -> Baa3 | F18: =IFERROR(VLOOKUP('6.4 CEM RPM Bond Ratings'!D18,'3.6 MOODY_S&P numbericl'!B:D,3,FALSE),"--") -> 10 | H18: ='CEM Data Lookup'!L9 -> BBB | J18: =IFERROR(VLOOKUP(H18,'3.6 MOODY_S&P numbericl'!F:H,3,FALSE),"--") -> 9
A19: =Input!C8 -> BFB | B19: =VLOOKUP($A19,'CEM Data Lookup'!$A:$Q,2,FALSE) -> Brown-Forman 'B' | D19: ='CEM Data Lookup'!K10 -> A1 | F19: =IFERROR(VLOOKUP('6.4 CEM RPM Bond Ratings'!D19,'3.6 MOODY_S&P numbericl'!B:D,3,FALSE),"--") -> 5 | H19: ='CEM Data Lookup'!L10 -> A- | J19: =IFERROR(VLOOKUP(H19,'3.6 MOODY_S&P numbericl'!F:H,3,FALSE),"--") -> 7
A20: =Input!C9 -> BR | B20: =VLOOKUP($A20,'CEM Data Lookup'!$A:$Q,2,FALSE) -> Broadridge Fin'l | D20: ='CEM Data Lookup'!K11 -> Baa1 | F20: =IFERROR(VLOOKUP('6.4 CEM RPM Bond Ratings'!D20,'3.6 MOODY_S&P numbericl'!B:D,3,FALSE),"--") -> 8 | H20: ='CEM Data Lookup'!L11 -> BBB+ | J20: =IFERROR(VLOOKUP(H20,'3.6 MOODY_S&P numbericl'!F:H,3,FALSE),"--") -> 8
A21: =Input!C10 -> BRC | B21: =VLOOKUP($A21,'CEM Data Lookup'!$A:$Q,2,FALSE) -> Brady Corp. | D21: ='CEM Data Lookup'!K12 -> NA | F21: =IFERROR(VLOOKUP('6.4 CEM RPM Bond Ratings'!D21,'3.6 MOODY_S&P numbericl'!B:D,3,FALSE),"--") -> -- | H21: ='CEM Data Lookup'!L12 -> NA | J21: =IFERROR(VLOOKUP(H21,'3.6 MOODY_S&P numbericl'!F:H,3,FALSE),"--") -> --
A22: =Input!C11 -> CACI | B22: =VLOOKUP($A22,'CEM Data Lookup'!$A:$Q,2,FALSE) -> CACI Int'l | D22: ='CEM Data Lookup'!K13 -> NA | F22: =IFERROR(VLOOKUP('6.4 CEM RPM Bond Ratings'!D22,'3.6 MOODY_S&P numbericl'!B:D,3,FALSE),"--") -> -- | H22: ='CEM Data Lookup'!L13 -> BB+ | J22: =IFERROR(VLOOKUP(H22,'3.6 MOODY_S&P numbericl'!F:H,3,FALSE),"--") -> 11
A23: =Input!C12 -> CASY | B23: =VLOOKUP($A23,'CEM Data Lookup'!$A:$Q,2,FALSE) -> Casey's Gen'l Stores | D23: ='CEM Data Lookup'!K14 -> NA | F23: =IFERROR(VLOOKUP('6.4 CEM RPM Bond Ratings'!D23,'3.6 MOODY_S&P numbericl'!B:D,3,FALSE),"--") -> -- | H23: ='CEM Data Lookup'!L14 -> NA | J23: =IFERROR(VLOOKUP(H23,'3.6 MOODY_S&P numbericl'!F:H,3,FALSE),"--") -> --
A24: =Input!C13 -> CDNS | B24: =VLOOKUP($A24,'CEM Data Lookup'!$A:$Q,2,FALSE) -> Cadence Design Sys. | D24: ='CEM Data Lookup'!K15 -> Baa2 | F24: =IFERROR(VLOOKUP('6.4 CEM RPM Bond Ratings'!D24,'3.6 MOODY_S&P numbericl'!B:D,3,FALSE),"--") -> 9 | H24: ='CEM Data Lookup'!L15 -> BBB+ | J24: =IFERROR(VLOOKUP(H24,'3.6 MOODY_S&P numbericl'!F:H,3,FALSE),"--") -> 8
A25: =Input!C14 -> CERN | B25: =VLOOKUP($A25,'CEM Data Lookup'!$A:$Q,2,FALSE) -> Cerner Corp. | D25: ='CEM Data Lookup'!K16 -> NA | F25: =IFERROR(VLOOKUP('6.4 CEM RPM Bond Ratings'!D25,'3.6 MOODY_S&P numbericl'!B:D,3,FALSE),"--") -> -- | H25: ='CEM Data Lookup'!L16 -> NA | J25: =IFERROR(VLOOKUP(H25,'3.6 MOODY_S&P numbericl'!F:H,3,FALSE),"--") -> --
A26: =Input!C15 -> CSWI | B26: =VLOOKUP($A26,'CEM Data Lookup'!$A:$Q,2,FALSE) -> CSW Industrials | D26: ='CEM Data Lookup'!K17 -> NA | F26: =IFERROR(VLOOKUP('6.4 CEM RPM Bond Ratings'!D26,'3.6 MOODY_S&P numbericl'!B:D,3,FALSE),"--") -> -- | H26: ='CEM Data Lookup'!L17 -> NA | J26: =IFERROR(VLOOKUP(H26,'3.6 MOODY_S&P numbericl'!F:H,3,FALSE),"--") -> --
A27: =Input!C16 -> DGX | B27: =VLOOKUP($A27,'CEM Data Lookup'!$A:$Q,2,FALSE) -> Quest Diagnostics | D27: ='CEM Data Lookup'!K18 -> Baa2 | F27: =IFERROR(VLOOKUP('6.4 CEM RPM Bond Ratings'!D27,'3.6 MOODY_S&P numbericl'!B:D,3,FALSE),"--") -> 9 | H27: ='CEM Data Lookup'!L18 -> BBB+ | J27: =IFERROR(VLOOKUP(H27,'3.6 MOODY_S&P numbericl'!F:H,3,FALSE),"--") -> 8
A28: =Input!C17 -> EL | B28: =VLOOKUP($A28,'CEM Data Lookup'!$A:$Q,2,FALSE) -> Lauder (Estee) | D28: ='CEM Data Lookup'!K19 -> A1 | F28: =IFERROR(VLOOKUP('6.4 CEM RPM Bond Ratings'!D28,'3.6 MOODY_S&P numbericl'!B:D,3,FALSE),"--") -> 5 | H28: ='CEM Data Lookup'!L19 -> A+ | J28: =IFERROR(VLOOKUP(H28,'3.6 MOODY_S&P numbericl'!F:H,3,FALSE),"--") -> 5
A29: =Input!C18 -> EXPO | B29: =VLOOKUP($A29,'CEM Data Lookup'!$A:$Q,2,FALSE) -> Exponent, Inc. | D29: ='CEM Data Lookup'!K20 -> NA | F29: =IFERROR(VLOOKUP('6.4 CEM RPM Bond Ratings'!D29,'3.6 MOODY_S&P numbericl'!B:D,3,FALSE),"--") -> -- | H29: ='CEM Data Lookup'!L20 -> NA | J29: =IFERROR(VLOOKUP(H29,'3.6 MOODY_S&P numbericl'!F:H,3,FALSE),"--") -> --
A30: =Input!C19 -> FAST | B30: =VLOOKUP($A30,'CEM Data Lookup'!$A:$Q,2,FALSE) -> Fastenal Co. | D30: ='CEM Data Lookup'!K21 -> NA | F30: =IFERROR(VLOOKUP('6.4 CEM RPM Bond Ratings'!D30,'3.6 MOODY_S&P numbericl'!B:D,3,FALSE),"--") -> -- | H30: ='CEM Data Lookup'!L21 -> NA | J30: =IFERROR(VLOOKUP(H30,'3.6 MOODY_S&P numbericl'!F:H,3,FALSE),"--") -> --
A31: =Input!C20 -> GNTX | B31: =VLOOKUP($A31,'CEM Data Lookup'!$A:$Q,2,FALSE) -> Gentex Corp. | D31: ='CEM Data Lookup'!K22 -> NA | F31: =IFERROR(VLOOKUP('6.4 CEM RPM Bond Ratings'!D31,'3.6 MOODY_S&P numbericl'!B:D,3,FALSE),"--") -> -- | H31: ='CEM Data Lookup'!L22 -> NA | J31: =IFERROR(VLOOKUP(H31,'3.6 MOODY_S&P numbericl'!F:H,3,FALSE),"--") -> --
A32: =Input!C21 -> IFF | B32: =VLOOKUP($A32,'CEM Data Lookup'!$A:$Q,2,FALSE) -> Int'l Flavors & Frag | D32: ='CEM Data Lookup'!K23 -> Baa3 | F32: =IFERROR(VLOOKUP('6.4 CEM RPM Bond Ratings'!D32,'3.6 MOODY_S&P numbericl'!B:D,3,FALSE),"--") -> 10 | H32: ='CEM Data Lookup'!L23 -> BBB | J32: =IFERROR(VLOOKUP(H32,'3.6 MOODY_S&P numbericl'!F:H,3,FALSE),"--") -> 9
A33: =Input!C22 -> INGR | B33: =VLOOKUP($A33,'CEM Data Lookup'!$A:$Q,2,FALSE) -> Ingredion Inc. | D33: ='CEM Data Lookup'!K24 -> Baa1 | F33: =IFERROR(VLOOKUP('6.4 CEM RPM Bond Ratings'!D33,'3.6 MOODY_S&P numbericl'!B:D,3,FALSE),"--") -> 8 | H33: ='CEM Data Lookup'!L24 -> BBB | J33: =IFERROR(VLOOKUP(H33,'3.6 MOODY_S&P numbericl'!F:H,3,FALSE),"--") -> 9
A34: =Input!C23 -> IRM | B34: =VLOOKUP($A34,'CEM Data Lookup'!$A:$Q,2,FALSE) -> Iron Mountain | D34: ='CEM Data Lookup'!K25 -> Ba3 | F34: =IFERROR(VLOOKUP('6.4 CEM RPM Bond Ratings'!D34,'3.6 MOODY_S&P numbericl'!B:D,3,FALSE),"--") -> 13 | H34: ='CEM Data Lookup'!L25 -> BB- | J34: =IFERROR(VLOOKUP(H34,'3.6 MOODY_S&P numbericl'!F:H,3,FALSE),"--") -> 13
A35: =Input!C24 -> JBHT | B35: =VLOOKUP($A35,'CEM Data Lookup'!$A:$Q,2,FALSE) -> Hunt (J.B.) | D35: ='CEM Data Lookup'!K26 -> Baa1 | F35: =IFERROR(VLOOKUP('6.4 CEM RPM Bond Ratings'!D35,'3.6 MOODY_S&P numbericl'!B:D,3,FALSE),"--") -> 8 | H35: ='CEM Data Lookup'!L26 -> BBB+ | J35: =IFERROR(VLOOKUP(H35,'3.6 MOODY_S&P numbericl'!F:H,3,FALSE),"--") -> 8
A36: =Input!C25 -> JJSF | B36: =VLOOKUP($A36,'CEM Data Lookup'!$A:$Q,2,FALSE) -> J&J Snack Foods | D36: ='CEM Data Lookup'!K27 -> NA | F36: =IFERROR(VLOOKUP('6.4 CEM RPM Bond Ratings'!D36,'3.6 MOODY_S&P numbericl'!B:D,3,FALSE),"--") -> -- | H36: ='CEM Data Lookup'!L27 -> NA | J36: =IFERROR(VLOOKUP(H36,'3.6 MOODY_S&P numbericl'!F:H,3,FALSE),"--") -> --
A37: =Input!C26 -> JKHY | B37: =VLOOKUP($A37,'CEM Data Lookup'!$A:$Q,2,FALSE) -> Henry (Jack) & Assoc | D37: ='CEM Data Lookup'!K28 -> NA | F37: =IFERROR(VLOOKUP('6.4 CEM RPM Bond Ratings'!D37,'3.6 MOODY_S&P numbericl'!B:D,3,FALSE),"--") -> -- | H37: ='CEM Data Lookup'!L28 -> NA | J37: =IFERROR(VLOOKUP(H37,'3.6 MOODY_S&P numbericl'!F:H,3,FALSE),"--") -> --
A38: =Input!C27 -> MANT | B38: =VLOOKUP($A38,'CEM Data Lookup'!$A:$Q,2,FALSE) -> ManTech Int'l 'A' | D38: ='CEM Data Lookup'!K29 -> WR | F38: =IFERROR(VLOOKUP('6.4 CEM RPM Bond Ratings'!D38,'3.6 MOODY_S&P numbericl'!B:D,3,FALSE),"--") -> -- | H38: ='CEM Data Lookup'!L29 -> BB+ | J38: =IFERROR(VLOOKUP(H38,'3.6 MOODY_S&P numbericl'!F:H,3,FALSE),"--") -> 11
A39: =Input!C28 -> MKC | B39: =VLOOKUP($A39,'CEM Data Lookup'!$A:$Q,2,FALSE) -> McCormick & Co. | D39: ='CEM Data Lookup'!K30 -> Baa2 | F39: =IFERROR(VLOOKUP('6.4 CEM RPM Bond Ratings'!D39,'3.6 MOODY_S&P numbericl'!B:D,3,FALSE),"--") -> 9 | H39: ='CEM Data Lookup'!L30 -> BBB | J39: =IFERROR(VLOOKUP(H39,'3.6 MOODY_S&P numbericl'!F:H,3,FALSE),"--") -> 9
A40: =Input!C29 -> MO | B40: =VLOOKUP($A40,'CEM Data Lookup'!$A:$Q,2,FALSE) -> Altria Group | D40: ='CEM Data Lookup'!K31 -> A3 | F40: =IFERROR(VLOOKUP('6.4 CEM RPM Bond Ratings'!D40,'3.6 MOODY_S&P numbericl'!B:D,3,FALSE),"--") -> 7 | H40: ='CEM Data Lookup'!L31 -> BBB | J40: =IFERROR(VLOOKUP(H40,'3.6 MOODY_S&P numbericl'!F:H,3,FALSE),"--") -> 9
A41: =Input!C30 -> MSA | B41: =VLOOKUP($A41,'CEM Data Lookup'!$A:$Q,2,FALSE) -> MSA Safety | D41: ='CEM Data Lookup'!K32 -> NA | F41: =IFERROR(VLOOKUP('6.4 CEM RPM Bond Ratings'!D41,'3.6 MOODY_S&P numbericl'!B:D,3,FALSE),"--") -> -- | H41: ='CEM Data Lookup'!L32 -> NA | J41: =IFERROR(VLOOKUP(H41,'3.6 MOODY_S&P numbericl'!F:H,3,FALSE),"--") -> --
A42: =Input!C31 -> MSCI | B42: =VLOOKUP($A42,'CEM Data Lookup'!$A:$Q,2,FALSE) -> MSCI Inc. | D42: ='CEM Data Lookup'!K33 -> Ba1 | F42: =IFERROR(VLOOKUP('6.4 CEM RPM Bond Ratings'!D42,'3.6 MOODY_S&P numbericl'!B:D,3,FALSE),"--") -> 11 | H42: ='CEM Data Lookup'!L33 -> BB+ | J42: =IFERROR(VLOOKUP(H42,'3.6 MOODY_S&P numbericl'!F:H,3,FALSE),"--") -> 11
A43: =Input!C32 -> MSI | B43: =VLOOKUP($A43,'CEM Data Lookup'!$A:$Q,2,FALSE) -> Motorola Solutions | D43: ='CEM Data Lookup'!K34 -> Baa3 | F43: =IFERROR(VLOOKUP('6.4 CEM RPM Bond Ratings'!D43,'3.6 MOODY_S&P numbericl'!B:D,3,FALSE),"--") -> 10 | H43: ='CEM Data Lookup'!L34 -> BBB- | J43: =IFERROR(VLOOKUP(H43,'3.6 MOODY_S&P numbericl'!F:H,3,FALSE),"--") -> 10
A44: =Input!C33 -> MTN | B44: =VLOOKUP($A44,'CEM Data Lookup'!$A:$Q,2,FALSE) -> Vail Resorts | D44: ='CEM Data Lookup'!K35 -> B2 | F44: =IFERROR(VLOOKUP('6.4 CEM RPM Bond Ratings'!D44,'3.6 MOODY_S&P numbericl'!B:D,3,FALSE),"--") -> 15 | H44: ='CEM Data Lookup'!L35 -> BB | J44: =IFERROR(VLOOKUP(H44,'3.6 MOODY_S&P numbericl'!F:H,3,FALSE),"--") -> 12
A45: =Input!C34 -> MXIM | B45: =VLOOKUP($A45,'CEM Data Lookup'!$A:$Q,2,FALSE) -> Maxim Integrated | D45: ='CEM Data Lookup'!K36 -> Baa1 | F45: =IFERROR(VLOOKUP('6.4 CEM RPM Bond Ratings'!D45,'3.6 MOODY_S&P numbericl'!B:D,3,FALSE),"--") -> 8 | H45: ='CEM Data Lookup'!L36 -> BBB+ | J45: =IFERROR(VLOOKUP(H45,'3.6 MOODY_S&P numbericl'!F:H,3,FALSE),"--") -> 8
A46: =Input!C35 -> NOC | B46: =VLOOKUP($A46,'CEM Data Lookup'!$A:$Q,2,FALSE) -> Northrop Grumman | D46: ='CEM Data Lookup'!K37 -> Baa2 | F46: =IFERROR(VLOOKUP('6.4 CEM RPM Bond Ratings'!D46,'3.6 MOODY_S&P numbericl'!B:D,3,FALSE),"--") -> 9 | H46: ='CEM Data Lookup'!L37 -> BBB+ | J46: =IFERROR(VLOOKUP(H46,'3.6 MOODY_S&P numbericl'!F:H,3,FALSE),"--") -> 8
A47: =Input!C36 -> ODFL | B47: =VLOOKUP($A47,'CEM Data Lookup'!$A:$Q,2,FALSE) -> Old Dominion Freight | D47: ='CEM Data Lookup'!K38 -> NA | F47: =IFERROR(VLOOKUP('6.4 CEM RPM Bond Ratings'!D47,'3.6 MOODY_S&P numbericl'!B:D,3,FALSE),"--") -> -- | H47: ='CEM Data Lookup'!L38 -> NA | J47: =IFERROR(VLOOKUP(H47,'3.6 MOODY_S&P numbericl'!F:H,3,FALSE),"--") -> --
A48: =Input!C37 -> PKI | B48: =VLOOKUP($A48,'CEM Data Lookup'!$A:$Q,2,FALSE) -> PerkinElmer Inc. | D48: ='CEM Data Lookup'!K39 -> Baa3 | F48: =IFERROR(VLOOKUP('6.4 CEM RPM Bond Ratings'!D48,'3.6 MOODY_S&P numbericl'!B:D,3,FALSE),"--") -> 10 | H48: ='CEM Data Lookup'!L39 -> BBB | J48: =IFERROR(VLOOKUP(H48,'3.6 MOODY_S&P numbericl'!F:H,3,FALSE),"--") -> 9
A49: =Input!C38 -> PM | B49: =VLOOKUP($A49,'CEM Data Lookup'!$A:$Q,2,FALSE) -> Philip Morris Int'l | D49: ='CEM Data Lookup'!K40 -> A2 | F49: =IFERROR(VLOOKUP('6.4 CEM RPM Bond Ratings'!D49,'3.6 MOODY_S&P numbericl'!B:D,3,FALSE),"--") -> 6 | H49: ='CEM Data Lookup'!L40 -> A | J49: =IFERROR(VLOOKUP(H49,'3.6 MOODY_S&P numbericl'!F:H,3,FALSE),"--") -> 6
A50: =Input!C39 -> POOL | B50: =VLOOKUP($A50,'CEM Data Lookup'!$A:$Q,2,FALSE) -> Pool Corp. | D50: ='CEM Data Lookup'!K41 -> NA | F50: =IFERROR(VLOOKUP('6.4 CEM RPM Bond Ratings'!D50,'3.6 MOODY_S&P numbericl'!B:D,3,FALSE),"--") -> -- | H50: ='CEM Data Lookup'!L41 -> NA | J50: =IFERROR(VLOOKUP(H50,'3.6 MOODY_S&P numbericl'!F:H,3,FALSE),"--") -> --
A51: =Input!C40 -> POST | B51: =VLOOKUP($A51,'CEM Data Lookup'!$A:$Q,2,FALSE) -> Post Holdings | D51: ='CEM Data Lookup'!K42 -> B2 | F51: =IFERROR(VLOOKUP('6.4 CEM RPM Bond Ratings'!D51,'3.6 MOODY_S&P numbericl'!B:D,3,FALSE),"--") -> 15 | H51: ='CEM Data Lookup'!L42 -> B+ | J51: =IFERROR(VLOOKUP(H51,'3.6 MOODY_S&P numbericl'!F:H,3,FALSE),"--") -> 14
A52: =Input!C41 -> RLI | B52: =VLOOKUP($A52,'CEM Data Lookup'!$A:$Q,2,FALSE) -> RLI Corp. | D52: ='CEM Data Lookup'!K43 -> Baa2 | F52: =IFERROR(VLOOKUP('6.4 CEM RPM Bond Ratings'!D52,'3.6 MOODY_S&P numbericl'!B:D,3,FALSE),"--") -> 9 | H52: ='CEM Data Lookup'!L43 -> BBB | J52: =IFERROR(VLOOKUP(H52,'3.6 MOODY_S&P numbericl'!F:H,3,FALSE),"--") -> 9
A53: =Input!C42 -> ROL | B53: =VLOOKUP($A53,'CEM Data Lookup'!$A:$Q,2,FALSE) -> Rollins, Inc. | D53: ='CEM Data Lookup'!K44 -> NA | F53: =IFERROR(VLOOKUP('6.4 CEM RPM Bond Ratings'!D53,'3.6 MOODY_S&P numbericl'!B:D,3,FALSE),"--") -> -- | H53: ='CEM Data Lookup'!L44 -> NA | J53: =IFERROR(VLOOKUP(H53,'3.6 MOODY_S&P numbericl'!F:H,3,FALSE),"--") -> --
A54: =Input!C43 -> SIGI | B54: =VLOOKUP($A54,'CEM Data Lookup'!$A:$Q,2,FALSE) -> Selective Ins. Group | D54: ='CEM Data Lookup'!K45 -> Baa2 | F54: =IFERROR(VLOOKUP('6.4 CEM RPM Bond Ratings'!D54,'3.6 MOODY_S&P numbericl'!B:D,3,FALSE),"--") -> 9 | H54: ='CEM Data Lookup'!L45 -> BBB | J54: =IFERROR(VLOOKUP(H54,'3.6 MOODY_S&P numbericl'!F:H,3,FALSE),"--") -> 9
A55: =Input!C44 -> SIRI | B55: =VLOOKUP($A55,'CEM Data Lookup'!$A:$Q,2,FALSE) -> Sirius XM Holdings | D55: ='CEM Data Lookup'!K46 -> NA | F55: =IFERROR(VLOOKUP('6.4 CEM RPM Bond Ratings'!D55,'3.6 MOODY_S&P numbericl'!B:D,3,FALSE),"--") -> -- | H55: ='CEM Data Lookup'!L46 -> BB | J55: =IFERROR(VLOOKUP(H55,'3.6 MOODY_S&P numbericl'!F:H,3,FALSE),"--") -> 12
A56: =Input!C45 -> TECH | B56: =VLOOKUP($A56,'CEM Data Lookup'!$A:$Q,2,FALSE) -> Bio-Techne Corp. | D56: ='CEM Data Lookup'!K47 -> NA | F56: =IFERROR(VLOOKUP('6.4 CEM RPM Bond Ratings'!D56,'3.6 MOODY_S&P numbericl'!B:D,3,FALSE),"--") -> -- | H56: ='CEM Data Lookup'!L47 -> NA | J56: =IFERROR(VLOOKUP(H56,'3.6 MOODY_S&P numbericl'!F:H,3,FALSE),"--") -> --
A57: =Input!C46 -> TTEK | B57: =VLOOKUP($A57,'CEM Data Lookup'!$A:$Q,2,FALSE) -> Tetra Tech | D57: ='CEM Data Lookup'!K48 -> NA | F57: =IFERROR(VLOOKUP('6.4 CEM RPM Bond Ratings'!D57,'3.6 MOODY_S&P numbericl'!B:D,3,FALSE),"--") -> -- | H57: ='CEM Data Lookup'!L48 -> NA | J57: =IFERROR(VLOOKUP(H57,'3.6 MOODY_S&P numbericl'!F:H,3,FALSE),"--") -> --
A58: =Input!C47 -> WAT | B58: =VLOOKUP($A58,'CEM Data Lookup'!$A:$Q,2,FALSE) -> Waters Corp. | D58: ='CEM Data Lookup'!K49 -> NA | F58: =IFERROR(VLOOKUP('6.4 CEM RPM Bond Ratings'!D58,'3.6 MOODY_S&P numbericl'!B:D,3,FALSE),"--") -> -- | H58: ='CEM Data Lookup'!L49 -> NA | J58: =IFERROR(VLOOKUP(H58,'3.6 MOODY_S&P numbericl'!F:H,3,FALSE),"--") -> --
A59: =Input!C48 -> WST | B59: =VLOOKUP($A59,'CEM Data Lookup'!$A:$Q,2,FALSE) -> West Pharmac. Svcs. | D59: ='CEM Data Lookup'!K50 -> NA | F59: =IFERROR(VLOOKUP('6.4 CEM RPM Bond Ratings'!D59,'3.6 MOODY_S&P numbericl'!B:D,3,FALSE),"--") -> -- | H59: ='CEM Data Lookup'!L50 -> NA | J59: =IFERROR(VLOOKUP(H59,'3.6 MOODY_S&P numbericl'!F:H,3,FALSE),"--") -> --
A60: =Input!C49 -> WU | B60: =VLOOKUP($A60,'CEM Data Lookup'!$A:$Q,2,FALSE) -> Western Union | D60: ='CEM Data Lookup'!K51 -> Baa2 | F60: =IFERROR(VLOOKUP('6.4 CEM RPM Bond Ratings'!D60,'3.6 MOODY_S&P numbericl'!B:D,3,FALSE),"--") -> 9 | H60: ='CEM Data Lookup'!L51 -> BBB | J60: =IFERROR(VLOOKUP(H60,'3.6 MOODY_S&P numbericl'!F:H,3,FALSE),"--") -> 9
B62: Average | D62: Baa2 | F62: =ROUND(AVERAGE(F12:F61),1) -> 8.8 | H62: BBB | J62: =ROUND(AVERAGE(J12:J61),1) -> 8.9
B64: Notes:
B65: (1) | C65: From page 6 of Schedule DWD-3.
B67: Source of Information:
B68: Bloomberg Professional Services

Sheet 6.5 CEM Beta Adjusted RP
A1: =Input!G28 -> Atmos Energy Corporation
A2: Derivation of Equity Risk Premium Based on the Total Market Approach
A3: Using the Beta for
A4: ='6.4 CEM RPM Bond Ratings'!B3 -> Proxy Group of Forty-Eight Non-Price Regulated Companies of Comparable risk to the
A5: ='6.4 CEM RPM Bond Ratings'!B4 -> Proxy Group of Seven Natural Gas Distribution Companies
A7: Line No. | C7: Equity Risk Premium Measure | F7: ='6.4 CEM RPM Bond Ratings'!B11 -> Proxy Group of Forty-Eight Non-Price Regulated Companies
B10: Ibbotson-Based Equity Risk Premiums:
A12: 1. | C12: Ibbotson Equity Risk Premium (1) | F12: ='3.8-3.9 Beta Adjusted ERP'!F11 -> 5.92 | G12: %
A14: 2. | C14: Regression on Ibbotson Risk Premium Data (2) | F14: ='MRP ERP WP'!$AK$42*100 -> 8.692961584
A16: 3. | C16: Ibbotson Equity Risk Premium based on PRPM (3) | F16: ='PRPM WP 1'!K1161*100 -> 9.020182923
A18: 4. | C18: Equity Risk Premium Based on Value Line Summary and Index (4) | F18: ='MRP WP1'!$M$22*100-'MRP WP1'!$M$37 -> 4.6
A20: 5 | C20: Equity Risk Premium Based on Value Line S&P 500 Companies (5) | F20: ='3.8-3.9 Beta Adjusted ERP'!F19 -> 10.76198133
A22: 6. | C22: Equity Risk Premium Based on Bloomberg S&P 500 Companies (6) | F22: ='3.8-3.9 Beta Adjusted ERP'!F21 -> 12.77579407
A24: 7. | C24: Conclusion of Equity Risk Premium | F24: =ROUND(AVERAGE(F12,F14,F16,F18,F20,F22),2) -> 8.63 | G24: %
A26: 8. | C26: Adjusted Beta (7) | F26: ='6.6 CEM CAPM Backup'!H62 -> 0.93
A28: 9. | C28: Forecasted Equity Risk Premium | F28: =ROUND(F24*F26,2) -> 8.03 | G28: %
A30: Notes:
B31: (1) | C31: From note 1 of page 9 of Schedule DWD-3.
B32: (2) | C32: From note 2 of page 9 of Schedule DWD-3.
B33: (3) | C33: From note 3 of page 9 of Schedule DWD-3.
B34: (4) | C34: From note 4 of page 9 of Schedule DWD-3.
B35: (5) | C35: From note 5 of page 9 of Schedule DWD-3.
B36: (6) | C36: From note 6 of page 9 of Schedule DWD-3.
B37: (7) | C37: Average of mean and median beta from page 6 of this Schedule.
B39: Sources of Information:
C40: ='4.2 CAPM Notes'!B60 -> Stocks, Bonds, Bills, and Inflation - 2021 SBBI Yearbook, John Wiley & Sons, Inc.
C41: Value Line Summary and Index
C42: ='4.2 CAPM Notes'!B59 -> Blue Chip Financial Forecasts, June 1, 2021
C43: Bloomberg Professional Services

Sheet 6.6 CEM CAPM Backup
B1: =Input!G28 -> Atmos Energy Corporation
B2: Traditional CAPM and ECAPM Results for the Proxy Group of Non-Price-Regulated Companies Comparable in Total Risk to the
B3: ='6.5 CEM Beta Adjusted RP'!A5 -> Proxy Group of Seven Natural Gas Distribution Companies
D5: [1] | F5: [2] | H5: [3] | J5: [4] | M5: [5] | P5: [6] | S5: [7] | V5: [8]
B7: ='6.5 CEM Beta Adjusted RP'!F7 -> Proxy Group of Forty-Eight Non-Price Regulated Companies | D7: Value Line Adjusted Beta | F7: Bloomberg Beta | H7: Average Beta | J7: Market Risk Premium (1) | M7: Risk-Free Rate (2) | P7: Traditional CAPM Cost Rate | S7: ECAPM Cost Rate | V7: Indicated Common Equity Cost Rate (3)
A9: =Input!C2 -> AAPL | B9: =VLOOKUP($A9,'CEM Data Lookup'!$A:$Q,2,FALSE) -> Apple Inc. | D9: ='MRP WP1'!E71 -> 0.9 | F9: =VLOOKUP($A9,'CEM Data Lookup'!$A:$Q,8,FALSE) -> 1.012107491 | H9: =ROUND(AVERAGE(D9:F9),2) -> 0.96 | J9: ='MRP WP1'!H$64 -> 9.459985663 | K9: % | M9: ='MRP WP1'!F$37 -> 2.88 | N9: % | P9: =H9*(J9)+M9 -> 11.96158624 | Q9: % | S9: =ROUND(0.75*(H9*J9)+(0.25*J9)+M9,4) -> 12.0562 | T9: % | V9: =ROUND(AVERAGE(P9,S9),2) -> 12.01 | W9: %
A10: =Input!C3 -> ABT | B10: =VLOOKUP($A10,'CEM Data Lookup'!$A:$Q,2,FALSE) -> Abbott Labs. | D10: ='MRP WP1'!E72 -> 0.9 | F10: =VLOOKUP($A10,'CEM Data Lookup'!$A:$Q,8,FALSE) -> 0.8512984514 | H10: =ROUND(AVERAGE(D10:F10),2) -> 0.88 | J10: ='MRP WP1'!H$64 -> 9.459985663 | M10: ='MRP WP1'!F$37 -> 2.88 | P10: =H10*(J10)+M10 -> 11.20478738 | S10: =ROUND(0.75*(H10*J10)+(0.25*J10)+M10,4) -> 11.4886 | V10: =ROUND(AVERAGE(P10,S10),2) -> 11.35
A11: =Input!C4 -> AIZ | B11: =VLOOKUP($A11,'CEM Data Lookup'!$A:$Q,2,FALSE) -> Assurant Inc. | D11: ='MRP WP1'!E73 -> 0.9 | F11: =VLOOKUP($A11,'CEM Data Lookup'!$A:$Q,8,FALSE) -> 0.9960021377 | H11: 0.95 | J11: ='MRP WP1'!H$64 -> 9.459985663 | M11: ='MRP WP1'!F$37 -> 2.88 | P11: 11.86698638 | S11: 11.9852 | V11: 11.93
A12: =Input!C5 -> ANSS | B12: =VLOOKUP($A12,'CEM Data Lookup'!$A:$Q,2,FALSE) -> ANSYS, Inc. | D12: ='MRP WP1'!E74 -> 0.85 | F12: =VLOOKUP($A12,'CEM Data Lookup'!$A:$Q,8,FALSE) -> 0.9667180777 | H12: 0.91 | J12: ='MRP WP1'!H$64 -> 9.459985663 | M12: ='MRP WP1'!F$37 -> 2.88 | P12: 11.48858695 | S12: 11.7014 | V12: 11.59
A13: =Input!C6 -> BAH | B13: =VLOOKUP($A13,'CEM Data Lookup'!$A:$Q,2,FALSE) -> Booz Allen Hamilton | D13: ='MRP WP1'!E75 -> 0.9 | F13: =VLOOKUP($A13,'CEM Data Lookup'!$A:$Q,8,FALSE) -> 0.917254746 | H13: 0.91 | J13: ='MRP WP1'!H$64 -> 9.459985663 | M13: ='MRP WP1'!F$37 -> 2.88 | P13: 11.48858695 | S13: 11.7014 | V13: 11.59
A14: =Input!C7 -> BDX | B14: =VLOOKUP($A14,'CEM Data Lookup'!$A:$Q,2,FALSE) -> Becton, Dickinson | D14: ='MRP WP1'!E76 -> 0.8 | F14: =VLOOKUP($A14,'CEM Data Lookup'!$A:$Q,8,FALSE) -> 0.5826736689 | H14: 0.69 | J14: ='MRP WP1'!H$64 -> 9.459985663 | M14: ='MRP WP1'!F$37 -> 2.88 | P14: 9.407390108 | S14: 10.1405 | V14: 9.77
A15: =Input!C8 -> BFB | B15: =VLOOKUP($A15,'CEM Data Lookup'!$A:$Q,2,FALSE) -> Brown-Forman 'B' | D15: ='MRP WP1'!E77 -> 0.9 | F15: =VLOOKUP($A15,'CEM Data Lookup'!$A:$Q,8,FALSE) -> 0.9732672572 | H15: 0.94 | J15: ='MRP WP1'!H$64 -> 9.459985663 | M15: ='MRP WP1'!F$37 -> 2.88 | P15: 11.77238652 | S15: 11.9143 | V15: 11.84
A16: =Input!C9 -> BR | B16: =VLOOKUP($A16,'CEM Data Lookup'!$A:$Q,2,FALSE) -> Broadridge Fin'l | D16: ='MRP WP1'!E78 -> 0.8 | F16: =VLOOKUP($A16,'CEM Data Lookup'!$A:$Q,8,FALSE) -> 0.8378721476 | H16: 0.82 | J16: ='MRP WP1'!H$64 -> 9.459985663 | M16: ='MRP WP1'!F$37 -> 2.88 | P16: 10.63718824 | S16: 11.0629 | V16: 10.85
A17: =Input!C10 -> BRC | B17: =VLOOKUP($A17,'CEM Data Lookup'!$A:$Q,2,FALSE) -> Brady Corp. | D17: ='MRP WP1'!E79 -> 1 | F17: =VLOOKUP($A17,'CEM Data Lookup'!$A:$Q,8,FALSE) -> 1.049737096 | H17: 1.02 | J17: ='MRP WP1'!H$64 -> 9.459985663 | M17: ='MRP WP1'!F$37 -> 2.88 | P17: 12.52918538 | S17: 12.4819 | V17: 12.51
A18: =Input!C11 -> CACI | B18: =VLOOKUP($A18,'CEM Data Lookup'!$A:$Q,2,FALSE) -> CACI Int'l | D18: ='MRP WP1'!E80 -> 0.95 | F18: =VLOOKUP($A18,'CEM Data Lookup'!$A:$Q,8,FALSE) -> 1.010322809 | H18: 0.98 | J18: ='MRP WP1'!H$64 -> 9.459985663 | M18: ='MRP WP1'!F$37 -> 2.88 | P18: 12.15078595 | S18: 12.1981 | V18: 12.17
A19: =Input!C12 -> CASY | B19: =VLOOKUP($A19,'CEM Data Lookup'!$A:$Q,2,FALSE) -> Casey's Gen'l Stores | D19: ='MRP WP1'!E81 -> 0.9 | F19: =VLOOKUP($A19,'CEM Data Lookup'!$A:$Q,8,FALSE) -> 0.9119077921 | H19: 0.91 | J19: ='MRP WP1'!H$64 -> 9.459985663 | M19: ='MRP WP1'!F$37 -> 2.88 | P19: 11.48858695 | S19: 11.7014 | V19: 11.59
A20: =Input!C13 -> CDNS | B20: =VLOOKUP($A20,'CEM Data Lookup'!$A:$Q,2,FALSE) -> Cadence Design Sys. | D20: ='MRP WP1'!E82 -> 0.9 | F20: =VLOOKUP($A20,'CEM Data Lookup'!$A:$Q,8,FALSE) -> 0.9842782617 | H20: 0.94 | J20: ='MRP WP1'!H$64 -> 9.459985663 | M20: ='MRP WP1'!F$37 -> 2.88 | P20: 11.77238652 | S20: 11.9143 | V20: 11.84
A21: =Input!C14 -> CERN | B21: =VLOOKUP($A21,'CEM Data Lookup'!$A:$Q,2,FALSE) -> Cerner Corp. | D21: ='MRP WP1'!E83 -> 0.9 | F21: =VLOOKUP($A21,'CEM Data Lookup'!$A:$Q,8,FALSE) -> 0.8931853175 | H21: 0.9 | J21: ='MRP WP1'!H$64 -> 9.459985663 | M21: ='MRP WP1'!F$37 -> 2.88 | P21: 11.3939871 | S21: 11.6305 | V21: 11.51
A22: =Input!C15 -> CSWI | B22: =VLOOKUP($A22,'CEM Data Lookup'!$A:$Q,2,FALSE) -> CSW Industrials | D22: ='MRP WP1'!E84 -> 0.9 | F22: =VLOOKUP($A22,'CEM Data Lookup'!$A:$Q,8,FALSE) -> 1.048905492 | H22: 0.97 | J22: ='MRP WP1'!H$64 -> 9.459985663 | M22: ='MRP WP1'!F$37 -> 2.88 | P22: 12.05618609 | S22: 12.1271 | V22: 12.09
A23: =Input!C16 -> DGX | B23: =VLOOKUP($A23,'CEM Data Lookup'!$A:$Q,2,FALSE) -> Quest Diagnostics | D23: ='MRP WP1'!E85 -> 0.85 | F23: =VLOOKUP($A23,'CEM Data Lookup'!$A:$Q,8,FALSE) -> 0.9603981376 | H23: 0.91 | J23: ='MRP WP1'!H$64 -> 9.459985663 | M23: ='MRP WP1'!F$37 -> 2.88 | P23: 11.48858695 | S23: 11.7014 | V23: 11.59
A24: =Input!C17 -> EL | B24: =VLOOKUP($A24,'CEM Data Lookup'!$A:$Q,2,FALSE) -> Lauder (Estee) | D24: ='MRP WP1'!E86 -> 0.95 | F24: =VLOOKUP($A24,'CEM Data Lookup'!$A:$Q,8,FALSE) -> 1.003584146 | H24: 0.98 | J24: ='MRP WP1'!H$64 -> 9.459985663 | M24: ='MRP WP1'!F$37 -> 2.88 | P24: 12.15078595 | S24: 12.1981 | V24: 12.17
A25: =Input!C18 -> EXPO | B25: =VLOOKUP($A25,'CEM Data Lookup'!$A:$Q,2,FALSE) -> Exponent, Inc. | D25: ='MRP WP1'!E87 -> 0.9 | F25: =VLOOKUP($A25,'CEM Data Lookup'!$A:$Q,8,FALSE) -> 0.9439809322 | H25: 0.92 | J25: ='MRP WP1'!H$64 -> 9.459985663 | M25: ='MRP WP1'!F$37 -> 2.88 | P25: 11.58318681 | S25: 11.7724 | V25: 11.68
A26: =Input!C19 -> FAST | B26: =VLOOKUP($A26,'CEM Data Lookup'!$A:$Q,2,FALSE) -> Fastenal Co. | D26: ='MRP WP1'!E88 -> 0.9 | F26: =VLOOKUP($A26,'CEM Data Lookup'!$A:$Q,8,FALSE) -> 0.9494735599 | H26: 0.92 | J26: ='MRP WP1'!H$64 -> 9.459985663 | M26: ='MRP WP1'!F$37 -> 2.88 | P26: 11.58318681 | S26: 11.7724 | V26: 11.68
A27: =Input!C20 -> GNTX | B27: =VLOOKUP($A27,'CEM Data Lookup'!$A:$Q,2,FALSE) -> Gentex Corp. | D27: ='MRP WP1'!E89 -> 0.95 | F27: =VLOOKUP($A27,'CEM Data Lookup'!$A:$Q,8,FALSE) -> 1.061281204 | H27: 1.01 | J27: ='MRP WP1'!H$64 -> 9.459985663 | M27: ='MRP WP1'!F$37 -> 2.88 | P27: 12.43458552 | S27: 12.4109 | V27: 12.42
A28: =Input!C21 -> IFF | B28: =VLOOKUP($A28,'CEM Data Lookup'!$A:$Q,2,FALSE) -> Int'l Flavors & Frag | D28: ='MRP WP1'!E90 -> 0.95 | F28: =VLOOKUP($A28,'CEM Data Lookup'!$A:$Q,8,FALSE) -> 1.083767295 | H28: 1.02 | J28: ='MRP WP1'!H$64 -> 9.459985663 | M28: ='MRP WP1'!F$37 -> 2.88 | P28: 12.52918538 | S28: 12.4819 | V28: 12.51
A29: =Input!C22 -> INGR | B29: =VLOOKUP($A29,'CEM Data Lookup'!$A:$Q,2,FALSE) -> Ingredion Inc. | D29: ='MRP WP1'!E91 -> 0.9 | F29: =VLOOKUP($A29,'CEM Data Lookup'!$A:$Q,8,FALSE) -> 0.9165884852 | H29: 0.91 | J29: ='MRP WP1'!H$64 -> 9.459985663 | M29: ='MRP WP1'!F$37 -> 2.88 | P29: 11.48858695 | S29: 11.7014 | V29: 11.59
A30: =Input!C23 -> IRM | B30: =VLOOKUP($A30,'CEM Data Lookup'!$A:$Q,2,FALSE) -> Iron Mountain | D30: ='MRP WP1'!E92 -> 0.9 | F30: =VLOOKUP($A30,'CEM Data Lookup'!$A:$Q,8,FALSE) -> 1.02131772 | H30: 0.96 | J30: ='MRP WP1'!H$64 -> 9.459985663 | M30: ='MRP WP1'!F$37 -> 2.88 | P30: 11.96158624 | S30: 12.0562 | V30: 12.01
A31: =Input!C24 -> JBHT | B31: =VLOOKUP($A31,'CEM Data Lookup'!$A:$Q,2,FALSE) -> Hunt (J.B.) | D31: ='MRP WP1'!E93 -> 0.95 | F31: =VLOOKUP($A31,'CEM Data Lookup'!$A:$Q,8,FALSE) -> 0.9098848701 | H31: 0.93 | J31: ='MRP WP1'!H$64 -> 9.459985663 | M31: ='MRP WP1'!F$37 -> 2.88 | P31: 11.67778667 | S31: 11.8433 | V31: 11.76
A32: =Input!C25 -> JJSF | B32: =VLOOKUP($A32,'CEM Data Lookup'!$A:$Q,2,FALSE) -> J&J Snack Foods | D32: ='MRP WP1'!E94 -> 0.9 | F32: =VLOOKUP($A32,'CEM Data Lookup'!$A:$Q,8,FALSE) -> 0.7723898888 | H32: 0.84 | J32: ='MRP WP1'!H$64 -> 9.459985663 | M32: ='MRP WP1'!F$37 -> 2.88 | P32: 10.82638796 | S32: 11.2048 | V32: 11.02
A33: =Input!C26 -> JKHY | B33: =VLOOKUP($A33,'CEM Data Lookup'!$A:$Q,2,FALSE) -> Henry (Jack) & Assoc | D33: ='MRP WP1'!E95 -> 0.85 | F33: =VLOOKUP($A33,'CEM Data Lookup'!$A:$Q,8,FALSE) -> 0.8857803941 | H33: 0.87 | J33: ='MRP WP1'!H$64 -> 9.459985663 | M33: ='MRP WP1'!F$37 -> 2.88 | P33: 11.11018753 | S33: 11.4176 | V33: 11.26
A34: =Input!C27 -> MANT | B34: =VLOOKUP($A34,'CEM Data Lookup'!$A:$Q,2,FALSE) -> ManTech Int'l 'A' | D34: ='MRP WP1'!E96 -> 0.85 | F34: =VLOOKUP($A34,'CEM Data Lookup'!$A:$Q,8,FALSE) -> 1.113771796 | H34: 0.98 | J34: ='MRP WP1'!H$64 -> 9.459985663 | M34: ='MRP WP1'!F$37 -> 2.88 | P34: 12.15078595 | S34: 12.1981 | V34: 12.17
A35: =Input!C28 -> MKC | B35: =VLOOKUP($A35,'CEM Data Lookup'!$A:$Q,2,FALSE) -> McCormick & Co. | D35: ='MRP WP1'!E97 -> 0.8 | F35: =VLOOKUP($A35,'CEM Data Lookup'!$A:$Q,8,FALSE) -> 0.6974718571 | H35: 0.75 | J35: ='MRP WP1'!H$64 -> 9.459985663 | M35: ='MRP WP1'!F$37 -> 2.88 | P35: 9.974989248 | S35: 10.5662 | V35: 10.27
A36: =Input!C29 -> MO | B36: =VLOOKUP($A36,'CEM Data Lookup'!$A:$Q,2,FALSE) -> Altria Group | D36: ='MRP WP1'!E98 -> 0.9 | F36: =VLOOKUP($A36,'CEM Data Lookup'!$A:$Q,8,FALSE) -> 0.8819355965 | H36: 0.89 | J36: ='MRP WP1'!H$64 -> 9.459985663 | M36: ='MRP WP1'!F$37 -> 2.88 | P36: 11.29938724 | S36: 11.5595 | V36: 11.43
A37: =Input!C30 -> MSA | B37: =VLOOKUP($A37,'CEM Data Lookup'!$A:$Q,2,FALSE) -> MSA Safety | D37: ='MRP WP1'!E99 -> 1 | F37: =VLOOKUP($A37,'CEM Data Lookup'!$A:$Q,8,FALSE) -> 0.9911231995 | H37: 1 | J37: ='MRP WP1'!H$64 -> 9.459985663 | M37: ='MRP WP1'!F$37 -> 2.88 | P37: 12.33998566 | S37: 12.34 | V37: 12.34
A38: =Input!C31 -> MSCI | B38: =VLOOKUP($A38,'CEM Data Lookup'!$A:$Q,2,FALSE) -> MSCI Inc. | D38: ='MRP WP1'!E100 -> 0.95 | F38: =VLOOKUP($A38,'CEM Data Lookup'!$A:$Q,8,FALSE) -> 0.9358009696 | H38: 0.94 | J38: ='MRP WP1'!H$64 -> 9.459985663 | M38: ='MRP WP1'!F$37 -> 2.88 | P38: 11.77238652 | S38: 11.9143 | V38: 11.84
A39: =Input!C32 -> MSI | B39: =VLOOKUP($A39,'CEM Data Lookup'!$A:$Q,2,FALSE) -> Motorola Solutions | D39: ='MRP WP1'!E101 -> 0.9 | F39: =VLOOKUP($A39,'CEM Data Lookup'!$A:$Q,8,FALSE) -> 0.9593350887 | H39: 0.93 | J39: ='MRP WP1'!H$64 -> 9.459985663 | M39: ='MRP WP1'!F$37 -> 2.88 | P39: 11.67778667 | S39: 11.8433 | V39: 11.76
A40: =Input!C33 -> MTN | B40: =VLOOKUP($A40,'CEM Data Lookup'!$A:$Q,2,FALSE) -> Vail Resorts | D40: ='MRP WP1'!E102 -> 0.95 | F40: =VLOOKUP($A40,'CEM Data Lookup'!$A:$Q,8,FALSE) -> 1.141641259 | H40: 1.05 | J40: ='MRP WP1'!H$64 -> 9.459985663 | M40: ='MRP WP1'!F$37 -> 2.88 | P40: 12.81298495 | S40: 12.6947 | V40: 12.75
A41: =Input!C34 -> MXIM | B41: =VLOOKUP($A41,'CEM Data Lookup'!$A:$Q,2,FALSE) -> Maxim Integrated | D41: ='MRP WP1'!E103 -> 0.95 | F41: =VLOOKUP($A41,'CEM Data Lookup'!$A:$Q,8,FALSE) -> 0.9852310419 | H41: 0.97 | J41: ='MRP WP1'!H$64 -> 9.459985663 | M41: ='MRP WP1'!F$37 -> 2.88 | P41: 12.05618609 | S41: 12.1271 | V41: 12.09
A42: =Input!C35 -> NOC | B42: =VLOOKUP($A42,'CEM Data Lookup'!$A:$Q,2,FALSE) -> Northrop Grumman | D42: ='MRP WP1'!E104 -> 0.85 | F42: =VLOOKUP($A42,'CEM Data Lookup'!$A:$Q,8,FALSE) -> 0.8021228313 | H42: 0.83 | J42: ='MRP WP1'!H$64 -> 9.459985663 | M42: ='MRP WP1'!F$37 -> 2.88 | P42: 10.7317881 | S42: 11.1338 | V42: 10.93
A43: =Input!C36 -> ODFL | B43: =VLOOKUP($A43,'CEM Data Lookup'!$A:$Q,2,FALSE) -> Old Dominion Freight | D43: ='MRP WP1'!E105 -> 0.95 | F43: =VLOOKUP($A43,'CEM Data Lookup'!$A:$Q,8,FALSE) -> 0.970081687 | H43: 0.96 | J43: ='MRP WP1'!H$64 -> 9.459985663 | M43: ='MRP WP1'!F$37 -> 2.88 | P43: 11.96158624 | S43: 12.0562 | V43: 12.01
A44: =Input!C37 -> PKI | B44: =VLOOKUP($A44,'CEM Data Lookup'!$A:$Q,2,FALSE) -> PerkinElmer Inc. | D44: ='MRP WP1'!E106 -> 0.9 | F44: =VLOOKUP($A44,'CEM Data Lookup'!$A:$Q,8,FALSE) -> 0.8377218843 | H44: 0.87 | J44: ='MRP WP1'!H$64 -> 9.459985663 | M44: ='MRP WP1'!F$37 -> 2.88 | P44: 11.11018753 | S44: 11.4176 | V44: 11.26
A45: =Input!C38 -> PM | B45: =VLOOKUP($A45,'CEM Data Lookup'!$A:$Q,2,FALSE) -> Philip Morris Int'l | D45: ='MRP WP1'!E107 -> 0.95 | F45: =VLOOKUP($A45,'CEM Data Lookup'!$A:$Q,8,FALSE) -> 0.9142292142 | H45: 0.93 | J45: ='MRP WP1'!H$64 -> 9.459985663 | M45: ='MRP WP1'!F$37 -> 2.88 | P45: 11.67778667 | S45: 11.8433 | V45: 11.76
A46: =Input!C39 -> POOL | B46: =VLOOKUP($A46,'CEM Data Lookup'!$A:$Q,2,FALSE) -> Pool Corp. | D46: ='MRP WP1'!E108 -> 0.85 | F46: =VLOOKUP($A46,'CEM Data Lookup'!$A:$Q,8,FALSE) -> 0.9463635087 | H46: 0.9 | J46: ='MRP WP1'!H$64 -> 9.459985663 | M46: ='MRP WP1'!F$37 -> 2.88 | P46: 11.3939871 | S46: 11.6305 | V46: 11.51
A47: =Input!C40 -> POST | B47: =VLOOKUP($A47,'CEM Data Lookup'!$A:$Q,2,FALSE) -> Post Holdings | D47: ='MRP WP1'!E109 -> 0.95 | F47: =VLOOKUP($A47,'CEM Data Lookup'!$A:$Q,8,FALSE) -> 0.9045496583 | H47: 0.93 | J47: ='MRP WP1'!H$64 -> 9.459985663 | M47: ='MRP WP1'!F$37 -> 2.88 | P47: 11.67778667 | S47: 11.8433 | V47: 11.76
A48: =Input!C41 -> RLI | B48: =VLOOKUP($A48,'CEM Data Lookup'!$A:$Q,2,FALSE) -> RLI Corp. | D48: ='MRP WP1'!E110 -> 0.8 | F48: =VLOOKUP($A48,'CEM Data Lookup'!$A:$Q,8,FALSE) -> 0.9000255466 | H48: 0.85 | J48: ='MRP WP1'!H$64 -> 9.459985663 | M48: ='MRP WP1'!F$37 -> 2.88 | P48: 10.92098781 | S48: 11.2757 | V48: 11.1
A49: =Input!C42 -> ROL | B49: =VLOOKUP($A49,'CEM Data Lookup'!$A:$Q,2,FALSE) -> Rollins, Inc. | D49: ='MRP WP1'!E111 -> 0.85 | F49: =VLOOKUP($A49,'CEM Data Lookup'!$A:$Q,8,FALSE) -> 0.6941347718 | H49: 0.77 | J49: ='MRP WP1'!H$64 -> 9.459985663 | M49: ='MRP WP1'!F$37 -> 2.88 | P49: 10.16418896 | S49: 10.7081 | V49: 10.44
A50: =Input!C43 -> SIGI | B50: =VLOOKUP($A50,'CEM Data Lookup'!$A:$Q,2,FALSE) -> Selective Ins. Group | D50: ='MRP WP1'!E112 -> 0.85 | F50: =VLOOKUP($A50,'CEM Data Lookup'!$A:$Q,8,FALSE) -> 0.9727833271 | H50: 0.91 | J50: ='MRP WP1'!H$64 -> 9.459985663 | M50: ='MRP WP1'!F$37 -> 2.88 | P50: 11.48858695 | S50: 11.7014 | V50: 11.59
A51: =Input!C44 -> SIRI | B51: =VLOOKUP($A51,'CEM Data Lookup'!$A:$Q,2,FALSE) -> Sirius XM Holdings | D51: ='MRP WP1'!E113 -> 0.95 | F51: =VLOOKUP($A51,'CEM Data Lookup'!$A:$Q,8,FALSE) -> 1.099968314 | H51: 1.02 | J51: ='MRP WP1'!H$64 -> 9.459985663 | M51: ='MRP WP1'!F$37 -> 2.88 | P51: 12.52918538 | S51: 12.4819 | V51: 12.51
A52: =Input!C45 -> TECH | B52: =VLOOKUP($A52,'CEM Data Lookup'!$A:$Q,2,FALSE) -> Bio-Techne Corp. | D52: ='MRP WP1'!E114 -> 0.8 | F52: =VLOOKUP($A52,'CEM Data Lookup'!$A:$Q,8,FALSE) -> 0.9288383126 | H52: 0.86 | J52: ='MRP WP1'!H$64 -> 9.459985663 | M52: ='MRP WP1'!F$37 -> 2.88 | P52: 11.01558767 | S52: 11.3467 | V52: 11.18
A53: =Input!C46 -> TTEK | B53: =VLOOKUP($A53,'CEM Data Lookup'!$A:$Q,2,FALSE) -> Tetra Tech | D53: ='MRP WP1'!E115 -> 0.95 | F53: =VLOOKUP($A53,'CEM Data Lookup'!$A:$Q,8,FALSE) -> 1.05917716 | H53: 1 | J53: ='MRP WP1'!H$64 -> 9.459985663 | M53: ='MRP WP1'!F$37 -> 2.88 | P53: 12.33998566 | S53: 12.34 | V53: 12.34
A54: =Input!C47 -> WAT | B54: =VLOOKUP($A54,'CEM Data Lookup'!$A:$Q,2,FALSE) -> Waters Corp. | D54: ='MRP WP1'!E116 -> 0.95 | F54: =VLOOKUP($A54,'CEM Data Lookup'!$A:$Q,8,FALSE) -> 0.8628724217 | H54: 0.91 | J54: ='MRP WP1'!H$64 -> 9.459985663 | M54: ='MRP WP1'!F$37 -> 2.88 | P54: 11.48858695 | S54: 11.7014 | V54: 11.59
A55: =Input!C48 -> WST | B55: =VLOOKUP($A55,'CEM Data Lookup'!$A:$Q,2,FALSE) -> West Pharmac. Svcs. | D55: ='MRP WP1'!E117 -> 0.8 | F55: =VLOOKUP($A55,'CEM Data Lookup'!$A:$Q,8,FALSE) -> 0.7505637407 | H55: 0.78 | J55: ='MRP WP1'!H$64 -> 9.459985663 | M55: ='MRP WP1'!F$37 -> 2.88 | P55: 10.25878882 | S55: 10.7791 | V55: 10.52
A56: =Input!C49 -> WU | B56: =VLOOKUP($A56,'CEM Data Lookup'!$A:$Q,2,FALSE) -> Western Union | D56: ='MRP WP1'!E118 -> 0.8 | F56: =VLOOKUP($A56,'CEM Data Lookup'!$A:$Q,8,FALSE) -> 1.052333355 | H56: 0.93 | J56: ='MRP WP1'!H$64 -> 9.459985663 | M56: ='MRP WP1'!F$37 -> 2.88 | P56: 11.67778667 | S56: 11.8433 | V56: 11.76
F58: Mean | H58: =ROUND(AVERAGE(H9:H56),2) -> 0.92 | P58: =ROUND(AVERAGE(P9:P56),2) -> 11.55 | Q58: % | S58: =ROUND(AVERAGE(S9:S56),2) -> 11.75 | T58: % | V58: =ROUND(AVERAGE(V9:V56),2) -> 11.65 | W58: %
F60: Median | H60: =ROUND(MEDIAN(H9:H56),2) -> 0.93 | P60: =ROUND(MEDIAN(P9:P56),2) -> 11.63 | Q60: % | S60: =ROUND(MEDIAN(S9:S56),2) -> 11.81 | T60: % | V60: =ROUND(MEDIAN(V9:V56),2) -> 11.72 | W60: %
F62: Average of Mean and Median | H62: =ROUND(AVERAGE(H58:H60),2) -> 0.93 | P62: =ROUND(AVERAGE(P58:P60),2) -> 11.59 | Q62: % | S62: =ROUND(AVERAGE(S58:S60),2) -> 11.78 | T62: % | V62: =ROUND(AVERAGE(V58:V60),2) -> 11.69 | W62: %
C64: Notes:
C65: (1) | D65: From note 1 of page 2 of Schedule DWD-4.
C66: (2) | D66: From note 2 of page 2 of Schedule DWD-4.
C67: (3) | D67: Average of CAPM and ECAPM cost rates.

Sheet 7.1 Risk Adjustment
C1: =Input!G28 -> Atmos Energy Corporation
C2: Derivation of Investment Risk Adjustment Based upon
C3: Ibbotson Associates' Size Premia for the Decile Portfolios of the NYSE/AMEX/NASDAQ
E6: [1] | I6: [2] | K6: [3] | M6: [4]
M7: Spread from Applicable Size Premium (4)
E8: Market Capitalization on May 28, 2021 (1) | I8: Applicable Decile of the NYSE/AMEX/ NASDAQ (2)
K9: Applicable Size Premium (3)
A11: Line No.
E12: ( millions ) | G12: (times larger)
A14: 1. | C14: ='7.2 Market Cap'!B11 -> Atmos Energy Corporation | E14: ='7.2 Market Cap'!P13 -> 597.1011751 | I14: 8 | K14: =M30 -> 0.0146
A16: 2. | C16: =Input!I31 -> Proxy Group of Seven Natural Gas Distribution Companies | E16: ='7.2 Market Cap'!P24 -> 4615.314 | G16: =ROUND(E16/E14,1) -> 7.7 | H16: x | I16: 4 | K16: =M26 -> 0.0075 | M16: =K14-K16 -> 0.0071
G18: [A] | I18: [B] | K18: [C] | M18: [D]
G20: Decile | I20: Market Capitalization of Smallest Company | K20: Market Capitalization of Largest Company | M20: Size Premium (Return in Excess of CAPM)*
I21: ( millions ) | K21: ( millions )
E23: Largest | G23: 1 | I23: 29025.803 | K23: 1966078.882 | M23: -0.0022
G24: 2 | I24: 13178.743 | K24: 28808.073 | M24: 0.0049
G25: 3 | I25: 6743.361 | K25: 13177.828 | M25: 0.0071
G26: 4 | I26: 3861.858 | K26: 6710.676 | M26: 0.0075
G27: 5 | I27: 2445.693 | K27: 3836.536 | M27: 0.0109
G28: 6 | I28: 1591.865 | K28: 2444.745 | M28: 0.0137
G29: 7 | I29: 911.586 | K29: 1591.765 | M29: 0.0154
G30: 8 | I30: 451.955 | K30: 911.103 | M30: 0.0146
G31: 9 | I31: 190.019 | K31: 451.8 | M31: 0.0229
E32: Smallest | G32: 10 | I32: 2.194 | K32: 189.831 | M32: 0.0501
H33: *From 2021 Duff & Phelps Cost of Capital Navigator
C34: Notes:
D35: (1) | E35: From page 2 of this Schedule.
D36: (2) | E36: Gleaned from Columns [B] and [C] on the bottom of this page. The appropriate decile (Column [A]) corresponds to the market capitalization of the proxy group, which is found in Column [1].
D37: (3) | E37: Corresponding risk premium to the decile is provided in Column [D] on the bottom of this page.
D38: (4) | E38: =CONCATENATE("Line No. 1 Column [3] – Line No. 2 Column [3]. For example, the ",TEXT((M16*100),"#0.00"),"% in Column [4], Line No. 2 is derived as follows ",TEXT((M16*100),"#0.00"),"% = ",K14*100,"% - ",TEXT((K16*100),"#0.00"),"%.") -> Line No. 1 Column [3] – Line No. 2 Column [3]. For example, the 0.71% in Column [4], Line No. 2 is derived as follows 0.71% = 1.46% - 0.75%.

Sheet 7.2 Market Cap
B1: =Input!G28 -> Atmos Energy Corporation
B2: =CONCATENATE("Market Capitalization of ",B1," and the") -> Market Capitalization of Atmos Energy Corporation and the
B3: =Input!I31 -> Proxy Group of Seven Natural Gas Distribution Companies
F6: [1] | H6: [2] | J6: [3] | L6: [4] | N6: [5] | P6: [6]
B8: Company | D8: Exchange | F8: =CONCATENATE("Common Stock Shares Outstanding at Fiscal Year End ",YEAR(Input!G49)) -> Common Stock Shares Outstanding at Fiscal Year End 2020 | H8: Book Value per Share at Fiscal Year End 2020 (1) | J8: =CONCATENATE("Total Common Equity at Fiscal Year End ",YEAR(Input!G49)) -> Total Common Equity at Fiscal Year End 2020 | L8: =CONCATENATE("Closing Stock Market Price on ",TEXT(Input!E2,"mmmm dd, yyyy")) -> Closing Stock Market Price on May 28, 2021 | N8: =CONCATENATE("Market-to-Book Ratio on ",TEXT(Input!E2,"mmmm dd, yyyy")," (2)") -> Market-to-Book Ratio on May 28, 2021 (2) | P8: =CONCATENATE("Market Capitalization on ",TEXT(Input!E2,"mmmm dd, yyyy")," (3)") -> Market Capitalization on May 28, 2021 (3)
F9: ( millions ) | J9: ( millions ) | P9: ( millions )
B11: =Input!G28 -> Atmos Energy Corporation | F11: NA | H11: NA | J11: =Input!G43/1000000*Input!F14 -> 340.0348377 | K11: (4) | L11: NA
B13: =CONCATENATE("Based upon ",B15) -> Based upon Proxy Group of Seven Natural Gas Distribution Companies | N13: =N24 -> 175.6 | O13: (5) | P13: =IFERROR(N13*J11/100,"NA") -> 597.1011751 | Q13: (6)
B15: =Input!I31 -> Proxy Group of Seven Natural Gas Distribution Companies
A16: =IFERROR(Input!A2,"NA") -> ATO | B16: ='Proxy Data Lookup'!B3 -> Atmos Energy Corporation | D16: =Input!B2 -> NYSE | F16: ='3. ATO'!$C$15/1000000 -> 125.882477 | H16: =IFERROR(ROUND(J16/F16,3),"NA") -> 53.949 | J16: ='3. ATO'!$C$16/1000000 -> 6791.203 | L16: ='Proxy Prices'!B$6 -> 99.17 | N16: =IFERROR(ROUND(L16/H16*100,1),"NA") -> 183.8 | O16: % | P16: =IFERROR(ROUND(F16*L16,3),"NA") -> 12483.765
A17: =IFERROR(Input!A3,"NA") -> NJR | B17: ='Proxy Data Lookup'!B4 -> New Jersey Resources Corporation | D17: =Input!B3 -> NYSE | F17: ='3. NJR'!$C$15/1000000 -> 95.949183 | H17: =IFERROR(ROUND(J17/F17,3),"NA") -> 19.226 | J17: ='3. NJR'!$C$16/1000000 -> 1844.692 | L17: ='Proxy Prices'!C$6 -> 42.72 | N17: =IFERROR(ROUND(L17/H17*100,1),"NA") -> 222.2 | P17: 4098.949
A18: =IFERROR(Input!A4,"NA") -> NWN | B18: ='Proxy Data Lookup'!B5 -> Northwest Natural Holding Company | D18: =Input!B4 -> NYSE | F18: ='3. NWN'!$C$15/1000000 -> 30.589 | H18: 29.054 | J18: ='3. NWN'!$C$16/1000000 -> 888.733 | L18: ='Proxy Prices'!D$6 -> 52.88 | N18: 182 | P18: 1617.546
A19: =IFERROR(Input!A5,"NA") -> OGS | B19: ='Proxy Data Lookup'!B6 -> ONE Gas, Inc. | D19: =Input!B5 -> NYSE | F19: ='3. OGS'!$C$15/1000000 -> 53.166733 | H19: 42.006 | J19: ='3. OGS'!$C$16/1000000 -> 2233.311 | L19: ='Proxy Prices'!E$6 -> 74.32 | N19: 176.9 | P19: 3951.352
A20: =IFERROR(Input!A6,"NA") -> SJI | B20: ='Proxy Data Lookup'!B7 -> South Jersey Industries, Inc. | D20: =Input!B6 -> NYSE | F20: ='3. SJI'!$C$15/1000000 -> 100.59194 | H20: 16.571 | J20: ='3. SJI'!$C$16/1000000 -> 1666.876 | L20: ='Proxy Prices'!F$6 -> 26.66 | N20: 160.9 | P20: 2681.781
A21: =IFERROR(Input!A7,"NA") -> SWX | B21: ='Proxy Data Lookup'!B8 -> Southwest Gas Holdings, Inc. | D21: =Input!B7 -> NYSE | F21: ='3. SWX'!$C$15/1000000 -> 57.192925 | H21: 46.771 | J21: ='3. SWX'!$C$16/1000000 -> 2674.953 | L21: ='Proxy Prices'!G$6 -> 66.01 | N21: 141.1 | P21: 3775.305
A22: =IFERROR(Input!A8,"NA") -> SR | B22: ='Proxy Data Lookup'!B9 -> Spire Inc. | D22: =Input!B8 -> NYSE | F22: ='3. SR'!$C$15/1000000 -> 51.611789 | H22: 44.182 | J22: ='3. SR'!$C$16/1000000 -> 2280.3 | L22: ='Proxy Prices'!H$6 -> 71.66 | N22: 162.2 | P22: 3698.501
B24: Average | F24: =ROUND(AVERAGE(F15:F23),3) -> 73.569 | H24: =ROUND(AVERAGE(H15:H23),3) -> 35.966 | J24: =ROUND(AVERAGE(J15:J23),3) -> 2625.724 | L24: =ROUND(AVERAGE(L15:L23),3) -> 61.917 | N24: =ROUND(AVERAGE(N15:N23),1) -> 175.6 | O24: % | P24: =ROUND(AVERAGE(P15:P23),3) -> 4615.314
C26: NA= Not Available
D28: Notes: | E28: (1) | F28: Column 3 / Column 1.
E29: (2) | F29: Column 4 / Column 2.
E30: (3) | F30: Column 1 * Column 4.
E31: (4) | F31: Requested rate base multiplied by the initial requested common equity ratio.
E32: (5) | F32: =CONCATENATE("The market-to-book ratio of ",Input!G28," on ",TEXT(Input!E2,"mmmm dd, yyyy")," is assumed to be equal to the market-to-book ratio of ",'7.2 Market Cap'!B3," on ",TEXT(Input!E2,"mmmm dd, yyyy")," as appropriate.") -> The market-to-book ratio of Atmos Energy Corporation on May 28, 2021 is assumed to be equal to the market-to-book ratio of Proxy Group of Seven Natural Gas Distribution Companies on May 28, 2021 as appropriate.
E33: (6) | F33: Column [3] multiplied by Column [5].
B36: Source of Information: | C36: =CONCATENATE(YEAR(Input!G49)," Annual Forms 10K") -> 2020 Annual Forms 10K
C37: yahoo.finance.com
C38: Bloomberg Professional

Sheet 8.1 Equity Contributions
A1: =Input!G28 -> Atmos Energy Corporation
A2: Derivation of the Flotation Cost Adjustment to the Cost of Common Equity
A5: Equity Issuances and Flotation Costs for FY 2019, 2018, 2017, and 2016
E8: [Column 1] | G8: [Column 2] | I8: [Column 3] | K8: [Column 4] | M8: [Column 5] | O8: [Column 6] | Q8: [Column 7]
A10: Fiscal Year | C10: Transaction (1) | E10: Shares Issued | G10: Average Offering Price per Share (2) | I10: Net Proceeds per Share (3) | K10: Gross Equity Issue before Costs | M10: Total Net Proceeds | O10: Total Flotation Costs (4) | Q10: Flotation Cost Percentage (5)
A12: 2019 | C12: At the Market Equity Offering | E12: 5390836 | G12: =K12/E12 -> 92.74999277 | I12: =M12/E12 -> 91.65554285 | K12: 500000000 | M12: 494100000 | O12: =K12-M12 -> 5900000 | Q12: =(K12-M12)/K12 -> 0.0118
A14: 2018 | C14: At the Market Equity Offering | E14: 4558404 | G14: =K14/E14 -> 87.75001075 | I14: =M14/E14 -> 86.67507312 | K14: 400000000 | M14: 395100000 | O14: =K14-M14 -> 4900000 | Q14: =(K14-M14)/K14 -> 0.01225
A16: 2017 | C16: At the Market Equity Offering | E16: 1303494 | G16: =K16/E16 -> 76.71688554 | I16: =M16/E16 -> 75.79628291 | K16: 100000000 | M16: 98800000 | O16: =K16-M16 -> 1200000 | Q16: =(K16-M16)/K16 -> 0.012
A18: 2016 | C18: At the Market Equity Offering | E18: 1360756 | G18: =K18/E18 -> 73.48856077 | I18: =M18/E18 -> 72.45972092 | K18: 100000000 | M18: 98600000 | O18: =K18-M18 -> 1400000 | Q18: =(K18-M18)/K18 -> 0.014
K21: =SUM(K12:K19) -> 1100000000 | M21: =SUM(M12:M19) -> 1086600000 | O21: =SUM(O11:O19) -> 13400000 | Q21: =(K21-M21)/K21 -> 0.01218181818
A23: Flotation Cost Adjustment
C25: Average Dividend Yield | E25: Average Projected EPS Growth Rate | G25: Adjusted Dividend Yield | I25: Average DCF Cost Rate Unadjusted for Flotation (6) | K25: DCF Cost Rate Adjusted for Flotation (7) | M25: Flotation Cost Adjustment (8)
A26: =Input!I31 -> Proxy Group of Seven Natural Gas Distribution Companies | C26: =ROUND(AVERAGE('2.1 DCF Summary'!D9:D15),2) -> 3.44 | D26: % | E26: =ROUND(AVERAGE('2.1 DCF Summary'!S9:S15),2) -> 6.02 | F26: % | G26: =ROUND(C26*(1+(0.5*(E26/100))),2) -> 3.54 | H26: % | I26: =G26+E26 -> 9.56 | J26: % | K26: =(G26/(1-$Q$21))+E26 -> 9.603655439 | L26: % | M26: =K26-I26 -> 0.04365543898 | N26: %
A30: See page 2 of this Schedule for notes.
A32: Source of Information: Company SEC filings

Sheet Input
A1: Utility Proxy Group | B1: Proxy Company - Exchange | C1: CEM Proxy Group | E1: Growth Rate Input Date
A2: ATO | B2: NYSE | C2: AAPL | E2: 2021-05-28
A3: NJR | B3: NYSE | C3: ABT
A4: NWN | B4: NYSE | C4: AIZ | E4: User Computer Title
A5: OGS | B5: NYSE | C5: ANSS
A6: SJI | B6: NYSE | C6: BAH
A7: SWX | B7: NYSE | C7: BDX | E7: Recommended Common Equity Cost Rate
A8: SR | B8: NYSE | C8: BFB
C9: BR
C10: BRC | E10: DATA INPUTS
C11: CACI
C12: CASY | E12: Capital Structure | G12: Source:
C13: CDNS | E13: Debt % | F13: 0.4277 | G13: Company
C14: CERN | E14: Equity % | F14: 0.5705 | G14: Company
C15: CSWI | E15: Short-Term Debt % | F15: 0.0018 | G15: Company
C16: DGX | E16: Debt Cost (%) | F16: 0.04 | G16: Company
C17: EL | E17: Short-Term Debt Cost (%) | F17: 0.2517 | G17: Company
C18: EXPO
C19: FAST
C20: GNTX | E20: SBBI (1926-2020) | G20: Notes:
C21: IFF | E21: SBBI Common Stocks Total Return (%) | F21: 12.2 | G21: Update annually from Stocks, Bonds, Bills, and Inflation - Ibbotson® SBBI® Market Report
C22: INGR | E22: SBBI Long-Term Gov't Bonds Income (%) | F22: 5.05 | G22: Update annually from Stocks, Bonds, Bills, and Inflation - Ibbotson® SBBI® Market Report
C23: IRM
C24: JBHT | E24: VL Appr Potential Week Ending: | G24: PRPM Date ("Month Year") | I24: Blue Chip Update Date ("Month Day, Year")
C25: JJSF | E25: 5/28/2021 | G25: May 2021 | I25: June 1, 2021
C26: JKHY
C27: MANT | E27: S&P Utilties Index Companies | G27: Company Name | I27: Abbreviated
C28: MKC | E28: AEE | G28: Atmos Energy Corporation | I28: Atmos Energy
C29: MO | E29: AEP
C30: MSA | E30: AES | G30: Regulatory Jurisdiction
C31: MSCI | E31: ATO | G31: Kentucky Public Service Commission | I31: Proxy Group of Seven Natural Gas Distribution Companies
C32: MSI | E32: AWK | I32: Proxy Group of Forty-Eight Non-Price Regulated Companies
C33: MTN | E33: CMS | G33: Industry ("Natural Gas", "Water", "Electric")
C34: MXIM | E34: CNP | G34: Natural Gas
C35: NOC | E35: D
C36: ODFL | E36: DTE | G36: Common Stock Shares Outstanding at Fiscal Year End
C37: PKI | E37: DUK | G37: NA
C38: PM | E38: ED
C39: POOL | E39: EIX | G39: Book Value per Share at Fiscal Year End
C40: POST | E40: ES | G40: NA
C41: RLI | E41: ETR
C42: ROL | E42: EVRG | G42: Rate Base
C43: SIGI | E43: EXC | G43: 596029514
C44: SIRI | E44: FE
C45: TECH | E45: LNT | G45: Closing Stock Market Price
C46: TTEK | E46: NEE | G46: NA
C47: WAT | E47: NI
C48: WST | E48: NRG | G48: Date of Annual Report Filing ("'Month Day, Year")
C49: WU | E49: PEG | G49: September 30, 2020
E50: PNW
E51: PPL | G51: Business Risk Adjustment
E52: SO | G52: NA
E53: SRE
E54: WEC
E55: XEL
A57: =COUNTA(A2:A26) -> 7 | C57: =COUNTA(C2:C53) -> 48

Sheet Market Data
A1: Bond Index - Date | B1: 2021-05-28 | C1: 2021-04-30 | D1: 2021-03-31
A2: MOODUAA Index | B2: 3.17 | C2: 3.13 | D2: 3.27 | E2: =B3-B2 -> 0.16 | F2: =C3-C2 -> 0.17 | G2: 0.17 | H2: =AVERAGE(E2:G2) -> 0.1666666667 | I2: =H2/3 -> 0.05555555556
A3: MOODUA Index | B3: 3.33 | C3: 3.3 | D3: 3.44 | E3: =B4-B3 -> 0.25 | F3: =C4-C3 -> 0.27 | G3: =D4-D3 -> 0.28 | H3: =AVERAGE(E3:G3) -> 0.2666666667 | I3: =H3/6 -> 0.04444444444
A4: MOODUBAA Index | B4: 3.58 | C4: 3.57 | D4: 3.72 | I4: =ROUND(I3+I2,2) -> 0.1
A5: MOODCAAA Index | B5: 2.96 | C5: 2.9 | D5: 3.04
A6: MOODCAA Index | B6: 3.07 | C6: 3.03 | D6: 3.17
A7: MOODCA Index | B7: 3.27 | C7: 3.24 | D7: 3.37
A8: MOODCBAA Index | B8: 3.62 | C8: 3.6 | D8: 3.74
A10: Historical Risk Premium Data
A11: Arithmetic Mean of Monthly Returns on Large Company Common Stocks (1928 - 2020) | B11: 0.1194
A12: Arithmetic Mean of Moody's Aaa and Aa Corporate Bond Yields (1928 - 2020) | B12: 0.0602
A13: Arithmetic Mean Holding Period Returns on the S&P Utility Index (1928 - 2020) | B13: 0.1065
A14: Arithmetic Mean on Moody's A Rated Public Utility Bond Yields (1928 - 2020) | B14: 0.0649

Sheet Proxy Data Lookup
C1: EPS Growth Rates | G1: Beta | J1: Annual Div. | K1: Value Line Beta Calculation | O1: Bond Ratings
A2: Ticker | B2: Company Name | C2: Zacks | D2: Yahoo | E2: Bloomberg | F2: Value Line | G2: Value Line | H2: Bloomberg | I2: Unadjusted | K2: R Factor | L2: Std. Error | M2: Std. Dev Y | N2: Std. Dev Beta | O2: S&P | P2: Moody's | R2: S&P | S2: Moody's | V2: S&P | W2: Moody's
A3: =Input!A2 -> ATO | B3: Atmos Energy Corporation | C3: 0.073 | D3: 0.0717 | E3: 0.07098 | F3: 0.07 | G3: 0.8 | H3: 0.9149298668 | I3: 0.66 | J3: 2.5 | K3: 0.5168 | L3: 2.7453 | M3: 3.2005 | N3: 0.0685 | O3: A- | P3: A1 | R3: BBB | S3: NR | T3: Elizabethtown Gas Company | U3: SJI | V3: =IFERROR(VLOOKUP(R3,'3.6 MOODY_S&P numbericl'!$F$6:$H$26,3,FALSE),"NR") -> 9 | W3: =IFERROR(VLOOKUP(S3,'3.6 MOODY_S&P numbericl'!$B$6:$D$26,3,FALSE),"NR") -> NR
A4: =Input!A3 -> NJR | B4: New Jersey Resources Corporation | C4: 0.071 | D4: 0.06 | E4: 0.07325 | F4: 0.02 | G4: 0.95 | H4: 0.9666429162 | I4: 0.92 | J4: 1.33 | K4: 0.6069 | L4: 3.0205 | M4: 3.7932 | N4: 0.0754 | O4: NR | P4: A1 | R4: BBB | S4: A3 | T4: South Jersey Gas Company | U4: SJI | V4: =IFERROR(VLOOKUP(R4,'3.6 MOODY_S&P numbericl'!$F$6:$H$26,3,FALSE),"NR") -> 9 | W4: =IFERROR(VLOOKUP(S4,'3.6 MOODY_S&P numbericl'!$B$6:$D$26,3,FALSE),"NR") -> 7
A5: =Input!A4 -> NWN | B5: Northwest Natural Holding Company | C5: 0.039 | D5: 0.038 | E5: 0.0442 | F5: 0.055 | G5: 0.8 | H5: 0.8463638425 | I5: 0.69 | J5: 1.92 | K5: 0.4791 | L5: 3.1454 | M5: 3.5765 | N5: 0.0785 | O5: A+ | P5: Baa1 | V5: =AVERAGE(V3:V4) -> 9 | W5: =AVERAGE(W3:W4) -> 7
A6: =Input!A5 -> OGS | B6: ONE Gas, Inc. | C6: 0.05 | D6: 0.05 | E6: 0.05667 | F6: 0.065 | G6: 0.8 | H6: 1.000374436 | I6: 0.67 | J6: 2.32 | K6: 0.5278 | L6: 2.7077 | M6: 3.1816 | N6: 0.0676 | O6: BBB+ | P6: A3
A7: =Input!A6 -> SJI | B7: South Jersey Industries, Inc. | C7: 0.054 | D7: 0.048 | E7: 0.0493 | F7: 0.115 | G7: 1.05 | H7: 0.9836127758 | I7: 1 | J7: 1.21 | K7: 0.5839 | L7: 3.4767 | M7: 4.2742 | N7: 0.0868 | O7: BBB | P7: A3 | R7: A- | S7: Baa1 | T7: Southwest Gas Corporation | U7: SWX | V7: =IFERROR(VLOOKUP(R7,'3.6 MOODY_S&P numbericl'!$F$6:$H$26,3,FALSE),"NR") -> 7 | W7: =IFERROR(VLOOKUP(S7,'3.6 MOODY_S&P numbericl'!$B$6:$D$26,3,FALSE),"NR") -> 8
A8: =Input!A7 -> SWX | B8: Southwest Gas Holdings, Inc. | C8: 0.055 | D8: 0.04 | E8: 0.045 | F8: 0.09 | G8: 0.95 | H8: 1.088230252 | I8: 0.88 | J8: 2.38 | K8: 0.5892 | L8: 3.0244 | M8: 3.736 | N8: 0.0755 | O8: A- | P8: Baa1
A9: =Input!A8 -> SR | B9: Spire Inc. | C9: 0.055 | D9: 0.0731 | E9: 0.0533 | F9: 0.1 | G9: 0.85 | H9: 0.9955041409 | I9: 0.71 | J9: 2.6 | K9: 0.5339 | L9: 2.8287 | M9: 3.3389 | N9: 0.0706 | O9: A- | P9: A1/A2 | R9: A- | S9: A2 | T9: Spire Alabama Inc. | U9: SR | V9: =IFERROR(VLOOKUP(R9,'3.6 MOODY_S&P numbericl'!$F$6:$H$26,3,FALSE),"NR") -> 7 | W9: =IFERROR(VLOOKUP(S9,'3.6 MOODY_S&P numbericl'!$B$6:$D$26,3,FALSE),"NR") -> 6
R10: A- | S10: A1 | T10: Spire Missouri Inc. | U10: SR | V10: =IFERROR(VLOOKUP(R10,'3.6 MOODY_S&P numbericl'!$F$6:$H$26,3,FALSE),"NR") -> 7 | W10: =IFERROR(VLOOKUP(S10,'3.6 MOODY_S&P numbericl'!$B$6:$D$26,3,FALSE),"NR") -> 5
V11: =AVERAGE(V9:V10) -> 7 | W11: =AVERAGE(W9:W10) -> 5.5

Sheet Proxy Price Data
B1: Tickers | C1: ATO | D1: NJR | E1: NWN | F1: OGS | G1: SJI | H1: SWX | I1: SR
B2: PX_LAST | C2: ATO US Equity | D2: NJR US Equity | E2: NWN US Equity | F2: OGS US Equity | G2: SJI US Equity | H2: SWX US Equity | I2: SR US Equity
A3: 1 | B3: 2021-05-28 | C3: 99.17 | D3: 42.72 | E3: 52.88 | F3: 74.32 | G3: 26.66 | H3: 66.01 | I3: 71.66
A4: =A3+1 -> 2 | B4: 2021-05-27 | C4: 99.16 | D4: 42.55 | E4: 52.95 | F4: 74.75 | G4: 26.29 | H4: 65.93 | I4: 71.77
A5: =A4+1 -> 3 | B5: 2021-05-26 | C5: 98.62 | D5: 42.64 | E5: 53.31 | F5: 74.94 | G5: 26.36 | H5: 66.57 | I5: 72.35
A6: 4 | B6: 2021-05-25 | C6: 98.29 | D6: 42.31 | E6: 52.83 | F6: 74.28 | G6: 25.95 | H6: 66.61 | I6: 71.89
A7: 5 | B7: 2021-05-24 | C7: 98.43 | D7: 43.29 | E7: 53.48 | F7: 74.3 | G7: 26.47 | H7: 66.56 | I7: 73.13
A8: 6 | B8: 2021-05-21 | C8: 98.18 | D8: 42.73 | E8: 53.07 | F8: 74.01 | G8: 26.1 | H8: 66.25 | I8: 72.74
A9: 7 | B9: 2021-05-20 | C9: 98.32 | D9: 42.49 | E9: 53.64 | F9: 73.61 | G9: 25.97 | H9: 66.97 | I9: 72.92
A10: 8 | B10: 2021-05-19 | C10: 98.11 | D10: 42.51 | E10: 53.77 | F10: 73.03 | G10: 25.74 | H10: 66.49 | I10: 72.8
A11: 9 | B11: 2021-05-18 | C11: 99.14 | D11: 42.34 | E11: 54.49 | F11: 73.85 | G11: 25.75 | H11: 67.75 | I11: 73.72
A12: 10 | B12: 2021-05-17 | C12: 98.51 | D12: 42.59 | E12: 54.22 | F12: 74.2 | G12: 25.66 | H12: 68.88 | I12: 74.48
A13: 11 | B13: 2021-05-14 | C13: 100.46 | D13: 43.17 | E13: 54.67 | F13: 75.8 | G13: 25.75 | H13: 69.86 | I13: 75.47
A14: 12 | B14: 2021-05-13 | C14: 100.61 | D14: 43.11 | E14: 55.04 | F14: 76.9 | G14: 25.72 | H14: 71.75 | I14: 75.5
A15: 13 | B15: 2021-05-12 | C15: 99.25 | D15: 41.8 | E15: 53.28 | F15: 75.67 | G15: 24.89 | H15: 68.89 | I15: 73.99
A16: 14 | B16: 2021-05-11 | C16: 101.31 | D16: 43.36 | E16: 54.69 | F16: 78.27 | G16: 25.85 | H16: 70.7 | I16: 76.59
A17: 15 | B17: 2021-05-10 | C17: 103.51 | D17: 43.43 | E17: 55.28 | F17: 79.15 | G17: 25.79 | H17: 71.9 | I17: 77.29
A18: 16 | B18: 2021-05-07 | C18: 103 | D18: 43.51 | E18: 55.09 | F18: 78.39 | G18: 25.77 | H18: 70.37 | I18: 75.89
A19: 17 | B19: 2021-05-06 | C19: 103.35 | D19: 43 | E19: 54.67 | F19: 78.1 | G19: 25.45 | H19: 70.18 | I19: 76.41
A20: 18 | B20: 2021-05-05 | C20: 102.53 | D20: 42.03 | E20: 54.01 | F20: 77.77 | G20: 25.19 | H20: 69.33 | I20: 75.3
A21: 19 | B21: 2021-05-04 | C21: 103.55 | D21: 42.86 | E21: 54.04 | F21: 79.78 | G21: 25.33 | H21: 70.26 | I21: 75.88
A22: 20 | B22: 2021-05-03 | C22: 103.79 | D22: 43.13 | E22: 54.4 | F22: 80.58 | G22: 25.57 | H22: 70.91 | I22: 75.9
A23: 21 | B23: 2021-04-30 | C23: 103.59 | D23: 41.95 | E23: 53.92 | F23: 80.47 | G23: 24.75 | H23: 69.72 | I23: 75.34
A24: 22 | B24: 2021-04-29 | C24: 102.18 | D24: 42.21 | E24: 53.86 | F24: 80.09 | G24: 25.1 | H24: 69.84 | I24: 75.07
A25: 23 | B25: 2021-04-28 | C25: 100.3 | D25: 41.58 | E25: 53.77 | F25: 78.95 | G25: 24.87 | H25: 69.28 | I25: 74.46
A26: 24 | B26: 2021-04-27 | C26: 101.48 | D26: 41.74 | E26: 53.57 | F26: 78.77 | G26: 24.19 | H26: 69.24 | I26: 75.02
A27: 25 | B27: 2021-04-26 | C27: 102.41 | D27: 42.23 | E27: 54.47 | F27: 80.05 | G27: 24.43 | H27: 70.9 | I27: 75.49
A28: 26 | B28: 2021-04-23 | C28: 103.35 | D28: 42.86 | E28: 55.26 | F28: 81.26 | G28: 24.92 | H28: 71.93 | I28: 76.37
A29: 27 | B29: 2021-04-22 | C29: 103.4 | D29: 42.37 | E29: 55.71 | F29: 81.16 | G29: 24.77 | H29: 71.92 | I29: 76.71
A30: 28 | B30: 2021-04-21 | C30: 103.39 | D30: 42.85 | E30: 56.15 | F30: 80.84 | G30: 24.99 | H30: 72.96 | I30: 77.38
A31: 29 | B31: 2021-04-20 | C31: 104.59 | D31: 42.8 | E31: 56.39 | F31: 81.37 | G31: 24.62 | H31: 72.9 | I31: 77.48
A32: 30 | B32: 2021-04-19 | C32: 101.84 | D32: 42.06 | E32: 54.95 | F32: 80.55 | G32: 24.43 | H32: 71.87 | I32: 77.16
A33: 31 | B33: 2021-04-16 | C33: 101.82 | D33: 42.11 | E33: 55.48 | F33: 80.62 | G33: 24.65 | H33: 72.38 | I33: 77.26
A34: 32 | B34: 2021-04-15 | C34: 101.32 | D34: 41.68 | E34: 55.34 | F34: 79.85 | G34: 24.52 | H34: 72.32 | I34: 77.4
A35: 33 | B35: 2021-04-14 | C35: 100.13 | D35: 41.43 | E35: 54.7 | F35: 78.21 | G35: 24.21 | H35: 70.65 | I35: 76.19
A36: 34 | B36: 2021-04-13 | C36: 99.09 | D36: 40.74 | E36: 53.91 | F36: 77.81 | G36: 24.27 | H36: 69.76 | I36: 76.2
A37: 35 | B37: 2021-04-12 | C37: 99.36 | D37: 41.15 | E37: 54.72 | F37: 78.38 | G37: 24.24 | H37: 69.84 | I37: 76.79
A38: 36 | B38: 2021-04-09 | C38: 99.13 | D38: 40.81 | E38: 54.4 | F38: 77.99 | G38: 24.62 | H38: 69.2 | I38: 76.16
A39: 37 | B39: 2021-04-08 | C39: 98.32 | D39: 41.53 | E39: 54.22 | F39: 77.85 | G39: 24.61 | H39: 69.37 | I39: 75.73
A40: 38 | B40: 2021-04-07 | C40: 98.23 | D40: 41.35 | E40: 54.14 | F40: 77.39 | G40: 24.25 | H40: 69.54 | I40: 74.74
A41: 39 | B41: 2021-04-06 | C41: 98.26 | D41: 40.7 | E41: 53.72 | F41: 77.32 | G41: 23.64 | H41: 68.96 | I41: 74.48
A42: 40 | B42: 2021-04-05 | C42: 98.62 | D42: 40.21 | E42: 53.47 | F42: 77.32 | G42: 22.99 | H42: 68.74 | I42: 74.1
A43: 41 | B43: 2021-04-01 | C43: 98.24 | D43: 39.93 | E43: 53.07 | F43: 76.81 | G43: 23.06 | H43: 68.24 | I43: 73.37
A44: 42 | B44: 2021-03-31 | C44: 98.85 | D44: 39.87 | E44: 53.95 | F44: 76.91 | G44: 22.58 | H44: 68.71 | I44: 73.89
A45: 43 | B45: 2021-03-30 | C45: 98.89 | D45: 40.5 | E45: 53.69 | F45: 76.06 | G45: 22.94 | H45: 69.1 | I45: 73.88
A46: 44 | B46: 2021-03-29 | C46: 98.85 | D46: 40.66 | E46: 53.88 | F46: 76.27 | G46: 22.67 | H46: 69.33 | I46: 73.62
A47: 45 | B47: 2021-03-26 | C47: 97.24 | D47: 39.77 | E47: 52.63 | F47: 74.99 | G47: 22.25 | H47: 67.26 | I47: 74.05
A48: 46 | B48: 2021-03-25 | C48: 97.08 | D48: 40.12 | E48: 52.7 | F48: 75.22 | G48: 22.58 | H48: 68.51 | I48: 72.99
A49: 47 | B49: 2021-03-24 | C49: 95.85 | D49: 39.97 | E49: 53.11 | F49: 74.47 | G49: 22.41 | H49: 68.56 | I49: 72.26
A50: 48 | B50: 2021-03-23 | C50: 94.18 | D50: 39.38 | E50: 51.23 | F50: 73.31 | G50: 22.56 | H50: 67.22 | I50: 71.6
A51: 49 | B51: 2021-03-22 | C51: 93.54 | D51: 40.51 | E51: 50.05 | F51: 73.11 | G51: 22.79 | H51: 66.5 | I51: 72.35
A52: 50 | B52: 2021-03-19 | C52: 94.09 | D52: 41.61 | E52: 52.96 | F52: 74.74 | G52: 22.57 | H52: 67.8 | I52: 73.74
A53: 51 | B53: 2021-03-18 | C53: 93.53 | D53: 40.25 | E53: 51.44 | F53: 74.71 | G53: 21.51 | H53: 67.12 | I53: 74.1
A54: 52 | B54: 2021-03-17 | C54: 92.43 | D54: 39.48 | E54: 50.57 | F54: 74.77 | G54: 22.5 | H54: 66.07 | I54: 73.48
A55: 53 | B55: 2021-03-16 | C55: 93.8 | D55: 42.14 | E55: 53.36 | F55: 77.53 | G55: 27.82 | H55: 67.26 | I55: 75.53
A56: 54 | B56: 2021-03-15 | C56: 93.19 | D56: 42.42 | E56: 54.15 | F56: 77.03 | G56: 28.64 | H56: 66.27 | I56: 74.64
A57: 55 | B57: 2021-03-12 | C57: 91.42 | D57: 41.48 | E57: 53.22 | F57: 75.13 | G57: 27.93 | H57: 65.33 | I57: 75.13
A58: 56 | B58: 2021-03-11 | C58: 89.88 | D58: 40.69 | E58: 52.12 | F58: 73.75 | G58: 27.46 | H58: 65.51 | I58: 72.87
A59: 57 | B59: 2021-03-10 | C59: 90.81 | D59: 40.86 | E59: 53.01 | F59: 74.44 | G59: 28.8 | H59: 67.95 | I59: 72.47
A60: 58 | B60: 2021-03-09 | C60: 89.34 | D60: 40.24 | E60: 52.25 | F60: 73.39 | G60: 28.05 | H60: 68.69 | I60: 71.97
A61: 59 | B61: 2021-03-08 | C61: 91.64 | D61: 41.05 | E61: 53.74 | F61: 75.02 | G61: 28.34 | H61: 71.08 | I61: 72.77
A62: 60 | B62: 2021-03-05 | C62: 91.71 | D62: 40.22 | E62: 51.71 | F62: 73.6 | G62: 26.68 | H62: 69.28 | I62: 70.92

Sheet Proxy Prices
B4: ATO | C4: NJR | D4: NWN | E4: OGS | F4: SJI | G4: SWX | H4: SR
A5: =IF('Proxy Price Data'!B2="","",'Proxy Price Data'!B2) -> PX_LAST | B5: =IF('Proxy Price Data'!C2="","",'Proxy Price Data'!C2) -> ATO US Equity | C5: =IF('Proxy Price Data'!D2="","",'Proxy Price Data'!D2) -> NJR US Equity | D5: =IF('Proxy Price Data'!E2="","",'Proxy Price Data'!E2) -> NWN US Equity | E5: =IF('Proxy Price Data'!F2="","",'Proxy Price Data'!F2) -> OGS US Equity | F5: =IF('Proxy Price Data'!G2="","",'Proxy Price Data'!G2) -> SJI US Equity | G5: =IF('Proxy Price Data'!H2="","",'Proxy Price Data'!H2) -> SWX US Equity | H5: =IF('Proxy Price Data'!I2="","",'Proxy Price Data'!I2) -> SR US Equity
A6: =IF('Proxy Price Data'!B3="","",'Proxy Price Data'!B3) -> 2021-05-28 | B6: =IF('Proxy Price Data'!C3="","",'Proxy Price Data'!C3) -> 99.17 | C6: =IF('Proxy Price Data'!D3="","",'Proxy Price Data'!D3) -> 42.72 | D6: =IF('Proxy Price Data'!E3="","",'Proxy Price Data'!E3) -> 52.88 | E6: =IF('Proxy Price Data'!F3="","",'Proxy Price Data'!F3) -> 74.32 | F6: =IF('Proxy Price Data'!G3="","",'Proxy Price Data'!G3) -> 26.66 | G6: =IF('Proxy Price Data'!H3="","",'Proxy Price Data'!H3) -> 66.01 | H6: =IF('Proxy Price Data'!I3="","",'Proxy Price Data'!I3) -> 71.66
A7: =IF('Proxy Price Data'!B4="","",'Proxy Price Data'!B4) -> 2021-05-27 | B7: =IF('Proxy Price Data'!C4="","",'Proxy Price Data'!C4) -> 99.16 | C7: =IF('Proxy Price Data'!D4="","",'Proxy Price Data'!D4) -> 42.55 | D7: =IF('Proxy Price Data'!E4="","",'Proxy Price Data'!E4) -> 52.95 | E7: =IF('Proxy Price Data'!F4="","",'Proxy Price Data'!F4) -> 74.75 | F7: =IF('Proxy Price Data'!G4="","",'Proxy Price Data'!G4) -> 26.29 | G7: =IF('Proxy Price Data'!H4="","",'Proxy Price Data'!H4) -> 65.93 | H7: =IF('Proxy Price Data'!I4="","",'Proxy Price Data'!I4) -> 71.77
A8: =IF('Proxy Price Data'!B5="","",'Proxy Price Data'!B5) -> 2021-05-26 | B8: =IF('Proxy Price Data'!C5="","",'Proxy Price Data'!C5) -> 98.62 | C8: =IF('Proxy Price Data'!D5="","",'Proxy Price Data'!D5) -> 42.64 | D8: =IF('Proxy Price Data'!E5="","",'Proxy Price Data'!E5) -> 53.31 | E8: =IF('Proxy Price Data'!F5="","",'Proxy Price Data'!F5) -> 74.94 | F8: =IF('Proxy Price Data'!G5="","",'Proxy Price Data'!G5) -> 26.36 | G8: =IF('Proxy Price Data'!H5="","",'Proxy Price Data'!H5) -> 66.57 | H8: =IF('Proxy Price Data'!I5="","",'Proxy Price Data'!I5) -> 72.35
A9: =IF('Proxy Price Data'!B6="","",'Proxy Price Data'!B6) -> 2021-05-25 | B9: =IF('Proxy Price Data'!C6="","",'Proxy Price Data'!C6) -> 98.29 | C9: =IF('Proxy Price Data'!D6="","",'Proxy Price Data'!D6) -> 42.31 | D9: =IF('Proxy Price Data'!E6="","",'Proxy Price Data'!E6) -> 52.83 | E9: =IF('Proxy Price Data'!F6="","",'Proxy Price Data'!F6) -> 74.28 | F9: =IF('Proxy Price Data'!G6="","",'Proxy Price Data'!G6) -> 25.95 | G9: =IF('Proxy Price Data'!H6="","",'Proxy Price Data'!H6) -> 66.61 | H9: =IF('Proxy Price Data'!I6="","",'Proxy Price Data'!I6) -> 71.89
A10: =IF('Proxy Price Data'!B7="","",'Proxy Price Data'!B7) -> 2021-05-24 | B10: =IF('Proxy Price Data'!C7="","",'Proxy Price Data'!C7) -> 98.43 | C10: =IF('Proxy Price Data'!D7="","",'Proxy Price Data'!D7) -> 43.29 | D10: =IF('Proxy Price Data'!E7="","",'Proxy Price Data'!E7) -> 53.48 | E10: =IF('Proxy Price Data'!F7="","",'Proxy Price Data'!F7) -> 74.3 | F10: =IF('Proxy Price Data'!G7="","",'Proxy Price Data'!G7) -> 26.47 | G10: =IF('Proxy Price Data'!H7="","",'Proxy Price Data'!H7) -> 66.56 | H10: =IF('Proxy Price Data'!I7="","",'Proxy Price Data'!I7) -> 73.13
A11: =IF('Proxy Price Data'!B8="","",'Proxy Price Data'!B8) -> 2021-05-21 | B11: =IF('Proxy Price Data'!C8="","",'Proxy Price Data'!C8) -> 98.18 | C11: =IF('Proxy Price Data'!D8="","",'Proxy Price Data'!D8) -> 42.73 | D11: =IF('Proxy Price Data'!E8="","",'Proxy Price Data'!E8) -> 53.07 | E11: =IF('Proxy Price Data'!F8="","",'Proxy Price Data'!F8) -> 74.01 | F11: =IF('Proxy Price Data'!G8="","",'Proxy Price Data'!G8) -> 26.1 | G11: =IF('Proxy Price Data'!H8="","",'Proxy Price Data'!H8) -> 66.25 | H11: =IF('Proxy Price Data'!I8="","",'Proxy Price Data'!I8) -> 72.74
A12: =IF('Proxy Price Data'!B9="","",'Proxy Price Data'!B9) -> 2021-05-20 | B12: =IF('Proxy Price Data'!C9="","",'Proxy Price Data'!C9) -> 98.32 | C12: =IF('Proxy Price Data'!D9="","",'Proxy Price Data'!D9) -> 42.49 | D12: =IF('Proxy Price Data'!E9="","",'Proxy Price Data'!E9) -> 53.64 | E12: =IF('Proxy Price Data'!F9="","",'Proxy Price Data'!F9) -> 73.61 | F12: =IF('Proxy Price Data'!G9="","",'Proxy Price Data'!G9) -> 25.97 | G12: =IF('Proxy Price Data'!H9="","",'Proxy Price Data'!H9) -> 66.97 | H12: =IF('Proxy Price Data'!I9="","",'Proxy Price Data'!I9) -> 72.92
A13: =IF('Proxy Price Data'!B10="","",'Proxy Price Data'!B10) -> 2021-05-19 | B13: =IF('Proxy Price Data'!C10="","",'Proxy Price Data'!C10) -> 98.11 | C13: =IF('Proxy Price Data'!D10="","",'Proxy Price Data'!D10) -> 42.51 | D13: =IF('Proxy Price Data'!E10="","",'Proxy Price Data'!E10) -> 53.77 | E13: =IF('Proxy Price Data'!F10="","",'Proxy Price Data'!F10) -> 73.03 | F13: =IF('Proxy Price Data'!G10="","",'Proxy Price Data'!G10) -> 25.74 | G13: =IF('Proxy Price Data'!H10="","",'Proxy Price Data'!H10) -> 66.49 | H13: =IF('Proxy Price Data'!I10="","",'Proxy Price Data'!I10) -> 72.8
A14: =IF('Proxy Price Data'!B11="","",'Proxy Price Data'!B11) -> 2021-05-18 | B14: =IF('Proxy Price Data'!C11="","",'Proxy Price Data'!C11) -> 99.14 | C14: =IF('Proxy Price Data'!D11="","",'Proxy Price Data'!D11) -> 42.34 | D14: =IF('Proxy Price Data'!E11="","",'Proxy Price Data'!E11) -> 54.49 | E14: =IF('Proxy Price Data'!F11="","",'Proxy Price Data'!F11) -> 73.85 | F14: =IF('Proxy Price Data'!G11="","",'Proxy Price Data'!G11) -> 25.75 | G14: =IF('Proxy Price Data'!H11="","",'Proxy Price Data'!H11) -> 67.75 | H14: =IF('Proxy Price Data'!I11="","",'Proxy Price Data'!I11) -> 73.72
A15: =IF('Proxy Price Data'!B12="","",'Proxy Price Data'!B12) -> 2021-05-17 | B15: =IF('Proxy Price Data'!C12="","",'Proxy Price Data'!C12) -> 98.51 | C15: =IF('Proxy Price Data'!D12="","",'Proxy Price Data'!D12) -> 42.59 | D15: =IF('Proxy Price Data'!E12="","",'Proxy Price Data'!E12) -> 54.22 | E15: =IF('Proxy Price Data'!F12="","",'Proxy Price Data'!F12) -> 74.2 | F15: =IF('Proxy Price Data'!G12="","",'Proxy Price Data'!G12) -> 25.66 | G15: =IF('Proxy Price Data'!H12="","",'Proxy Price Data'!H12) -> 68.88 | H15: =IF('Proxy Price Data'!I12="","",'Proxy Price Data'!I12) -> 74.48
A16: =IF('Proxy Price Data'!B13="","",'Proxy Price Data'!B13) -> 2021-05-14 | B16: =IF('Proxy Price Data'!C13="","",'Proxy Price Data'!C13) -> 100.46 | C16: =IF('Proxy Price Data'!D13="","",'Proxy Price Data'!D13) -> 43.17 | D16: =IF('Proxy Price Data'!E13="","",'Proxy Price Data'!E13) -> 54.67 | E16: =IF('Proxy Price Data'!F13="","",'Proxy Price Data'!F13) -> 75.8 | F16: =IF('Proxy Price Data'!G13="","",'Proxy Price Data'!G13) -> 25.75 | G16: =IF('Proxy Price Data'!H13="","",'Proxy Price Data'!H13) -> 69.86 | H16: =IF('Proxy Price Data'!I13="","",'Proxy Price Data'!I13) -> 75.47
A17: =IF('Proxy Price Data'!B14="","",'Proxy Price Data'!B14) -> 2021-05-13 | B17: =IF('Proxy Price Data'!C14="","",'Proxy Price Data'!C14) -> 100.61 | C17: =IF('Proxy Price Data'!D14="","",'Proxy Price Data'!D14) -> 43.11 | D17: =IF('Proxy Price Data'!E14="","",'Proxy Price Data'!E14) -> 55.04 | E17: =IF('Proxy Price Data'!F14="","",'Proxy Price Data'!F14) -> 76.9 | F17: =IF('Proxy Price Data'!G14="","",'Proxy Price Data'!G14) -> 25.72 | G17: =IF('Proxy Price Data'!H14="","",'Proxy Price Data'!H14) -> 71.75 | H17: =IF('Proxy Price Data'!I14="","",'Proxy Price Data'!I14) -> 75.5
A18: =IF('Proxy Price Data'!B15="","",'Proxy Price Data'!B15) -> 2021-05-12 | B18: =IF('Proxy Price Data'!C15="","",'Proxy Price Data'!C15) -> 99.25 | C18: =IF('Proxy Price Data'!D15="","",'Proxy Price Data'!D15) -> 41.8 | D18: =IF('Proxy Price Data'!E15="","",'Proxy Price Data'!E15) -> 53.28 | E18: =IF('Proxy Price Data'!F15="","",'Proxy Price Data'!F15) -> 75.67 | F18: =IF('Proxy Price Data'!G15="","",'Proxy Price Data'!G15) -> 24.89 | G18: =IF('Proxy Price Data'!H15="","",'Proxy Price Data'!H15) -> 68.89 | H18: =IF('Proxy Price Data'!I15="","",'Proxy Price Data'!I15) -> 73.99
A19: =IF('Proxy Price Data'!B16="","",'Proxy Price Data'!B16) -> 2021-05-11 | B19: =IF('Proxy Price Data'!C16="","",'Proxy Price Data'!C16) -> 101.31 | C19: =IF('Proxy Price Data'!D16="","",'Proxy Price Data'!D16) -> 43.36 | D19: =IF('Proxy Price Data'!E16="","",'Proxy Price Data'!E16) -> 54.69 | E19: =IF('Proxy Price Data'!F16="","",'Proxy Price Data'!F16) -> 78.27 | F19: =IF('Proxy Price Data'!G16="","",'Proxy Price Data'!G16) -> 25.85 | G19: =IF('Proxy Price Data'!H16="","",'Proxy Price Data'!H16) -> 70.7 | H19: =IF('Proxy Price Data'!I16="","",'Proxy Price Data'!I16) -> 76.59
A20: =IF('Proxy Price Data'!B17="","",'Proxy Price Data'!B17) -> 2021-05-10 | B20: =IF('Proxy Price Data'!C17="","",'Proxy Price Data'!C17) -> 103.51 | C20: =IF('Proxy Price Data'!D17="","",'Proxy Price Data'!D17) -> 43.43 | D20: =IF('Proxy Price Data'!E17="","",'Proxy Price Data'!E17) -> 55.28 | E20: =IF('Proxy Price Data'!F17="","",'Proxy Price Data'!F17) -> 79.15 | F20: =IF('Proxy Price Data'!G17="","",'Proxy Price Data'!G17) -> 25.79 | G20: =IF('Proxy Price Data'!H17="","",'Proxy Price Data'!H17) -> 71.9 | H20: =IF('Proxy Price Data'!I17="","",'Proxy Price Data'!I17) -> 77.29
A21: =IF('Proxy Price Data'!B18="","",'Proxy Price Data'!B18) -> 2021-05-07 | B21: =IF('Proxy Price Data'!C18="","",'Proxy Price Data'!C18) -> 103 | C21: =IF('Proxy Price Data'!D18="","",'Proxy Price Data'!D18) -> 43.51 | D21: =IF('Proxy Price Data'!E18="","",'Proxy Price Data'!E18) -> 55.09 | E21: =IF('Proxy Price Data'!F18="","",'Proxy Price Data'!F18) -> 78.39 | F21: =IF('Proxy Price Data'!G18="","",'Proxy Price Data'!G18) -> 25.77 | G21: =IF('Proxy Price Data'!H18="","",'Proxy Price Data'!H18) -> 70.37 | H21: =IF('Proxy Price Data'!I18="","",'Proxy Price Data'!I18) -> 75.89
A22: =IF('Proxy Price Data'!B19="","",'Proxy Price Data'!B19) -> 2021-05-06 | B22: =IF('Proxy Price Data'!C19="","",'Proxy Price Data'!C19) -> 103.35 | C22: =IF('Proxy Price Data'!D19="","",'Proxy Price Data'!D19) -> 43 | D22: =IF('Proxy Price Data'!E19="","",'Proxy Price Data'!E19) -> 54.67 | E22: =IF('Proxy Price Data'!F19="","",'Proxy Price Data'!F19) -> 78.1 | F22: =IF('Proxy Price Data'!G19="","",'Proxy Price Data'!G19) -> 25.45 | G22: =IF('Proxy Price Data'!H19="","",'Proxy Price Data'!H19) -> 70.18 | H22: =IF('Proxy Price Data'!I19="","",'Proxy Price Data'!I19) -> 76.41
A23: =IF('Proxy Price Data'!B20="","",'Proxy Price Data'!B20) -> 2021-05-05 | B23: =IF('Proxy Price Data'!C20="","",'Proxy Price Data'!C20) -> 102.53 | C23: =IF('Proxy Price Data'!D20="","",'Proxy Price Data'!D20) -> 42.03 | D23: =IF('Proxy Price Data'!E20="","",'Proxy Price Data'!E20) -> 54.01 | E23: =IF('Proxy Price Data'!F20="","",'Proxy Price Data'!F20) -> 77.77 | F23: =IF('Proxy Price Data'!G20="","",'Proxy Price Data'!G20) -> 25.19 | G23: =IF('Proxy Price Data'!H20="","",'Proxy Price Data'!H20) -> 69.33 | H23: =IF('Proxy Price Data'!I20="","",'Proxy Price Data'!I20) -> 75.3
A24: =IF('Proxy Price Data'!B21="","",'Proxy Price Data'!B21) -> 2021-05-04 | B24: =IF('Proxy Price Data'!C21="","",'Proxy Price Data'!C21) -> 103.55 | C24: =IF('Proxy Price Data'!D21="","",'Proxy Price Data'!D21) -> 42.86 | D24: =IF('Proxy Price Data'!E21="","",'Proxy Price Data'!E21) -> 54.04 | E24: =IF('Proxy Price Data'!F21="","",'Proxy Price Data'!F21) -> 79.78 | F24: =IF('Proxy Price Data'!G21="","",'Proxy Price Data'!G21) -> 25.33 | G24: =IF('Proxy Price Data'!H21="","",'Proxy Price Data'!H21) -> 70.26 | H24: =IF('Proxy Price Data'!I21="","",'Proxy Price Data'!I21) -> 75.88
A25: =IF('Proxy Price Data'!B22="","",'Proxy Price Data'!B22) -> 2021-05-03 | B25: =IF('Proxy Price Data'!C22="","",'Proxy Price Data'!C22) -> 103.79 | C25: =IF('Proxy Price Data'!D22="","",'Proxy Price Data'!D22) -> 43.13 | D25: =IF('Proxy Price Data'!E22="","",'Proxy Price Data'!E22) -> 54.4 | E25: =IF('Proxy Price Data'!F22="","",'Proxy Price Data'!F22) -> 80.58 | F25: =IF('Proxy Price Data'!G22="","",'Proxy Price Data'!G22) -> 25.57 | G25: =IF('Proxy Price Data'!H22="","",'Proxy Price Data'!H22) -> 70.91 | H25: =IF('Proxy Price Data'!I22="","",'Proxy Price Data'!I22) -> 75.9
A26: =IF('Proxy Price Data'!B23="","",'Proxy Price Data'!B23) -> 2021-04-30 | B26: =IF('Proxy Price Data'!C23="","",'Proxy Price Data'!C23) -> 103.59 | C26: =IF('Proxy Price Data'!D23="","",'Proxy Price Data'!D23) -> 41.95 | D26: =IF('Proxy Price Data'!E23="","",'Proxy Price Data'!E23) -> 53.92 | E26: =IF('Proxy Price Data'!F23="","",'Proxy Price Data'!F23) -> 80.47 | F26: =IF('Proxy Price Data'!G23="","",'Proxy Price Data'!G23) -> 24.75 | G26: =IF('Proxy Price Data'!H23="","",'Proxy Price Data'!H23) -> 69.72 | H26: =IF('Proxy Price Data'!I23="","",'Proxy Price Data'!I23) -> 75.34
A27: =IF('Proxy Price Data'!B24="","",'Proxy Price Data'!B24) -> 2021-04-29 | B27: =IF('Proxy Price Data'!C24="","",'Proxy Price Data'!C24) -> 102.18 | C27: =IF('Proxy Price Data'!D24="","",'Proxy Price Data'!D24) -> 42.21 | D27: =IF('Proxy Price Data'!E24="","",'Proxy Price Data'!E24) -> 53.86 | E27: =IF('Proxy Price Data'!F24="","",'Proxy Price Data'!F24) -> 80.09 | F27: =IF('Proxy Price Data'!G24="","",'Proxy Price Data'!G24) -> 25.1 | G27: =IF('Proxy Price Data'!H24="","",'Proxy Price Data'!H24) -> 69.84 | H27: =IF('Proxy Price Data'!I24="","",'Proxy Price Data'!I24) -> 75.07
A28: =IF('Proxy Price Data'!B25="","",'Proxy Price Data'!B25) -> 2021-04-28 | B28: =IF('Proxy Price Data'!C25="","",'Proxy Price Data'!C25) -> 100.3 | C28: =IF('Proxy Price Data'!D25="","",'Proxy Price Data'!D25) -> 41.58 | D28: =IF('Proxy Price Data'!E25="","",'Proxy Price Data'!E25) -> 53.77 | E28: =IF('Proxy Price Data'!F25="","",'Proxy Price Data'!F25) -> 78.95 | F28: =IF('Proxy Price Data'!G25="","",'Proxy Price Data'!G25) -> 24.87 | G28: =IF('Proxy Price Data'!H25="","",'Proxy Price Data'!H25) -> 69.28 | H28: =IF('Proxy Price Data'!I25="","",'Proxy Price Data'!I25) -> 74.46
A29: =IF('Proxy Price Data'!B26="","",'Proxy Price Data'!B26) -> 2021-04-27 | B29: =IF('Proxy Price Data'!C26="","",'Proxy Price Data'!C26) -> 101.48 | C29: =IF('Proxy Price Data'!D26="","",'Proxy Price Data'!D26) -> 41.74 | D29: =IF('Proxy Price Data'!E26="","",'Proxy Price Data'!E26) -> 53.57 | E29: =IF('Proxy Price Data'!F26="","",'Proxy Price Data'!F26) -> 78.77 | F29: =IF('Proxy Price Data'!G26="","",'Proxy Price Data'!G26) -> 24.19 | G29: =IF('Proxy Price Data'!H26="","",'Proxy Price Data'!H26) -> 69.24 | H29: =IF('Proxy Price Data'!I26="","",'Proxy Price Data'!I26) -> 75.02
A30: =IF('Proxy Price Data'!B27="","",'Proxy Price Data'!B27) -> 2021-04-26 | B30: =IF('Proxy Price Data'!C27="","",'Proxy Price Data'!C27) -> 102.41 | C30: =IF('Proxy Price Data'!D27="","",'Proxy Price Data'!D27) -> 42.23 | D30: =IF('Proxy Price Data'!E27="","",'Proxy Price Data'!E27) -> 54.47 | E30: =IF('Proxy Price Data'!F27="","",'Proxy Price Data'!F27) -> 80.05 | F30: =IF('Proxy Price Data'!G27="","",'Proxy Price Data'!G27) -> 24.43 | G30: =IF('Proxy Price Data'!H27="","",'Proxy Price Data'!H27) -> 70.9 | H30: =IF('Proxy Price Data'!I27="","",'Proxy Price Data'!I27) -> 75.49
A31: =IF('Proxy Price Data'!B28="","",'Proxy Price Data'!B28) -> 2021-04-23 | B31: =IF('Proxy Price Data'!C28="","",'Proxy Price Data'!C28) -> 103.35 | C31: =IF('Proxy Price Data'!D28="","",'Proxy Price Data'!D28) -> 42.86 | D31: =IF('Proxy Price Data'!E28="","",'Proxy Price Data'!E28) -> 55.26 | E31: =IF('Proxy Price Data'!F28="","",'Proxy Price Data'!F28) -> 81.26 | F31: =IF('Proxy Price Data'!G28="","",'Proxy Price Data'!G28) -> 24.92 | G31: =IF('Proxy Price Data'!H28="","",'Proxy Price Data'!H28) -> 71.93 | H31: =IF('Proxy Price Data'!I28="","",'Proxy Price Data'!I28) -> 76.37
A32: =IF('Proxy Price Data'!B29="","",'Proxy Price Data'!B29) -> 2021-04-22 | B32: =IF('Proxy Price Data'!C29="","",'Proxy Price Data'!C29) -> 103.4 | C32: =IF('Proxy Price Data'!D29="","",'Proxy Price Data'!D29) -> 42.37 | D32: =IF('Proxy Price Data'!E29="","",'Proxy Price Data'!E29) -> 55.71 | E32: =IF('Proxy Price Data'!F29="","",'Proxy Price Data'!F29) -> 81.16 | F32: =IF('Proxy Price Data'!G29="","",'Proxy Price Data'!G29) -> 24.77 | G32: =IF('Proxy Price Data'!H29="","",'Proxy Price Data'!H29) -> 71.92 | H32: =IF('Proxy Price Data'!I29="","",'Proxy Price Data'!I29) -> 76.71
A33: =IF('Proxy Price Data'!B30="","",'Proxy Price Data'!B30) -> 2021-04-21 | B33: =IF('Proxy Price Data'!C30="","",'Proxy Price Data'!C30) -> 103.39 | C33: =IF('Proxy Price Data'!D30="","",'Proxy Price Data'!D30) -> 42.85 | D33: =IF('Proxy Price Data'!E30="","",'Proxy Price Data'!E30) -> 56.15 | E33: =IF('Proxy Price Data'!F30="","",'Proxy Price Data'!F30) -> 80.84 | F33: =IF('Proxy Price Data'!G30="","",'Proxy Price Data'!G30) -> 24.99 | G33: =IF('Proxy Price Data'!H30="","",'Proxy Price Data'!H30) -> 72.96 | H33: =IF('Proxy Price Data'!I30="","",'Proxy Price Data'!I30) -> 77.38
A34: =IF('Proxy Price Data'!B31="","",'Proxy Price Data'!B31) -> 2021-04-20 | B34: =IF('Proxy Price Data'!C31="","",'Proxy Price Data'!C31) -> 104.59 | C34: =IF('Proxy Price Data'!D31="","",'Proxy Price Data'!D31) -> 42.8 | D34: =IF('Proxy Price Data'!E31="","",'Proxy Price Data'!E31) -> 56.39 | E34: =IF('Proxy Price Data'!F31="","",'Proxy Price Data'!F31) -> 81.37 | F34: =IF('Proxy Price Data'!G31="","",'Proxy Price Data'!G31) -> 24.62 | G34: =IF('Proxy Price Data'!H31="","",'Proxy Price Data'!H31) -> 72.9 | H34: =IF('Proxy Price Data'!I31="","",'Proxy Price Data'!I31) -> 77.48
A35: =IF('Proxy Price Data'!B32="","",'Proxy Price Data'!B32) -> 2021-04-19 | B35: =IF('Proxy Price Data'!C32="","",'Proxy Price Data'!C32) -> 101.84 | C35: =IF('Proxy Price Data'!D32="","",'Proxy Price Data'!D32) -> 42.06 | D35: =IF('Proxy Price Data'!E32="","",'Proxy Price Data'!E32) -> 54.95 | E35: =IF('Proxy Price Data'!F32="","",'Proxy Price Data'!F32) -> 80.55 | F35: =IF('Proxy Price Data'!G32="","",'Proxy Price Data'!G32) -> 24.43 | G35: =IF('Proxy Price Data'!H32="","",'Proxy Price Data'!H32) -> 71.87 | H35: =IF('Proxy Price Data'!I32="","",'Proxy Price Data'!I32) -> 77.16
A36: =IF('Proxy Price Data'!B33="","",'Proxy Price Data'!B33) -> 2021-04-16 | B36: =IF('Proxy Price Data'!C33="","",'Proxy Price Data'!C33) -> 101.82 | C36: =IF('Proxy Price Data'!D33="","",'Proxy Price Data'!D33) -> 42.11 | D36: =IF('Proxy Price Data'!E33="","",'Proxy Price Data'!E33) -> 55.48 | E36: =IF('Proxy Price Data'!F33="","",'Proxy Price Data'!F33) -> 80.62 | F36: =IF('Proxy Price Data'!G33="","",'Proxy Price Data'!G33) -> 24.65 | G36: =IF('Proxy Price Data'!H33="","",'Proxy Price Data'!H33) -> 72.38 | H36: =IF('Proxy Price Data'!I33="","",'Proxy Price Data'!I33) -> 77.26
A37: =IF('Proxy Price Data'!B34="","",'Proxy Price Data'!B34) -> 2021-04-15 | B37: =IF('Proxy Price Data'!C34="","",'Proxy Price Data'!C34) -> 101.32 | C37: =IF('Proxy Price Data'!D34="","",'Proxy Price Data'!D34) -> 41.68 | D37: =IF('Proxy Price Data'!E34="","",'Proxy Price Data'!E34) -> 55.34 | E37: =IF('Proxy Price Data'!F34="","",'Proxy Price Data'!F34) -> 79.85 | F37: =IF('Proxy Price Data'!G34="","",'Proxy Price Data'!G34) -> 24.52 | G37: =IF('Proxy Price Data'!H34="","",'Proxy Price Data'!H34) -> 72.32 | H37: =IF('Proxy Price Data'!I34="","",'Proxy Price Data'!I34) -> 77.4
A38: =IF('Proxy Price Data'!B35="","",'Proxy Price Data'!B35) -> 2021-04-14 | B38: =IF('Proxy Price Data'!C35="","",'Proxy Price Data'!C35) -> 100.13 | C38: =IF('Proxy Price Data'!D35="","",'Proxy Price Data'!D35) -> 41.43 | D38: =IF('Proxy Price Data'!E35="","",'Proxy Price Data'!E35) -> 54.7 | E38: =IF('Proxy Price Data'!F35="","",'Proxy Price Data'!F35) -> 78.21 | F38: =IF('Proxy Price Data'!G35="","",'Proxy Price Data'!G35) -> 24.21 | G38: =IF('Proxy Price Data'!H35="","",'Proxy Price Data'!H35) -> 70.65 | H38: =IF('Proxy Price Data'!I35="","",'Proxy Price Data'!I35) -> 76.19
A39: =IF('Proxy Price Data'!B36="","",'Proxy Price Data'!B36) -> 2021-04-13 | B39: =IF('Proxy Price Data'!C36="","",'Proxy Price Data'!C36) -> 99.09 | C39: =IF('Proxy Price Data'!D36="","",'Proxy Price Data'!D36) -> 40.74 | D39: =IF('Proxy Price Data'!E36="","",'Proxy Price Data'!E36) -> 53.91 | E39: =IF('Proxy Price Data'!F36="","",'Proxy Price Data'!F36) -> 77.81 | F39: =IF('Proxy Price Data'!G36="","",'Proxy Price Data'!G36) -> 24.27 | G39: =IF('Proxy Price Data'!H36="","",'Proxy Price Data'!H36) -> 69.76 | H39: =IF('Proxy Price Data'!I36="","",'Proxy Price Data'!I36) -> 76.2
A40: =IF('Proxy Price Data'!B37="","",'Proxy Price Data'!B37) -> 2021-04-12 | B40: =IF('Proxy Price Data'!C37="","",'Proxy Price Data'!C37) -> 99.36 | C40: =IF('Proxy Price Data'!D37="","",'Proxy Price Data'!D37) -> 41.15 | D40: =IF('Proxy Price Data'!E37="","",'Proxy Price Data'!E37) -> 54.72 | E40: =IF('Proxy Price Data'!F37="","",'Proxy Price Data'!F37) -> 78.38 | F40: =IF('Proxy Price Data'!G37="","",'Proxy Price Data'!G37) -> 24.24 | G40: =IF('Proxy Price Data'!H37="","",'Proxy Price Data'!H37) -> 69.84 | H40: =IF('Proxy Price Data'!I37="","",'Proxy Price Data'!I37) -> 76.79
A41: =IF('Proxy Price Data'!B38="","",'Proxy Price Data'!B38) -> 2021-04-09 | B41: =IF('Proxy Price Data'!C38="","",'Proxy Price Data'!C38) -> 99.13 | C41: =IF('Proxy Price Data'!D38="","",'Proxy Price Data'!D38) -> 40.81 | D41: =IF('Proxy Price Data'!E38="","",'Proxy Price Data'!E38) -> 54.4 | E41: =IF('Proxy Price Data'!F38="","",'Proxy Price Data'!F38) -> 77.99 | F41: =IF('Proxy Price Data'!G38="","",'Proxy Price Data'!G38) -> 24.62 | G41: =IF('Proxy Price Data'!H38="","",'Proxy Price Data'!H38) -> 69.2 | H41: =IF('Proxy Price Data'!I38="","",'Proxy Price Data'!I38) -> 76.16
A42: =IF('Proxy Price Data'!B39="","",'Proxy Price Data'!B39) -> 2021-04-08 | B42: =IF('Proxy Price Data'!C39="","",'Proxy Price Data'!C39) -> 98.32 | C42: =IF('Proxy Price Data'!D39="","",'Proxy Price Data'!D39) -> 41.53 | D42: =IF('Proxy Price Data'!E39="","",'Proxy Price Data'!E39) -> 54.22 | E42: =IF('Proxy Price Data'!F39="","",'Proxy Price Data'!F39) -> 77.85 | F42: =IF('Proxy Price Data'!G39="","",'Proxy Price Data'!G39) -> 24.61 | G42: =IF('Proxy Price Data'!H39="","",'Proxy Price Data'!H39) -> 69.37 | H42: =IF('Proxy Price Data'!I39="","",'Proxy Price Data'!I39) -> 75.73
A43: =IF('Proxy Price Data'!B40="","",'Proxy Price Data'!B40) -> 2021-04-07 | B43: =IF('Proxy Price Data'!C40="","",'Proxy Price Data'!C40) -> 98.23 | C43: =IF('Proxy Price Data'!D40="","",'Proxy Price Data'!D40) -> 41.35 | D43: =IF('Proxy Price Data'!E40="","",'Proxy Price Data'!E40) -> 54.14 | E43: =IF('Proxy Price Data'!F40="","",'Proxy Price Data'!F40) -> 77.39 | F43: =IF('Proxy Price Data'!G40="","",'Proxy Price Data'!G40) -> 24.25 | G43: =IF('Proxy Price Data'!H40="","",'Proxy Price Data'!H40) -> 69.54 | H43: =IF('Proxy Price Data'!I40="","",'Proxy Price Data'!I40) -> 74.74
A44: =IF('Proxy Price Data'!B41="","",'Proxy Price Data'!B41) -> 2021-04-06 | B44: =IF('Proxy Price Data'!C41="","",'Proxy Price Data'!C41) -> 98.26 | C44: =IF('Proxy Price Data'!D41="","",'Proxy Price Data'!D41) -> 40.7 | D44: =IF('Proxy Price Data'!E41="","",'Proxy Price Data'!E41) -> 53.72 | E44: =IF('Proxy Price Data'!F41="","",'Proxy Price Data'!F41) -> 77.32 | F44: =IF('Proxy Price Data'!G41="","",'Proxy Price Data'!G41) -> 23.64 | G44: =IF('Proxy Price Data'!H41="","",'Proxy Price Data'!H41) -> 68.96 | H44: =IF('Proxy Price Data'!I41="","",'Proxy Price Data'!I41) -> 74.48
A45: =IF('Proxy Price Data'!B42="","",'Proxy Price Data'!B42) -> 2021-04-05 | B45: =IF('Proxy Price Data'!C42="","",'Proxy Price Data'!C42) -> 98.62 | C45: =IF('Proxy Price Data'!D42="","",'Proxy Price Data'!D42) -> 40.21 | D45: =IF('Proxy Price Data'!E42="","",'Proxy Price Data'!E42) -> 53.47 | E45: =IF('Proxy Price Data'!F42="","",'Proxy Price Data'!F42) -> 77.32 | F45: =IF('Proxy Price Data'!G42="","",'Proxy Price Data'!G42) -> 22.99 | G45: =IF('Proxy Price Data'!H42="","",'Proxy Price Data'!H42) -> 68.74 | H45: =IF('Proxy Price Data'!I42="","",'Proxy Price Data'!I42) -> 74.1
A46: =IF('Proxy Price Data'!B43="","",'Proxy Price Data'!B43) -> 2021-04-01 | B46: =IF('Proxy Price Data'!C43="","",'Proxy Price Data'!C43) -> 98.24 | C46: =IF('Proxy Price Data'!D43="","",'Proxy Price Data'!D43) -> 39.93 | D46: =IF('Proxy Price Data'!E43="","",'Proxy Price Data'!E43) -> 53.07 | E46: =IF('Proxy Price Data'!F43="","",'Proxy Price Data'!F43) -> 76.81 | F46: =IF('Proxy Price Data'!G43="","",'Proxy Price Data'!G43) -> 23.06 | G46: =IF('Proxy Price Data'!H43="","",'Proxy Price Data'!H43) -> 68.24 | H46: =IF('Proxy Price Data'!I43="","",'Proxy Price Data'!I43) -> 73.37
A47: =IF('Proxy Price Data'!B44="","",'Proxy Price Data'!B44) -> 2021-03-31 | B47: =IF('Proxy Price Data'!C44="","",'Proxy Price Data'!C44) -> 98.85 | C47: =IF('Proxy Price Data'!D44="","",'Proxy Price Data'!D44) -> 39.87 | D47: =IF('Proxy Price Data'!E44="","",'Proxy Price Data'!E44) -> 53.95 | E47: =IF('Proxy Price Data'!F44="","",'Proxy Price Data'!F44) -> 76.91 | F47: =IF('Proxy Price Data'!G44="","",'Proxy Price Data'!G44) -> 22.58 | G47: =IF('Proxy Price Data'!H44="","",'Proxy Price Data'!H44) -> 68.71 | H47: =IF('Proxy Price Data'!I44="","",'Proxy Price Data'!I44) -> 73.89
A48: =IF('Proxy Price Data'!B45="","",'Proxy Price Data'!B45) -> 2021-03-30 | B48: =IF('Proxy Price Data'!C45="","",'Proxy Price Data'!C45) -> 98.89 | C48: =IF('Proxy Price Data'!D45="","",'Proxy Price Data'!D45) -> 40.5 | D48: =IF('Proxy Price Data'!E45="","",'Proxy Price Data'!E45) -> 53.69 | E48: =IF('Proxy Price Data'!F45="","",'Proxy Price Data'!F45) -> 76.06 | F48: =IF('Proxy Price Data'!G45="","",'Proxy Price Data'!G45) -> 22.94 | G48: =IF('Proxy Price Data'!H45="","",'Proxy Price Data'!H45) -> 69.1 | H48: =IF('Proxy Price Data'!I45="","",'Proxy Price Data'!I45) -> 73.88
A49: =IF('Proxy Price Data'!B46="","",'Proxy Price Data'!B46) -> 2021-03-29 | B49: =IF('Proxy Price Data'!C46="","",'Proxy Price Data'!C46) -> 98.85 | C49: =IF('Proxy Price Data'!D46="","",'Proxy Price Data'!D46) -> 40.66 | D49: =IF('Proxy Price Data'!E46="","",'Proxy Price Data'!E46) -> 53.88 | E49: =IF('Proxy Price Data'!F46="","",'Proxy Price Data'!F46) -> 76.27 | F49: =IF('Proxy Price Data'!G46="","",'Proxy Price Data'!G46) -> 22.67 | G49: =IF('Proxy Price Data'!H46="","",'Proxy Price Data'!H46) -> 69.33 | H49: =IF('Proxy Price Data'!I46="","",'Proxy Price Data'!I46) -> 73.62
A50: =IF('Proxy Price Data'!B47="","",'Proxy Price Data'!B47) -> 2021-03-26 | B50: =IF('Proxy Price Data'!C47="","",'Proxy Price Data'!C47) -> 97.24 | C50: =IF('Proxy Price Data'!D47="","",'Proxy Price Data'!D47) -> 39.77 | D50: =IF('Proxy Price Data'!E47="","",'Proxy Price Data'!E47) -> 52.63 | E50: =IF('Proxy Price Data'!F47="","",'Proxy Price Data'!F47) -> 74.99 | F50: =IF('Proxy Price Data'!G47="","",'Proxy Price Data'!G47) -> 22.25 | G50: =IF('Proxy Price Data'!H47="","",'Proxy Price Data'!H47) -> 67.26 | H50: =IF('Proxy Price Data'!I47="","",'Proxy Price Data'!I47) -> 74.05
A51: =IF('Proxy Price Data'!B48="","",'Proxy Price Data'!B48) -> 2021-03-25 | B51: =IF('Proxy Price Data'!C48="","",'Proxy Price Data'!C48) -> 97.08 | C51: =IF('Proxy Price Data'!D48="","",'Proxy Price Data'!D48) -> 40.12 | D51: =IF('Proxy Price Data'!E48="","",'Proxy Price Data'!E48) -> 52.7 | E51: =IF('Proxy Price Data'!F48="","",'Proxy Price Data'!F48) -> 75.22 | F51: =IF('Proxy Price Data'!G48="","",'Proxy Price Data'!G48) -> 22.58 | G51: =IF('Proxy Price Data'!H48="","",'Proxy Price Data'!H48) -> 68.51 | H51: =IF('Proxy Price Data'!I48="","",'Proxy Price Data'!I48) -> 72.99
A52: =IF('Proxy Price Data'!B49="","",'Proxy Price Data'!B49) -> 2021-03-24 | B52: =IF('Proxy Price Data'!C49="","",'Proxy Price Data'!C49) -> 95.85 | C52: =IF('Proxy Price Data'!D49="","",'Proxy Price Data'!D49) -> 39.97 | D52: =IF('Proxy Price Data'!E49="","",'Proxy Price Data'!E49) -> 53.11 | E52: =IF('Proxy Price Data'!F49="","",'Proxy Price Data'!F49) -> 74.47 | F52: =IF('Proxy Price Data'!G49="","",'Proxy Price Data'!G49) -> 22.41 | G52: =IF('Proxy Price Data'!H49="","",'Proxy Price Data'!H49) -> 68.56 | H52: =IF('Proxy Price Data'!I49="","",'Proxy Price Data'!I49) -> 72.26
A53: =IF('Proxy Price Data'!B50="","",'Proxy Price Data'!B50) -> 2021-03-23 | B53: =IF('Proxy Price Data'!C50="","",'Proxy Price Data'!C50) -> 94.18 | C53: =IF('Proxy Price Data'!D50="","",'Proxy Price Data'!D50) -> 39.38 | D53: =IF('Proxy Price Data'!E50="","",'Proxy Price Data'!E50) -> 51.23 | E53: =IF('Proxy Price Data'!F50="","",'Proxy Price Data'!F50) -> 73.31 | F53: =IF('Proxy Price Data'!G50="","",'Proxy Price Data'!G50) -> 22.56 | G53: =IF('Proxy Price Data'!H50="","",'Proxy Price Data'!H50) -> 67.22 | H53: =IF('Proxy Price Data'!I50="","",'Proxy Price Data'!I50) -> 71.6
A54: =IF('Proxy Price Data'!B51="","",'Proxy Price Data'!B51) -> 2021-03-22 | B54: =IF('Proxy Price Data'!C51="","",'Proxy Price Data'!C51) -> 93.54 | C54: =IF('Proxy Price Data'!D51="","",'Proxy Price Data'!D51) -> 40.51 | D54: =IF('Proxy Price Data'!E51="","",'Proxy Price Data'!E51) -> 50.05 | E54: =IF('Proxy Price Data'!F51="","",'Proxy Price Data'!F51) -> 73.11 | F54: =IF('Proxy Price Data'!G51="","",'Proxy Price Data'!G51) -> 22.79 | G54: =IF('Proxy Price Data'!H51="","",'Proxy Price Data'!H51) -> 66.5 | H54: =IF('Proxy Price Data'!I51="","",'Proxy Price Data'!I51) -> 72.35
A55: =IF('Proxy Price Data'!B52="","",'Proxy Price Data'!B52) -> 2021-03-19 | B55: =IF('Proxy Price Data'!C52="","",'Proxy Price Data'!C52) -> 94.09 | C55: =IF('Proxy Price Data'!D52="","",'Proxy Price Data'!D52) -> 41.61 | D55: =IF('Proxy Price Data'!E52="","",'Proxy Price Data'!E52) -> 52.96 | E55: =IF('Proxy Price Data'!F52="","",'Proxy Price Data'!F52) -> 74.74 | F55: =IF('Proxy Price Data'!G52="","",'Proxy Price Data'!G52) -> 22.57 | G55: =IF('Proxy Price Data'!H52="","",'Proxy Price Data'!H52) -> 67.8 | H55: =IF('Proxy Price Data'!I52="","",'Proxy Price Data'!I52) -> 73.74
A56: =IF('Proxy Price Data'!B53="","",'Proxy Price Data'!B53) -> 2021-03-18 | B56: =IF('Proxy Price Data'!C53="","",'Proxy Price Data'!C53) -> 93.53 | C56: =IF('Proxy Price Data'!D53="","",'Proxy Price Data'!D53) -> 40.25 | D56: =IF('Proxy Price Data'!E53="","",'Proxy Price Data'!E53) -> 51.44 | E56: =IF('Proxy Price Data'!F53="","",'Proxy Price Data'!F53) -> 74.71 | F56: =IF('Proxy Price Data'!G53="","",'Proxy Price Data'!G53) -> 21.51 | G56: =IF('Proxy Price Data'!H53="","",'Proxy Price Data'!H53) -> 67.12 | H56: =IF('Proxy Price Data'!I53="","",'Proxy Price Data'!I53) -> 74.1
A57: =IF('Proxy Price Data'!B54="","",'Proxy Price Data'!B54) -> 2021-03-17 | B57: =IF('Proxy Price Data'!C54="","",'Proxy Price Data'!C54) -> 92.43 | C57: =IF('Proxy Price Data'!D54="","",'Proxy Price Data'!D54) -> 39.48 | D57: =IF('Proxy Price Data'!E54="","",'Proxy Price Data'!E54) -> 50.57 | E57: =IF('Proxy Price Data'!F54="","",'Proxy Price Data'!F54) -> 74.77 | F57: =IF('Proxy Price Data'!G54="","",'Proxy Price Data'!G54) -> 22.5 | G57: =IF('Proxy Price Data'!H54="","",'Proxy Price Data'!H54) -> 66.07 | H57: =IF('Proxy Price Data'!I54="","",'Proxy Price Data'!I54) -> 73.48
A58: =IF('Proxy Price Data'!B55="","",'Proxy Price Data'!B55) -> 2021-03-16 | B58: =IF('Proxy Price Data'!C55="","",'Proxy Price Data'!C55) -> 93.8 | C58: =IF('Proxy Price Data'!D55="","",'Proxy Price Data'!D55) -> 42.14 | D58: =IF('Proxy Price Data'!E55="","",'Proxy Price Data'!E55) -> 53.36 | E58: =IF('Proxy Price Data'!F55="","",'Proxy Price Data'!F55) -> 77.53 | F58: =IF('Proxy Price Data'!G55="","",'Proxy Price Data'!G55) -> 27.82 | G58: =IF('Proxy Price Data'!H55="","",'Proxy Price Data'!H55) -> 67.26 | H58: =IF('Proxy Price Data'!I55="","",'Proxy Price Data'!I55) -> 75.53
A59: =IF('Proxy Price Data'!B56="","",'Proxy Price Data'!B56) -> 2021-03-15 | B59: =IF('Proxy Price Data'!C56="","",'Proxy Price Data'!C56) -> 93.19 | C59: =IF('Proxy Price Data'!D56="","",'Proxy Price Data'!D56) -> 42.42 | D59: =IF('Proxy Price Data'!E56="","",'Proxy Price Data'!E56) -> 54.15 | E59: =IF('Proxy Price Data'!F56="","",'Proxy Price Data'!F56) -> 77.03 | F59: =IF('Proxy Price Data'!G56="","",'Proxy Price Data'!G56) -> 28.64 | G59: =IF('Proxy Price Data'!H56="","",'Proxy Price Data'!H56) -> 66.27 | H59: =IF('Proxy Price Data'!I56="","",'Proxy Price Data'!I56) -> 74.64
A60: =IF('Proxy Price Data'!B57="","",'Proxy Price Data'!B57) -> 2021-03-12 | B60: =IF('Proxy Price Data'!C57="","",'Proxy Price Data'!C57) -> 91.42 | C60: =IF('Proxy Price Data'!D57="","",'Proxy Price Data'!D57) -> 41.48 | D60: =IF('Proxy Price Data'!E57="","",'Proxy Price Data'!E57) -> 53.22 | E60: =IF('Proxy Price Data'!F57="","",'Proxy Price Data'!F57) -> 75.13 | F60: =IF('Proxy Price Data'!G57="","",'Proxy Price Data'!G57) -> 27.93 | G60: =IF('Proxy Price Data'!H57="","",'Proxy Price Data'!H57) -> 65.33 | H60: =IF('Proxy Price Data'!I57="","",'Proxy Price Data'!I57) -> 75.13
A61: =IF('Proxy Price Data'!B58="","",'Proxy Price Data'!B58) -> 2021-03-11 | B61: =IF('Proxy Price Data'!C58="","",'Proxy Price Data'!C58) -> 89.88 | C61: =IF('Proxy Price Data'!D58="","",'Proxy Price Data'!D58) -> 40.69 | D61: =IF('Proxy Price Data'!E58="","",'Proxy Price Data'!E58) -> 52.12 | E61: =IF('Proxy Price Data'!F58="","",'Proxy Price Data'!F58) -> 73.75 | F61: =IF('Proxy Price Data'!G58="","",'Proxy Price Data'!G58) -> 27.46 | G61: =IF('Proxy Price Data'!H58="","",'Proxy Price Data'!H58) -> 65.51 | H61: =IF('Proxy Price Data'!I58="","",'Proxy Price Data'!I58) -> 72.87
A62: =IF('Proxy Price Data'!B59="","",'Proxy Price Data'!B59) -> 2021-03-10 | B62: =IF('Proxy Price Data'!C59="","",'Proxy Price Data'!C59) -> 90.81 | C62: =IF('Proxy Price Data'!D59="","",'Proxy Price Data'!D59) -> 40.86 | D62: =IF('Proxy Price Data'!E59="","",'Proxy Price Data'!E59) -> 53.01 | E62: =IF('Proxy Price Data'!F59="","",'Proxy Price Data'!F59) -> 74.44 | F62: =IF('Proxy Price Data'!G59="","",'Proxy Price Data'!G59) -> 28.8 | G62: =IF('Proxy Price Data'!H59="","",'Proxy Price Data'!H59) -> 67.95 | H62: =IF('Proxy Price Data'!I59="","",'Proxy Price Data'!I59) -> 72.47
A63: =IF('Proxy Price Data'!B60="","",'Proxy Price Data'!B60) -> 2021-03-09 | B63: =IF('Proxy Price Data'!C60="","",'Proxy Price Data'!C60) -> 89.34 | C63: =IF('Proxy Price Data'!D60="","",'Proxy Price Data'!D60) -> 40.24 | D63: =IF('Proxy Price Data'!E60="","",'Proxy Price Data'!E60) -> 52.25 | E63: =IF('Proxy Price Data'!F60="","",'Proxy Price Data'!F60) -> 73.39 | F63: =IF('Proxy Price Data'!G60="","",'Proxy Price Data'!G60) -> 28.05 | G63: =IF('Proxy Price Data'!H60="","",'Proxy Price Data'!H60) -> 68.69 | H63: =IF('Proxy Price Data'!I60="","",'Proxy Price Data'!I60) -> 71.97
A64: =IF('Proxy Price Data'!B61="","",'Proxy Price Data'!B61) -> 2021-03-08 | B64: =IF('Proxy Price Data'!C61="","",'Proxy Price Data'!C61) -> 91.64 | C64: =IF('Proxy Price Data'!D61="","",'Proxy Price Data'!D61) -> 41.05 | D64: =IF('Proxy Price Data'!E61="","",'Proxy Price Data'!E61) -> 53.74 | E64: =IF('Proxy Price Data'!F61="","",'Proxy Price Data'!F61) -> 75.02 | F64: =IF('Proxy Price Data'!G61="","",'Proxy Price Data'!G61) -> 28.34 | G64: =IF('Proxy Price Data'!H61="","",'Proxy Price Data'!H61) -> 71.08 | H64: =IF('Proxy Price Data'!I61="","",'Proxy Price Data'!I61) -> 72.77
A65: =IF('Proxy Price Data'!B62="","",'Proxy Price Data'!B62) -> 2021-03-05 | B65: =IF('Proxy Price Data'!C62="","",'Proxy Price Data'!C62) -> 91.71 | C65: =IF('Proxy Price Data'!D62="","",'Proxy Price Data'!D62) -> 40.22 | D65: =IF('Proxy Price Data'!E62="","",'Proxy Price Data'!E62) -> 51.71 | E65: =IF('Proxy Price Data'!F62="","",'Proxy Price Data'!F62) -> 73.6 | F65: =IF('Proxy Price Data'!G62="","",'Proxy Price Data'!G62) -> 26.68 | G65: =IF('Proxy Price Data'!H62="","",'Proxy Price Data'!H62) -> 69.28 | H65: =IF('Proxy Price Data'!I62="","",'Proxy Price Data'!I62) -> 70.92
A67: Average Price | B67: =IFERROR(ROUND(AVERAGE(B6:B65),2),0) -> 98.54 | C67: =IFERROR(ROUND(AVERAGE(C6:C65),2),0) -> 41.68 | D67: 53.75 | E67: 76.82 | F67: 24.99 | G67: 68.99 | H67: 74.51
A69: Indicated Dividend | B69: ='Proxy Data Lookup'!$J3 -> 2.5 | C69: ='Proxy Data Lookup'!$J4 -> 1.33 | D69: ='Proxy Data Lookup'!$J5 -> 1.92 | E69: ='Proxy Data Lookup'!$J6 -> 2.32 | F69: ='Proxy Data Lookup'!$J7 -> 1.21 | G69: ='Proxy Data Lookup'!$J8 -> 2.38 | H69: ='Proxy Data Lookup'!$J9 -> 2.6
A71: Indicated Dividend Yield | B71: =IFERROR(ROUND(B69/B67,4),0) -> 0.0254 | C71: =IFERROR(ROUND(C69/C67,4),0) -> 0.0319 | D71: 0.0357 | E71: 0.0302 | F71: 0.0484 | G71: 0.0345 | H71: 0.0349
B73: 0.0254 | C73: 0.0319 | D73: 0.0357 | E73: 0.0302 | F73: 0.0484 | G73: 0.0345 | H73: 0.0349

Sheet CEM Data Lookup
C2: EPS Growth Rates | G2: Beta | J2: Annual Div. | K2: Bond Ratings | M2: Value Line Beta Calculation
A3: Ticker | B3: Company Name | C3: Zacks | D3: Yahoo | E3: Bloomberg | F3: Value Line | G3: Value Line | H3: Bloomberg | I3: Unadjusted | K3: Moody's | L3: S&P | M3: R Factor | N3: Std. Error | O3: Std. Dev Y | P3: Std. Dev Beta
A4: =Input!C2 -> AAPL | B4: Apple Inc. | C4: 0.125 | D4: 0.1793 | E4: 0.121 | F4: 0.145 | G4: 0.9 | H4: 1.012107491 | I4: 0.81 | J4: 0.88 | K4: Aa1 | L4: AA+ | M4: 0.5381 | N4: 3.1746 | O4: 3.7591 | P4: 0.0792
A5: =Input!C3 -> ABT | B5: Abbott Labs. | C5: 0.138 | D5: 0.1649 | E5: 0.1363 | F5: 0.115 | G5: 0.95 | H5: 0.8512984514 | I5: 0.88 | J5: 1.8 | K5: A2 | L5: A+ | M5: 0.6245 | N5: 2.7401 | O5: 3.5017 | P5: 0.0684
A6: =Input!C4 -> AIZ | B6: Assurant Inc. | C6: 0.175 | D6: 0.175 | E6: 0.175 | F6: 0.115 | G6: 0.9 | H6: 0.9960021377 | I6: 0.84 | J6: 2.64 | K6: Baa3 | L6: BBB | M6: 0.5804 | N6: 2.9537 | O6: 3.62 | P6: 0.0737
A7: =Input!C5 -> ANSS | B7: ANSYS, Inc. | C7: 0.123 | D7: 0.1074 | E7: 0.12577 | F7: 0.08 | G7: 0.85 | H7: 0.9667180777 | I7: 0.74 | J7: NA | K7: NA | L7: NA | M7: 0.5412 | N7: 2.8841 | O7: 3.423 | P7: 0.072
A8: =Input!C6 -> BAH | B8: Booz Allen Hamilton | C8: 0.106 | D8: 0.0967 | E8: 0.13 | F8: 0.105 | G8: 0.9 | H8: 0.917254746 | I8: 0.82 | J8: 1.48 | K8: NA | L8: NA | M8: 0.5601 | N8: 3.0468 | O8: 3.6706 | P8: 0.076
A9: =Input!C7 -> BDX | B9: Becton, Dickinson | C9: 0.089 | D9: 0.1185 | E9: 0.08295 | F9: 0.075 | G9: 0.8 | H9: 0.5826736689 | I9: 0.66 | J9: 3.32 | K9: Baa3 | L9: BBB | M9: 0.4945 | N9: 2.8952 | O9: 3.3246 | P9: 0.0722
A10: =Input!C8 -> BFB | B10: Brown-Forman 'B' | C10: NA | D10: 0.074 | E10: 0.0539 | F10: 0.11 | G10: 0.9 | H10: 0.9732672572 | I10: 0.77 | J10: 0.718 | K10: A1 | L10: A- | M10: 0.5759 | N10: 2.7453 | O10: 3.3514 | P10: 0.0685
A11: =Input!C9 -> BR | B11: Broadridge Fin'l | C11: NA | D11: 0.116 | E11: 0.123 | F11: 0.085 | G11: 0.85 | H11: 0.8378721476 | I11: 0.7 | J11: 2.3 | K11: Baa1 | L11: BBB+ | M11: 0.5412 | N11: 2.7332 | O11: 3.244 | P11: 0.0682
A12: =Input!C10 -> BRC | B12: Brady Corp. | C12: 0.07 | D12: 0.07 | E12: 0.09 | F12: 0.075 | G12: 1 | H12: 1.049737096 | I12: 0.93 | J12: 0.88 | K12: NA | L12: NA | M12: 0.6126 | N12: 3.0007 | O12: 3.7889 | P12: 0.0749
A13: =Input!C11 -> CACI | B13: CACI Int'l | C13: 0.131 | D13: 0.1368 | E13: 0.12055 | F13: 0.135 | G13: 0.95 | H13: 1.010322809 | I13: 0.86 | J13: NA | K13: NA | L13: BB+ | M13: 0.5607 | N13: 3.1684 | O13: 3.8191 | P13: 0.0791
A14: =Input!C12 -> CASY | B14: Casey's Gen'l Stores | C14: NA | D14: 0.0785 | E14: 0.15805 | F14: 0.08 | G14: 0.9 | H14: 0.9119077921 | I14: 0.78 | J14: 1.36 | K14: NA | L14: NA | M14: 0.5154 | N14: 3.2522 | O14: 3.7879 | P14: 0.0812
A15: =Input!C13 -> CDNS | B15: Cadence Design Sys. | C15: 0.144 | D15: 0.144 | E15: 0.11603 | F15: 0.095 | G15: 0.9 | H15: 0.9842782617 | I15: 0.79 | J15: NA | K15: Baa2 | L15: BBB+ | M15: 0.5468 | N15: 3.0338 | O15: 3.6165 | P15: 0.0757
A16: =Input!C14 -> CERN | B16: Cerner Corp. | C16: 0.123 | D16: 0.1163 | E16: 0.1046 | F16: 0.08 | G16: 0.9 | H16: 0.8931853175 | I16: 0.84 | J16: 0.88 | K16: NA | L16: NA | M16: 0.6112 | N16: 2.7309 | O16: 3.4436 | P16: 0.0681
A17: =Input!C15 -> CSWI | B17: CSW Industrials | C17: NA | D17: 0.12 | E17: 0.12 | F17: 0.085 | G17: 0.9 | H17: 1.048905492 | I17: 0.81 | J17: 0.6 | K17: NA | L17: NA | M17: 0.574 | N17: 2.8884 | O17: 3.5204 | P17: 0.0721
A18: =Input!C16 -> DGX | B18: Quest Diagnostics | C18: 0.265 | D18: 0.0326 | E18: -0.054 | F18: 0.1 | G18: 0.85 | H18: 0.9603981376 | I18: 0.75 | J18: 2.48 | K18: Baa2 | L18: BBB+ | M18: 0.5648 | N18: 2.7411 | O18: 3.3152 | P18: 0.0684
A19: =Input!C17 -> EL | B19: Lauder (Estee) | C19: 0.107 | D19: 0.2718 | E19: 0.182 | F19: 0.11 | G19: 0.95 | H19: 1.003584146 | I19: 0.85 | J19: 2.12 | K19: A1 | L19: A+ | M19: 0.6021 | N19: 2.8216 | O19: 3.5271 | P19: 0.0704
A20: =Input!C18 -> EXPO | B20: Exponent, Inc. | C20: NA | D20: 0.15 | E20: 0.133 | F20: 0.125 | G20: 0.9 | H20: 0.9439809322 | I20: 0.79 | J20: 0.8 | K20: NA | L20: NA | M20: 0.5605 | N20: 2.9131 | O20: 3.5107 | P20: 0.0727
A21: =Input!C19 -> FAST | B21: Fastenal Co. | C21: 0.09 | D21: 0.0795 | E21: 0.087 | F21: 0.08 | G21: 0.9 | H21: 0.9494735599 | I21: 0.85 | J21: 1.12 | K21: NA | L21: NA | M21: 0.5488 | N21: 3.2203 | O21: 3.8448 | P21: 0.0804
A22: =Input!C20 -> GNTX | B22: Gentex Corp. | C22: 0.101 | D22: 0.158 | E22: 0.13145 | F22: 0.105 | G22: 0.95 | H22: 1.061281204 | I22: 0.91 | J22: 0.48 | K22: NA | L22: NA | M22: 0.6371 | N22: 2.7546 | O22: 3.567 | P22: 0.0687
A23: =Input!C21 -> IFF | B23: Int'l Flavors & Frag | C23: 0.098 | D23: 0.0772 | E23: 0.2148 | F23: 0.075 | G23: 0.95 | H23: 1.083767295 | I23: 0.87 | J23: 3.08 | K23: Baa3 | L23: BBB | M23: 0.5586 | N23: 3.2238 | O23: 3.879 | P23: 0.0804
A24: =Input!C22 -> INGR | B24: Ingredion Inc. | C24: NA | D24: 0.019 | E24: 0.11 | F24: 0.075 | G24: 0.9 | H24: 0.9165884852 | I24: 0.78 | J24: 2.56 | K24: Baa1 | L24: BBB | M24: 0.5608 | N24: 2.8793 | O24: 3.4709 | P24: 0.0718
A25: =Input!C23 -> IRM | B25: Iron Mountain | C25: 0.017 | D25: 0.017 | E25: 0.0066 | F25: 0.115 | G25: 0.9 | H25: 1.02131772 | I25: 0.82 | J25: 2.474 | K25: Ba3 | L25: BB- | M25: 0.5515 | N25: 3.0897 | O25: 3.6966 | P25: 0.0771
A26: =Input!C24 -> JBHT | B26: Hunt (J.B.) | C26: 0.15 | D26: 0.2153 | E26: 0.15 | F26: 0.08 | G26: 0.95 | H26: 0.9098848701 | I26: 0.86 | J26: 1.2 | K26: Baa1 | L26: BBB+ | M26: 0.6034 | N26: 2.8344 | O26: 3.5476 | P26: 0.0707
A27: =Input!C25 -> JJSF | B27: J&J Snack Foods | C27: NA | D27: 0.06 | E27: NA | F27: 0.1 | G27: 0.9 | H27: 0.7723898888 | I27: 0.84 | J27: 2.532 | K27: NA | L27: NA | M27: 0.5858 | N27: 2.9208 | O27: 3.5969 | P27: 0.0729
A28: =Input!C26 -> JKHY | B28: Henry (Jack) & Assoc | C28: 0.109 | D28: 0.1064 | E28: 0.12467 | F28: 0.09 | G28: 0.85 | H28: 0.8857803941 | I28: 0.71 | J28: 1.84 | K28: NA | L28: NA | M28: 0.5383 | N28: 2.7734 | O28: 3.2844 | P28: 0.0692
A29: =Input!C27 -> MANT | B29: ManTech Int'l 'A' | C29: 0.051 | D29: 0.0387 | E29: 0.0553 | F29: 0.09 | G29: 0.85 | H29: 1.113771796 | I29: 0.77 | J29: 1.52 | K29: WR | L29: BB+ | M29: 0.5306 | N29: 3.0653 | O29: 3.6094 | P29: 0.0765
A30: =Input!C28 -> MKC | B30: McCormick & Co. | C30: 0.067 | D30: 0.06 | E30: 0.0587 | F30: 0.055 | G30: 0.8 | H30: 0.6974718571 | I30: 0.66 | J30: 1.36 | K30: Baa2 | L30: BBB | M30: 0.5089 | N30: 2.7887 | O30: 3.2332 | P30: 0.0696
A31: =Input!C29 -> MO | B31: Altria Group | C31: 0.04 | D31: 0.0435 | E31: 0.0435 | F31: 0.06 | G31: 0.9 | H31: 0.8819355965 | I31: 0.83 | J31: 3.44 | K31: A3 | L31: BBB | M31: 0.5787 | N31: 2.9215 | O31: 3.5754 | P31: 0.0729
A32: =Input!C30 -> MSA | B32: MSA Safety | C32: NA | D32: 0.18 | E32: 0.09 | F32: 0.065 | G32: 1 | H32: 0.9911231995 | I32: 0.94 | J32: 1.76 | K32: NA | L32: NA | M32: 0.614 | N32: 3.0076 | O32: 3.8031 | P32: 0.075
A33: =Input!C31 -> MSCI | B33: MSCI Inc. | C33: NA | D33: 0.1531 | E33: 0.15 | F33: 0.16 | G33: 0.95 | H33: 0.9358009696 | I33: 0.87 | J33: 3.12 | K33: Ba1 | L33: BB+ | M33: 0.5913 | N33: 2.9662 | O33: 3.6709 | P33: 0.074
A34: =Input!C32 -> MSI | B34: Motorola Solutions | C34: 0.09 | D34: 0.0737 | E34: 0.122 | F34: 0.07 | G34: 0.9 | H34: 0.9593350887 | I34: 0.8 | J34: 2.84 | K34: Baa3 | L34: BBB- | M34: 0.5831 | N34: 2.7926 | O34: 3.4307 | P34: 0.0697
A35: =Input!C33 -> MTN | B35: Vail Resorts | C35: NA | D35: 0.7295 | E35: 0.8708 | F35: 0.095 | G35: 0.95 | H35: 1.141641259 | I35: 0.88 | J35: NA | K35: B2 | L35: BB | M35: 0.5651 | N35: 3.1939 | O35: 3.8638 | P35: 0.0797
A36: =Input!C34 -> MXIM | B36: Maxim Integrated | C36: 0.1 | D36: 0.2191 | E36: 0.1195 | F36: 0.08 | G36: 0.95 | H36: 0.9852310419 | I36: 0.87 | J36: NA | K36: Baa1 | L36: BBB+ | M36: 0.5946 | N36: 2.9404 | O36: 3.6501 | P36: 0.0734
A37: =Input!C35 -> NOC | B37: Northrop Grumman | C37: NA | D37: 0.0577 | E37: 0.05673 | F37: 0.07 | G37: 0.85 | H37: 0.8021228313 | I37: 0.71 | J37: 6.28 | K37: Baa2 | L37: BBB+ | M37: 0.5202 | N37: 2.9032 | O37: 3.3928 | P37: 0.0724
A38: =Input!C36 -> ODFL | B38: Old Dominion Freight | C38: 0.172 | D38: 0.1893 | E38: 0.1898 | F38: 0.09 | G38: 0.9 | H38: 0.970081687 | I38: 0.83 | J38: 0.8 | K38: NA | L38: NA | M38: 0.5598 | N38: 3.0708 | O38: 3.6988 | P38: 0.0766
A39: =Input!C37 -> PKI | B39: PerkinElmer Inc. | C39: 0.379 | D39: 0.379 | E39: 0.05658 | F39: 0.11 | G39: 0.95 | H39: 0.8377218843 | I39: 0.86 | J39: 0.28 | K39: Baa3 | L39: BBB | M39: 0.5963 | N39: 2.8896 | O39: 3.5925 | P39: 0.0721
A40: =Input!C38 -> PM | B40: Philip Morris Int'l | C40: 0.087 | D40: 0.1275 | E40: 0.10745 | F40: 0.065 | G40: 0.95 | H40: 0.9142292142 | I40: 0.88 | J40: 4.8 | K40: A2 | L40: A | M40: 0.5628 | N40: 3.2481 | O40: 3.922 | P40: 0.0811
A41: =Input!C39 -> POOL | B41: Pool Corp. | C41: NA | D41: 0.17 | E41: NA | F41: 0.15 | G41: 0.85 | H41: 0.9463635087 | I41: 0.75 | J41: 3.2 | K41: NA | L41: NA | M41: 0.5034 | N41: 3.2001 | O41: 3.6964 | P41: 0.0799
A42: =Input!C40 -> POST | B42: Post Holdings | C42: NA | D42: 0.312 | E42: 0.203 | F42: 0.11 | G42: 0.95 | H42: 0.9045496583 | I42: 0.86 | J42: NA | K42: B2 | L42: B+ | M42: 0.5813 | N42: 3.0105 | O42: 3.6926 | P42: 0.0751
A43: =Input!C41 -> RLI | B43: RLI Corp. | C43: NA | D43: 0.098 | E43: NA | F43: 0.125 | G43: 0.8 | H43: 0.9000255466 | I43: 0.64 | J43: 1 | K43: Baa2 | L43: BBB | M43: 0.4717 | N43: 2.9883 | O43: 3.3825 | P43: 0.0746
A44: =Input!C42 -> ROL | B44: Rollins, Inc. | C44: NA | D44: 0.082 | E44: NA | F44: 0.115 | G44: 0.85 | H44: 0.6941347718 | I44: 0.73 | J44: 0.32 | K44: NA | L44: NA | M44: 0.5258 | N44: 2.9697 | O44: 3.4845 | P44: 0.0741
A45: =Input!C43 -> SIGI | B45: Selective Ins. Group | C45: 0.095 | D45: 0.051 | E45: 0.0951 | F45: 0.085 | G45: 0.85 | H45: 0.9727833271 | I45: 0.77 | J45: 1 | K45: Baa2 | L45: BBB | M45: 0.5397 | N45: 3.0004 | O45: 3.5572 | P45: 0.0749
A46: =Input!C44 -> SIRI | B46: Sirius XM Holdings | C46: 0.127 | D46: 0.101 | E46: 0.4032 | F46: 0.355 | G46: 0.95 | H46: 1.099968314 | I46: 0.91 | J46: 0.058564 | K46: NA | L46: BB | M46: 0.6316 | N46: 2.7995 | O46: 3.6039 | P46: 0.0699
A47: =Input!C45 -> TECH | B47: Bio-Techne Corp. | C47: 0.14 | D47: 0.15 | E47: 0.19025 | F47: 0.125 | G47: 0.8 | H47: 0.9288383126 | I47: 0.67 | J47: 1.28 | K47: NA | L47: NA | M47: 0.4592 | N47: 3.2475 | O47: 3.6485 | P47: 0.081
A48: =Input!C46 -> TTEK | B48: Tetra Tech | C48: 0.15 | D48: 0.15 | E48: 0.1385 | F48: 0.135 | G48: 0.9 | H48: 1.05917716 | I48: 0.84 | J48: 0.8 | K48: NA | L48: NA | M48: 0.5717 | N48: 3.0245 | O48: 3.6791 | P48: 0.0755
A49: =Input!C47 -> WAT | B49: Waters Corp. | C49: 0.071 | D49: 0.0777 | E49: 0.08187 | F49: 0.06 | G49: 0.95 | H49: 0.8628724217 | I49: 0.86 | J49: NA | K49: NA | L49: NA | M49: 0.615 | N49: 2.7531 | O49: 3.4846 | P49: 0.0687
A50: =Input!C48 -> WST | B50: West Pharmac. Svcs. | C50: 0.258 | D50: 0.258 | E50: 0.18545 | F50: 0.17 | G50: 0.85 | H50: 0.7505637407 | I50: 0.7 | J50: 0.68 | K50: NA | L50: NA | M50: 0.4811 | N50: 3.1887 | O50: 3.6301 | P50: 0.0796
A51: =Input!C49 -> WU | B51: Western Union | C51: NA | D51: 0.0919 | E51: 0.04567 | F51: 0.06 | G51: 0.8 | H51: 1.052333355 | I51: 0.67 | J51: 0.94 | K51: Baa2 | L51: BBB | M51: 0.5229 | N51: 2.7346 | O51: 3.2018 | P51: 0.0682

Sheet CEM Price Data
A1: Lookup Reference | B1: Tickers | C1: AAPL | D1: ABT | E1: AIZ | F1: ANSS | G1: BAH | H1: BDX | I1: BFB | J1: BR | K1: BRC | L1: CACI | M1: CASY | N1: CDNS | O1: CERN | P1: CSWI | Q1: DGX | R1: EL | S1: EXPO | T1: FAST | U1: GNTX | V1: IFF | W1: INGR | X1: IRM | Y1: JBHT | Z1: JJSF | AA1: JKHY | AB1: MANT | AC1: MKC | AD1: MO | AE1: MSA | AF1: MSCI | AG1: MSI | AH1: MTN | AI1: MXIM | AJ1: NOC | AK1: ODFL | AL1: PKI | AM1: PM | AN1: POOL | AO1: POST | AP1: RLI | AQ1: ROL | AR1: SIGI | AS1: SIRI | AT1: TECH | AU1: TTEK | AV1: WAT | AW1: WST | AX1: WU
B2: PX_LAST | C2: AAPL US Equity | D2: ABT US Equity | E2: AIZ US Equity | F2: ANSS US Equity | G2: BAH US Equity | H2: BDX US Equity | I2: BF/B US Equity | J2: BR US Equity | K2: BRC US Equity | L2: CACI US Equity | M2: CASY US Equity | N2: CDNS US Equity | O2: CERN US Equity | P2: CSWI US Equity | Q2: DGX US Equity | R2: EL US Equity | S2: EXPO US Equity | T2: FAST US Equity | U2: GNTX US Equity | V2: IFF US Equity | W2: INGR US Equity | X2: IRM US Equity | Y2: JBHT US Equity | Z2: JJSF US Equity | AA2: JKHY US Equity | AB2: MANT US Equity | AC2: MKC US Equity | AD2: MO US Equity | AE2: MSA US Equity | AF2: MSCI US Equity | AG2: MSI US Equity | AH2: MTN US Equity | AI2: MXIM US Equity | AJ2: NOC US Equity | AK2: ODFL US Equity | AL2: PKI US Equity | AM2: PM US Equity | AN2: POOL US Equity | AO2: POST US Equity | AP2: RLI US Equity | AQ2: ROL US Equity | AR2: SIGI US Equity | AS2: SIRI US Equity | AT2: TECH US Equity | AU2: TTEK US Equity | AV2: WAT US Equity | AW2: WST US Equity | AX2: WU US Equity
A3: 1 | B3: 2021-05-28 | C3: 124.61 | D3: 116.65 | E3: 161.15 | F3: 337.94 | G3: 84.93 | H3: 241.89 | I3: 80.48 | J3: 159.48 | K3: 57.23 | L3: 254.96 | M3: 220.84 | N3: 126.99 | O3: 78.25 | P3: 121.82 | Q3: 131.67 | R3: 306.52 | S3: 91.23 | T3: 53.04 | U3: 35.5 | V3: 141.67 | W3: 94.93 | X3: 43.53 | Y3: 171.54 | Z3: 175.58 | AA3: 154.15 | AB3: 87.01 | AC3: 89.06 | AD3: 49.22 | AE3: 168.06 | AF3: 468.13 | AG3: 205.47 | AH3: 326.88 | AI3: 102.01 | AJ3: 365.87 | AK3: 265.45 | AL3: 145.06 | AM3: 96.43 | AN3: 436.55 | AO3: 115.53 | AP3: 105.48 | AQ3: 34.09 | AR3: 75.27 | AS3: 6.25 | AT3: 413.83 | AU3: 119.47 | AV3: 322.25 | AW3: 347.3 | AX3: 24.46
A4: =A3+1 -> 2 | B4: 2021-05-27 | C4: 125.28 | D4: 115.69 | E4: 161.3 | F4: 336.79 | G4: 85.46 | H4: 240.94 | I4: 79.87 | J4: 159.64 | K4: 57.24 | L4: 254.65 | M4: 217.25 | N4: 127.13 | O4: 78.29 | P4: 123.9 | Q4: 132.56 | R4: 303.55 | S4: 90.68 | T4: 52.75 | U4: 35.36 | V4: 142.84 | W4: 94.75 | X4: 43.01 | Y4: 172.26 | Z4: 175.08 | AA4: 155.57 | AB4: 87.05 | AC4: 88.7 | AD4: 49.2 | AE4: 167.34 | AF4: 464.37 | AG4: 203.59 | AH4: 329.74 | AI4: 101.16 | AJ4: 370.46 | AK4: 264.32 | AL4: 144.9 | AM4: 96.68 | AN4: 431.47 | AO4: 114.16 | AP4: 105.15 | AQ4: 33.86 | AR4: 75.47 | AS4: 6.21 | AT4: 409.69 | AU4: 119.61 | AV4: 323.74 | AW4: 344.7 | AX4: 24.63
A5: =A4+1 -> 3 | B5: 2021-05-26 | C5: 126.85 | D5: 116.75 | E5: 157.64 | F5: 338.03 | G5: 85.69 | H5: 242.02 | I5: 80.37 | J5: 158.76 | K5: 56.66 | L5: 254.36 | M5: 221.24 | N5: 126.83 | O5: 79.03 | P5: 123.16 | Q5: 132.65 | R5: 305.84 | S5: 90.78 | T5: 52.91 | U5: 34.73 | V5: 141.7 | W5: 95.49 | X5: 43.33 | Y5: 169.44 | Z5: 173.18 | AA5: 156.5 | AB5: 86.12 | AC5: 89.66 | AD5: 49.42 | AE5: 167.03 | AF5: 465.1 | AG5: 202.66 | AH5: 326.73 | AI5: 101.07 | AJ5: 366.72 | AK5: 262.67 | AL5: 143.71 | AM5: 97.31 | AN5: 429.63 | AO5: 115.58 | AP5: 104.36 | AQ5: 33.86 | AR5: 75.15 | AS5: 6.05 | AT5: 416.27 | AU5: 118.12 | AV5: 319.74 | AW5: 344.39 | AX5: 24.5
A6: 4 | B6: 2021-05-25 | C6: 126.9 | D6: 118.4 | E6: 157.34 | F6: 339.19 | G6: 85.03 | H6: 242.49 | I6: 79.79 | J6: 159.17 | K6: 56.05 | L6: 255.35 | M6: 218.97 | N6: 127.49 | O6: 78.12 | P6: 122.71 | Q6: 130.85 | R6: 305.19 | S6: 91.23 | T6: 52.69 | U6: 34.75 | V6: 141.62 | W6: 95.23 | X6: 43.22 | Y6: 167.67 | Z6: 171.73 | AA6: 156.41 | AB6: 86.28 | AC6: 90.3 | AD6: 49.61 | AE6: 166.9 | AF6: 464.61 | AG6: 203.85 | AH6: 319.63 | AI6: 101.24 | AJ6: 369.99 | AK6: 261.33 | AL6: 143.1 | AM6: 97.52 | AN6: 429.66 | AO6: 115.7 | AP6: 103.81 | AQ6: 34.03 | AR6: 75.52 | AS6: 5.99 | AT6: 420.15 | AU6: 119.47 | AV6: 321.14 | AW6: 345.36 | AX6: 24.29
A7: 5 | B7: 2021-05-24 | C7: 127.1 | D7: 117.29 | E7: 159.14 | F7: 338.77 | G7: 85.74 | H7: 243.72 | I7: 79.58 | J7: 159.45 | K7: 56.46 | L7: 258.16 | M7: 220.86 | N7: 126.33 | O7: 77 | P7: 123.43 | Q7: 130.47 | R7: 302.46 | S7: 92.12 | T7: 52.85 | U7: 34.39 | V7: 141.86 | W7: 96.03 | X7: 43.69 | Y7: 171.09 | Z7: 172.49 | AA7: 156.81 | AB7: 86.23 | AC7: 90.6 | AD7: 50.32 | AE7: 164.77 | AF7: 462.85 | AG7: 202.84 | AH7: 320.66 | AI7: 100.7 | AJ7: 372.18 | AK7: 264.69 | AL7: 144.61 | AM7: 98.16 | AN7: 430.74 | AO7: 115.59 | AP7: 106.12 | AQ7: 34.4 | AR7: 77.26 | AS7: 6.14 | AT7: 421 | AU7: 119.31 | AV7: 317.2 | AW7: 339.52 | AX7: 24.7
A8: 6 | B8: 2021-05-21 | C8: 125.43 | D8: 117.13 | E8: 158.91 | F8: 330.26 | G8: 83.62 | H8: 244.48 | I8: 79.78 | J8: 159.27 | K8: 56.22 | L8: 257.04 | M8: 219.45 | N8: 123.46 | O8: 77.53 | P8: 124.8 | Q8: 131.33 | R8: 296.75 | S8: 92.08 | T8: 52.37 | U8: 34.71 | V8: 140.54 | W8: 95.41 | X8: 42.99 | Y8: 170.69 | Z8: 170.7 | AA8: 155.51 | AB8: 86.01 | AC8: 90.6 | AD8: 50 | AE8: 163.43 | AF8: 456.88 | AG8: 202.12 | AH8: 317.67 | AI8: 98.85 | AJ8: 370.46 | AK8: 262.94 | AL8: 144.77 | AM8: 97.42 | AN8: 429.25 | AO8: 115.37 | AP8: 107.05 | AQ8: 35.05 | AR8: 77.52 | AS8: 5.95 | AT8: 409.35 | AU8: 119.85 | AV8: 312.22 | AW8: 333.45 | AX8: 24.57
A9: 7 | B9: 2021-05-20 | C9: 127.31 | D9: 117.8 | E9: 156.95 | F9: 333.72 | G9: 82.06 | H9: 244.79 | I9: 79.54 | J9: 160.22 | K9: 55.62 | L9: 256.47 | M9: 219.41 | N9: 125.25 | O9: 78.46 | P9: 125.4 | Q9: 131.45 | R9: 297.97 | S9: 92.06 | T9: 52.34 | U9: 34.37 | V9: 139.38 | W9: 95.03 | X9: 43 | Y9: 169.82 | Z9: 169.51 | AA9: 155.38 | AB9: 85.42 | AC9: 90.87 | AD9: 50.03 | AE9: 163.08 | AF9: 457.23 | AG9: 203.15 | AH9: 314.25 | AI9: 98.61 | AJ9: 371.96 | AK9: 264.6 | AL9: 147.68 | AM9: 97.42 | AN9: 429.73 | AO9: 115.97 | AP9: 106.93 | AQ9: 35.06 | AR9: 76.53 | AS9: 5.98 | AT9: 408.89 | AU9: 119.84 | AV9: 311.46 | AW9: 332.79 | AX9: 24.48
A10: 8 | B10: 2021-05-19 | C10: 124.69 | D10: 116.38 | E10: 157.08 | F10: 326.49 | G10: 81.34 | H10: 242.64 | I10: 78.06 | J10: 159.42 | K10: 54.96 | L10: 257.72 | M10: 219.25 | N10: 122.32 | O10: 78.43 | P10: 121.81 | Q10: 130.69 | R10: 298.43 | S10: 92.25 | T10: 51.93 | U10: 34.28 | V10: 141.92 | W10: 95.68 | X10: 42.12 | Y10: 171.28 | Z10: 168.26 | AA10: 153.58 | AB10: 84.81 | AC10: 89.81 | AD10: 49.44 | AE10: 162.72 | AF10: 447.59 | AG10: 198.73 | AH10: 308.82 | AI10: 94.32 | AJ10: 370.9 | AK10: 264.15 | AL10: 142.63 | AM10: 96.31 | AN10: 427.83 | AO10: 116.01 | AP10: 106.14 | AQ10: 34.94 | AR10: 75.7 | AS10: 5.81 | AT10: 397.57 | AU10: 119.51 | AV10: 306.45 | AW10: 325.87 | AX10: 24.79
A11: 9 | B11: 2021-05-18 | C11: 124.85 | D11: 116.98 | E11: 158.73 | F11: 321.18 | G11: 82.36 | H11: 242.18 | I11: 78.17 | J11: 160.54 | K11: 55.03 | L11: 260.25 | M11: 223.94 | N11: 121.14 | O11: 77.92 | P11: 124.33 | Q11: 130.99 | R11: 296.2 | S11: 92.21 | T11: 52.4 | U11: 34.27 | V11: 142.02 | W11: 96.92 | X11: 42.57 | Y11: 173.43 | Z11: 169.19 | AA11: 155.61 | AB11: 84.96 | AC11: 89.19 | AD11: 49.99 | AE11: 166.08 | AF11: 454.09 | AG11: 199.19 | AH11: 314.91 | AI11: 90.02 | AJ11: 368.62 | AK11: 265.02 | AL11: 141.89 | AM11: 97.69 | AN11: 427.1 | AO11: 116.59 | AP11: 106.33 | AQ11: 35.4 | AR11: 76 | AS11: 5.87 | AT11: 400 | AU11: 118.7 | AV11: 305.07 | AW11: 326.87 | AX11: 24.86
A12: 10 | B12: 2021-05-17 | C12: 126.27 | D12: 116.74 | E12: 161.66 | F12: 321.23 | G12: 83.26 | H12: 241.09 | I12: 77.96 | J12: 162.24 | K12: 56.18 | L12: 259.66 | M12: 226.27 | N12: 121.835 | O12: 76.5 | P12: 127.92 | Q12: 132.01 | R12: 296.64 | S12: 93.53 | T12: 53.67 | U12: 34.72 | V12: 142.75 | W12: 97.59 | X12: 43.55 | Y12: 176.07 | Z12: 169.23 | AA12: 156.49 | AB12: 85.52 | AC12: 89.14 | AD12: 50.21 | AE12: 169.11 | AF12: 455.78 | AG12: 200.65 | AH12: 318.3 | AI12: 91.43 | AJ12: 372.87 | AK12: 270.23 | AL12: 143.23 | AM12: 97.55 | AN12: 435.67 | AO12: 117.25 | AP12: 108.76 | AQ12: 36.1 | AR12: 76.69 | AS12: 5.87 | AT12: 387.35 | AU12: 121.49 | AV12: 308.94 | AW12: 326.7 | AX12: 24.89
A13: 11 | B13: 2021-05-14 | C13: 127.45 | D13: 118.31 | E13: 161.23 | F13: 326.47 | G13: 83.15 | H13: 242.38 | I13: 78.24 | J13: 163.18 | K13: 56.14 | L13: 259.97 | M13: 223.84 | N13: 124.28 | O13: 76.8 | P13: 128.93 | Q13: 135.42 | R13: 296.48 | S13: 94.83 | T13: 53.9 | U13: 34.85 | V13: 141.21 | W13: 96.73 | X13: 42.5 | Y13: 176.49 | Z13: 173.95 | AA13: 157.32 | AB13: 86.02 | AC13: 89.56 | AD13: 50.28 | AE13: 168.69 | AF13: 463.46 | AG13: 201.88 | AH13: 323.64 | AI13: 92.85 | AJ13: 371.61 | AK13: 269.57 | AL13: 143.56 | AM13: 97.7 | AN13: 437.87 | AO13: 117.4 | AP13: 109.46 | AQ13: 36.92 | AR13: 76.6 | AS13: 5.91 | AT13: 401.37 | AU13: 122.31 | AV13: 312.24 | AW13: 333.07 | AX13: 24.86
A14: 12 | B14: 2021-05-13 | C14: 124.97 | D14: 117.45 | E14: 159.3 | F14: 317.67 | G14: 83.11 | H14: 244.08 | I14: 77.48 | J14: 160.97 | K14: 55.48 | L14: 258.86 | M14: 225.91 | N14: 122.07 | O14: 76.87 | P14: 125.38 | Q14: 137.47 | R14: 291.02 | S14: 93.18 | T14: 53.24 | U14: 34.45 | V14: 138.65 | W14: 96.55 | X14: 41.88 | Y14: 175.99 | Z14: 169.32 | AA14: 157.98 | AB14: 85.01 | AC14: 90.26 | AD14: 50.12 | AE14: 166.59 | AF14: 461.09 | AG14: 197.54 | AH14: 311.19 | AI14: 90.45 | AJ14: 370.06 | AK14: 263.97 | AL14: 141.27 | AM14: 97.55 | AN14: 435.01 | AO14: 116.85 | AP14: 109.85 | AQ14: 36.34 | AR14: 76.13 | AS14: 5.835 | AT14: 396.66 | AU14: 121.29 | AV14: 315.48 | AW14: 328.3 | AX14: 24.7
A15: 13 | B15: 2021-05-12 | C15: 122.77 | D15: 116.35 | E15: 156.33 | F15: 320.56 | G15: 80.69 | H15: 241.64 | I15: 76.17 | J15: 159.02 | K15: 53.49 | L15: 253.99 | M15: 217.44 | N15: 121.78 | O15: 76.31 | P15: 122.37 | Q15: 136.01 | R15: 290.07 | S15: 90.59 | T15: 52 | U15: 33.91 | V15: 135.29 | W15: 95 | X15: 40.68 | Y15: 173.18 | Z15: 164.51 | AA15: 155.11 | AB15: 83.02 | AC15: 88.94 | AD15: 49.35 | AE15: 162.28 | AF15: 460.18 | AG15: 194.34 | AH15: 309 | AI15: 89.93 | AJ15: 363.15 | AK15: 256.38 | AL15: 137.86 | AM15: 96.2 | AN15: 419.76 | AO15: 115.15 | AP15: 105.58 | AQ15: 35.75 | AR15: 73.5 | AS15: 5.77 | AT15: 408.88 | AU15: 117.5 | AV15: 303.64 | AW15: 324.8 | AX15: 24.56
A16: 14 | B16: 2021-05-11 | C16: 125.91 | D16: 118.39 | E16: 156.17 | F16: 320.87 | G16: 81.7 | H16: 241.2 | I16: 77.72 | J16: 163.79 | K16: 54.63 | L16: 259.62 | M16: 218.56 | N16: 125.83 | O16: 76.69 | P16: 126 | Q16: 137.85 | R16: 294.81 | S16: 93.32 | T16: 52.89 | U16: 34.79 | V16: 138.68 | W16: 95.45 | X16: 41.93 | Y16: 176.44 | Z16: 165.56 | AA16: 156.31 | AB16: 83.64 | AC16: 89.72 | AD16: 50.43 | AE16: 165.9 | AF16: 472.67 | AG16: 201.71 | AH16: 317.36 | AI16: 92.95 | AJ16: 368.3 | AK16: 264.14 | AL16: 139.44 | AM16: 97.29 | AN16: 438.87 | AO16: 116.28 | AP16: 108.31 | AQ16: 36.95 | AR16: 75.96 | AS16: 5.87 | AT16: 415.54 | AU16: 123.15 | AV16: 315.89 | AW16: 335.22 | AX16: 25.5
A17: 15 | B17: 2021-05-10 | C17: 126.85 | D17: 118.94 | E17: 159.96 | F17: 323.17 | G17: 83.36 | H17: 246.63 | I17: 77.81 | J17: 165.63 | K17: 55.46 | L17: 263.8 | M17: 224.35 | N17: 124.14 | O17: 77.35 | P17: 129.78 | Q17: 141.48 | R17: 298.39 | S17: 92.53 | T17: 53.75 | U17: 35.12 | V17: 142.71 | W17: 95.34 | X17: 41.81 | Y17: 180.47 | Z17: 166.75 | AA17: 158.86 | AB17: 83.41 | AC17: 90.68 | AD17: 50.68 | AE17: 166.44 | AF17: 476.89 | AG17: 200.41 | AH17: 318.01 | AI17: 92.65 | AJ17: 373.8 | AK17: 270.13 | AL17: 140 | AM17: 98.06 | AN17: 444.96 | AO17: 116.09 | AP17: 110.92 | AQ17: 37.22 | AR17: 76.75 | AS17: 5.96 | AT17: 408.23 | AU17: 120.52 | AV17: 317.63 | AW17: 333.73 | AX17: 25.8
A18: 16 | B18: 2021-05-07 | C18: 130.21 | D18: 118.95 | E18: 160.71 | F18: 332.38 | G18: 84.11 | H18: 239.39 | I18: 76.68 | J18: 164.2 | K18: 55.75 | L18: 264.31 | M18: 223.27 | N18: 129.05 | O18: 76.68 | P18: 134.2 | Q18: 138.95 | R18: 303.35 | S18: 96.08 | T18: 53.25 | U18: 36.31 | V18: 146.45 | W18: 94.92 | X18: 41.3 | Y18: 178.27 | Z18: 168.25 | AA18: 156.13 | AB18: 83.61 | AC18: 89.33 | AD18: 49.95 | AE18: 165.49 | AF18: 482.31 | AG18: 199.07 | AH18: 312.8 | AI18: 96.58 | AJ18: 370.63 | AK18: 269.57 | AL18: 140.97 | AM18: 97.41 | AN18: 444.01 | AO18: 116.35 | AP18: 113.26 | AQ18: 37.12 | AR18: 77.43 | AS18: 6.04 | AT18: 423.05 | AU18: 123.97 | AV18: 314.65 | AW18: 333.68 | AX18: 25.11
A19: 17 | B19: 2021-05-06 | C19: 129.74 | D19: 118.79 | E19: 161.88 | F19: 332.66 | G19: 84.06 | H19: 240.81 | I19: 76.82 | J19: 164.9 | K19: 55.44 | L19: 261.71 | M19: 222.29 | N19: 126.9 | O19: 75.17 | P19: 133.74 | Q19: 138.39 | R19: 299.35 | S19: 94.97 | T19: 52.88 | U19: 35.63 | V19: 146.51 | W19: 93.94 | X19: 41.65 | Y19: 174.9 | Z19: 166.38 | AA19: 158.47 | AB19: 83.86 | AC19: 90.23 | AD19: 49.49 | AE19: 161.69 | AF19: 475.91 | AG19: 188.03 | AH19: 314.76 | AI19: 95.28 | AJ19: 370.05 | AK19: 264.96 | AL19: 137.5 | AM19: 96.82 | AN19: 434.85 | AO19: 116.19 | AP19: 113.02 | AQ19: 36.97 | AR19: 76.96 | AS19: 5.98 | AT19: 410.98 | AU19: 124.49 | AV19: 309.01 | AW19: 329.42 | AX19: 25.28
A20: 18 | B20: 2021-05-05 | C20: 128.1 | D20: 118.51 | E20: 159.4 | F20: 355.49 | G20: 83.72 | H20: 249.77 | I20: 75.95 | J20: 165.04 | K20: 54.98 | L20: 262.65 | M20: 222.33 | N20: 126.89 | O20: 74.6 | P20: 132.97 | Q20: 136.57 | R20: 294.21 | S20: 94.56 | T20: 54.18 | U20: 35.29 | V20: 144.67 | W20: 91.84 | X20: 38.73 | Y20: 173.65 | Z20: 166.44 | AA20: 157.82 | AB20: 82.97 | AC20: 90.46 | AD20: 48.35 | AE20: 162.62 | AF20: 478.18 | AG20: 185.76 | AH20: 313.99 | AI20: 94.52 | AJ20: 372.99 | AK20: 264.13 | AL20: 136.57 | AM20: 95.44 | AN20: 441.56 | AO20: 114.32 | AP20: 111.65 | AQ20: 37.1 | AR20: 75.47 | AS20: 6.03 | AT20: 416.8 | AU20: 123.97 | AV20: 308.46 | AW20: 328.6 | AX20: 24.99
A21: 19 | B21: 2021-05-04 | C21: 127.85 | D21: 117.54 | E21: 157.61 | F21: 350.6 | G21: 85.61 | H21: 251.52 | I21: 76.81 | J21: 162.86 | K21: 55.53 | L21: 263.44 | M21: 221.61 | N21: 126.35 | O21: 75.48 | P21: 133.54 | Q21: 136.39 | R21: 302.11 | S21: 95.75 | T21: 53.29 | U21: 35.09 | V21: 145.5 | W21: 93.67 | X21: 39.87 | Y21: 176.57 | Z21: 165.14 | AA21: 158.57 | AB21: 86.1 | AC21: 90.37 | AD21: 47.85 | AE21: 163.78 | AF21: 482.5 | AG21: 186.56 | AH21: 316.32 | AI21: 93.1 | AJ21: 368.12 | AK21: 264.75 | AL21: 127.81 | AM21: 94.91 | AN21: 431.15 | AO21: 114.92 | AP21: 113.04 | AQ21: 37.61 | AR21: 75.96 | AS21: 6.01 | AT21: 418.22 | AU21: 123.81 | AV21: 299.75 | AW21: 329.2 | AX21: 25.86
A22: 20 | B22: 2021-05-03 | C22: 132.54 | D22: 119.53 | E22: 157.79 | F22: 361.55 | G22: 83.87 | H22: 253.12 | I22: 77.62 | J22: 159.98 | K22: 55.59 | L22: 262.09 | M22: 222.48 | N22: 129.62 | O22: 75.99 | P22: 135.79 | Q22: 132.71 | R22: 288.93 | S22: 96.7 | T22: 53 | U22: 35.52 | V22: 144.12 | W22: 94.46 | X22: 40.1 | Y22: 174.1 | Z22: 166.27 | AA22: 163.93 | AB22: 87 | AC22: 90.9 | AD22: 48.37 | AE22: 162 | AF22: 486.2 | AG22: 188.76 | AH22: 320.29 | AI22: 92.8 | AJ22: 361 | AK22: 261.67 | AL22: 130.56 | AM22: 95.85 | AN22: 428.86 | AO22: 114.87 | AP22: 112.84 | AQ22: 37.75 | AR22: 77.17 | AS22: 6.055 | AT22: 426.41 | AU22: 126.96 | AV22: 301.67 | AW22: 329.88 | AX22: 25.66
A23: 21 | B23: 2021-04-30 | C23: 131.46 | D23: 120.08 | E23: 155.6 | F23: 365.66 | G23: 82.95 | H23: 248.81 | I23: 76.28 | J23: 158.63 | K23: 54.57 | L23: 254.86 | M23: 222.19 | N23: 131.77 | O23: 75.05 | P23: 135.41 | Q23: 131.88 | R23: 313.8 | S23: 96.33 | T23: 52.28 | U23: 35.18 | V23: 142.17 | W23: 93.41 | X23: 40.12 | Y23: 170.71 | Z23: 164.61 | AA23: 162.83 | AB23: 85.35 | AC23: 90.36 | AD23: 47.75 | AE23: 160.76 | AF23: 485.77 | AG23: 188.3 | AH23: 325.16 | AI23: 94 | AJ23: 354.44 | AK23: 257.81 | AL23: 129.63 | AM23: 95 | AN23: 422.52 | AO23: 113.78 | AP23: 111.46 | AQ23: 37.28 | AR23: 76.14 | AS23: 6.1 | AT23: 427.49 | AU23: 127.63 | AV23: 299.87 | AW23: 328.52 | AX23: 25.76
A24: 22 | B24: 2021-04-29 | C24: 133.48 | D24: 121.01 | E24: 156.49 | F24: 371.8 | G24: 83.34 | H24: 251.42 | I24: 78.09 | J24: 161.46 | K24: 55.29 | L24: 254.05 | M24: 222.94 | N24: 133.46 | O24: 75.34 | P24: 137.4 | Q24: 131.46 | R24: 316.75 | S24: 96.2 | T24: 52.87 | U24: 35.75 | V24: 144.13 | W24: 93.28 | X24: 40.29 | Y24: 172.02 | Z24: 164.7 | AA24: 164.14 | AB24: 85.7 | AC24: 90.6 | AD24: 46.6 | AE24: 160.3 | AF24: 494.83 | AG24: 189.23 | AH24: 325.52 | AI24: 97.075 | AJ24: 352.22 | AK24: 259.31 | AL24: 130.5 | AM24: 95.09 | AN24: 421.45 | AO24: 113.93 | AP24: 112.35 | AQ24: 37.36 | AR24: 77.01 | AS24: 6.13 | AT24: 433.75 | AU24: 127.04 | AV24: 302.11 | AW24: 324.55 | AX24: 26.39
A25: 23 | B25: 2021-04-28 | C25: 133.58 | D25: 121.45 | E25: 154.59 | F25: 375.4 | G25: 81.79 | H25: 257.51 | I25: 76.21 | J25: 161.01 | K25: 54.98 | L25: 251.16 | M25: 224.37 | N25: 133.27 | O25: 74.97 | P25: 137.01 | Q25: 131.68 | R25: 315.5 | S25: 96.9 | T25: 51.685 | U25: 35.76 | V25: 143.78 | W25: 93.31 | X25: 39.53 | Y25: 168.92 | Z25: 160.41 | AA25: 163.57 | AB25: 83.48 | AC25: 89.32 | AD25: 47.18 | AE25: 159.84 | AF25: 484.03 | AG25: 188.6 | AH25: 324.41 | AI25: 94.58 | AJ25: 338.37 | AK25: 257.22 | AL25: 133.89 | AM25: 94.15 | AN25: 415.29 | AO25: 112.69 | AP25: 111.46 | AQ25: 36.41 | AR25: 75.38 | AS25: 6.065 | AT25: 436.8 | AU25: 134.25 | AV25: 300.44 | AW25: 322.22 | AX25: 26.22
A26: 24 | B26: 2021-04-27 | C26: 134.39 | D26: 121.7 | E26: 156.34 | F26: 373.51 | G26: 82.89 | H26: 258.21 | I26: 75.82 | J26: 161.23 | K26: 55.05 | L26: 253.78 | M26: 221.81 | N26: 132.75 | O26: 75.51 | P26: 138.56 | Q26: 132.3 | R26: 315.5 | S26: 97.86 | T26: 51.91 | U26: 35.74 | V26: 142.59 | W26: 93.15 | X26: 40.04 | Y26: 169.64 | Z26: 162.27 | AA26: 163.51 | AB26: 83.06 | AC26: 89.87 | AD26: 47.16 | AE26: 158.72 | AF26: 487.61 | AG26: 189.75 | AH26: 326.33 | AI26: 96.92 | AJ26: 339.87 | AK26: 258.36 | AL26: 135.01 | AM26: 94.51 | AN26: 421.69 | AO26: 112.64 | AP26: 113.5 | AQ26: 35.92 | AR26: 76.62 | AS26: 6.31 | AT26: 441.4 | AU26: 132.1 | AV26: 304.27 | AW26: 320.35 | AX26: 26.2
A27: 25 | B27: 2021-04-26 | C27: 134.72 | D27: 122.58 | E27: 155.17 | F27: 376.88 | G27: 82.7 | H27: 257.45 | I27: 75.96 | J27: 161.02 | K27: 55.45 | L27: 253.56 | M27: 223.14 | N27: 144.23 | O27: 75.61 | P27: 140.32 | Q27: 132.27 | R27: 316.25 | S27: 99.49 | T27: 51.92 | U27: 35.48 | V27: 144.5 | W27: 92.25 | X27: 40.08 | Y27: 167.76 | Z27: 164.59 | AA27: 168.19 | AB27: 83.31 | AC27: 90.35 | AD27: 47.22 | AE27: 159.2 | AF27: 487 | AG27: 190.2 | AH27: 326.57 | AI27: 97.67 | AJ27: 337.8 | AK27: 253.49 | AL27: 134.98 | AM27: 94.39 | AN27: 413.25 | AO27: 113.13 | AP27: 113.77 | AQ27: 35.91 | AR27: 77 | AS27: 6.36 | AT27: 440.56 | AU27: 131.94 | AV27: 304.35 | AW27: 322.41 | AX27: 26.35
A28: 26 | B28: 2021-04-23 | C28: 134.32 | D28: 123.31 | E28: 155.79 | F28: 371.73 | G28: 83.36 | H28: 255.85 | I28: 77.1 | J28: 162.63 | K28: 55.68 | L28: 254.47 | M28: 224.04 | N28: 142.08 | O28: 75.56 | P28: 141.27 | Q28: 131.21 | R28: 313.79 | S28: 100.32 | T28: 52.18 | U28: 35.35 | V28: 144.54 | W28: 92.86 | X28: 40.32 | Y28: 169.2 | Z28: 166.38 | AA28: 169.59 | AB28: 84.7 | AC28: 91.47 | AD28: 47.39 | AE28: 161.65 | AF28: 486.5 | AG28: 189.98 | AH28: 333.41 | AI28: 96.19 | AJ28: 342.04 | AK28: 257.76 | AL28: 134.97 | AM28: 94.61 | AN28: 419.53 | AO28: 113.08 | AP28: 113.99 | AQ28: 35.8 | AR28: 76.77 | AS28: 6.38 | AT28: 432.47 | AU28: 133.94 | AV28: 306.5 | AW28: 323.68 | AX28: 26.33
A29: 27 | B29: 2021-04-22 | C29: 131.94 | D29: 123.5 | E29: 153.85 | F29: 364.81 | G29: 83.71 | H29: 257.13 | I29: 77.19 | J29: 161.28 | K29: 55.3 | L29: 258.4 | M29: 221.71 | N29: 140.06 | O29: 75.94 | P29: 141.33 | Q29: 133.69 | R29: 312.09 | S29: 99.13 | T29: 51.75 | U29: 35.61 | V29: 142.49 | W29: 92.16 | X29: 40.37 | Y29: 169.59 | Z29: 165.14 | AA29: 167.21 | AB29: 84.27 | AC29: 91.42 | AD29: 46.5 | AE29: 158.63 | AF29: 471.75 | AG29: 187.43 | AH29: 326.57 | AI29: 93.19 | AJ29: 343.43 | AK29: 250.75 | AL29: 133.39 | AM29: 94.01 | AN29: 410.46 | AO29: 112.56 | AP29: 113.43 | AQ29: 35.29 | AR29: 75.87 | AS29: 6.295 | AT29: 423.71 | AU29: 131.96 | AV29: 304.64 | AW29: 321.84 | AX29: 26.05
A30: 28 | B30: 2021-04-21 | C30: 133.5 | D30: 122.6 | E30: 155.74 | F30: 365.88 | G30: 83.94 | H30: 258.14 | I30: 77.14 | J30: 160.75 | K30: 55.54 | L30: 255.49 | M30: 222.95 | N30: 141.5 | O30: 75.89 | P30: 140.15 | Q30: 130.02 | R30: 309.87 | S30: 97.25 | T30: 52.06 | U30: 36.13 | V30: 143.86 | W30: 92.83 | X30: 40.24 | Y30: 166.78 | Z30: 161.81 | AA30: 166.09 | AB30: 85.59 | AC30: 91.92 | AD30: 47.58 | AE30: 159.1 | AF30: 470.62 | AG30: 186.48 | AH30: 316.04 | AI30: 94.87 | AJ30: 345.52 | AK30: 246.7 | AL30: 133.94 | AM30: 94.19 | AN30: 385.67 | AO30: 112.68 | AP30: 116.97 | AQ30: 35.18 | AR30: 77.45 | AS30: 6.39 | AT30: 423.84 | AU30: 130.45 | AV30: 301.22 | AW30: 323.83 | AX30: 26.22
A31: 29 | B31: 2021-04-20 | C31: 133.11 | D31: 120 | E31: 154.03 | F31: 364.94 | G31: 83.39 | H31: 256.44 | I31: 75.95 | J31: 158.85 | K31: 54.95 | L31: 261.86 | M31: 223.26 | N31: 140.94 | O31: 75.32 | P31: 139.89 | Q31: 129.37 | R31: 309.43 | S31: 97.33 | T31: 51.13 | U31: 35.34 | V31: 141.82 | W31: 92.21 | X31: 39.49 | Y31: 168.37 | Z31: 160.14 | AA31: 163.85 | AB31: 85.95 | AC31: 90.62 | AD31: 47.19 | AE31: 156.43 | AF31: 468.03 | AG31: 185.27 | AH31: 310.29 | AI31: 92.58 | AJ31: 345.14 | AK31: 247.64 | AL31: 134.36 | AM31: 94 | AN31: 386.06 | AO31: 111.97 | AP31: 114.32 | AQ31: 35.18 | AR31: 76.28 | AS31: 6.31 | AT31: 411.91 | AU31: 130.44 | AV31: 296.27 | AW31: 319.19 | AX31: 25.97
A32: 30 | B32: 2021-04-19 | C32: 134.84 | D32: 124.53 | E32: 153.24 | F32: 364.47 | G32: 84.83 | H32: 258.96 | I32: 74.84 | J32: 155.94 | K32: 55.22 | L32: 262.46 | M32: 224.28 | N32: 141.94 | O32: 74.68 | P32: 138.82 | Q32: 131.09 | R32: 309.18 | S32: 98.96 | T32: 50.8 | U32: 35.85 | V32: 142.92 | W32: 92.75 | X32: 38.48 | Y32: 166.93 | Z32: 159.42 | AA32: 161.15 | AB32: 86.6 | AC32: 88.85 | AD32: 49.08 | AE32: 154.7 | AF32: 468.27 | AG32: 187.66 | AH32: 313.61 | AI32: 93.89 | AJ32: 344.64 | AK32: 247.91 | AL32: 134.59 | AM32: 91.67 | AN32: 382.95 | AO32: 111.2 | AP32: 114.78 | AQ32: 34.81 | AR32: 77 | AS32: 6.28 | AT32: 414.51 | AU32: 131.85 | AV32: 298.81 | AW32: 316.79 | AX32: 26.15
A33: 31 | B33: 2021-04-16 | C33: 134.16 | D33: 124.35 | E33: 152.5 | F33: 373.93 | G33: 84.67 | H33: 260.94 | I33: 74.26 | J33: 157 | K33: 55.03 | L33: 260.45 | M33: 223.32 | N33: 147.26 | O33: 75.31 | P33: 140.52 | Q33: 130.11 | R33: 312.29 | S33: 100.86 | T33: 50.54 | U33: 36.03 | V33: 142.86 | W33: 92.96 | X33: 38.04 | Y33: 172.16 | Z33: 158.94 | AA33: 158.84 | AB33: 87.3 | AC33: 88.79 | AD33: 52.31 | AE33: 155.63 | AF33: 473.52 | AG33: 188.6 | AH33: 319.79 | AI33: 95.13 | AJ33: 346.43 | AK33: 251.37 | AL33: 133.16 | AM33: 92.91 | AN33: 382.21 | AO33: 110.59 | AP33: 115.08 | AQ33: 35.27 | AR33: 77.49 | AS33: 6.31 | AT33: 418.55 | AU33: 135.51 | AV33: 299.9 | AW33: 313.83 | AX33: 25.89
A34: 32 | B34: 2021-04-15 | C34: 134.5 | D34: 123.94 | E34: 150.07 | F34: 374.62 | G34: 83.36 | H34: 257.85 | I34: 73.49 | J34: 155.57 | K34: 55.23 | L34: 257.25 | M34: 220.39 | N34: 147.59 | O34: 74.52 | P34: 139.39 | Q34: 129.15 | R34: 305.13 | S34: 102.31 | T34: 50.39 | U34: 35.85 | V34: 141.89 | W34: 91.91 | X34: 38.15 | Y34: 169.77 | Z34: 157.76 | AA34: 156.4 | AB34: 85.56 | AC34: 88.48 | AD34: 51.61 | AE34: 153.96 | AF34: 469.65 | AG34: 188.17 | AH34: 318.02 | AI34: 95.54 | AJ34: 344.59 | AK34: 250.09 | AL34: 134.63 | AM34: 91.83 | AN34: 374.43 | AO34: 110.24 | AP34: 114.73 | AQ34: 35.23 | AR34: 76.37 | AS34: 6.24 | AT34: 415.18 | AU34: 136.15 | AV34: 299.65 | AW34: 310.95 | AX34: 25.76
A35: 33 | B35: 2021-04-14 | C35: 132.03 | D35: 121.5 | E35: 149.5 | F35: 366.62 | G35: 82.8 | H35: 249.82 | I35: 72.5 | J35: 155.88 | K35: 54.65 | L35: 252.43 | M35: 217.51 | N35: 144.61 | O35: 73.83 | P35: 138.55 | Q35: 127.34 | R35: 304.39 | S35: 100.53 | T35: 50.06 | U35: 35.57 | V35: 140.95 | W35: 91.27 | X35: 37.99 | Y35: 169.18 | Z35: 157.34 | AA35: 153.81 | AB35: 84.85 | AC35: 87.91 | AD35: 51.35 | AE35: 152.49 | AF35: 457.41 | AG35: 187.35 | AH35: 313.11 | AI35: 94.21 | AJ35: 341.82 | AK35: 247.89 | AL35: 132.85 | AM35: 91.07 | AN35: 367.7 | AO35: 108.98 | AP35: 114.56 | AQ35: 34.7 | AR35: 76.1 | AS35: 6.28 | AT35: 414.38 | AU35: 134.15 | AV35: 296.67 | AW35: 300.06 | AX35: 25.58
A36: 34 | B36: 2021-04-13 | C36: 134.43 | D36: 123.01 | E36: 148.29 | F36: 371.02 | G36: 82.54 | H36: 250.7 | I36: 72.24 | J36: 155.77 | K36: 54.54 | L36: 250 | M36: 217.36 | N36: 146.15 | O36: 74.02 | P36: 137.38 | Q36: 128.39 | R36: 303 | S36: 101.03 | T36: 49.98 | U36: 35.51 | V36: 140.79 | W36: 90.33 | X36: 38.03 | Y36: 170.41 | Z36: 157.73 | AA36: 155.83 | AB36: 85.39 | AC36: 88.02 | AD36: 51.17 | AE36: 152.96 | AF36: 460 | AG36: 188.49 | AH36: 308.22 | AI36: 94.78 | AJ36: 338.61 | AK36: 248.33 | AL36: 135.35 | AM36: 90.78 | AN36: 370.45 | AO36: 107.66 | AP36: 113.31 | AQ36: 34.91 | AR36: 75.09 | AS36: 6.2 | AT36: 419.45 | AU36: 135.2 | AV36: 307.91 | AW36: 306.45 | AX36: 25.4
A37: 35 | B37: 2021-04-12 | C37: 131.24 | D37: 121.04 | E37: 147.91 | F37: 366.94 | G37: 83.03 | H37: 247.41 | I37: 72.41 | J37: 155.93 | K37: 55.35 | L37: 253.52 | M37: 218.67 | N37: 144.79 | O37: 73.57 | P37: 139.37 | Q37: 128.86 | R37: 303.22 | S37: 101.93 | T37: 50.71 | U37: 35.9 | V37: 140.49 | W37: 90.7 | X37: 37.91 | Y37: 171.5 | Z37: 159.01 | AA37: 155.76 | AB37: 86.22 | AC37: 88.23 | AD37: 51.75 | AE37: 154.68 | AF37: 453.14 | AG37: 187.79 | AH37: 304.59 | AI37: 95.01 | AJ37: 340.69 | AK37: 249.02 | AL37: 132.62 | AM37: 91.39 | AN37: 371.18 | AO37: 108.33 | AP37: 115.2 | AQ37: 35.62 | AR37: 75.95 | AS37: 6.23 | AT37: 403.05 | AU37: 143.73 | AV37: 307.04 | AW37: 296.94 | AX37: 25.1
A38: 36 | B38: 2021-04-09 | C38: 132.995 | D38: 120.9 | E38: 146.96 | F38: 366.7 | G38: 82.26 | H38: 247.93 | I38: 70.98 | J38: 156 | K38: 55 | L38: 251.35 | M38: 219.61 | N38: 145.35 | O38: 72.79 | P38: 140.34 | Q38: 126.69 | R38: 302.12 | S38: 100.94 | T38: 50.06 | U38: 35.4 | V38: 140.28 | W38: 90.4 | X38: 37.66 | Y38: 169.51 | Z38: 156.29 | AA38: 155.72 | AB38: 86.72 | AC38: 88.11 | AD38: 51.49 | AE38: 152.5 | AF38: 448.5 | AG38: 191.06 | AH38: 304.39 | AI38: 95.77 | AJ38: 339.95 | AK38: 249.28 | AL38: 133.39 | AM38: 91.07 | AN38: 369.49 | AO38: 106.17 | AP38: 114.68 | AQ38: 35.43 | AR38: 75.51 | AS38: 6.35 | AT38: 408.72 | AU38: 142.59 | AV38: 307.14 | AW38: 296.52 | AX38: 25.19
A39: 37 | B39: 2021-04-08 | C39: 130.36 | D39: 119.78 | E39: 145.32 | F39: 362.24 | G39: 82.02 | H39: 242.87 | I39: 71.05 | J39: 154.37 | K39: 54.59 | L39: 249.2 | M39: 217.11 | N39: 145.46 | O39: 72.2 | P39: 137.49 | Q39: 126.66 | R39: 298.58 | S39: 100.04 | T39: 50.22 | U39: 35.44 | V39: 138.38 | W39: 90.48 | X39: 37.38 | Y39: 167.61 | Z39: 157.45 | AA39: 155.55 | AB39: 86.25 | AC39: 89.64 | AD39: 51.48 | AE39: 152.01 | AF39: 445.29 | AG39: 190.46 | AH39: 305.18 | AI39: 96.6 | AJ39: 336.12 | AK39: 244.98 | AL39: 131.56 | AM39: 89.44 | AN39: 360.76 | AO39: 108.6 | AP39: 113.79 | AQ39: 34.96 | AR39: 74.8 | AS39: 6.31 | AT39: 405.14 | AU39: 141.01 | AV39: 304.13 | AW39: 291.88 | AX39: 25.05
A40: 38 | B40: 2021-04-07 | C40: 127.9 | D40: 120.11 | E40: 145.58 | F40: 355.34 | G40: 82.23 | H40: 244.02 | I40: 70.38 | J40: 154.68 | K40: 54.7 | L40: 251.29 | M40: 215.48 | N40: 142.56 | O40: 72.26 | P40: 137 | Q40: 127.74 | R40: 295.13 | S40: 97.94 | T40: 49.93 | U40: 35.73 | V40: 138.5 | W40: 90.07 | X40: 37.69 | Y40: 169.31 | Z40: 157.26 | AA40: 154.22 | AB40: 86.37 | AC40: 89.16 | AD40: 51.13 | AE40: 152.51 | AF40: 437.45 | AG40: 189.93 | AH40: 303.03 | AI40: 95.34 | AJ40: 333.97 | AK40: 243.4 | AL40: 130.18 | AM40: 88.28 | AN40: 356.65 | AO40: 108.3 | AP40: 113.59 | AQ40: 34.48 | AR40: 74.54 | AS40: 6.33 | AT40: 396.99 | AU40: 138.31 | AV40: 296.35 | AW40: 289.18 | AX40: 25.27
A41: 39 | B41: 2021-04-06 | C41: 126.21 | D41: 119.97 | E41: 143.4 | F41: 358.42 | G41: 82.5 | H41: 244.62 | I41: 70.95 | J41: 156.13 | K41: 55.79 | L41: 255.59 | M41: 219 | N41: 143.46 | O41: 72.19 | P41: 140.24 | Q41: 128.31 | R41: 295 | S41: 100 | T41: 51.27 | U41: 36.36 | V41: 140.93 | W41: 90.2 | X41: 37.49 | Y41: 169.3 | Z41: 157.42 | AA41: 155.32 | AB41: 87.8 | AC41: 89.73 | AD41: 51.38 | AE41: 153.1 | AF41: 440.1 | AG41: 188.7 | AH41: 304.51 | AI41: 96.71 | AJ41: 331.16 | AK41: 244.59 | AL41: 132.97 | AM41: 88.63 | AN41: 357.72 | AO41: 109.17 | AP41: 115.11 | AQ41: 35.29 | AR41: 74.61 | AS41: 6.34 | AT41: 399.06 | AU41: 139.8 | AV41: 302.23 | AW41: 291.28 | AX41: 25.12
A42: 40 | B42: 2021-04-05 | C42: 125.9 | D42: 119.86 | E42: 142.79 | F42: 362.76 | G42: 83.69 | H42: 245.09 | I42: 70.56 | J42: 158.6 | K42: 55.51 | L42: 256.24 | M42: 219.77 | N42: 145.87 | O42: 73.25 | P42: 138.99 | Q42: 130.13 | R42: 295.27 | S42: 99.37 | T42: 51.44 | U42: 36.53 | V42: 139 | W42: 90.17 | X42: 37.56 | Y42: 171.07 | Z42: 158.52 | AA42: 157.25 | AB42: 88.89 | AC42: 89.08 | AD42: 51.32 | AE42: 151.84 | AF42: 440.61 | AG42: 191.34 | AH42: 298.3 | AI42: 97.32 | AJ42: 330.65 | AK42: 246.3 | AL42: 130.99 | AM42: 88.6 | AN42: 357 | AO42: 107.74 | AP42: 115.15 | AQ42: 35.39 | AR42: 73.85 | AS42: 6.3 | AT42: 396.79 | AU42: 139.98 | AV42: 295.65 | AW42: 289.56 | AX42: 25.06
A43: 41 | B43: 2021-04-01 | C43: 123 | D43: 118.94 | E43: 142.3 | F43: 351.85 | G43: 81.71 | H43: 241.58 | I43: 69.65 | J43: 154.92 | K43: 55.19 | L43: 248.6 | M43: 216.7 | N43: 141.49 | O43: 72.92 | P43: 136.32 | Q43: 129.44 | R43: 292.33 | S43: 98.84 | T43: 51.11 | U43: 36.01 | V43: 138.85 | W43: 90.21 | X43: 37.3 | Y43: 169.8 | Z43: 156.64 | AA43: 154.59 | AB43: 86.71 | AC43: 89.24 | AD43: 51 | AE43: 151.51 | AF43: 428.55 | AG43: 188.36 | AH43: 295.03 | AI43: 95.45 | AJ43: 322.24 | AK43: 243.69 | AL43: 129.88 | AM43: 88.06 | AN43: 351.57 | AO43: 105.97 | AP43: 113.4 | AQ43: 34.83 | AR43: 73.33 | AS43: 6.27 | AT43: 388.5 | AU43: 136.94 | AV43: 284.72 | AW43: 284.77 | AX43: 25.15
A44: 42 | B44: 2021-03-31 | C44: 122.15 | D44: 119.84 | E44: 141.77 | F44: 339.56 | G44: 80.53 | H44: 243.15 | I44: 68.97 | J44: 153.1 | K44: 53.45 | L44: 246.66 | M44: 216.19 | N44: 136.99 | O44: 71.88 | P44: 135 | Q44: 128.34 | R44: 290.85 | S44: 97.45 | T44: 50.28 | U44: 35.67 | V44: 139.61 | W44: 89.92 | X44: 37.01 | Y44: 168.07 | Z44: 157.03 | AA44: 151.72 | AB44: 86.95 | AC44: 89.16 | AD44: 51.16 | AE44: 150.02 | AF44: 419.28 | AG44: 188.05 | AH44: 291.66 | AI44: 91.37 | AJ44: 323.64 | AK44: 240.41 | AL44: 128.29 | AM44: 88.74 | AN44: 345.24 | AO44: 105.72 | AP44: 111.57 | AQ44: 34.42 | AR44: 72.54 | AS44: 6.09 | AT44: 381.93 | AU44: 135.72 | AV44: 284.17 | AW44: 281.78 | AX44: 24.66
A45: 43 | B45: 2021-03-30 | C45: 119.9 | D45: 119.75 | E45: 144.71 | F45: 331.89 | G45: 80.77 | H45: 245.19 | I45: 70 | J45: 152.98 | K45: 54.04 | L45: 246.25 | M45: 217.23 | N45: 130.87 | O45: 71.64 | P45: 135.05 | Q45: 128.49 | R45: 295.13 | S45: 96.24 | T45: 50.62 | U45: 35.89 | V45: 139.75 | W45: 92.19 | X45: 37.16 | Y45: 169.34 | Z45: 156.91 | AA45: 153.4 | AB45: 86.67 | AC45: 89.9 | AD45: 51.26 | AE45: 150.05 | AF45: 417.51 | AG45: 186.61 | AH45: 290.16 | AI45: 89.92 | AJ45: 322.68 | AK45: 240.61 | AL45: 127.73 | AM45: 89.35 | AN45: 342.37 | AO45: 106.69 | AP45: 112.4 | AQ45: 33.92 | AR45: 73.3 | AS45: 6.12 | AT45: 373.47 | AU45: 133.63 | AV45: 282.51 | AW45: 278.34 | AX45: 24.84
A46: 44 | B46: 2021-03-29 | C46: 121.39 | D46: 122.23 | E46: 143.77 | F46: 342.23 | G46: 81.42 | H46: 247.14 | I46: 70.41 | J46: 157.31 | K46: 54.36 | L46: 247.95 | M46: 215.17 | N46: 132.75 | O46: 72.49 | P46: 134.4 | Q46: 128.04 | R46: 290.53 | S46: 95.49 | T46: 50.68 | U46: 35.37 | V46: 141.31 | W46: 91.78 | X46: 36.69 | Y46: 167.34 | Z46: 157.97 | AA46: 156.41 | AB46: 87.2 | AC46: 90.13 | AD46: 52.3 | AE46: 147.89 | AF46: 426.37 | AG46: 188.88 | AH46: 284.13 | AI46: 91.04 | AJ46: 323.15 | AK46: 235.34 | AL46: 128.65 | AM46: 90.99 | AN46: 343.48 | AO46: 107.28 | AP46: 112.83 | AQ46: 34.18 | AR46: 73.17 | AS46: 6.15 | AT46: 366.99 | AU46: 130.76 | AV46: 284.02 | AW46: 280.51 | AX46: 24.79
A47: 45 | B47: 2021-03-26 | C47: 121.21 | D47: 122.07 | E47: 144.65 | F47: 342.96 | G47: 79.76 | H47: 245.12 | I47: 69.38 | J47: 153.44 | K47: 55.41 | L47: 241.6 | M47: 216.91 | N47: 132.58 | O47: 72.43 | P47: 135.7 | Q47: 129.24 | R47: 292.31 | S47: 96.58 | T47: 50.56 | U47: 35.7 | V47: 140.52 | W47: 92.78 | X47: 37.28 | Y47: 166.9 | Z47: 157.64 | AA47: 155.19 | AB47: 86.92 | AC47: 90.21 | AD47: 52.5 | AE47: 150.8 | AF47: 424.87 | AG47: 189.6 | AH47: 286.23 | AI47: 93.14 | AJ47: 319.02 | AK47: 235.75 | AL47: 129.55 | AM47: 90.58 | AN47: 341.86 | AO47: 107.47 | AP47: 113.81 | AQ47: 34.19 | AR47: 74.42 | AS47: 6.22 | AT47: 388.24 | AU47: 133.42 | AV47: 281.22 | AW47: 280.31 | AX47: 25.37
A48: 46 | B48: 2021-03-25 | C48: 120.59 | D48: 119.05 | E48: 143.54 | F48: 327.88 | G48: 80.38 | H48: 241.73 | I48: 68.95 | J48: 148.24 | K48: 54.02 | L48: 245.53 | M48: 211.93 | N48: 125.67 | O48: 72.28 | P48: 131.01 | Q48: 127.15 | R48: 286.16 | S48: 94.48 | T48: 49.22 | U48: 34.595 | V48: 139.41 | W48: 90.88 | X48: 36.86 | Y48: 161.42 | Z48: 157.77 | AA48: 152.78 | AB48: 86.7 | AC48: 88.7 | AD48: 50.19 | AE48: 152.75 | AF48: 412.05 | AG48: 184.09 | AH48: 280 | AI48: 88.42 | AJ48: 321.19 | AK48: 231.76 | AL48: 125.85 | AM48: 88.69 | AN48: 335.25 | AO48: 105.54 | AP48: 113.93 | AQ48: 33.91 | AR48: 73.46 | AS48: 6.15 | AT48: 377.22 | AU48: 129.51 | AV48: 273 | AW48: 275.45 | AX48: 24.7
A49: 47 | B49: 2021-03-24 | C49: 120.09 | D49: 118.02 | E49: 142 | F49: 330.37 | G49: 79.73 | H49: 241.77 | I49: 69.07 | J49: 148.87 | K49: 53.01 | L49: 244.81 | M49: 206.09 | N49: 126.97 | O49: 71.83 | P49: 131.5 | Q49: 126.89 | R49: 284.98 | S49: 93.1 | T49: 48.23 | U49: 34.24 | V49: 136.43 | W49: 89.65 | X49: 36.46 | Y49: 159.53 | Z49: 157.04 | AA49: 153.92 | AB49: 85.14 | AC49: 87.53 | AD49: 49.51 | AE49: 149.75 | AF49: 424.03 | AG49: 181.04 | AH49: 278.35 | AI49: 89.39 | AJ49: 316.03 | AK49: 234.11 | AL49: 125.2 | AM49: 88.55 | AN49: 340.1 | AO49: 103.12 | AP49: 110.02 | AQ49: 33.81 | AR49: 72.05 | AS49: 6.11 | AT49: 369.46 | AU49: 127.05 | AV49: 269.05 | AW49: 278.08 | AX49: 24.24
A50: 48 | B50: 2021-03-23 | C50: 122.54 | D50: 120.49 | E50: 140.62 | F50: 333.53 | G50: 80.05 | H50: 240.26 | I50: 69.86 | J50: 147.27 | K50: 53.41 | L50: 246.05 | M50: 209.6 | N50: 128.25 | O50: 71.73 | P50: 128.4 | Q50: 125.21 | R50: 281.28 | S50: 92.9 | T50: 47.7 | U50: 34.52 | V50: 136 | W50: 88.23 | X50: 36.26 | Y50: 155.95 | Z50: 153.7 | AA50: 151.83 | AB50: 84.41 | AC50: 87.56 | AD50: 50.51 | AE50: 154.63 | AF50: 420.76 | AG50: 183.88 | AH50: 299.28 | AI50: 88.85 | AJ50: 314.14 | AK50: 231.65 | AL50: 127.25 | AM50: 88.05 | AN50: 340.91 | AO50: 103.45 | AP50: 108.44 | AQ50: 33.96 | AR50: 71.89 | AS50: 6.24 | AT50: 376.47 | AU50: 128 | AV50: 270.69 | AW50: 283.25 | AX50: 24.62
A51: 49 | B51: 2021-03-22 | C51: 123.39 | D51: 121.47 | E51: 140.75 | F51: 334.86 | G51: 79.83 | H51: 241.62 | I51: 69.18 | J51: 147.59 | K51: 54.52 | L51: 250.11 | M51: 207.35 | N51: 127.97 | O51: 71.97 | P51: 130.11 | Q51: 125.91 | R51: 286.18 | S51: 95.2 | T51: 47.98 | U51: 34.88 | V51: 137.3 | W51: 90.21 | X51: 36.58 | Y51: 158.41 | Z51: 154.39 | AA51: 149.23 | AB51: 84.32 | AC51: 87.85 | AD51: 51.64 | AE51: 159.12 | AF51: 419.36 | AG51: 185.71 | AH51: 313.49 | AI51: 90.66 | AJ51: 314.21 | AK51: 231.25 | AL51: 128.13 | AM51: 89.98 | AN51: 336.22 | AO51: 105.5 | AP51: 108.28 | AQ51: 34.37 | AR51: 72.15 | AS51: 6.31 | AT51: 385.38 | AU51: 130.17 | AV51: 271.63 | AW51: 282.49 | AX51: 24.77
A52: 50 | B52: 2021-03-19 | C52: 119.99 | D52: 120.25 | E52: 143.71 | F52: 324.25 | G52: 79.75 | H52: 239.02 | I52: 68.73 | J52: 146.18 | K52: 55.14 | L52: 247.45 | M52: 207.94 | N52: 125.48 | O52: 71.95 | P52: 132 | Q52: 125.28 | R52: 285.22 | S52: 95.48 | T52: 47.63 | U52: 35.55 | V52: 137.31 | W52: 89.9 | X52: 35.8 | Y52: 162.31 | Z52: 160.65 | AA52: 148.13 | AB52: 85.02 | AC52: 86.54 | AD52: 50.55 | AE52: 159.5 | AF52: 410.36 | AG52: 183.22 | AH52: 313.33 | AI52: 89.32 | AJ52: 308.65 | AK52: 230.61 | AL52: 128.4 | AM52: 89.25 | AN52: 340.8 | AO52: 106.91 | AP52: 112.16 | AQ52: 33.78 | AR52: 73.73 | AS52: 6.08 | AT52: 375.24 | AU52: 128.89 | AV52: 268.7 | AW52: 277.15 | AX52: 24.45
A53: 51 | B53: 2021-03-18 | C53: 120.53 | D53: 118.11 | E53: 142.61 | F53: 321.49 | G53: 80.57 | H53: 239.2 | I53: 70.7 | J53: 145.46 | K53: 55.77 | L53: 248.63 | M53: 204.97 | N53: 124.03 | O53: 71.74 | P53: 132.55 | Q53: 124.26 | R53: 286.99 | S53: 95.32 | T53: 47.5 | U53: 36.12 | V53: 137.68 | W53: 91.29 | X53: 35.81 | Y53: 162.09 | Z53: 162.15 | AA53: 148.4 | AB53: 86.37 | AC53: 86.32 | AD53: 50.57 | AE53: 164.19 | AF53: 405.62 | AG53: 181.41 | AH53: 315.58 | AI53: 88.03 | AJ53: 314.94 | AK53: 230.1 | AL53: 126.56 | AM53: 90.56 | AN53: 336.87 | AO53: 103.76 | AP53: 115.3 | AQ53: 33.01 | AR53: 75.9 | AS53: 6.1 | AT53: 373.99 | AU53: 134.42 | AV53: 268.76 | AW53: 268.95 | AX53: 25
A54: 52 | B54: 2021-03-17 | C54: 124.76 | D54: 117.62 | E54: 138.64 | F54: 328.37 | G54: 80.05 | H54: 239.36 | I54: 71.75 | J54: 146.75 | K54: 55.83 | L54: 246.71 | M54: 206.94 | N54: 128.49 | O54: 72.3 | P54: 132.92 | Q54: 123.12 | R54: 290.74 | S54: 96.31 | T54: 48.41 | U54: 36.69 | V54: 137.85 | W54: 92.4 | X54: 36.19 | Y54: 159.9 | Z54: 164.24 | AA54: 150.74 | AB54: 84.55 | AC54: 86.65 | AD54: 49.78 | AE54: 164.86 | AF54: 413.17 | AG54: 181.34 | AH54: 316.06 | AI54: 91.12 | AJ54: 310.57 | AK54: 227.92 | AL54: 126.39 | AM54: 89.2 | AN54: 339.2 | AO54: 105.09 | AP54: 117.29 | AQ54: 32.67 | AR54: 77.36 | AS54: 6.29 | AT54: 381.82 | AU54: 134.44 | AV54: 268.13 | AW54: 274.59 | AX54: 24.87
A55: 53 | B55: 2021-03-16 | C55: 125.57 | D55: 118.22 | E55: 137.39 | F55: 330.78 | G55: 79.44 | H55: 239.55 | I55: 72.64 | J55: 147.63 | K55: 55.08 | L55: 246.25 | M55: 207.39 | N55: 129.39 | O55: 72.2 | P55: 133.57 | Q55: 122.68 | R55: 288.92 | S55: 97.74 | T55: 47.72 | U55: 36.83 | V55: 136.68 | W55: 92.03 | X55: 35.78 | Y55: 158.17 | Z55: 164.5 | AA55: 151.07 | AB55: 81.81 | AC55: 87.23 | AD55: 49.44 | AE55: 163.35 | AF55: 416.58 | AG55: 182.48 | AH55: 309.74 | AI55: 90.19 | AJ55: 305.84 | AK55: 228.98 | AL55: 125.96 | AM55: 88.2 | AN55: 343.97 | AO55: 104.88 | AP55: 116.75 | AQ55: 32.98 | AR55: 76.85 | AS55: 6.33 | AT55: 388.37 | AU55: 132.8 | AV55: 269.77 | AW55: 274.17 | AX55: 24.8
A56: 54 | B56: 2021-03-15 | C56: 123.99 | D56: 118.1 | E56: 138.16 | F56: 325.71 | G56: 80.63 | H56: 240.76 | I56: 72.39 | J56: 146.39 | K56: 56.9 | L56: 248.5 | M56: 208.36 | N56: 129.39 | O56: 72.38 | P56: 134.2 | Q56: 123.36 | R56: 289.55 | S56: 98.38 | T56: 48.13 | U56: 37.26 | V56: 136.79 | W56: 92.56 | X56: 36.81 | Y56: 161.46 | Z56: 165.84 | AA56: 151.57 | AB56: 82.04 | AC56: 87.34 | AD56: 49.84 | AE56: 165.63 | AF56: 419.55 | AG56: 181.85 | AH56: 309.54 | AI56: 88.91 | AJ56: 305.74 | AK56: 231.99 | AL56: 126.63 | AM56: 87.68 | AN56: 347.57 | AO56: 104.04 | AP56: 117.21 | AQ56: 33.62 | AR56: 77.25 | AS56: 6.25 | AT56: 397.01 | AU56: 135.03 | AV56: 272.63 | AW56: 276.02 | AX56: 25.17
A57: 55 | B57: 2021-03-12 | C57: 121.03 | D57: 116.71 | E57: 136.28 | F57: 316.88 | G57: 78.55 | H57: 238.24 | I57: 71.91 | J57: 144.06 | K57: 57.7 | L57: 241.53 | M57: 206.31 | N57: 125.74 | O57: 71.26 | P57: 138.33 | Q57: 121.87 | R57: 289.21 | S57: 98.9 | T57: 47.15 | U57: 37.02 | V57: 134.84 | W57: 92.35 | X57: 36.87 | Y57: 162.83 | Z57: 166.3 | AA57: 150.69 | AB57: 82.02 | AC57: 86.81 | AD57: 48.65 | AE57: 164.84 | AF57: 416.53 | AG57: 179.11 | AH57: 315 | AI57: 87.98 | AJ57: 301.79 | AK57: 233.81 | AL57: 123.1 | AM57: 87.72 | AN57: 342.44 | AO57: 102.01 | AP57: 117.25 | AQ57: 33.04 | AR57: 75.97 | AS57: 6.16 | AT57: 385.12 | AU57: 133.34 | AV57: 268.83 | AW57: 274.12 | AX57: 24.7
A58: 56 | B58: 2021-03-11 | C58: 121.96 | D58: 117.52 | E58: 136.47 | F58: 322.64 | G58: 78.79 | H58: 238.2 | I58: 71.65 | J58: 144.49 | K58: 56.38 | L58: 236.71 | M58: 202.78 | N58: 130.13 | O58: 71.08 | P58: 135.09 | Q58: 121.86 | R58: 291.64 | S58: 99.73 | T58: 46.37 | U58: 36.82 | V58: 135.87 | W58: 92.37 | X58: 37.01 | Y58: 159.29 | Z58: 165.28 | AA58: 148.66 | AB58: 81.1 | AC58: 85.82 | AD58: 47.8 | AE58: 162.86 | AF58: 410.06 | AG58: 178.53 | AH58: 305.48 | AI58: 89.17 | AJ58: 299.41 | AK58: 229.67 | AL58: 126.24 | AM58: 86.63 | AN58: 346.84 | AO58: 101.96 | AP58: 115.26 | AQ58: 33.25 | AR58: 75.97 | AS58: 6.14 | AT58: 388.01 | AU58: 134.9 | AV58: 273.08 | AW58: 272.89 | AX58: 24.41
A59: 57 | B59: 2021-03-10 | C59: 119.98 | D59: 115.88 | E59: 138.74 | F59: 310.09 | G59: 78.42 | H59: 237.89 | I59: 72.03 | J59: 142.38 | K59: 56.03 | L59: 224.99 | M59: 204.46 | N59: 126.88 | O59: 70.83 | P59: 136.21 | Q59: 116.87 | R59: 285.25 | S59: 98.65 | T59: 46.15 | U59: 36.5 | V59: 135.29 | W59: 91.4 | X59: 36.9 | Y59: 157 | Z59: 168.38 | AA59: 149.47 | AB59: 81.32 | AC59: 85.9 | AD59: 48.2 | AE59: 165.32 | AF59: 409.82 | AG59: 177.76 | AH59: 305.19 | AI59: 86.9 | AJ59: 300 | AK59: 225.93 | AL59: 120.35 | AM59: 86.76 | AN59: 343.2 | AO59: 102.45 | AP59: 114.04 | AQ59: 33.27 | AR59: 75.66 | AS59: 6.06 | AT59: 363.76 | AU59: 133.11 | AV59: 272.45 | AW59: 267.73 | AX59: 24.6
A60: 58 | B60: 2021-03-09 | C60: 121.085 | D60: 116.7 | E60: 134.92 | F60: 308 | G60: 78.04 | H60: 242.85 | I60: 70.68 | J60: 141.98 | K60: 54.81 | L60: 223.21 | M60: 197.35 | N60: 127.3 | O60: 70.53 | P60: 133.2 | Q60: 119.88 | R60: 280.02 | S60: 96.3 | T60: 45.69 | U60: 35.65 | V60: 131.31 | W60: 90.62 | X60: 36.68 | Y60: 160.69 | Z60: 165.17 | AA60: 148.89 | AB60: 80.13 | AC60: 85.02 | AD60: 47.68 | AE60: 162.42 | AF60: 414.52 | AG60: 177.03 | AH60: 304.49 | AI60: 88.11 | AJ60: 298.3 | AK60: 223.82 | AL60: 125.96 | AM60: 87.07 | AN60: 336.51 | AO60: 101.8 | AP60: 111.16 | AQ60: 32.92 | AR60: 73.98 | AS60: 5.97 | AT60: 364.11 | AU60: 129.95 | AV60: 272.68 | AW60: 267.42 | AX60: 24.98
A61: 59 | B61: 2021-03-08 | C61: 116.36 | D61: 115.63 | E61: 133.8 | F61: 293.55 | G61: 78.25 | H61: 246.1 | I61: 69.85 | J61: 141.82 | K61: 55.96 | L61: 218.56 | M61: 202.21 | N61: 119.68 | O61: 70.17 | P61: 130.83 | Q61: 121.09 | R61: 280.07 | S61: 96.13 | T61: 44.66 | U61: 35.62 | V61: 131.23 | W61: 91.9 | X61: 36.57 | Y61: 159.39 | Z61: 165.19 | AA61: 151 | AB61: 79.74 | AC61: 84.15 | AD61: 46.9 | AE61: 163.78 | AF61: 402.63 | AG61: 179.21 | AH61: 315.76 | AI61: 85.03 | AJ61: 305.62 | AK61: 218.65 | AL61: 121.56 | AM61: 86.36 | AN61: 328.34 | AO61: 104.81 | AP61: 112.33 | AQ61: 32.49 | AR61: 74.54 | AS61: 5.91 | AT61: 344.88 | AU61: 126.07 | AV61: 264.67 | AW61: 261.35 | AX61: 25.11
A62: 60 | B62: 2021-03-05 | C62: 121.42 | D62: 117.25 | E62: 131.92 | F62: 308.03 | G62: 76.75 | H62: 246.45 | I62: 71.13 | J62: 142.48 | K62: 54.55 | L62: 218.27 | M62: 203.62 | N62: 126.69 | O62: 70.39 | P62: 128.21 | Q62: 117.96 | R62: 292.89 | S62: 94.81 | T62: 45.18 | U62: 35.3 | V62: 133.72 | W62: 91.53 | X62: 35.79 | Y62: 155.63 | Z62: 159.84 | AA62: 151.78 | AB62: 79.23 | AC62: 84.43 | AD62: 45.12 | AE62: 159.78 | AF62: 414.72 | AG62: 178.87 | AH62: 308.47 | AI62: 88.49 | AJ62: 300.91 | AK62: 219.85 | AL62: 124.05 | AM62: 86.16 | AN62: 330.22 | AO62: 103.53 | AP62: 109.13 | AQ62: 32.94 | AR62: 71.24 | AS62: 5.89 | AT62: 356.21 | AU62: 129.39 | AV62: 266.44 | AW62: 262.4 | AX62: 24.09

Sheet CEM PricesDivs
B2: AAPL | C2: ABT | D2: AIZ | E2: ANSS | F2: BAH | G2: BDX | H2: BFB | I2: BR | J2: BRC | K2: CACI | L2: CASY | M2: CDNS | N2: CERN | O2: CSWI | P2: DGX | Q2: EL | R2: EXPO | S2: FAST | T2: GNTX | U2: IFF | V2: INGR | W2: IRM | X2: JBHT | Y2: JJSF | Z2: JKHY | AA2: MANT | AB2: MKC | AC2: MO | AD2: MSA | AE2: MSCI | AF2: MSI | AG2: MTN | AH2: MXIM | AI2: NOC | AJ2: ODFL | AK2: PKI | AL2: PM | AM2: POOL | AN2: POST | AO2: RLI | AP2: ROL | AQ2: SIGI | AR2: SIRI | AS2: TECH | AT2: TTEK | AU2: WAT | AV2: WST | AW2: WU
A3: =IF('CEM Price Data'!B2="","",'CEM Price Data'!B2) -> PX_LAST | B3: =IF('CEM Price Data'!C2="","",'CEM Price Data'!C2) -> AAPL US Equity | C3: =IF('CEM Price Data'!D2="","",'CEM Price Data'!D2) -> ABT US Equity | D3: =IF('CEM Price Data'!E2="","",'CEM Price Data'!E2) -> AIZ US Equity | E3: =IF('CEM Price Data'!F2="","",'CEM Price Data'!F2) -> ANSS US Equity | F3: =IF('CEM Price Data'!G2="","",'CEM Price Data'!G2) -> BAH US Equity | G3: =IF('CEM Price Data'!H2="","",'CEM Price Data'!H2) -> BDX US Equity | H3: =IF('CEM Price Data'!I2="","",'CEM Price Data'!I2) -> BF/B US Equity | I3: =IF('CEM Price Data'!J2="","",'CEM Price Data'!J2) -> BR US Equity | J3: =IF('CEM Price Data'!K2="","",'CEM Price Data'!K2) -> BRC US Equity | K3: =IF('CEM Price Data'!L2="","",'CEM Price Data'!L2) -> CACI US Equity | L3: =IF('CEM Price Data'!M2="","",'CEM Price Data'!M2) -> CASY US Equity | M3: =IF('CEM Price Data'!N2="","",'CEM Price Data'!N2) -> CDNS US Equity | N3: =IF('CEM Price Data'!O2="","",'CEM Price Data'!O2) -> CERN US Equity | O3: =IF('CEM Price Data'!P2="","",'CEM Price Data'!P2) -> CSWI US Equity | P3: =IF('CEM Price Data'!Q2="","",'CEM Price Data'!Q2) -> DGX US Equity | Q3: =IF('CEM Price Data'!R2="","",'CEM Price Data'!R2) -> EL US Equity | R3: =IF('CEM Price Data'!S2="","",'CEM Price Data'!S2) -> EXPO US Equity | S3: =IF('CEM Price Data'!T2="","",'CEM Price Data'!T2) -> FAST US Equity | T3: =IF('CEM Price Data'!U2="","",'CEM Price Data'!U2) -> GNTX US Equity | U3: =IF('CEM Price Data'!V2="","",'CEM Price Data'!V2) -> IFF US Equity | V3: =IF('CEM Price Data'!W2="","",'CEM Price Data'!W2) -> INGR US Equity | W3: =IF('CEM Price Data'!X2="","",'CEM Price Data'!X2) -> IRM US Equity | X3: =IF('CEM Price Data'!Y2="","",'CEM Price Data'!Y2) -> JBHT US Equity | Y3: =IF('CEM Price Data'!Z2="","",'CEM Price Data'!Z2) -> JJSF US Equity | Z3: =IF('CEM Price Data'!AA2="","",'CEM Price Data'!AA2) -> JKHY US Equity | AA3: =IF('CEM Price Data'!AB2="","",'CEM Price Data'!AB2) -> MANT US Equity | AB3: =IF('CEM Price Data'!AC2="","",'CEM Price Data'!AC2) -> MKC US Equity | AC3: =IF('CEM Price Data'!AD2="","",'CEM Price Data'!AD2) -> MO US Equity | AD3: =IF('CEM Price Data'!AE2="","",'CEM Price Data'!AE2) -> MSA US Equity | AE3: =IF('CEM Price Data'!AF2="","",'CEM Price Data'!AF2) -> MSCI US Equity | AF3: =IF('CEM Price Data'!AG2="","",'CEM Price Data'!AG2) -> MSI US Equity | AG3: =IF('CEM Price Data'!AH2="","",'CEM Price Data'!AH2) -> MTN US Equity | AH3: =IF('CEM Price Data'!AI2="","",'CEM Price Data'!AI2) -> MXIM US Equity | AI3: =IF('CEM Price Data'!AJ2="","",'CEM Price Data'!AJ2) -> NOC US Equity | AJ3: =IF('CEM Price Data'!AK2="","",'CEM Price Data'!AK2) -> ODFL US Equity | AK3: =IF('CEM Price Data'!AL2="","",'CEM Price Data'!AL2) -> PKI US Equity | AL3: =IF('CEM Price Data'!AM2="","",'CEM Price Data'!AM2) -> PM US Equity | AM3: =IF('CEM Price Data'!AN2="","",'CEM Price Data'!AN2) -> POOL US Equity | AN3: =IF('CEM Price Data'!AO2="","",'CEM Price Data'!AO2) -> POST US Equity | AO3: =IF('CEM Price Data'!AP2="","",'CEM Price Data'!AP2) -> RLI US Equity | AP3: =IF('CEM Price Data'!AQ2="","",'CEM Price Data'!AQ2) -> ROL US Equity | AQ3: =IF('CEM Price Data'!AR2="","",'CEM Price Data'!AR2) -> SIGI US Equity | AR3: =IF('CEM Price Data'!AS2="","",'CEM Price Data'!AS2) -> SIRI US Equity | AS3: =IF('CEM Price Data'!AT2="","",'CEM Price Data'!AT2) -> TECH US Equity | AT3: =IF('CEM Price Data'!AU2="","",'CEM Price Data'!AU2) -> TTEK US Equity | AU3: =IF('CEM Price Data'!AV2="","",'CEM Price Data'!AV2) -> WAT US Equity | AV3: =IF('CEM Price Data'!AW2="","",'CEM Price Data'!AW2) -> WST US Equity | AW3: =IF('CEM Price Data'!AX2="","",'CEM Price Data'!AX2) -> WU US Equity
A4: =IF('CEM Price Data'!B3="","",'CEM Price Data'!B3) -> 2021-05-28 | B4: =IF('CEM Price Data'!C3="","",'CEM Price Data'!C3) -> 124.61 | C4: =IF('CEM Price Data'!D3="","",'CEM Price Data'!D3) -> 116.65 | D4: =IF('CEM Price Data'!E3="","",'CEM Price Data'!E3) -> 161.15 | E4: =IF('CEM Price Data'!F3="","",'CEM Price Data'!F3) -> 337.94 | F4: =IF('CEM Price Data'!G3="","",'CEM Price Data'!G3) -> 84.93 | G4: =IF('CEM Price Data'!H3="","",'CEM Price Data'!H3) -> 241.89 | H4: =IF('CEM Price Data'!I3="","",'CEM Price Data'!I3) -> 80.48 | I4: =IF('CEM Price Data'!J3="","",'CEM Price Data'!J3) -> 159.48 | J4: =IF('CEM Price Data'!K3="","",'CEM Price Data'!K3) -> 57.23 | K4: =IF('CEM Price Data'!L3="","",'CEM Price Data'!L3) -> 254.96 | L4: =IF('CEM Price Data'!M3="","",'CEM Price Data'!M3) -> 220.84 | M4: =IF('CEM Price Data'!N3="","",'CEM Price Data'!N3) -> 126.99 | N4: =IF('CEM Price Data'!O3="","",'CEM Price Data'!O3) -> 78.25 | O4: =IF('CEM Price Data'!P3="","",'CEM Price Data'!P3) -> 121.82 | P4: =IF('CEM Price Data'!Q3="","",'CEM Price Data'!Q3) -> 131.67 | Q4: =IF('CEM Price Data'!R3="","",'CEM Price Data'!R3) -> 306.52 | R4: =IF('CEM Price Data'!S3="","",'CEM Price Data'!S3) -> 91.23 | S4: =IF('CEM Price Data'!T3="","",'CEM Price Data'!T3) -> 53.04 | T4: =IF('CEM Price Data'!U3="","",'CEM Price Data'!U3) -> 35.5 | U4: =IF('CEM Price Data'!V3="","",'CEM Price Data'!V3) -> 141.67 | V4: =IF('CEM Price Data'!W3="","",'CEM Price Data'!W3) -> 94.93 | W4: =IF('CEM Price Data'!X3="","",'CEM Price Data'!X3) -> 43.53 | X4: =IF('CEM Price Data'!Y3="","",'CEM Price Data'!Y3) -> 171.54 | Y4: =IF('CEM Price Data'!Z3="","",'CEM Price Data'!Z3) -> 175.58 | Z4: =IF('CEM Price Data'!AA3="","",'CEM Price Data'!AA3) -> 154.15 | AA4: =IF('CEM Price Data'!AB3="","",'CEM Price Data'!AB3) -> 87.01 | AB4: =IF('CEM Price Data'!AC3="","",'CEM Price Data'!AC3) -> 89.06 | AC4: =IF('CEM Price Data'!AD3="","",'CEM Price Data'!AD3) -> 49.22 | AD4: =IF('CEM Price Data'!AE3="","",'CEM Price Data'!AE3) -> 168.06 | AE4: =IF('CEM Price Data'!AF3="","",'CEM Price Data'!AF3) -> 468.13 | AF4: =IF('CEM Price Data'!AG3="","",'CEM Price Data'!AG3) -> 205.47 | AG4: =IF('CEM Price Data'!AH3="","",'CEM Price Data'!AH3) -> 326.88 | AH4: =IF('CEM Price Data'!AI3="","",'CEM Price Data'!AI3) -> 102.01 | AI4: =IF('CEM Price Data'!AJ3="","",'CEM Price Data'!AJ3) -> 365.87 | AJ4: =IF('CEM Price Data'!AK3="","",'CEM Price Data'!AK3) -> 265.45 | AK4: =IF('CEM Price Data'!AL3="","",'CEM Price Data'!AL3) -> 145.06 | AL4: =IF('CEM Price Data'!AM3="","",'CEM Price Data'!AM3) -> 96.43 | AM4: =IF('CEM Price Data'!AN3="","",'CEM Price Data'!AN3) -> 436.55 | AN4: =IF('CEM Price Data'!AO3="","",'CEM Price Data'!AO3) -> 115.53 | AO4: =IF('CEM Price Data'!AP3="","",'CEM Price Data'!AP3) -> 105.48 | AP4: =IF('CEM Price Data'!AQ3="","",'CEM Price Data'!AQ3) -> 34.09 | AQ4: =IF('CEM Price Data'!AR3="","",'CEM Price Data'!AR3) -> 75.27 | AR4: =IF('CEM Price Data'!AS3="","",'CEM Price Data'!AS3) -> 6.25 | AS4: =IF('CEM Price Data'!AT3="","",'CEM Price Data'!AT3) -> 413.83 | AT4: =IF('CEM Price Data'!AU3="","",'CEM Price Data'!AU3) -> 119.47 | AU4: =IF('CEM Price Data'!AV3="","",'CEM Price Data'!AV3) -> 322.25 | AV4: =IF('CEM Price Data'!AW3="","",'CEM Price Data'!AW3) -> 347.3 | AW4: =IF('CEM Price Data'!AX3="","",'CEM Price Data'!AX3) -> 24.46
A5: =IF('CEM Price Data'!B4="","",'CEM Price Data'!B4) -> 2021-05-27 | B5: =IF('CEM Price Data'!C4="","",'CEM Price Data'!C4) -> 125.28 | C5: =IF('CEM Price Data'!D4="","",'CEM Price Data'!D4) -> 115.69 | D5: =IF('CEM Price Data'!E4="","",'CEM Price Data'!E4) -> 161.3 | E5: =IF('CEM Price Data'!F4="","",'CEM Price Data'!F4) -> 336.79 | F5: =IF('CEM Price Data'!G4="","",'CEM Price Data'!G4) -> 85.46 | G5: =IF('CEM Price Data'!H4="","",'CEM Price Data'!H4) -> 240.94 | H5: =IF('CEM Price Data'!I4="","",'CEM Price Data'!I4) -> 79.87 | I5: =IF('CEM Price Data'!J4="","",'CEM Price Data'!J4) -> 159.64 | J5: =IF('CEM Price Data'!K4="","",'CEM Price Data'!K4) -> 57.24 | K5: =IF('CEM Price Data'!L4="","",'CEM Price Data'!L4) -> 254.65 | L5: =IF('CEM Price Data'!M4="","",'CEM Price Data'!M4) -> 217.25 | M5: =IF('CEM Price Data'!N4="","",'CEM Price Data'!N4) -> 127.13 | N5: =IF('CEM Price Data'!O4="","",'CEM Price Data'!O4) -> 78.29 | O5: =IF('CEM Price Data'!P4="","",'CEM Price Data'!P4) -> 123.9 | P5: =IF('CEM Price Data'!Q4="","",'CEM Price Data'!Q4) -> 132.56 | Q5: =IF('CEM Price Data'!R4="","",'CEM Price Data'!R4) -> 303.55 | R5: =IF('CEM Price Data'!S4="","",'CEM Price Data'!S4) -> 90.68 | S5: =IF('CEM Price Data'!T4="","",'CEM Price Data'!T4) -> 52.75 | T5: =IF('CEM Price Data'!U4="","",'CEM Price Data'!U4) -> 35.36 | U5: =IF('CEM Price Data'!V4="","",'CEM Price Data'!V4) -> 142.84 | V5: =IF('CEM Price Data'!W4="","",'CEM Price Data'!W4) -> 94.75 | W5: =IF('CEM Price Data'!X4="","",'CEM Price Data'!X4) -> 43.01 | X5: =IF('CEM Price Data'!Y4="","",'CEM Price Data'!Y4) -> 172.26 | Y5: =IF('CEM Price Data'!Z4="","",'CEM Price Data'!Z4) -> 175.08 | Z5: =IF('CEM Price Data'!AA4="","",'CEM Price Data'!AA4) -> 155.57 | AA5: =IF('CEM Price Data'!AB4="","",'CEM Price Data'!AB4) -> 87.05 | AB5: =IF('CEM Price Data'!AC4="","",'CEM Price Data'!AC4) -> 88.7 | AC5: =IF('CEM Price Data'!AD4="","",'CEM Price Data'!AD4) -> 49.2 | AD5: =IF('CEM Price Data'!AE4="","",'CEM Price Data'!AE4) -> 167.34 | AE5: =IF('CEM Price Data'!AF4="","",'CEM Price Data'!AF4) -> 464.37 | AF5: =IF('CEM Price Data'!AG4="","",'CEM Price Data'!AG4) -> 203.59 | AG5: =IF('CEM Price Data'!AH4="","",'CEM Price Data'!AH4) -> 329.74 | AH5: =IF('CEM Price Data'!AI4="","",'CEM Price Data'!AI4) -> 101.16 | AI5: =IF('CEM Price Data'!AJ4="","",'CEM Price Data'!AJ4) -> 370.46 | AJ5: =IF('CEM Price Data'!AK4="","",'CEM Price Data'!AK4) -> 264.32 | AK5: =IF('CEM Price Data'!AL4="","",'CEM Price Data'!AL4) -> 144.9 | AL5: =IF('CEM Price Data'!AM4="","",'CEM Price Data'!AM4) -> 96.68 | AM5: =IF('CEM Price Data'!AN4="","",'CEM Price Data'!AN4) -> 431.47 | AN5: =IF('CEM Price Data'!AO4="","",'CEM Price Data'!AO4) -> 114.16 | AO5: =IF('CEM Price Data'!AP4="","",'CEM Price Data'!AP4) -> 105.15 | AP5: =IF('CEM Price Data'!AQ4="","",'CEM Price Data'!AQ4) -> 33.86 | AQ5: =IF('CEM Price Data'!AR4="","",'CEM Price Data'!AR4) -> 75.47 | AR5: =IF('CEM Price Data'!AS4="","",'CEM Price Data'!AS4) -> 6.21 | AS5: =IF('CEM Price Data'!AT4="","",'CEM Price Data'!AT4) -> 409.69 | AT5: =IF('CEM Price Data'!AU4="","",'CEM Price Data'!AU4) -> 119.61 | AU5: =IF('CEM Price Data'!AV4="","",'CEM Price Data'!AV4) -> 323.74 | AV5: =IF('CEM Price Data'!AW4="","",'CEM Price Data'!AW4) -> 344.7 | AW5: =IF('CEM Price Data'!AX4="","",'CEM Price Data'!AX4) -> 24.63
A6: =IF('CEM Price Data'!B5="","",'CEM Price Data'!B5) -> 2021-05-26 | B6: =IF('CEM Price Data'!C5="","",'CEM Price Data'!C5) -> 126.85 | C6: =IF('CEM Price Data'!D5="","",'CEM Price Data'!D5) -> 116.75 | D6: =IF('CEM Price Data'!E5="","",'CEM Price Data'!E5) -> 157.64 | E6: =IF('CEM Price Data'!F5="","",'CEM Price Data'!F5) -> 338.03 | F6: =IF('CEM Price Data'!G5="","",'CEM Price Data'!G5) -> 85.69 | G6: =IF('CEM Price Data'!H5="","",'CEM Price Data'!H5) -> 242.02 | H6: =IF('CEM Price Data'!I5="","",'CEM Price Data'!I5) -> 80.37 | I6: =IF('CEM Price Data'!J5="","",'CEM Price Data'!J5) -> 158.76 | J6: =IF('CEM Price Data'!K5="","",'CEM Price Data'!K5) -> 56.66 | K6: =IF('CEM Price Data'!L5="","",'CEM Price Data'!L5) -> 254.36 | L6: =IF('CEM Price Data'!M5="","",'CEM Price Data'!M5) -> 221.24 | M6: =IF('CEM Price Data'!N5="","",'CEM Price Data'!N5) -> 126.83 | N6: =IF('CEM Price Data'!O5="","",'CEM Price Data'!O5) -> 79.03 | O6: =IF('CEM Price Data'!P5="","",'CEM Price Data'!P5) -> 123.16 | P6: =IF('CEM Price Data'!Q5="","",'CEM Price Data'!Q5) -> 132.65 | Q6: =IF('CEM Price Data'!R5="","",'CEM Price Data'!R5) -> 305.84 | R6: =IF('CEM Price Data'!S5="","",'CEM Price Data'!S5) -> 90.78 | S6: =IF('CEM Price Data'!T5="","",'CEM Price Data'!T5) -> 52.91 | T6: =IF('CEM Price Data'!U5="","",'CEM Price Data'!U5) -> 34.73 | U6: =IF('CEM Price Data'!V5="","",'CEM Price Data'!V5) -> 141.7 | V6: =IF('CEM Price Data'!W5="","",'CEM Price Data'!W5) -> 95.49 | W6: =IF('CEM Price Data'!X5="","",'CEM Price Data'!X5) -> 43.33 | X6: =IF('CEM Price Data'!Y5="","",'CEM Price Data'!Y5) -> 169.44 | Y6: =IF('CEM Price Data'!Z5="","",'CEM Price Data'!Z5) -> 173.18 | Z6: =IF('CEM Price Data'!AA5="","",'CEM Price Data'!AA5) -> 156.5 | AA6: =IF('CEM Price Data'!AB5="","",'CEM Price Data'!AB5) -> 86.12 | AB6: =IF('CEM Price Data'!AC5="","",'CEM Price Data'!AC5) -> 89.66 | AC6: =IF('CEM Price Data'!AD5="","",'CEM Price Data'!AD5) -> 49.42 | AD6: =IF('CEM Price Data'!AE5="","",'CEM Price Data'!AE5) -> 167.03 | AE6: =IF('CEM Price Data'!AF5="","",'CEM Price Data'!AF5) -> 465.1 | AF6: =IF('CEM Price Data'!AG5="","",'CEM Price Data'!AG5) -> 202.66 | AG6: =IF('CEM Price Data'!AH5="","",'CEM Price Data'!AH5) -> 326.73 | AH6: =IF('CEM Price Data'!AI5="","",'CEM Price Data'!AI5) -> 101.07 | AI6: =IF('CEM Price Data'!AJ5="","",'CEM Price Data'!AJ5) -> 366.72 | AJ6: =IF('CEM Price Data'!AK5="","",'CEM Price Data'!AK5) -> 262.67 | AK6: =IF('CEM Price Data'!AL5="","",'CEM Price Data'!AL5) -> 143.71 | AL6: =IF('CEM Price Data'!AM5="","",'CEM Price Data'!AM5) -> 97.31 | AM6: =IF('CEM Price Data'!AN5="","",'CEM Price Data'!AN5) -> 429.63 | AN6: =IF('CEM Price Data'!AO5="","",'CEM Price Data'!AO5) -> 115.58 | AO6: =IF('CEM Price Data'!AP5="","",'CEM Price Data'!AP5) -> 104.36 | AP6: =IF('CEM Price Data'!AQ5="","",'CEM Price Data'!AQ5) -> 33.86 | AQ6: =IF('CEM Price Data'!AR5="","",'CEM Price Data'!AR5) -> 75.15 | AR6: =IF('CEM Price Data'!AS5="","",'CEM Price Data'!AS5) -> 6.05 | AS6: =IF('CEM Price Data'!AT5="","",'CEM Price Data'!AT5) -> 416.27 | AT6: =IF('CEM Price Data'!AU5="","",'CEM Price Data'!AU5) -> 118.12 | AU6: =IF('CEM Price Data'!AV5="","",'CEM Price Data'!AV5) -> 319.74 | AV6: =IF('CEM Price Data'!AW5="","",'CEM Price Data'!AW5) -> 344.39 | AW6: =IF('CEM Price Data'!AX5="","",'CEM Price Data'!AX5) -> 24.5
A7: =IF('CEM Price Data'!B6="","",'CEM Price Data'!B6) -> 2021-05-25 | B7: =IF('CEM Price Data'!C6="","",'CEM Price Data'!C6) -> 126.9 | C7: =IF('CEM Price Data'!D6="","",'CEM Price Data'!D6) -> 118.4 | D7: =IF('CEM Price Data'!E6="","",'CEM Price Data'!E6) -> 157.34 | E7: =IF('CEM Price Data'!F6="","",'CEM Price Data'!F6) -> 339.19 | F7: =IF('CEM Price Data'!G6="","",'CEM Price Data'!G6) -> 85.03 | G7: =IF('CEM Price Data'!H6="","",'CEM Price Data'!H6) -> 242.49 | H7: =IF('CEM Price Data'!I6="","",'CEM Price Data'!I6) -> 79.79 | I7: =IF('CEM Price Data'!J6="","",'CEM Price Data'!J6) -> 159.17 | J7: =IF('CEM Price Data'!K6="","",'CEM Price Data'!K6) -> 56.05 | K7: =IF('CEM Price Data'!L6="","",'CEM Price Data'!L6) -> 255.35 | L7: =IF('CEM Price Data'!M6="","",'CEM Price Data'!M6) -> 218.97 | M7: =IF('CEM Price Data'!N6="","",'CEM Price Data'!N6) -> 127.49 | N7: =IF('CEM Price Data'!O6="","",'CEM Price Data'!O6) -> 78.12 | O7: =IF('CEM Price Data'!P6="","",'CEM Price Data'!P6) -> 122.71 | P7: =IF('CEM Price Data'!Q6="","",'CEM Price Data'!Q6) -> 130.85 | Q7: =IF('CEM Price Data'!R6="","",'CEM Price Data'!R6) -> 305.19 | R7: =IF('CEM Price Data'!S6="","",'CEM Price Data'!S6) -> 91.23 | S7: =IF('CEM Price Data'!T6="","",'CEM Price Data'!T6) -> 52.69 | T7: =IF('CEM Price Data'!U6="","",'CEM Price Data'!U6) -> 34.75 | U7: =IF('CEM Price Data'!V6="","",'CEM Price Data'!V6) -> 141.62 | V7: =IF('CEM Price Data'!W6="","",'CEM Price Data'!W6) -> 95.23 | W7: =IF('CEM Price Data'!X6="","",'CEM Price Data'!X6) -> 43.22 | X7: =IF('CEM Price Data'!Y6="","",'CEM Price Data'!Y6) -> 167.67 | Y7: =IF('CEM Price Data'!Z6="","",'CEM Price Data'!Z6) -> 171.73 | Z7: =IF('CEM Price Data'!AA6="","",'CEM Price Data'!AA6) -> 156.41 | AA7: =IF('CEM Price Data'!AB6="","",'CEM Price Data'!AB6) -> 86.28 | AB7: =IF('CEM Price Data'!AC6="","",'CEM Price Data'!AC6) -> 90.3 | AC7: =IF('CEM Price Data'!AD6="","",'CEM Price Data'!AD6) -> 49.61 | AD7: =IF('CEM Price Data'!AE6="","",'CEM Price Data'!AE6) -> 166.9 | AE7: =IF('CEM Price Data'!AF6="","",'CEM Price Data'!AF6) -> 464.61 | AF7: =IF('CEM Price Data'!AG6="","",'CEM Price Data'!AG6) -> 203.85 | AG7: =IF('CEM Price Data'!AH6="","",'CEM Price Data'!AH6) -> 319.63 | AH7: =IF('CEM Price Data'!AI6="","",'CEM Price Data'!AI6) -> 101.24 | AI7: =IF('CEM Price Data'!AJ6="","",'CEM Price Data'!AJ6) -> 369.99 | AJ7: =IF('CEM Price Data'!AK6="","",'CEM Price Data'!AK6) -> 261.33 | AK7: =IF('CEM Price Data'!AL6="","",'CEM Price Data'!AL6) -> 143.1 | AL7: =IF('CEM Price Data'!AM6="","",'CEM Price Data'!AM6) -> 97.52 | AM7: =IF('CEM Price Data'!AN6="","",'CEM Price Data'!AN6) -> 429.66 | AN7: =IF('CEM Price Data'!AO6="","",'CEM Price Data'!AO6) -> 115.7 | AO7: =IF('CEM Price Data'!AP6="","",'CEM Price Data'!AP6) -> 103.81 | AP7: =IF('CEM Price Data'!AQ6="","",'CEM Price Data'!AQ6) -> 34.03 | AQ7: =IF('CEM Price Data'!AR6="","",'CEM Price Data'!AR6) -> 75.52 | AR7: =IF('CEM Price Data'!AS6="","",'CEM Price Data'!AS6) -> 5.99 | AS7: =IF('CEM Price Data'!AT6="","",'CEM Price Data'!AT6) -> 420.15 | AT7: =IF('CEM Price Data'!AU6="","",'CEM Price Data'!AU6) -> 119.47 | AU7: =IF('CEM Price Data'!AV6="","",'CEM Price Data'!AV6) -> 321.14 | AV7: =IF('CEM Price Data'!AW6="","",'CEM Price Data'!AW6) -> 345.36 | AW7: =IF('CEM Price Data'!AX6="","",'CEM Price Data'!AX6) -> 24.29
A8: =IF('CEM Price Data'!B7="","",'CEM Price Data'!B7) -> 2021-05-24 | B8: =IF('CEM Price Data'!C7="","",'CEM Price Data'!C7) -> 127.1 | C8: =IF('CEM Price Data'!D7="","",'CEM Price Data'!D7) -> 117.29 | D8: =IF('CEM Price Data'!E7="","",'CEM Price Data'!E7) -> 159.14 | E8: =IF('CEM Price Data'!F7="","",'CEM Price Data'!F7) -> 338.77 | F8: =IF('CEM Price Data'!G7="","",'CEM Price Data'!G7) -> 85.74 | G8: =IF('CEM Price Data'!H7="","",'CEM Price Data'!H7) -> 243.72 | H8: =IF('CEM Price Data'!I7="","",'CEM Price Data'!I7) -> 79.58 | I8: =IF('CEM Price Data'!J7="","",'CEM Price Data'!J7) -> 159.45 | J8: =IF('CEM Price Data'!K7="","",'CEM Price Data'!K7) -> 56.46 | K8: =IF('CEM Price Data'!L7="","",'CEM Price Data'!L7) -> 258.16 | L8: =IF('CEM Price Data'!M7="","",'CEM Price Data'!M7) -> 220.86 | M8: =IF('CEM Price Data'!N7="","",'CEM Price Data'!N7) -> 126.33 | N8: =IF('CEM Price Data'!O7="","",'CEM Price Data'!O7) -> 77 | O8: =IF('CEM Price Data'!P7="","",'CEM Price Data'!P7) -> 123.43 | P8: =IF('CEM Price Data'!Q7="","",'CEM Price Data'!Q7) -> 130.47 | Q8: =IF('CEM Price Data'!R7="","",'CEM Price Data'!R7) -> 302.46 | R8: =IF('CEM Price Data'!S7="","",'CEM Price Data'!S7) -> 92.12 | S8: =IF('CEM Price Data'!T7="","",'CEM Price Data'!T7) -> 52.85 | T8: =IF('CEM Price Data'!U7="","",'CEM Price Data'!U7) -> 34.39 | U8: =IF('CEM Price Data'!V7="","",'CEM Price Data'!V7) -> 141.86 | V8: =IF('CEM Price Data'!W7="","",'CEM Price Data'!W7) -> 96.03 | W8: =IF('CEM Price Data'!X7="","",'CEM Price Data'!X7) -> 43.69 | X8: =IF('CEM Price Data'!Y7="","",'CEM Price Data'!Y7) -> 171.09 | Y8: =IF('CEM Price Data'!Z7="","",'CEM Price Data'!Z7) -> 172.49 | Z8: =IF('CEM Price Data'!AA7="","",'CEM Price Data'!AA7) -> 156.81 | AA8: =IF('CEM Price Data'!AB7="","",'CEM Price Data'!AB7) -> 86.23 | AB8: =IF('CEM Price Data'!AC7="","",'CEM Price Data'!AC7) -> 90.6 | AC8: =IF('CEM Price Data'!AD7="","",'CEM Price Data'!AD7) -> 50.32 | AD8: =IF('CEM Price Data'!AE7="","",'CEM Price Data'!AE7) -> 164.77 | AE8: =IF('CEM Price Data'!AF7="","",'CEM Price Data'!AF7) -> 462.85 | AF8: =IF('CEM Price Data'!AG7="","",'CEM Price Data'!AG7) -> 202.84 | AG8: =IF('CEM Price Data'!AH7="","",'CEM Price Data'!AH7) -> 320.66 | AH8: =IF('CEM Price Data'!AI7="","",'CEM Price Data'!AI7) -> 100.7 | AI8: =IF('CEM Price Data'!AJ7="","",'CEM Price Data'!AJ7) -> 372.18 | AJ8: =IF('CEM Price Data'!AK7="","",'CEM Price Data'!AK7) -> 264.69 | AK8: =IF('CEM Price Data'!AL7="","",'CEM Price Data'!AL7) -> 144.61 | AL8: =IF('CEM Price Data'!AM7="","",'CEM Price Data'!AM7) -> 98.16 | AM8: =IF('CEM Price Data'!AN7="","",'CEM Price Data'!AN7) -> 430.74 | AN8: =IF('CEM Price Data'!AO7="","",'CEM Price Data'!AO7) -> 115.59 | AO8: =IF('CEM Price Data'!AP7="","",'CEM Price Data'!AP7) -> 106.12 | AP8: =IF('CEM Price Data'!AQ7="","",'CEM Price Data'!AQ7) -> 34.4 | AQ8: =IF('CEM Price Data'!AR7="","",'CEM Price Data'!AR7) -> 77.26 | AR8: =IF('CEM Price Data'!AS7="","",'CEM Price Data'!AS7) -> 6.14 | AS8: =IF('CEM Price Data'!AT7="","",'CEM Price Data'!AT7) -> 421 | AT8: =IF('CEM Price Data'!AU7="","",'CEM Price Data'!AU7) -> 119.31 | AU8: =IF('CEM Price Data'!AV7="","",'CEM Price Data'!AV7) -> 317.2 | AV8: =IF('CEM Price Data'!AW7="","",'CEM Price Data'!AW7) -> 339.52 | AW8: =IF('CEM Price Data'!AX7="","",'CEM Price Data'!AX7) -> 24.7
